Workbook

Sheet For Bill Impact(HideBeforeFile) (hidden)
A1: Summary of Rates and Rate Riders
C3: Current Rates
C5: Rate Group | D5: Commodity | E5: System Gas | F5: REDA | G5: PGTVA | H5: ADVADA | I5: LDMDA | J5: SICDA | K5: ='C1.1 Current Rate Riders'!K12 -> FCCVA | L5: ='C1.1 Current Rate Riders'!L12 -> GGEADA | M5: Federal Carbon | N5: Facility Carbon | O5: Dist. Customer Rate | P5: Dist. Vol. Rate Tier 1 | Q5: Dist. Vol. Rate Tier 2 | R5: Dist. Vol. Rate Tier 3 | S5: Dist. Capacity Rate
C6: ='B1.1 Current Distribution Rates'!C16 -> RATE 1 - General Service Rate - Residential | D6: =22.5868+0.6741 -> 23.2609 | E6: ='B1.1 Current Distribution Rates'!L16 -> 0.0435 | F6: ='C1.1 Current Rate Riders'!E16 -> 0.02 | G6: ='C1.1 Current Rate Riders'!F16 -> 0.4355 | H6: ='C1.1 Current Rate Riders'!H16 -> 0 | I6: ='C1.1 Current Rate Riders'!I16 -> 0 | J6: ='C1.1 Current Rate Riders'!J16 -> 0 | K6: ='C1.1 Current Rate Riders'!K16 -> 0 | L6: ='C1.1 Current Rate Riders'!L16 -> 0 | M6: 12.39 | N6: 0.0037 | O6: ='B1.1 Current Distribution Rates'!E16 -> 19.5 | P6: ='B1.1 Current Distribution Rates'!F16 -> 13.9823 | Q6: ='B1.1 Current Distribution Rates'!G16 -> 11.2376 | R6: ="" ->  | S6: ="" -> 
C7: ='B1.1 Current Distribution Rates'!C17 -> RATE 1 - General Service Rate - Commercial | D7: =D6 -> 23.2609 | E7: ='B1.1 Current Distribution Rates'!L17 -> 0.0435 | F7: ='C1.1 Current Rate Riders'!E17 -> 0.02 | G7: ='C1.1 Current Rate Riders'!F17 -> 0.4355 | H7: ='C1.1 Current Rate Riders'!H17 -> 0 | I7: ='C1.1 Current Rate Riders'!I17 -> 0 | J7: ='C1.1 Current Rate Riders'!J17 -> 0 | K7: ='C1.1 Current Rate Riders'!K17 -> 0 | L7: ='C1.1 Current Rate Riders'!L17 -> 0 | M7: =M$6 -> 12.39 | N7: =N$6 -> 0.0037 | O7: ='B1.1 Current Distribution Rates'!E17 -> 19.5 | P7: ='B1.1 Current Distribution Rates'!F17 -> 13.9823 | Q7: ='B1.1 Current Distribution Rates'!G17 -> 11.2376 | R7: ="" ->  | S7: ="" -> 
C8: ='B1.1 Current Distribution Rates'!C18 -> RATE 1 - General Service Rate - Industrial | D8: =D7 -> 23.2609 | E8: ='B1.1 Current Distribution Rates'!L18 -> 0.0435 | F8: ='C1.1 Current Rate Riders'!E18 -> 0.02 | G8: ='C1.1 Current Rate Riders'!F18 -> 0.4355 | H8: ='C1.1 Current Rate Riders'!H18 -> 0 | I8: ='C1.1 Current Rate Riders'!I18 -> 0 | J8: ='C1.1 Current Rate Riders'!J18 -> 0 | K8: ='C1.1 Current Rate Riders'!K18 -> 0 | L8: ='C1.1 Current Rate Riders'!L18 -> 0 | M8: =M$6 -> 12.39 | N8: 0.0037 | O8: ='B1.1 Current Distribution Rates'!E18 -> 19.5 | P8: ='B1.1 Current Distribution Rates'!F18 -> 13.9823 | Q8: ='B1.1 Current Distribution Rates'!G18 -> 11.2376 | R8: ="" ->  | S8: ="" -> 
C9: ='B1.1 Current Distribution Rates'!C19 -> RATE 2 - Seasonal Service - Apr to Oct | D9: 23.2609 | E9: ='B1.1 Current Distribution Rates'!L19 -> 0.0435 | F9: ='C1.1 Current Rate Riders'!E19 -> 0.02 | G9: ='C1.1 Current Rate Riders'!F19 -> 0.4355 | H9: ='C1.1 Current Rate Riders'!H19 -> 0 | J9: ='C1.1 Current Rate Riders'!J19 -> 0 | K9: ='C1.1 Current Rate Riders'!K19 -> 0 | L9: ='C1.1 Current Rate Riders'!L19 -> 0 | M9: 12.39 | N9: 0.0037 | O9: ='B1.1 Current Distribution Rates'!E19 -> 21.64180452 | P9: ='B1.1 Current Distribution Rates'!F19 -> 17.94689923 | Q9: ='B1.1 Current Distribution Rates'!H19 -> 9.286281901 | R9: ='B1.1 Current Distribution Rates'!I19 -> 7.343929946 | S9: ="" -> 
C10: ='B1.1 Current Distribution Rates'!C20 -> RATE 2 - Seasonal Service - Nov to Mar | D10: 23.2609 | E10: ='B1.1 Current Distribution Rates'!L20 -> 0.0435 | F10: ='C1.1 Current Rate Riders'!E20 -> 0.02 | G10: ='C1.1 Current Rate Riders'!F20 -> 0.4355 | H10: ='C1.1 Current Rate Riders'!H20 -> 0 | J10: ='C1.1 Current Rate Riders'!J20 -> 0 | K10: ='C1.1 Current Rate Riders'!K20 -> 0 | L10: ='C1.1 Current Rate Riders'!L20 -> 0 | M10: 12.39 | N10: 0.0037 | O10: ='B1.1 Current Distribution Rates'!E20 -> 21.64180452 | P10: ='B1.1 Current Distribution Rates'!F20 -> 22.62174543 | Q10: ='B1.1 Current Distribution Rates'!H20 -> 15.37098345 | R10: ='B1.1 Current Distribution Rates'!I20 -> 16.54505135 | S10: ="" -> 
C11: ='B1.1 Current Distribution Rates'!C21 -> RATE 3 - Special Large Volume Contract Rate | D11: 23.2609 | E11: ='B1.1 Current Distribution Rates'!L21 -> 0.0435 | F11: ='C1.1 Current Rate Riders'!E21 -> 0.02 | G11: ='C1.1 Current Rate Riders'!F21 -> 0.4355 | H11: ='C1.1 Current Rate Riders'!H21 -> 0 | J11: ='C1.1 Current Rate Riders'!J21 -> 0 | K11: ='C1.1 Current Rate Riders'!K21 -> 0 | L11: ='C1.1 Current Rate Riders'!L21 -> 0 | M11: 12.39 | N11: 0.0037 | O11: ='B1.1 Current Distribution Rates'!E21 -> 216.4180452 | P11: ='B1.1 Current Distribution Rates'!J21 -> 3.896715113 | Q11: ="" ->  | R11: ="" ->  | S11: ='B1.1 Current Distribution Rates'!K21 -> 31.48601214
C12: ='B1.1 Current Distribution Rates'!C22 -> RATE 4 - General Service Peaking - Apr to Dec | D12: 23.2609 | E12: ='B1.1 Current Distribution Rates'!L22 -> 0.0435 | F12: ='C1.1 Current Rate Riders'!E22 -> 0.02 | G12: ='C1.1 Current Rate Riders'!F22 -> 0.4355 | H12: ='C1.1 Current Rate Riders'!H22 -> 0 | J12: ='C1.1 Current Rate Riders'!J22 -> 0 | K12: ='C1.1 Current Rate Riders'!K22 -> 0 | L12: ='C1.1 Current Rate Riders'!L22 -> 0 | M12: 12.39 | N12: 0.0037 | O12: ='B1.1 Current Distribution Rates'!E22 -> 21.64180452 | P12: ='B1.1 Current Distribution Rates'!F22 -> 19.76264663 | Q12: ='B1.1 Current Distribution Rates'!G22 -> 12.12557845 | R12: ="" ->  | S12: ="" -> 
C13: ='B1.1 Current Distribution Rates'!C23 -> RATE 4 - General Service Peaking - Jan to Mar | D13: 23.2609 | E13: ='B1.1 Current Distribution Rates'!L23 -> 0.0435 | F13: ='C1.1 Current Rate Riders'!E23 -> 0.02 | G13: ='C1.1 Current Rate Riders'!F23 -> 0.4355 | H13: ='C1.1 Current Rate Riders'!H23 -> 0 | J13: ='C1.1 Current Rate Riders'!J23 -> 0 | K13: ='C1.1 Current Rate Riders'!K23 -> 0 | L13: ='C1.1 Current Rate Riders'!L23 -> 0 | M13: 12.39 | N13: 0.0037 | O13: ='B1.1 Current Distribution Rates'!E23 -> 21.64180452 | P13: ='B1.1 Current Distribution Rates'!F23 -> 25.21162018 | Q13: ='B1.1 Current Distribution Rates'!G23 -> 19.48195243 | R13: ="" ->  | S13: ="" -> 
C14: ='B1.1 Current Distribution Rates'!C24 -> RATE 5 - Interruptible Peaking Contract Rate | D14: 23.2609 | E14: ='B1.1 Current Distribution Rates'!L24 -> 0.0435 | F14: ='C1.1 Current Rate Riders'!E24 -> 0.02 | G14: ='C1.1 Current Rate Riders'!F24 -> 0.4355 | H14: ='C1.1 Current Rate Riders'!H24 -> 0 | J14: ='C1.1 Current Rate Riders'!J24 -> 0 | K14: ='C1.1 Current Rate Riders'!K24 -> 0 | L14: ='C1.1 Current Rate Riders'!L24 -> 0 | M14: 12.39 | N14: 0.0037 | O14: ='B1.1 Current Distribution Rates'!E24 -> 205.5971429 | P14: ='B1.1 Current Distribution Rates'!J24 -> 8.2482 | Q14: ="" ->  | R14: ="" ->  | S14: ="" -> 
C15: ='B1.1 Current Distribution Rates'!C25 -> RATE 6 - Integrated Grain Processors Co-Operative Aylmer Ethanol Production Facility | D15: ="" ->  | E15: ="" ->  | F15: ='C1.1 Current Rate Riders'!E25 -> 0 | G15: ='C1.1 Current Rate Riders'!G25 -> 0 | H15: ='C1.1 Current Rate Riders'!I25 -> 0 | J15: ='C1.1 Current Rate Riders'!J25 -> 0 | K15: ='C1.1 Current Rate Riders'!K25 -> 0 | L15: ='C1.1 Current Rate Riders'!L25 -> 0 | M15: ="" ->  | N15: 0.0037 | O15: ='B1.1 Current Distribution Rates'!E25 -> 66255.3 | P15: ="" ->  | Q15: ="" ->  | R15: ="" ->  | S15: ="" -> 
C17: Proposed Rates
C19: =C5 -> Rate Group | D19: =D5 -> Commodity | E19: System Gas | F19: REDA | G19: PGTVA | H19: ADVADA | I19: =I5 -> LDMDA | J19: SICDA | K19: =K5 -> FCCVA | L19: =L5 -> GGEADA | M19: Federal Carbon | N19: Facility Carbon | O19: Dist. Customer Rate | P19: Dist. Vol. Rate Tier 1 | Q19: Dist. Vol. Rate Tier 2 | R19: Dist. Vol. Rate Tier 3 | S19: Dist. Capacity Rate
C20: =C6 -> RATE 1 - General Service Rate - Residential | D20: =D6 -> 23.2609 | E20: ='E1.1 Proposed Dist Rates '!L16 -> 0.0435 | F20: ='F1.1 REDA'!$H$22 -> 0.02 | G20: ='F1.2 PGTVA'!$G$16 -> 0.7891024788 | H20: ='F1.3 ADVADA'!$H$16 -> -0.02895736312 | I20: ='F1.4 Proposed Rate Riders'!I13 -> 0 | J20: ='F1.4 Proposed Rate Riders'!J13 -> 0 | K20: =K6 -> 0 | L20: =L6 -> 0 | M20: =M6 -> 12.39 | N20: =N6 -> 0.0037 | O20: ='E1.1 Proposed Dist Rates '!E16 -> 20.5 | P20: ='E1.1 Proposed Dist Rates '!F16 -> 14.5340662 | Q20: ='E1.1 Proposed Dist Rates '!G16 -> 11.6810555 | R20: ="" ->  | S20: ="" -> 
C21: =C7 -> RATE 1 - General Service Rate - Commercial | D21: =D7 -> 23.2609 | E21: ='E1.1 Proposed Dist Rates '!L17 -> 0.0435 | F21: ='F1.1 REDA'!$H$22 -> 0.02 | G21: ='F1.2 PGTVA'!$G$16 -> 0.7891024788 | H21: ='F1.3 ADVADA'!$H$16 -> -0.02895736312 | I21: ='F1.4 Proposed Rate Riders'!I14 -> 0 | J21: ='F1.4 Proposed Rate Riders'!J14 -> 0 | K21: =K7 -> 0 | L21: 0 | M21: =M$20 -> 12.39 | N21: =N$20 -> 0.0037 | O21: ='E1.1 Proposed Dist Rates '!E17 -> 20.5 | P21: ='E1.1 Proposed Dist Rates '!F17 -> 14.5340662 | Q21: ='E1.1 Proposed Dist Rates '!G17 -> 11.6810555 | R21: ="" ->  | S21: ="" -> 
C22: RATE 1 - General Service Rate - Industrial | D22: =D8 -> 23.2609 | E22: ='E1.1 Proposed Dist Rates '!L18 -> 0.0435 | F22: ='F1.1 REDA'!$H$22 -> 0.02 | G22: ='F1.2 PGTVA'!$G$16 -> 0.7891024788 | H22: ='F1.3 ADVADA'!$H$16 -> -0.02895736312 | I22: ='F1.4 Proposed Rate Riders'!I15 -> 0 | J22: ='F1.4 Proposed Rate Riders'!J15 -> 0 | K22: 0 | L22: 0 | M22: =M$20 -> 12.39 | N22: 0.0037 | O22: ='E1.1 Proposed Dist Rates '!E18 -> 20.5 | P22: ='E1.1 Proposed Dist Rates '!F18 -> 14.5340662 | Q22: ='E1.1 Proposed Dist Rates '!G18 -> 11.6810555 | R22: ="" ->  | S22: ="" -> 
C23: RATE 2 - Seasonal Service - Apr to Oct | D23: 23.2609 | E23: ='E1.1 Proposed Dist Rates '!L19 -> 0.0435 | F23: ='F1.1 REDA'!$H$22 -> 0.02 | G23: ='F1.2 PGTVA'!$G$16 -> 0.7891024788 | H23: ='F1.3 ADVADA'!$H$16 -> -0.02895736312 | J23: ='F1.4 Proposed Rate Riders'!J16 -> 0 | K23: 0 | L23: 0 | M23: 12.39 | N23: 0.0037 | O23: ='E1.1 Proposed Dist Rates '!E19 -> 22.59404392 | P23: ='E1.1 Proposed Dist Rates '!F19 -> 18.7365628 | Q23: ='E1.1 Proposed Dist Rates '!H19 -> 9.694878305 | R23: ='E1.1 Proposed Dist Rates '!I19 -> 7.667062863 | S23: ="" -> 
C24: RATE 2 - Seasonal Service - Nov to Mar | D24: 23.2609 | E24: ='E1.1 Proposed Dist Rates '!L20 -> 0.0435 | F24: ='F1.1 REDA'!$H$22 -> 0.02 | G24: ='F1.2 PGTVA'!$G$16 -> 0.7891024788 | H24: ='F1.3 ADVADA'!$H$16 -> -0.02895736312 | J24: ='F1.4 Proposed Rate Riders'!J17 -> 0 | K24: 0 | L24: 0 | M24: 12.39 | N24: 0.0037 | O24: ='E1.1 Proposed Dist Rates '!E20 -> 22.59404392 | P24: ='E1.1 Proposed Dist Rates '!F20 -> 23.61710223 | Q24: ='E1.1 Proposed Dist Rates '!H20 -> 16.04730672 | R24: ='E1.1 Proposed Dist Rates '!I20 -> 17.27303361 | S24: ="" -> 
C25: RATE 3 - Special Large Volume Contract Rate | D25: 23.2609 | E25: ='E1.1 Proposed Dist Rates '!L21 -> 0.0435 | F25: ='F1.1 REDA'!$H$22 -> 0.02 | G25: ='F1.2 PGTVA'!$G$16 -> 0.7891024788 | H25: ='F1.3 ADVADA'!$H$16 -> -0.02895736312 | J25: ='F1.4 Proposed Rate Riders'!J18 -> 0 | K25: 0 | L25: 0 | M25: 12.39 | N25: 0.0037 | O25: ='E1.1 Proposed Dist Rates '!E21 -> 225.9404392 | P25: ='E1.1 Proposed Dist Rates '!J21 -> 4.068170578 | Q25: ="" ->  | R25: ="" ->  | S25: ='E1.1 Proposed Dist Rates '!K21 -> 32.87139668
C26: RATE 4 - General Service Peaking - Apr to Dec | D26: 23.2609 | E26: ='E1.1 Proposed Dist Rates '!L22 -> 0.0435 | F26: ='F1.1 REDA'!$H$22 -> 0.02 | G26: ='F1.2 PGTVA'!$G$16 -> 0.7891024788 | H26: ='F1.3 ADVADA'!$H$16 -> -0.02895736312 | J26: ='F1.4 Proposed Rate Riders'!J19 -> 0 | K26: 0 | L26: 0 | M26: 12.39 | N26: 0.0037 | O26: ='E1.1 Proposed Dist Rates '!E22 -> 22.59404392 | P26: ='E1.1 Proposed Dist Rates '!F22 -> 20.63220309 | Q26: ='E1.1 Proposed Dist Rates '!G22 -> 12.6591039 | R26: ="" ->  | S26: ="" -> 
C27: RATE 4 - General Service Peaking - Jan to Mar | D27: 23.2609 | E27: ='E1.1 Proposed Dist Rates '!L23 -> 0.0435 | F27: ='F1.1 REDA'!$H$22 -> 0.02 | G27: ='F1.2 PGTVA'!$G$16 -> 0.7891024788 | H27: ='F1.3 ADVADA'!$H$16 -> -0.02895736312 | J27: ='F1.4 Proposed Rate Riders'!J20 -> 0 | K27: 0 | L27: 0 | M27: 12.39 | N27: 0.0037 | O27: ='E1.1 Proposed Dist Rates '!E23 -> 22.59404392 | P27: ='E1.1 Proposed Dist Rates '!F23 -> 26.32093146 | Q27: ='E1.1 Proposed Dist Rates '!G23 -> 20.33915834 | R27: ="" ->  | S27: ="" -> 
C28: RATE 5 - Interruptible Peaking Contract Rate | D28: 23.2609 | E28: ='E1.1 Proposed Dist Rates '!L24 -> 0.0435 | F28: ='F1.1 REDA'!$H$22 -> 0.02 | G28: ='F1.2 PGTVA'!$G$16 -> 0.7891024788 | H28: ='F1.3 ADVADA'!$H$16 -> -0.02895736312 | J28: ='F1.4 Proposed Rate Riders'!J21 -> 0 | K28: 0 | L28: 0 | M28: 12.39 | N28: 0.0037 | O28: ='E1.1 Proposed Dist Rates '!E24 -> 214.6434172 | P28: ='E1.1 Proposed Dist Rates '!J24 -> 8.6111208 | Q28: ="" ->  | R28: ="" ->  | S28: ="" -> 
C29: RATE 6 - Integrated Grain Processors Co-Operative Aylmer Ethanol Production Facility | D29: ="" ->  | E29: ="" ->  | F29: ='F1.1 REDA'!$H$23 -> 0 | G29: ="" ->  | H29: ='F1.3 ADVADA'!$H$17 ->  | I29: ="" ->  | J29: ="" ->  | K29: ='C1.1 Current Rate Riders'!K39 -> 0 | L29: ='C1.1 Current Rate Riders'!L39 -> 0 | M29: ="" ->  | N29: 0.0037 | O29: ='E1.1 Proposed Dist Rates '!E25 -> 69170.5332 | P29: ="" ->  | Q29: ="" ->  | R29: ="" ->  | S29: ="" -> 
C31: Average Bill Determinant per Customer
C33: =C47 -> Rate Group | D33: Commodity | E33: System Gas | F33: REDA | G33: PGTVA | H33: ADVADA | I33: =I47 -> LDMDA | J33: SICDA | K33: =K19 -> FCCVA | L33: =L19 -> GGEADA | M33: =M47 -> Federal Carbon | N33: Facility Carbon | O33: =O47 -> Dist. Customer Rate | P33: =P47 -> Dist. Vol. Rate Tier 1 | Q33: =Q47 -> Dist. Vol. Rate Tier 2 | R33: =R47 -> Dist. Vol. Rate Tier 3 | S33: =S47 -> Dist. Capacity Rate
C34: =C6 -> RATE 1 - General Service Rate - Residential | D34: =SUM($P34:$R34) -> 2067.376984 | E34: =SUM($P34:$R34) -> 2067.376984 | F34: =$O34 -> 12 | G34: =SUM($P34:$R34) -> 2067.376984 | H34: 2067.376984 | I34: =$O34 -> 12 | J34: 2067.376984 | K34: =$O34 -> 12 | L34: =$O34 -> 12 | M34: =SUM($P34:$R34) -> 2067.376984 | N34: =SUM($P34:$R34) -> 2067.376984 | O34: 12 | P34: ='B1.2 Billing Determinants'!F16/'B1.2 Billing Determinants'!$E16 -> 2034.819375 | Q34: ='B1.2 Billing Determinants'!G16/'B1.2 Billing Determinants'!$E16 -> 32.55760916 | R34: ="" ->  | S34: ="" -> 
C35: =C7 -> RATE 1 - General Service Rate - Commercial | D35: =SUM($P35:$R35) -> 10816.14215 | E35: 10816.14215 | F35: =$O35 -> 12 | G35: 10816.14215 | H35: 10816.14215 | I35: 12 | J35: 10816.14215 | K35: 12 | L35: 12 | M35: 10816.14215 | N35: 10816.14215 | O35: 12 | P35: ='B1.2 Billing Determinants'!F17/'B1.2 Billing Determinants'!$E17 -> 4746.512169 | Q35: ='B1.2 Billing Determinants'!G17/'B1.2 Billing Determinants'!$E17 -> 6069.629982 | R35: ="" ->  | S35: ="" -> 
C36: RATE 1 - General Service Rate - Industrial | D36: 30334.02727 | E36: 30334.02727 | F36: 12 | G36: 30334.02727 | H36: 30334.02727 | I36: 12 | J36: 30334.02727 | K36: 12 | L36: 12 | M36: 30334.02727 | N36: 30334.02727 | O36: 12 | P36: ='B1.2 Billing Determinants'!F18/'B1.2 Billing Determinants'!$E18 -> 6408.320779 | Q36: ='B1.2 Billing Determinants'!G18/'B1.2 Billing Determinants'!$E18 -> 23925.70649 | R36: ="" ->  | S36: ="" -> 
C37: RATE 2 - Seasonal Service - Apr to Oct | D37: 9583.094231 | E37: 9583.094231 | F37: 7 | G37: 9583.094231 | H37: 9583.094231 | I37: 7 | J37: 9583.094231 | K37: 7 | L37: 7 | M37: 9583.094231 | N37: 9583.094231 | O37: 7 | P37: ='B1.2 Billing Determinants'!F19/'B1.2 Billing Determinants'!$E19 -> 1271.865385 | Q37: ='B1.2 Billing Determinants'!H19/'B1.2 Billing Determinants'!$E19 -> 6892.209615 | R37: ='B1.2 Billing Determinants'!I19/'B1.2 Billing Determinants'!$E19 -> 1419.019231 | S37: ="" -> 
C38: RATE 2 - Seasonal Service - Nov to Mar | D38: 6327.575 | E38: 6327.575 | F38: 5 | G38: 6327.575 | H38: 6327.575 | I38: 5 | J38: 6327.575 | K38: 5 | L38: 5 | M38: 6327.575 | N38: 6327.575 | O38: 5 | P38: ='B1.2 Billing Determinants'!F20/'B1.2 Billing Determinants'!$E20 -> 1301.719231 | Q38: ='B1.2 Billing Determinants'!H20/'B1.2 Billing Determinants'!$E20 -> 4826.386538 | R38: ='B1.2 Billing Determinants'!I20/'B1.2 Billing Determinants'!$E20 -> 199.4692308 | S38: ="" -> 
C39: RATE 3 - Special Large Volume Contract Rate | D39: 311963.02 | E39: 311963.02 | F39: 12 | G39: 311963.02 | H39: 311963.02 | I39: 12 | J39: 311963.02 | K39: 12 | L39: 12 | M39: 311963.02 | N39: 311963.02 | O39: 12 | P39: ='B1.2 Billing Determinants'!J21/'B1.2 Billing Determinants'!E21 -> 311963.02 | Q39: ="" ->  | R39: ="" ->  | S39: ='B1.2 Billing Determinants'!K21/'B1.2 Billing Determinants'!E21 -> 42813.44
C40: RATE 4 - General Service Peaking - Apr to Dec | D40: 37006.00732 | E40: 37006.00732 | F40: 9 | G40: 37006.00732 | H40: 37006.00732 | I40: 9 | J40: 37006.00732 | K40: 9 | L40: 9 | M40: 37006.00732 | N40: 37006.00732 | O40: 9 | P40: ='B1.2 Billing Determinants'!F22/'B1.2 Billing Determinants'!$E22 -> 2542.878049 | Q40: ='B1.2 Billing Determinants'!G22/'B1.2 Billing Determinants'!$E22 -> 34463.12927 | R40: ="" ->  | S40: ="" -> 
C41: RATE 4 - General Service Peaking - Jan to Mar | D41: 2949.9 | E41: 2949.9 | F41: 3 | G41: 2949.9 | H41: 2949.9 | I41: 3 | J41: 2949.9 | K41: 3 | L41: 3 | M41: 2949.9 | N41: 2949.9 | O41: 3 | P41: ='B1.2 Billing Determinants'!F23/'B1.2 Billing Determinants'!$E23 -> 657.4097561 | Q41: ='B1.2 Billing Determinants'!G23/'B1.2 Billing Determinants'!$E23 -> 2292.490244 | R41: ="" ->  | S41: ="" -> 
C42: RATE 5 - Interruptible Peaking Contract Rate | D42: 149462.35 | E42: 149462.35 | F42: 12 | G42: 149462.35 | H42: 149462.35 | I42: 12 | J42: 149462.35 | K42: 12 | L42: 12 | M42: 149462.35 | N42: 149462.35 | O42: 12 | P42: ='B1.2 Billing Determinants'!J24/'B1.2 Billing Determinants'!E24 -> 149462.35 | Q42: ="" ->  | R42: ="" ->  | S42: ="" -> 
C43: RATE 6 - Integrated Grain Processors Co-Operative Aylmer Ethanol Production Facility | D43: ="" ->  | E43: ="" ->  | F43: 12 | G43: 12 | H43: 12 | I43: 12 | J43: 12 | K43: 12 | L43: 12 | M43: ="" ->  | N43: ='B1.2 Billing Determinants'!J25 -> 61555492 | O43: 12 | P43: ="" ->  | Q43: ="" ->  | R43: ="" ->  | S43: ="" -> 
C45: Label
C47: =C19 -> Rate Group | D47: Commodity | E47: System Gas | F47: REDA | G47: PGTVA | H47: ADVADA | I47: =I19 -> LDMDA | J47: SICDA | K47: =K33 -> FCCVA | L47: =L33 -> GGEADA | M47: =M19 -> Federal Carbon | N47: Facility Carbon | O47: =O19 -> Dist. Customer Rate | P47: =P19 -> Dist. Vol. Rate Tier 1 | Q47: =Q19 -> Dist. Vol. Rate Tier 2 | R47: =R19 -> Dist. Vol. Rate Tier 3 | S47: =S19 -> Dist. Capacity Rate
C48: =C6 -> RATE 1 - General Service Rate - Residential | D48: Commodity | E48: System Gas Charge | F48: REDA | G48: PGTVA | H48: ADVADA | I48: LDMDA | J48: SICDA | K48: =K47 -> FCCVA | L48: =L47 -> GGEADA | M48: Federal Carbon | N48: Facility Carbon | O48: Customer (excl. Bill 32) | P48: Block 1 (First 1,000 m3 per month) | Q48: Block 2 (Over 1,000 m3 per month) | R48: ="" ->  | S48: ="" -> 
C49: =C7 -> RATE 1 - General Service Rate - Commercial | D49: Commodity | E49: System Gas Charge | F49: REDA | G49: PGTVA | H49: ADVADA | I49: LDMDA | J49: SICDA | K49: =K48 -> FCCVA | L49: GGEADA | M49: Federal Carbon | N49: Facility Carbon | O49: Customer (excl. Bill 32) | P49: Block 1 (First 1,000 m3 per month) | Q49: Block 2 (Over 1,000 m3 per month) | R49: ="" ->  | S49: ="" -> 
C50: RATE 1 - General Service Rate - Industrial | D50: Commodity | E50: System Gas Charge | F50: REDA | G50: PGTVA | H50: ADVADA | I50: LDMDA | J50: SICDA | K50: FCCVA | L50: GGEADA | M50: Federal Carbon | N50: Facility Carbon | O50: Customer (excl. Bill 32) | P50: Block 1 (First 1,000 m3 per month) | Q50: Block 2 (Over 1,000 m3 per month) | R50: ="" ->  | S50: ="" -> 
C51: RATE 2 - Seasonal Service - Apr to Oct | D51: Commodity | E51: System Gas Charge | F51: REDA | G51: PGTVA | H51: ADVADA | I51: LDMDA | J51: SICDA | K51: FCCVA | L51: GGEADA | M51: Federal Carbon | N51: Facility Carbon | O51: Customer (excl. Bill 32) | P51: Block 1 (First 1,000 m3 per month) | Q51: Block 2 (Next 24,000 m3 per month) | R51: Block 3 (Over 25,000 m3 per month) | S51: ="" -> 
C52: RATE 2 - Seasonal Service - Nov to Mar | D52: Commodity | E52: System Gas Charge | F52: REDA | G52: PGTVA | H52: ADVADA | I52: LDMDA | J52: SICDA | K52: FCCVA | L52: GGEADA | M52: Federal Carbon | N52: Facility Carbon | O52: Customer (excl. Bill 32) | P52: Block 1 (First 1,000 m3 per month) | Q52: Block 2 (Next 24,000 m3 per month) | R52: Block 3 (Over 25,000 m3 per month) | S52: ="" -> 
C53: RATE 3 - Special Large Volume Contract Rate | D53: Commodity | E53: System Gas Charge | F53: REDA | G53: PGTVA | H53: ADVADA | I53: LDMDA | J53: SICDA | K53: FCCVA | L53: GGEADA | M53: Federal Carbon | N53: Facility Carbon | O53: Customer (excl. Bill 32) | P53: Delivery - Firm | Q53: ="" ->  | R53: ="" ->  | S53: Demand - Firm
C54: RATE 4 - General Service Peaking - Apr to Dec | D54: Commodity | E54: System Gas Charge | F54: REDA | G54: PGTVA | H54: ADVADA | I54: LDMDA | J54: SICDA | K54: FCCVA | L54: GGEADA | M54: Federal Carbon | N54: Facility Carbon | O54: Customer (excl. Bill 32) | P54: Block 1 (First 1,000 m3 per month) | Q54: Block 2 (Over 1,000 m3 per month) | R54: ="" ->  | S54: ="" -> 
C55: RATE 4 - General Service Peaking - Jan to Mar | D55: Commodity | E55: System Gas Charge | F55: REDA | G55: PGTVA | H55: ADVADA | I55: LDMDA | J55: SICDA | K55: FCCVA | L55: GGEADA | M55: Federal Carbon | N55: Facility Carbon | O55: Customer (excl. Bill 32) | P55: Block 1 (First 1,000 m3 per month) | Q55: Block 2 (Over 1,000 m3 per month) | R55: ="" ->  | S55: ="" -> 
C56: RATE 5 - Interruptible Peaking Contract Rate | D56: Commodity | E56: System Gas Charge | F56: REDA | G56: PGTVA | H56: ADVADA | I56: LDMDA | J56: SICDA | K56: FCCVA | L56: GGEADA | M56: Federal Carbon | N56: Facility Carbon | O56: Customer (excl. Bill 32) | P56: Delivery - Firm | Q56: ="" ->  | R56: ="" ->  | S56: ="" -> 
C57: RATE 6 - Integrated Grain Processors Co-Operative Aylmer Ethanol Production Facility | D57: ="" ->  | E57: ="" ->  | F57: REDA | G57: PGTVA | H57: ADVADA | I57: LDMDA | J57: SICDA | K57: FCCVA | L57: GGEADA | M57: ="" ->  | N57: Facility Carbon | O57: Customer (excl. Bill 32) | P57: ="" ->  | Q57: ="" ->  | R57: ="" ->  | S57: ="" -> 
C59: Unit
C61: =C33 -> Rate Group | D61: Commodity | E61: System Gas | F61: REDA | G61: PGTVA | H61: ADVADA | I61: =I33 -> LDMDA | J61: SICDA | K61: =K47 -> FCCVA | L61: =L47 -> GGEADA | M61: =M33 -> Federal Carbon | N61: Facility Carbon | O61: =O33 -> Dist. Customer Rate | P61: =P33 -> Dist. Vol. Rate Tier 1 | Q61: =Q33 -> Dist. Vol. Rate Tier 2 | R61: =R33 -> Dist. Vol. Rate Tier 3 | S61: =S33 -> Dist. Capacity Rate
C62: =C20 -> RATE 1 - General Service Rate - Residential | D62: cents / m3 | E62: cents / m3 | F62: $ / month | G62: cents / m3 | H62: cents / m3 | I62: $ / month | J62: ='F1.4 Proposed Rate Riders'!$J$11 -> cents / m3 | K62: =I62 -> $ / month | L62: =K62 -> $ / month | M62: cents / m3 | N62: cents / m3 | O62: $ / month | P62: cents / m3 | Q62: cents / m3 | R62: ="" ->  | S62: ="" -> 
C63: =C21 -> RATE 1 - General Service Rate - Commercial | D63: cents / m3 | E63: cents / m3 | F63: $ / month | G63: cents / m3 | H63: cents / m3 | I63: $ / month | J63: ='F1.4 Proposed Rate Riders'!$J$11 -> cents / m3 | K63: =I63 -> $ / month | L63: =K63 -> $ / month | M63: cents / m3 | N63: cents / m3 | O63: $ / month | P63: cents / m3 | Q63: cents / m3 | R63: ="" ->  | S63: ="" -> 
C64: RATE 1 - General Service Rate - Industrial | D64: cents / m3 | E64: cents / m3 | F64: $ / month | G64: cents / m3 | H64: cents / m3 | I64: $ / month | J64: ='F1.4 Proposed Rate Riders'!$J$11 -> cents / m3 | K64: $ / month | L64: $ / month | M64: cents / m3 | N64: cents / m3 | O64: $ / month | P64: cents / m3 | Q64: cents / m3 | R64: ="" ->  | S64: ="" -> 
C65: RATE 2 - Seasonal Service - Apr to Oct | D65: cents / m3 | E65: cents / m3 | F65: $ / month | G65: cents / m3 | H65: cents / m3 | I65: $ / month | J65: ='F1.4 Proposed Rate Riders'!$J$11 -> cents / m3 | K65: $ / month | L65: $ / month | M65: cents / m3 | N65: cents / m3 | O65: $ / month | P65: cents / m3 | Q65: cents / m3 | R65: cents / m3 | S65: ="" -> 
C66: RATE 2 - Seasonal Service - Nov to Mar | D66: cents / m3 | E66: cents / m3 | F66: $ / month | G66: cents / m3 | H66: cents / m3 | I66: $ / month | J66: ='F1.4 Proposed Rate Riders'!$J$11 -> cents / m3 | K66: $ / month | L66: $ / month | M66: cents / m3 | N66: cents / m3 | O66: $ / month | P66: cents / m3 | Q66: cents / m3 | R66: cents / m3 | S66: ="" -> 
C67: RATE 3 - Special Large Volume Contract Rate | D67: cents / m3 | E67: cents / m3 | F67: $ / month | G67: cents / m3 | H67: cents / m3 | I67: $ / month | J67: ='F1.4 Proposed Rate Riders'!$J$11 -> cents / m3 | K67: $ / month | L67: $ / month | M67: cents / m3 | N67: cents / m3 | O67: $ / month | P67: cents / m3 | Q67: ="" ->  | R67: ="" ->  | S67: cents / m3
C68: RATE 4 - General Service Peaking - Apr to Dec | D68: cents / m3 | E68: cents / m3 | F68: $ / month | G68: cents / m3 | H68: cents / m3 | I68: $ / month | J68: ='F1.4 Proposed Rate Riders'!$J$11 -> cents / m3 | K68: $ / month | L68: $ / month | M68: cents / m3 | N68: cents / m3 | O68: $ / month | P68: cents / m3 | Q68: cents / m3 | R68: ="" ->  | S68: ="" -> 
C69: RATE 4 - General Service Peaking - Jan to Mar | D69: cents / m3 | E69: cents / m3 | F69: $ / month | G69: cents / m3 | H69: cents / m3 | I69: $ / month | J69: ='F1.4 Proposed Rate Riders'!$J$11 -> cents / m3 | K69: $ / month | L69: $ / month | M69: cents / m3 | N69: cents / m3 | O69: $ / month | P69: cents / m3 | Q69: cents / m3 | R69: ="" ->  | S69: ="" -> 
C70: RATE 5 - Interruptible Peaking Contract Rate | D70: cents / m3 | E70: cents / m3 | F70: $ / month | G70: cents / m3 | H70: cents / m3 | I70: $ / month | J70: ='F1.4 Proposed Rate Riders'!$J$11 -> cents / m3 | K70: $ / month | L70: $ / month | M70: cents / m3 | N70: cents / m3 | O70: $ / month | P70: cents / m3 | Q70: ="" ->  | R70: ="" ->  | S70: ="" -> 
C71: RATE 6 - Integrated Grain Processors Co-Operative Aylmer Ethanol Production Facility | D71: ="" ->  | E71: ="" ->  | F71: $ / month | G71: $ / month | H71: $ / month | I71: $ / month | J71: ='F1.4 Proposed Rate Riders'!$J$11 -> cents / m3 | K71: $ / month | L71: $ / month | M71: ="" ->  | N71: cents / m3 | O71: $ / month | P71: ="" ->  | Q71: ="" ->  | R71: ="" ->  | S71: ="" -> 

Sheet A1.1 Distributor Information
C3: ="Name of LDC: " &D21 -> Name of LDC: EPCOR Natural Gas Limited Partnership
C4: ="OEB Application Number: " & D23 -> OEB Application Number: EB-2023-0160 Exhibit A - 2024 IRM Application
C11: Distributor Information
C21: Distributor Name | D21: EPCOR Natural Gas Limited Partnership
C23: OEB Application Number | D23: EB-2023-0160 Exhibit A - 2024 IRM Application
C30: =MID(CELL("filename",A1),FIND("]",CELL("filename",A1))+1,255) -> A1.1 Distributor Information

Sheet B1.1 Current Distribution Rates
C2: ='A1.1 Distributor Information'!C3 -> Name of LDC: EPCOR Natural Gas Limited Partnership
C3: ='A1.1 Distributor Information'!C4 -> OEB Application Number: EB-2023-0160 Exhibit A - 2024 IRM Application
C10: Current Distribution Tariff Sheet Rates
C15: Rate Group | E15: Monthly Service Charge (excl. Bill 32) | F15: Delivery First 1,000 m3 | G15: Delivery Over 1,000 m3 | H15: Delivery Next 24,000 m3 | I15: Delivery Over 25,000 m3 | J15: Delivery - Firm | K15: Demand - Firm | L15: Commodity | M15: Delivery - Int - Lower | N15: Delivery - Int - Upper
C16: RATE 1 - General Service Rate - Residential | E16: 19.5 | F16: 13.9823 | G16: 11.2376 | L16: 0.0435
C17: RATE 1 - General Service Rate - Commercial | E17: =E16 -> 19.5 | F17: 13.9823 | G17: 11.2376 | L17: 0.0435
C18: RATE 1 - General Service Rate - Industrial | E18: =E17 -> 19.5 | F18: 13.9823 | G18: 11.2376 | L18: 0.0435
C19: RATE 2 - Seasonal Service - Apr to Oct | E19: 21.64180452 | F19: 17.94689923 | H19: 9.286281901 | I19: 7.343929946 | L19: 0.0435
C20: RATE 2 - Seasonal Service - Nov to Mar | E20: 21.64180452 | F20: 22.62174543 | H20: 15.37098345 | I20: 16.54505135 | L20: 0.0435
C21: RATE 3 - Special Large Volume Contract Rate | E21: 216.4180452 | J21: 3.896715113 | K21: 31.48601214 | L21: 0.0435 | M21: 8.2408 | N21: 11.3747
C22: RATE 4 - General Service Peaking - Apr to Dec | E22: 21.64180452 | F22: 19.76264663 | G22: 12.12557845 | L22: 0.0435
C23: RATE 4 - General Service Peaking - Jan to Mar | E23: 21.64180452 | F23: 25.21162018 | G23: 19.48195243 | L23: 0.0435
C24: RATE 5 - Interruptible Peaking Contract Rate | E24: 205.5971429 | J24: =AVERAGE(M24:N24) -> 8.2482 | K24: 1 | L24: 0.0435 | M24: 6.4708 | N24: 10.0256
C25: RATE 6 - Integrated Grain Processors Co-Operative Aylmer Ethanol Production Facility | E25: 66255.3 | J25: 0 | K25: 0 | M25: 0 | N25: 0
C27: 1 Placeholder rate for average application
C34: =MID(CELL("filename",A1),FIND("]",CELL("filename",A1))+1,255) -> B1.1 Current Distribution Rates

Sheet B1.2 Billing Determinants
C2: ='A1.1 Distributor Information'!C3 -> Name of LDC: EPCOR Natural Gas Limited Partnership
C3: ='A1.1 Distributor Information'!C4 -> OEB Application Number: EB-2023-0160 Exhibit A - 2024 IRM Application
C10: Billing Determinants - Actuals January 1, 2022 to December 31, 2022
C15: Rate Group | E15: Monthly Service Charge | F15: Delivery First 1,000 m3 | G15: Delivery Over 1,000 m3 | H15: Delivery Next 24,000 m3 | I15: Delivery Over 25,000 m3 | J15: Delivery - Firm | K15: Demand - Firm | L15: Commodity | M15: Delivery - Int - Lower | N15: Delivery - Int - Upper
C16: RATE 1 - General Service Rate - Residential | E16: 9132.083333 | F16: 18582140.1 | G16: 297318.8 | L16: 18850616.9
C17: RATE 1 - General Service Rate - Commercial | E17: 567 | F17: 2691272.4 | G17: 3441480.2 | L17: 5778126.1
C18: RATE 1 - General Service Rate - Industrial | E18: 77 | F18: 493440.7 | G18: 1842279.4 | L18: 2137570.5
C19: RATE 2 - Seasonal Service - Apr to Oct | E19: 52 | F19: 66137 | H19: 358394.9 | I19: 73789 | L19: 498320.9
C20: RATE 2 - Seasonal Service - Nov to Mar | E20: 52 | F20: 67689.4 | H20: 250972.1 | I20: 10372.4 | L20: 329033.9
C21: RATE 3 - Special Large Volume Contract Rate | E21: 5 | J21: 1559815.1 | K21: 214067.2 | L21: 1420205.2
C22: RATE 4 - General Service Peaking - Apr to Dec | E22: 41 | F22: 104258 | G22: 1412988.3 | L22: 1517246.3
C23: RATE 4 - General Service Peaking - Jan to Mar | E23: 41 | F23: 26953.8 | G23: 93992.1 | L23: 120945.9
C24: RATE 5 - Interruptible Peaking Contract Rate | E24: 4 | J24: 597849.4 | L24: 597849.4
C25: RATE 6 - Integrated Grain Processors Co-Operative Aylmer Ethanol Production Facility | E25: 1 | J25: 61555492 | K25: 2505600
E26: =SUM(E16:E19,E21:E22,E24:E25) -> 9879.083333 | F26: =SUM(F16:F25) -> 22031891.4 | G26: 7088058.8 | H26: 609367 | I26: 84161.4 | J26: 63713156.5 | K26: 2719667.2 | L26: 31249915.1 | M26: =SUM(M16:M25) -> 0 | N26: =SUM(N16:N25) -> 0
C30: =MID(CELL("filename",A1),FIND("]",CELL("filename",A1))+1,255) -> B1.2 Billing Determinants

Sheet B1.3 Current Rev From Rates
C2: ='A1.1 Distributor Information'!C3 -> Name of LDC: EPCOR Natural Gas Limited Partnership
C3: ='A1.1 Distributor Information'!C4 -> OEB Application Number: EB-2023-0160 Exhibit A - 2024 IRM Application
C10: Revenue from Current Rates
C15: Rate Group | E15: Monthly Service Charge | F15: Delivery First 1,000 m3 | G15: Delivery Over 1,000 m3 | H15: Delivery Next 24,000 m3 | I15: Delivery Over 25,000 m3 | J15: Demand - Firm | K15: Delivery - Firm | L15: Commodity | M15: Delivery - Int - Lower | N15: Delivery - Int - Upper | O15: Total
C16: RATE 1 - General Service Rate - Residential | E16: ='B1.1 Current Distribution Rates'!E16*'B1.2 Billing Determinants'!E16*12 -> 2136907.5 | F16: ='B1.1 Current Distribution Rates'!F16*'B1.2 Billing Determinants'!F16/100 -> 2598210.575 | G16: ='B1.1 Current Distribution Rates'!G16*'B1.2 Billing Determinants'!G16/100 -> 33411.49747 | H16: ='B1.1 Current Distribution Rates'!H16*'B1.2 Billing Determinants'!H16/100 -> 0 | I16: ='B1.1 Current Distribution Rates'!I16*'B1.2 Billing Determinants'!I16/100 -> 0 | J16: ='B1.1 Current Distribution Rates'!J16*'B1.2 Billing Determinants'!J16/100 -> 0 | K16: ='B1.1 Current Distribution Rates'!K16*'B1.2 Billing Determinants'!K16/100 -> 0 | L16: ='B1.1 Current Distribution Rates'!L16*'B1.2 Billing Determinants'!L16/100 -> 8200.018352 | M16: ='B1.1 Current Distribution Rates'!M16*'B1.2 Billing Determinants'!M16/100 -> 0 | N16: ='B1.1 Current Distribution Rates'!N16*'B1.2 Billing Determinants'!N16/100 -> 0 | O16: =SUM(E16:N16) -> 4776729.591
C17: RATE 1 - General Service Rate - Commercial | E17: ='B1.1 Current Distribution Rates'!E17*'B1.2 Billing Determinants'!E17*12 -> 132678 | F17: ='B1.1 Current Distribution Rates'!F17*'B1.2 Billing Determinants'!F17/100 -> 376301.7808 | G17: ='B1.1 Current Distribution Rates'!G17*'B1.2 Billing Determinants'!G17/100 -> 386739.779 | H17: ='B1.1 Current Distribution Rates'!H17*'B1.2 Billing Determinants'!H17/100 -> 0 | I17: ='B1.1 Current Distribution Rates'!I17*'B1.2 Billing Determinants'!I17/100 -> 0 | J17: ='B1.1 Current Distribution Rates'!J17*'B1.2 Billing Determinants'!J17/100 -> 0 | K17: ='B1.1 Current Distribution Rates'!K17*'B1.2 Billing Determinants'!K17/100 -> 0 | L17: ='B1.1 Current Distribution Rates'!L17*'B1.2 Billing Determinants'!L17/100 -> 2513.484854 | M17: ='B1.1 Current Distribution Rates'!M17*'B1.2 Billing Determinants'!M17/100 -> 0 | N17: ='B1.1 Current Distribution Rates'!N17*'B1.2 Billing Determinants'!N17/100 -> 0 | O17: =SUM(E17:N17) -> 898233.0446
C18: RATE 1 - General Service Rate - Industrial | E18: ='B1.1 Current Distribution Rates'!E18*'B1.2 Billing Determinants'!E18*12 -> 18018 | F18: ='B1.1 Current Distribution Rates'!F18*'B1.2 Billing Determinants'!F18/100 -> 68994.359 | G18: ='B1.1 Current Distribution Rates'!G18*'B1.2 Billing Determinants'!G18/100 -> 207027.9899 | H18: ='B1.1 Current Distribution Rates'!H18*'B1.2 Billing Determinants'!H18/100 -> 0 | I18: ='B1.1 Current Distribution Rates'!I18*'B1.2 Billing Determinants'!I18/100 -> 0 | J18: ='B1.1 Current Distribution Rates'!J18*'B1.2 Billing Determinants'!J18/100 -> 0 | K18: ='B1.1 Current Distribution Rates'!K18*'B1.2 Billing Determinants'!K18/100 -> 0 | L18: ='B1.1 Current Distribution Rates'!L18*'B1.2 Billing Determinants'!L18/100 -> 929.8431675 | M18: ='B1.1 Current Distribution Rates'!M18*'B1.2 Billing Determinants'!M18/100 -> 0 | N18: ='B1.1 Current Distribution Rates'!N18*'B1.2 Billing Determinants'!N18/100 -> 0 | O18: =SUM(E18:N18) -> 294970.192
C19: RATE 2 - Seasonal Service - Apr to Oct | E19: ='B1.1 Current Distribution Rates'!E19*'B1.2 Billing Determinants'!E19*7 -> 7877.616845 | F19: ='B1.1 Current Distribution Rates'!F19*'B1.2 Billing Determinants'!F19/100 -> 11869.54075 | G19: ='B1.1 Current Distribution Rates'!G19*'B1.2 Billing Determinants'!G19/100 -> 0 | H19: ='B1.1 Current Distribution Rates'!H19*'B1.2 Billing Determinants'!H19/100 -> 33281.56073 | I19: ='B1.1 Current Distribution Rates'!I19*'B1.2 Billing Determinants'!I19/100 -> 5419.012468 | J19: ='B1.1 Current Distribution Rates'!J19*'B1.2 Billing Determinants'!J19/100 -> 0 | K19: ='B1.1 Current Distribution Rates'!K19*'B1.2 Billing Determinants'!K19/100 -> 0 | L19: ='B1.1 Current Distribution Rates'!L19*'B1.2 Billing Determinants'!L19/100 -> 216.7695915 | M19: ='B1.1 Current Distribution Rates'!M19*'B1.2 Billing Determinants'!M19/100 -> 0 | N19: ='B1.1 Current Distribution Rates'!N19*'B1.2 Billing Determinants'!N19/100 -> 0 | O19: =SUM(E19:N19) -> 58664.50039
C20: RATE 2 - Seasonal Service - Nov to Mar | E20: ='B1.1 Current Distribution Rates'!E20*'B1.2 Billing Determinants'!E20*5 -> 5626.869175 | F20: ='B1.1 Current Distribution Rates'!F20*'B1.2 Billing Determinants'!F20/100 -> 15312.52375 | G20: ='B1.1 Current Distribution Rates'!G20*'B1.2 Billing Determinants'!G20/100 -> 0 | H20: ='B1.1 Current Distribution Rates'!H20*'B1.2 Billing Determinants'!H20/100 -> 38576.87996 | I20: ='B1.1 Current Distribution Rates'!I20*'B1.2 Billing Determinants'!I20/100 -> 1716.118906 | J20: ='B1.1 Current Distribution Rates'!J20*'B1.2 Billing Determinants'!J20/100 -> 0 | K20: ='B1.1 Current Distribution Rates'!K20*'B1.2 Billing Determinants'!K20/100 -> 0 | L20: ='B1.1 Current Distribution Rates'!L20*'B1.2 Billing Determinants'!L20/100 -> 143.1297465 | M20: ='B1.1 Current Distribution Rates'!M20*'B1.2 Billing Determinants'!M20/100 -> 0 | N20: ='B1.1 Current Distribution Rates'!N20*'B1.2 Billing Determinants'!N20/100 -> 0 | O20: =SUM(E20:N20) -> 61375.52154
C21: RATE 3 - Special Large Volume Contract Rate | E21: ='B1.1 Current Distribution Rates'!E21*'B1.2 Billing Determinants'!E21*12 -> 12985.08271 | F21: ='B1.1 Current Distribution Rates'!F21*'B1.2 Billing Determinants'!F21/100 -> 0 | G21: ='B1.1 Current Distribution Rates'!G21*'B1.2 Billing Determinants'!G21/100 -> 0 | H21: ='B1.1 Current Distribution Rates'!H21*'B1.2 Billing Determinants'!H21/100 -> 0 | I21: ='B1.1 Current Distribution Rates'!I21*'B1.2 Billing Determinants'!I21/100 -> 0 | J21: ='B1.1 Current Distribution Rates'!J21*'B1.2 Billing Determinants'!J21/100 -> 60781.55073 | K21: ='B1.1 Current Distribution Rates'!K21*'B1.2 Billing Determinants'!K21/100 -> 67401.22458 | L21: ='B1.1 Current Distribution Rates'!L21*'B1.2 Billing Determinants'!L21/100 -> 617.789262 | M21: ='B1.1 Current Distribution Rates'!M21*'B1.2 Billing Determinants'!M21/100 -> 0 | N21: ='B1.1 Current Distribution Rates'!N21*'B1.2 Billing Determinants'!N21/100 -> 0 | O21: 141785.6473
C22: RATE 4 - General Service Peaking - Apr to Dec | E22: ='B1.1 Current Distribution Rates'!E22*'B1.2 Billing Determinants'!E22*9 -> 7985.825868 | F22: ='B1.1 Current Distribution Rates'!F22*'B1.2 Billing Determinants'!F22/100 -> 20604.14013 | G22: ='B1.1 Current Distribution Rates'!G22*'B1.2 Billing Determinants'!G22/100 -> 171333.0047 | H22: ='B1.1 Current Distribution Rates'!H22*'B1.2 Billing Determinants'!H22/100 -> 0 | I22: ='B1.1 Current Distribution Rates'!I22*'B1.2 Billing Determinants'!I22/100 -> 0 | J22: ='B1.1 Current Distribution Rates'!J22*'B1.2 Billing Determinants'!J22/100 -> 0 | K22: ='B1.1 Current Distribution Rates'!K22*'B1.2 Billing Determinants'!K22/100 -> 0 | L22: ='B1.1 Current Distribution Rates'!L22*'B1.2 Billing Determinants'!L22/100 -> 660.0021405 | M22: ='B1.1 Current Distribution Rates'!M22*'B1.2 Billing Determinants'!M22/100 -> 0 | N22: ='B1.1 Current Distribution Rates'!N22*'B1.2 Billing Determinants'!N22/100 -> 0 | O22: 200582.9729
C23: RATE 4 - General Service Peaking - Jan to Mar | E23: ='B1.1 Current Distribution Rates'!E23*'B1.2 Billing Determinants'!E23*3 -> 2661.941956 | F23: ='B1.1 Current Distribution Rates'!F23*'B1.2 Billing Determinants'!F23/100 -> 6795.489679 | G23: ='B1.1 Current Distribution Rates'!G23*'B1.2 Billing Determinants'!G23/100 -> 18311.49621 | H23: ='B1.1 Current Distribution Rates'!H23*'B1.2 Billing Determinants'!H23/100 -> 0 | I23: ='B1.1 Current Distribution Rates'!I23*'B1.2 Billing Determinants'!I23/100 -> 0 | J23: ='B1.1 Current Distribution Rates'!J23*'B1.2 Billing Determinants'!J23/100 -> 0 | K23: ='B1.1 Current Distribution Rates'!K23*'B1.2 Billing Determinants'!K23/100 -> 0 | L23: ='B1.1 Current Distribution Rates'!L23*'B1.2 Billing Determinants'!L23/100 -> 52.6114665 | M23: ='B1.1 Current Distribution Rates'!M23*'B1.2 Billing Determinants'!M23/100 -> 0 | N23: ='B1.1 Current Distribution Rates'!N23*'B1.2 Billing Determinants'!N23/100 -> 0 | O23: 27821.53931
C24: RATE 5 - Interruptible Peaking Contract Rate | E24: ='B1.1 Current Distribution Rates'!E24*'B1.2 Billing Determinants'!E24*12 -> 9868.662861 | F24: ='B1.1 Current Distribution Rates'!F24*'B1.2 Billing Determinants'!F24/100 -> 0 | G24: ='B1.1 Current Distribution Rates'!G24*'B1.2 Billing Determinants'!G24/100 -> 0 | H24: ='B1.1 Current Distribution Rates'!H24*'B1.2 Billing Determinants'!H24/100 -> 0 | I24: ='B1.1 Current Distribution Rates'!I24*'B1.2 Billing Determinants'!I24/100 -> 0 | J24: ='B1.1 Current Distribution Rates'!J24*'B1.2 Billing Determinants'!J24/100 -> 49311.81421 | K24: ='B1.1 Current Distribution Rates'!K24*'B1.2 Billing Determinants'!K24/100 -> 0 | L24: ='B1.1 Current Distribution Rates'!L24*'B1.2 Billing Determinants'!L24/100 -> 260.064489 | M24: ='B1.1 Current Distribution Rates'!M24*'B1.2 Billing Determinants'!M24/100 -> 0 | N24: ='B1.1 Current Distribution Rates'!N24*'B1.2 Billing Determinants'!N24/100 -> 0 | O24: 59440.54156
C25: RATE 6 - Integrated Grain Processors Co-Operative Aylmer Ethanol Production Facility | E25: ='B1.1 Current Distribution Rates'!E25*'B1.2 Billing Determinants'!E25*12 -> 795063.6 | F25: ='B1.1 Current Distribution Rates'!F25*'B1.2 Billing Determinants'!F25/100 -> 0 | G25: ='B1.1 Current Distribution Rates'!G25*'B1.2 Billing Determinants'!G25/100 -> 0 | H25: ='B1.1 Current Distribution Rates'!H25*'B1.2 Billing Determinants'!H25/100 -> 0 | I25: ='B1.1 Current Distribution Rates'!I25*'B1.2 Billing Determinants'!I25/100 -> 0 | J25: ='B1.1 Current Distribution Rates'!J25*'B1.2 Billing Determinants'!J25/100 -> 0 | K25: ='B1.1 Current Distribution Rates'!K25*'B1.2 Billing Determinants'!K25/100 -> 0 | L25: ='B1.1 Current Distribution Rates'!L25*'B1.2 Billing Determinants'!L25/100 -> 0 | M25: ='B1.1 Current Distribution Rates'!M25*'B1.2 Billing Determinants'!M25/100 -> 0 | N25: ='B1.1 Current Distribution Rates'!N25*'B1.2 Billing Determinants'!N25/100 -> 0 | O25: 795063.6
E26: =SUM(E16:E25) -> 3129673.099 | F26: =SUM(F16:F25) -> 3098088.409 | G26: 816823.7672 | H26: 71858.44069 | I26: 7135.131374 | J26: 110093.3649 | K26: 67401.22458 | L26: 13593.71307 | M26: 0 | N26: 0 | O26: 7314667.151
C29: =MID(CELL("filename",A1),FIND("]",CELL("filename",A1))+1,255) -> B1.3 Current Rev From Rates

Sheet C1.1 Current Rate Riders
C2: ='A1.1 Distributor Information'!C3 -> Name of LDC: EPCOR Natural Gas Limited Partnership
C3: ='A1.1 Distributor Information'!C4 -> OEB Application Number: EB-2023-0160 Exhibit A - 2024 IRM Application
C10: Current Rate Riders
C12: Description | E12: REDA | F12: PGTVA | G12: ADVADA Rate 1 - 5 | H12: ADVADA Rate 6 | I12: LDMDA | J12: SICDA | K12: FCCVA | L12: GGEADA
E13: Jan 2023-Dec 2023 | F13: Jan 2023-Dec 2023 | G13: Effective for 12 months | H13: Effective for 12 months | I13: Jan 2023-Dec 2023 | J13: Jan 2023-Dec 2023 | K13: April 2023-Mar 2024 | L13: April 2023-Mar 2024
E14: $ per Customer Per Month | F14: cents / m3 | G14: cents / m3 | H14: $ per Customer Per Month | I14: $ per Customer Per Month | J14: cents / m3 | K14: $ per Customer Per Month | L14: $ per Customer Per Month
C15: Rate Group
C16: RATE 1 - General Service Rate - Residential | E16: 0.02 | F16: 0.4355 | G16: 0
C17: RATE 1 - General Service Rate - Commercial | E17: =E16 -> 0.02 | F17: =F16 -> 0.4355 | G17: 0
C18: RATE 1 - General Service Rate - Industrial | E18: =E17 -> 0.02 | F18: 0.4355 | G18: 0
C19: RATE 2 - Seasonal Service - Apr to Oct | E19: 0.02 | F19: 0.4355 | G19: 0
C20: RATE 2 - Seasonal Service - Nov to Mar | E20: 0.02 | F20: 0.4355 | G20: 0
C21: RATE 3 - Special Large Volume Contract Rate | E21: 0.02 | F21: 0.4355 | G21: 0
C22: RATE 4 - General Service Peaking - Apr to Dec | E22: 0.02 | F22: 0.4355 | G22: 0
C23: RATE 4 - General Service Peaking - Jan to Mar | E23: 0.02 | F23: 0.4355 | G23: 0
C24: RATE 5 - Interruptible Peaking Contract Rate | E24: 0.02 | F24: 0.4355 | G24: 0
C25: RATE 6 - Integrated Grain Processors Co-Operative Aylmer Ethanol Production Facility | H25: ='F1.3 ADVADA'!H20 -> 0
C29: =MID(CELL("filename",A1),FIND("]",CELL("filename",A1))+1,255) -> C1.1 Current Rate Riders

Sheet D1.1 Rate 1 Adjustment
C2: ='A1.1 Distributor Information'!C3 -> Name of LDC: EPCOR Natural Gas Limited Partnership
C3: ='A1.1 Distributor Information'!C4 -> OEB Application Number: EB-2023-0160 Exhibit A - 2024 IRM Application
C8: Rate 1 Price Cap Adjustment
C11: GDP-IPI | E11: 0.048
C12: Less Productivity | E12: 0
C13: Less Stretch Factor | E13: 0.004
C14: Price Cap Adjustment | E14: =E11-E12-E13 -> 0.044
E16: Current Rate (excl. Bill 32) | F16: 2020 Rate including previously disallowed ratebase | G16: Price Cap | H16: Adjusted Rates (excl. Bill 32) | I16: Billing Determinants | J16: Revenue | L16: Balanced Rates | M16: Revenue
C17: Monthly Service Charge | E17: ='B1.1 Current Distribution Rates'!E16 -> 19.5 | G17: =E14 -> 0.044 | H17: =E17*(1+G17) -> 20.358 | I17: =SUM('B1.2 Billing Determinants'!E16:E18) -> 9776.083333 | J17: =H17*I17*12 -> 2388258.054 | K17: Change | L17: =E17+1 -> 20.5 | M17: =I17*L17*12 -> 2404916.5
C18: Delivery First 1,000 m3 | E18: ='B1.1 Current Distribution Rates'!F16 -> 13.9823 | G18: =E14 -> 0.044 | H18: =E18*(1+G18) -> 14.5975212 | I18: =SUM('B1.2 Billing Determinants'!F16:F18) -> 21766853.2 | J18: =H18*I18/100 -> 3177421.01 | K18: Change | L18: =M18/I18*100 -> 14.5340662 | M18: =(J$21-M$17-M$20)*J18/(J$21-J$17-J$20) -> 3163608.853
C19: Delivery Over 1,000 m3 | E19: ='B1.1 Current Distribution Rates'!G16 -> 11.2376 | G19: =E14 -> 0.044 | H19: 11.7320544 | I19: =SUM('B1.2 Billing Determinants'!G16:G18) -> 5581078.4 | J19: =H19*I19/100 -> 654775.154 | K19: Change | L19: =M19/I19*100 -> 11.6810555 | M19: =(J$21-M$17-M$20)*J19/(J$21-J$17-J$20) -> 651928.8653
C20: Commodity | E20: ='B1.1 Current Distribution Rates'!L16 -> 0.0435 | G20: 0 | H20: 0.0435 | I20: =SUM('B1.2 Billing Determinants'!L16:L18) -> 26766313.5 | J20: =H20*I20/100 -> 11643.34637 | K20: No Change | L20: =E20 -> 0.0435 | M20: =I20*L20/100 -> 11643.34637
J21: =SUM(J17:J20) -> 6232097.565 | M21: =SUM(M17:M20) -> 6232097.565
M23: =(I17*L17)*12+SUMPRODUCT(I18:I20,L18:L20)/100-M21 -> 0
C30: =MID(CELL("filename",A1),FIND("]",CELL("filename",A1))+1,255) -> D1.1 Rate 1 Adjustment

Sheet D1.2 Rate 2 Adjustment
C2: ='A1.1 Distributor Information'!C3 -> Name of LDC: EPCOR Natural Gas Limited Partnership
C3: ='A1.1 Distributor Information'!C4 -> OEB Application Number: EB-2023-0160 Exhibit A - 2024 IRM Application
C8: Rate 2 Price Cap Adjustment
C11: GDP-IPI | E11: ='D1.1 Rate 1 Adjustment'!E11 -> 0.048
C12: Less Productivity | E12: ='D1.1 Rate 1 Adjustment'!E12 -> 0
C13: Less Stretch Factor | E13: ='D1.1 Rate 1 Adjustment'!E13 -> 0.004
C14: Price Cap Adjustment | E14: =E11-E12-E13 -> 0.044
E16: Current Rate (excl. Bill 32) | F16: ='D1.1 Rate 1 Adjustment'!F16 -> 2020 Rate including previously disallowed ratebase | G16: Price Cap | H16: Adjusted Rates (excl. Bill 32) | I16: Billing Determinants | J16: Revenue | L16: Rebalanced Rates | M16: Revenue
C17: Monthly Service Charge | E17: ='B1.1 Current Distribution Rates'!E19 -> 21.64180452 | G17: =$E$14 -> 0.044 | H17: =E17*(1+G17) -> 22.59404392 | I17: ='B1.2 Billing Determinants'!E19 -> 52 | J17: =H17*I17*12 -> 14098.68341 | K17: Change | L17: =E17*(1+G17) -> 22.59404392 | M17: =I17*L17*12 -> 14098.68341
C18: Delivery First 1,000 m3 - Apr To Oct | E18: ='B1.1 Current Distribution Rates'!F19 -> 17.94689923 | G18: =$E$14 -> 0.044 | H18: =E18*(1+G18) -> 18.7365628 | I18: ='B1.2 Billing Determinants'!F19 -> 66137 | J18: =H18*I18/100 -> 12391.80054 | K18: Change | L18: =E18*(1+G18) -> 18.7365628 | M18: =L18*I18/100 -> 12391.80054
C19: Delivery Next 24,000 m3 - Apr To Oct | E19: ='B1.1 Current Distribution Rates'!H19 -> 9.286281901 | G19: 0.044 | H19: =E19*(1+G19) -> 9.694878305 | I19: ='B1.2 Billing Determinants'!H19 -> 358394.9 | J19: =H19*I19/100 -> 34745.94941 | K19: Change | L19: 9.694878305 | M19: =L19*I19/100 -> 34745.94941
C20: Delivery Over 25,000 m3 - Apr To Oct | E20: ='B1.1 Current Distribution Rates'!I19 -> 7.343929946 | G20: 0.044 | H20: 7.667062863 | I20: ='B1.2 Billing Determinants'!I19 -> 73789 | J20: 5657.449016 | K20: Change | L20: 7.667062863 | M20: 5657.449016
C21: Delivery First 1,000 m3 - Nov To Mar | E21: ='B1.1 Current Distribution Rates'!F20 -> 22.62174543 | G21: 0.044 | H21: 23.61710223 | I21: ='B1.2 Billing Determinants'!F20 -> 67689.4 | J21: 15986.2748 | K21: Change | L21: 23.61710223 | M21: 15986.2748
C22: Delivery Next 24,000 m3 - Nov To Mar | E22: ='B1.1 Current Distribution Rates'!H20 -> 15.37098345 | G22: 0.044 | H22: 16.04730672 | I22: ='B1.2 Billing Determinants'!H20 -> 250972.1 | J22: 40274.26268 | K22: Change | L22: 16.04730672 | M22: 40274.26268
C23: Delivery Over 25,000 m3 - Nov To Mar | E23: ='B1.1 Current Distribution Rates'!I20 -> 16.54505135 | G23: 0.044 | H23: 17.27303361 | I23: ='B1.2 Billing Determinants'!I20 -> 10372.4 | J23: 1791.628138 | K23: Change | L23: 17.27303361 | M23: 1791.628138
C24: Commodity | E24: ='B1.1 Current Distribution Rates'!L19 -> 0.0435 | G24: 0 | H24: 0.0435 | I24: =SUM('B1.2 Billing Determinants'!L19:L20) -> 827354.8 | J24: 359.899338 | K24: No Change | L24: 0.0435 | M24: =I24*L24/100 -> 359.899338
J25: =SUM(J17:J24) -> 125305.9473 | M25: =SUM(M17:M24) -> 125305.9473
M27: =(I17*L17)*12+SUMPRODUCT(I18:I24,L18:L24)/100-M25 -> 0
C31: =MID(CELL("filename",A1),FIND("]",CELL("filename",A1))+1,255) -> D1.2 Rate 2 Adjustment

Sheet D1.3 Rate 3 Adjustment
C2: ='A1.1 Distributor Information'!C3 -> Name of LDC: EPCOR Natural Gas Limited Partnership
C3: ='A1.1 Distributor Information'!C4 -> OEB Application Number: EB-2023-0160 Exhibit A - 2024 IRM Application
C8: Rate 3 Price Cap Adjustment
C11: GDP-IPI | E11: ='D1.1 Rate 1 Adjustment'!E11 -> 0.048
C12: Less Productivity | E12: ='D1.1 Rate 1 Adjustment'!E12 -> 0
C13: Less Stretch Factor | E13: ='D1.1 Rate 1 Adjustment'!E13 -> 0.004
C14: Price Cap Adjustment | E14: =E11-E12-E13 -> 0.044
E16: Current Rate (excl. Bill 32) | F16: ='D1.1 Rate 1 Adjustment'!F16 -> 2020 Rate including previously disallowed ratebase | G16: Price Cap | H16: Adjusted Rates (excl. Bill 32) | I16: Billing Determinants | J16: Revenue | L16: Rebalanced Rates | M16: Revenue
C17: Monthly Service Charge | E17: ='B1.1 Current Distribution Rates'!E21 -> 216.4180452 | G17: =E14 -> 0.044 | H17: =E17*(1+G17) -> 225.9404392 | I17: ='B1.2 Billing Determinants'!E21 -> 5 | J17: =H17*I17*12 -> 13556.42635 | K17: Change | L17: =E17*(1+G17) -> 225.9404392 | M17: =I17*L17*12 -> 13556.42635
C18: Delivery Firm | E18: ='B1.1 Current Distribution Rates'!J21 -> 3.896715113 | G18: =E14 -> 0.044 | H18: =E18*(1+G18) -> 4.068170578 | I18: ='B1.2 Billing Determinants'!J21 -> 1559815.1 | J18: =H18*I18/100 -> 63455.93897 | K18: Change | L18: =E18*(1+G18) -> 4.068170578 | M18: =L18*I18/100 -> 63455.93897
C19: Demand Firm | E19: ='B1.1 Current Distribution Rates'!K21 -> 31.48601214 | G19: =E14 -> 0.044 | H19: =E19*(1+G19) -> 32.87139668 | I19: ='B1.2 Billing Determinants'!K21 -> 214067.2 | J19: =H19*I19/100 -> 70366.87847 | K19: Change | L19: 32.87139668 | M19: =L19*I19/100 -> 70366.87847
C20: Commodity | E20: ='B1.1 Current Distribution Rates'!L21 -> 0.0435 | G20: 0 | H20: =E20*(1+G20) -> 0.0435 | I20: ='B1.2 Billing Determinants'!L21 -> 1420205.2 | J20: =H20*I20/100 -> 617.789262 | K20: No Change | L20: 0.0435 | M20: =I20*L20/100 -> 617.789262
J21: =SUM(J17:J20) -> 147997.033 | M21: =SUM(M17:M20) -> 147997.033
M23: =(I17*L17)*12+SUMPRODUCT(I18:I20,L18:L20)/100-M21 -> 0
C26: =MID(CELL("filename",A1),FIND("]",CELL("filename",A1))+1,255) -> D1.3 Rate 3 Adjustment

Sheet D1.4 Rate 4 Adjustment
C2: ='A1.1 Distributor Information'!C3 -> Name of LDC: EPCOR Natural Gas Limited Partnership
C3: ='A1.1 Distributor Information'!C4 -> OEB Application Number: EB-2023-0160 Exhibit A - 2024 IRM Application
C8: Rate 4 Price Cap Adjustment
C11: GDP-IPI | E11: ='D1.1 Rate 1 Adjustment'!E11 -> 0.048
C12: Less Productivity | E12: ='D1.1 Rate 1 Adjustment'!E12 -> 0
C13: Less Stretch Factor | E13: ='D1.1 Rate 1 Adjustment'!E13 -> 0.004
C14: Price Cap Adjustment | E14: =E11-E12-E13 -> 0.044
E16: Current Rate (excl. Bill 32) | F16: ='D1.1 Rate 1 Adjustment'!F16 -> 2020 Rate including previously disallowed ratebase | G16: Price Cap | H16: Adjusted Rates (excl. Bill 32) | I16: Billing Determinants | J16: Revenue | L16: Balanced Rates | M16: Revenue
C17: Monthly Service Charge | E17: ='B1.1 Current Distribution Rates'!E22 -> 21.64180452 | G17: =$E$14 -> 0.044 | H17: =E17*(1+G17) -> 22.59404392 | I17: ='B1.2 Billing Determinants'!E22 -> 41 | J17: =H17*I17*12 -> 11116.26961 | K17: Change | L17: =E17*(1+G17) -> 22.59404392 | M17: =I17*L17*12 -> 11116.26961
C18: Delivery First 1,000 m3 - Apr To Dec | E18: ='B1.1 Current Distribution Rates'!F22 -> 19.76264663 | G18: =$E$14 -> 0.044 | H18: =E18*(1+G18) -> 20.63220309 | I18: ='B1.2 Billing Determinants'!F22 -> 104258 | J18: =H18*I18/100 -> 21510.72229 | K18: Change | L18: =E18*(1+G18) -> 20.63220309 | M18: =L18*I18/100 -> 21510.72229
C19: Delivery Over 1,000 m3 - Apr To Dec | E19: ='B1.1 Current Distribution Rates'!G22 -> 12.12557845 | G19: 0.044 | H19: 12.6591039 | I19: ='B1.2 Billing Determinants'!G22 -> 1412988.3 | J19: =H19*I19/100 -> 178871.657 | K19: Change | L19: 12.6591039 | M19: =L19*I19/100 -> 178871.657
C20: Delivery First 1,000 m3 - Jan To Mar | E20: ='B1.1 Current Distribution Rates'!F23 -> 25.21162018 | G20: 0.044 | H20: 26.32093146 | I20: ='B1.2 Billing Determinants'!F23 -> 26953.8 | J20: =H20*I20/100 -> 7094.491225 | K20: Change | L20: 26.32093146 | M20: 7094.491225
C21: Delivery Over 1,000 m3 - Jan To Mar | E21: ='B1.1 Current Distribution Rates'!G23 -> 19.48195243 | G21: 0.044 | H21: 20.33915834 | I21: ='B1.2 Billing Determinants'!G23 -> 93992.1 | J21: =H21*I21/100 -> 19117.20204 | K21: Change | L21: 20.33915834 | M21: 19117.20204
C22: Commodity | E22: ='B1.1 Current Distribution Rates'!L22 -> 0.0435 | G22: 0 | H22: 0.0435 | I22: =SUM('B1.2 Billing Determinants'!L22:L23) -> 1638192.2 | J22: =H22*I22/100 -> 712.613607 | K22: No Change | L22: 0.0435 | M22: 712.613607
J23: =SUM(J17:J22) -> 238422.9557 | M23: =SUM(M17:M22) -> 238422.9557
M25: =(I17*L17)*12+SUMPRODUCT(I18:I22,L18:L22)/100-M23 -> 0
C28: =MID(CELL("filename",A1),FIND("]",CELL("filename",A1))+1,255) -> D1.4 Rate 4 Adjustment

Sheet D1.5 Rate 5 Adjustment
C2: ='A1.1 Distributor Information'!C3 -> Name of LDC: EPCOR Natural Gas Limited Partnership
C3: ='A1.1 Distributor Information'!C4 -> OEB Application Number: EB-2023-0160 Exhibit A - 2024 IRM Application
C8: Rate 5 Price Cap Adjustment
C11: GDP-IPI | E11: ='D1.1 Rate 1 Adjustment'!E11 -> 0.048
C12: Less Productivity | E12: ='D1.1 Rate 1 Adjustment'!E12 -> 0
C13: Less Stretch Factor | E13: ='D1.1 Rate 1 Adjustment'!E13 -> 0.004
C14: Price Cap Adjustment | E14: =E11-E12-E13 -> 0.044
E16: Current Rate (excl. Bill 32) | F16: ='D1.1 Rate 1 Adjustment'!F16 -> 2020 Rate including previously disallowed ratebase | G16: Price Cap | H16: Adjusted Rates (excl. Bill 32) | I16: Billing Determinants | J16: Revenue | L16: Rebalanced Rates | M16: Revenue
C17: Monthly Service Charge | E17: ='B1.1 Current Distribution Rates'!E24 -> 205.5971429 | G17: =E14 -> 0.044 | H17: =E17*(1+G17) -> 214.6434172 | I17: ='B1.2 Billing Determinants'!E24 -> 4 | J17: =H17*I17*12 -> 10302.88403 | K17: Change | L17: =E17*(1+G17) -> 214.6434172 | M17: =I17*L17*12 -> 10302.88403
C18: Delivery Firm | E18: ='B1.1 Current Distribution Rates'!J24 -> 8.2482 | G18: =E14 -> 0.044 | H18: =E18*(1+G18) -> 8.6111208 | I18: ='B1.2 Billing Determinants'!J24 -> 597849.4 | J18: =H18*I18/100 -> 51481.53404 | K18: Change | L18: =E18*(1+G18) -> 8.6111208 | M18: =I18*L18/100 -> 51481.53404
C19: Commodity | E19: ='B1.1 Current Distribution Rates'!L24 -> 0.0435 | G19: 0 | H19: =E19*(1+G19) -> 0.0435 | I19: ='B1.2 Billing Determinants'!L24 -> 597849.4 | J19: =H19*I19/100 -> 260.064489 | K19: No Change | L19: 0.0435 | M19: =I19*L19/100 -> 260.064489
J20: =SUM(J17:J19) -> 62044.48255 | M20: =SUM(M17:M19) -> 62044.48255
M22: =(I17*L17)*12+SUMPRODUCT(I18:I19,L18:L19)/100-M20 -> 0
C26: =MID(CELL("filename",A1),FIND("]",CELL("filename",A1))+1,255) -> D1.5 Rate 5 Adjustment

Sheet D1.6 Rate 6 Adjustment
C2: ='A1.1 Distributor Information'!C3 -> Name of LDC: EPCOR Natural Gas Limited Partnership
C3: ='A1.1 Distributor Information'!C4 -> OEB Application Number: EB-2023-0160 Exhibit A - 2024 IRM Application
C8: Rate 6 Price Cap Adjustment
C11: GDP-IPI | E11: ='D1.1 Rate 1 Adjustment'!E11 -> 0.048
C12: Less Productivity | E12: ='D1.1 Rate 1 Adjustment'!E12 -> 0
C13: Less Stretch Factor | E13: ='D1.1 Rate 1 Adjustment'!E13 -> 0.004
C14: Price Cap Adjustment | E14: =E11-E12-E13 -> 0.044
E16: Current Rate (excl. Bill 32) | F16: ='D1.1 Rate 1 Adjustment'!F16 -> 2020 Rate including previously disallowed ratebase | G16: Price Cap | H16: Adjusted Rates (excl. Bill 32) | I16: Billing Determinants | J16: Revenue | L16: Balanced Rates | M16: Revenue
C17: Monthly Service Charge | E17: ='B1.1 Current Distribution Rates'!E25 -> 66255.3 | G17: =E14 -> 0.044 | H17: =E17*(1+G17) -> 69170.5332 | I17: ='B1.2 Billing Determinants'!E25 -> 1 | J17: =H17*I17*12 -> 830046.3984 | K17: Change | L17: =H17 -> 69170.5332 | M17: =I17*L17*12 -> 830046.3984
C18: Delivery Firm | E18: ='B1.1 Current Distribution Rates'!J25 -> 0 | G18: =E14 -> 0.044 | H18: =F18*(1+G18) -> 0 | I18: ='B1.2 Billing Determinants'!J25 -> 61555492 | J18: =H18*I18/100 -> 0 | K18: No Change | M18: =J20-M17-M19 -> 0
C19: Demand Firm | E19: ='B1.1 Current Distribution Rates'!K25 -> 0 | G19: =E14 -> 0.044 | H19: 0 | I19: ='B1.2 Billing Determinants'!K25 -> 2505600 | J19: =H19*I19/100 -> 0 | K19: No Change | M19: =I19*L19/100 -> 0
J20: =SUM(J17:J19) -> 830046.3984 | M20: =SUM(M17:M19) -> 830046.3984
M22: =J20-M20 -> 0
C24: =MID(CELL("filename",A1),FIND("]",CELL("filename",A1))+1,255) -> D1.6 Rate 6 Adjustment

Sheet E1.1 Proposed Dist Rates
C2: ='A1.1 Distributor Information'!C3 -> Name of LDC: EPCOR Natural Gas Limited Partnership
C3: ='A1.1 Distributor Information'!C4 -> OEB Application Number: EB-2023-0160 Exhibit A - 2024 IRM Application
C10: Proposed Distribution Tariff Sheet Rates
C15: Rate Group | E15: Monthly Service Charge (excl. Bill 32) | F15: Delivery First 1,000 m3 | G15: Delivery Over 1,000 m3 | H15: Delivery Next 24,000 m3 | I15: Delivery Over 25,000 m3 | J15: Delivery - Firm | K15: Demand - Firm | L15: Commodity | M15: Delivery - Int - Lower | N15: Delivery - Int - Upper
C16: RATE 1 - General Service Rate - Residential | E16: ='D1.1 Rate 1 Adjustment'!L17 -> 20.5 | F16: ='D1.1 Rate 1 Adjustment'!L18 -> 14.5340662 | G16: ='D1.1 Rate 1 Adjustment'!L19 -> 11.6810555 | L16: ='D1.1 Rate 1 Adjustment'!L20 -> 0.0435
C17: RATE 1 - General Service Rate - Commercial | E17: ='D1.1 Rate 1 Adjustment'!L17 -> 20.5 | F17: ='D1.1 Rate 1 Adjustment'!L18 -> 14.5340662 | G17: ='D1.1 Rate 1 Adjustment'!L19 -> 11.6810555 | L17: ='D1.1 Rate 1 Adjustment'!L20 -> 0.0435
C18: RATE 1 - General Service Rate - Industrial | E18: ='D1.1 Rate 1 Adjustment'!L17 -> 20.5 | F18: ='D1.1 Rate 1 Adjustment'!L18 -> 14.5340662 | G18: ='D1.1 Rate 1 Adjustment'!L19 -> 11.6810555 | L18: ='D1.1 Rate 1 Adjustment'!L20 -> 0.0435
C19: RATE 2 - Seasonal Service - Apr to Oct | E19: ='D1.2 Rate 2 Adjustment'!L17 -> 22.59404392 | F19: ='D1.2 Rate 2 Adjustment'!L18 -> 18.7365628 | H19: ='D1.2 Rate 2 Adjustment'!L19 -> 9.694878305 | I19: ='D1.2 Rate 2 Adjustment'!L20 -> 7.667062863 | L19: ='D1.2 Rate 2 Adjustment'!L24 -> 0.0435
C20: RATE 2 - Seasonal Service - Nov to Mar | E20: ='D1.2 Rate 2 Adjustment'!L17 -> 22.59404392 | F20: ='D1.2 Rate 2 Adjustment'!L21 -> 23.61710223 | H20: ='D1.2 Rate 2 Adjustment'!L22 -> 16.04730672 | I20: ='D1.2 Rate 2 Adjustment'!L23 -> 17.27303361 | L20: ='D1.2 Rate 2 Adjustment'!L24 -> 0.0435
C21: RATE 3 - Special Large Volume Contract Rate | E21: ='D1.3 Rate 3 Adjustment'!L17 -> 225.9404392 | J21: ='D1.3 Rate 3 Adjustment'!L18 -> 4.068170578 | K21: ='D1.3 Rate 3 Adjustment'!L19 -> 32.87139668 | L21: ='D1.3 Rate 3 Adjustment'!L20 -> 0.0435 | M21: ='B1.1 Current Distribution Rates'!M21*(1+'D1.3 Rate 3 Adjustment'!$E$14) -> 8.6033952 | N21: ='B1.1 Current Distribution Rates'!N21*(1+'D1.3 Rate 3 Adjustment'!$E$14) -> 11.8751868
C22: RATE 4 - General Service Peaking - Apr to Dec | E22: ='D1.4 Rate 4 Adjustment'!L17 -> 22.59404392 | F22: ='D1.4 Rate 4 Adjustment'!L18 -> 20.63220309 | G22: ='D1.4 Rate 4 Adjustment'!L19 -> 12.6591039 | L22: ='D1.4 Rate 4 Adjustment'!L22 -> 0.0435
C23: RATE 4 - General Service Peaking - Jan to Mar | E23: ='D1.4 Rate 4 Adjustment'!L17 -> 22.59404392 | F23: ='D1.4 Rate 4 Adjustment'!L20 -> 26.32093146 | G23: ='D1.4 Rate 4 Adjustment'!L21 -> 20.33915834 | L23: ='D1.4 Rate 4 Adjustment'!L22 -> 0.0435
C24: RATE 5 - Interruptible Peaking Contract Rate | E24: ='D1.5 Rate 5 Adjustment'!L17 -> 214.6434172 | J24: ='D1.5 Rate 5 Adjustment'!L18 -> 8.6111208 | K24: 1 | L24: ='D1.5 Rate 5 Adjustment'!L19 -> 0.0435 | M24: ='B1.1 Current Distribution Rates'!M24*(1+'D1.3 Rate 3 Adjustment'!$E$14) -> 6.7555152 | N24: ='B1.1 Current Distribution Rates'!N24*(1+'D1.3 Rate 3 Adjustment'!$E$14) -> 10.4667264
C25: RATE 6 - Integrated Grain Processors Co-Operative Aylmer Ethanol Production Facility | E25: ='D1.6 Rate 6 Adjustment'!L17 -> 69170.5332 | J25: ='D1.6 Rate 6 Adjustment'!L18 -> 0 | K25: ='D1.6 Rate 6 Adjustment'!L19 -> 0 | M25: ='B1.1 Current Distribution Rates'!M25 -> 0 | N25: ='B1.1 Current Distribution Rates'!N25 -> 0
C27: 1 Placeholder rate for average application
C30: =MID(CELL("filename",A1),FIND("]",CELL("filename",A1))+1,255) -> E1.1 Proposed Dist Rates

Sheet E1.2 Billing Determinants
C2: ='A1.1 Distributor Information'!C3 -> Name of LDC: EPCOR Natural Gas Limited Partnership
C3: ='A1.1 Distributor Information'!C4 -> OEB Application Number: EB-2023-0160 Exhibit A - 2024 IRM Application
C10: ='B1.2 Billing Determinants'!C10 -> Billing Determinants - Actuals January 1, 2022 to December 31, 2022
C15: Rate Group | E15: Monthly Service Charge | F15: Delivery First 1,000 m3 | G15: Delivery Over 1,000 m3 | H15: Delivery Next 24,000 m3 | I15: Delivery Over 25,000 m3 | J15: Delivery - Firm | K15: Demand - Firm | L15: Commodity | M15: Delivery - Int - Lower | N15: Delivery - Int - Upper
C16: RATE 1 - General Service Rate - Residential | E16: ='B1.2 Billing Determinants'!E16 -> 9132.083333 | F16: ='B1.2 Billing Determinants'!F16 -> 18582140.1 | G16: ='B1.2 Billing Determinants'!G16 -> 297318.8 | H16: ='B1.2 Billing Determinants'!H16 -> 0 | I16: ='B1.2 Billing Determinants'!I16 -> 0 | J16: ='B1.2 Billing Determinants'!J16 -> 0 | K16: ='B1.2 Billing Determinants'!K16 -> 0 | L16: ='B1.2 Billing Determinants'!L16 -> 18850616.9 | M16: ='B1.2 Billing Determinants'!M16 -> 0 | N16: ='B1.2 Billing Determinants'!N16 -> 0
C17: RATE 1 - General Service Rate - Commercial | E17: ='B1.2 Billing Determinants'!E17 -> 567 | F17: ='B1.2 Billing Determinants'!F17 -> 2691272.4 | G17: ='B1.2 Billing Determinants'!G17 -> 3441480.2 | H17: ='B1.2 Billing Determinants'!H17 -> 0 | I17: ='B1.2 Billing Determinants'!I17 -> 0 | J17: ='B1.2 Billing Determinants'!J17 -> 0 | K17: ='B1.2 Billing Determinants'!K17 -> 0 | L17: ='B1.2 Billing Determinants'!L17 -> 5778126.1 | M17: ='B1.2 Billing Determinants'!M17 -> 0 | N17: ='B1.2 Billing Determinants'!N17 -> 0
C18: RATE 1 - General Service Rate - Industrial | E18: ='B1.2 Billing Determinants'!E18 -> 77 | F18: ='B1.2 Billing Determinants'!F18 -> 493440.7 | G18: ='B1.2 Billing Determinants'!G18 -> 1842279.4 | H18: ='B1.2 Billing Determinants'!H18 -> 0 | I18: ='B1.2 Billing Determinants'!I18 -> 0 | J18: ='B1.2 Billing Determinants'!J18 -> 0 | K18: ='B1.2 Billing Determinants'!K18 -> 0 | L18: ='B1.2 Billing Determinants'!L18 -> 2137570.5 | M18: ='B1.2 Billing Determinants'!M18 -> 0 | N18: ='B1.2 Billing Determinants'!N18 -> 0
C19: RATE 2 - Seasonal Service - Apr to Oct | E19: ='B1.2 Billing Determinants'!E19 -> 52 | F19: ='B1.2 Billing Determinants'!F19 -> 66137 | G19: ='B1.2 Billing Determinants'!G19 -> 0 | H19: ='B1.2 Billing Determinants'!H19 -> 358394.9 | I19: ='B1.2 Billing Determinants'!I19 -> 73789 | J19: ='B1.2 Billing Determinants'!J19 -> 0 | K19: ='B1.2 Billing Determinants'!K19 -> 0 | L19: ='B1.2 Billing Determinants'!L19 -> 498320.9 | M19: ='B1.2 Billing Determinants'!M19 -> 0 | N19: ='B1.2 Billing Determinants'!N19 -> 0
C20: RATE 2 - Seasonal Service - Nov to Mar | E20: ='B1.2 Billing Determinants'!E20 -> 52 | F20: ='B1.2 Billing Determinants'!F20 -> 67689.4 | G20: ='B1.2 Billing Determinants'!G20 -> 0 | H20: ='B1.2 Billing Determinants'!H20 -> 250972.1 | I20: ='B1.2 Billing Determinants'!I20 -> 10372.4 | J20: ='B1.2 Billing Determinants'!J20 -> 0 | K20: ='B1.2 Billing Determinants'!K20 -> 0 | L20: ='B1.2 Billing Determinants'!L20 -> 329033.9 | M20: ='B1.2 Billing Determinants'!M20 -> 0 | N20: ='B1.2 Billing Determinants'!N20 -> 0
C21: RATE 3 - Special Large Volume Contract Rate | E21: ='B1.2 Billing Determinants'!E21 -> 5 | F21: ='B1.2 Billing Determinants'!F21 -> 0 | G21: ='B1.2 Billing Determinants'!G21 -> 0 | H21: ='B1.2 Billing Determinants'!H21 -> 0 | I21: ='B1.2 Billing Determinants'!I21 -> 0 | J21: ='B1.2 Billing Determinants'!J21 -> 1559815.1 | K21: ='B1.2 Billing Determinants'!K21 -> 214067.2 | L21: ='B1.2 Billing Determinants'!L21 -> 1420205.2 | M21: ='B1.2 Billing Determinants'!M21 -> 0 | N21: ='B1.2 Billing Determinants'!N21 -> 0
C22: RATE 4 - General Service Peaking - Apr to Dec | E22: ='B1.2 Billing Determinants'!E22 -> 41 | F22: ='B1.2 Billing Determinants'!F22 -> 104258 | G22: ='B1.2 Billing Determinants'!G22 -> 1412988.3 | H22: ='B1.2 Billing Determinants'!H22 -> 0 | I22: ='B1.2 Billing Determinants'!I22 -> 0 | J22: ='B1.2 Billing Determinants'!J22 -> 0 | K22: ='B1.2 Billing Determinants'!K22 -> 0 | L22: ='B1.2 Billing Determinants'!L22 -> 1517246.3 | M22: ='B1.2 Billing Determinants'!M22 -> 0 | N22: ='B1.2 Billing Determinants'!N22 -> 0
C23: RATE 4 - General Service Peaking - Jan to Mar | E23: ='B1.2 Billing Determinants'!E23 -> 41 | F23: ='B1.2 Billing Determinants'!F23 -> 26953.8 | G23: ='B1.2 Billing Determinants'!G23 -> 93992.1 | H23: ='B1.2 Billing Determinants'!H23 -> 0 | I23: ='B1.2 Billing Determinants'!I23 -> 0 | J23: ='B1.2 Billing Determinants'!J23 -> 0 | K23: ='B1.2 Billing Determinants'!K23 -> 0 | L23: ='B1.2 Billing Determinants'!L23 -> 120945.9 | M23: ='B1.2 Billing Determinants'!M23 -> 0 | N23: ='B1.2 Billing Determinants'!N23 -> 0
C24: RATE 5 - Interruptible Peaking Contract Rate | E24: ='B1.2 Billing Determinants'!E24 -> 4 | F24: ='B1.2 Billing Determinants'!F24 -> 0 | G24: ='B1.2 Billing Determinants'!G24 -> 0 | H24: ='B1.2 Billing Determinants'!H24 -> 0 | I24: ='B1.2 Billing Determinants'!I24 -> 0 | J24: ='B1.2 Billing Determinants'!J24 -> 597849.4 | K24: ='B1.2 Billing Determinants'!K24 -> 0 | L24: ='B1.2 Billing Determinants'!L24 -> 597849.4 | M24: ='B1.2 Billing Determinants'!M24 -> 0 | N24: ='B1.2 Billing Determinants'!N24 -> 0
C25: RATE 6 - Integrated Grain Processors Co-Operative Aylmer Ethanol Production Facility | E25: ='B1.2 Billing Determinants'!E25 -> 1 | F25: ='B1.2 Billing Determinants'!F25 -> 0 | G25: ='B1.2 Billing Determinants'!G25 -> 0 | H25: ='B1.2 Billing Determinants'!H25 -> 0 | I25: ='B1.2 Billing Determinants'!I25 -> 0 | J25: ='B1.2 Billing Determinants'!J25 -> 61555492 | K25: ='B1.2 Billing Determinants'!K25 -> 2505600 | L25: ='B1.2 Billing Determinants'!L25 -> 0 | M25: ='B1.2 Billing Determinants'!M25 -> 0 | N25: ='B1.2 Billing Determinants'!N25 -> 0
E26: =SUM(E16:E19,E21:E22,E24:E25) -> 9879.083333 | F26: =SUM(F16:F25) -> 22031891.4 | G26: 7088058.8 | H26: 609367 | I26: 84161.4 | J26: 63713156.5 | K26: 2719667.2 | L26: 31249915.1 | M26: 0 | N26: 0
C30: =MID(CELL("filename",A1),FIND("]",CELL("filename",A1))+1,255) -> E1.2 Billing Determinants

Sheet E1.3 Proposed Rev From Rate
C2: ='A1.1 Distributor Information'!C3 -> Name of LDC: EPCOR Natural Gas Limited Partnership
C3: ='A1.1 Distributor Information'!C4 -> OEB Application Number: EB-2023-0160 Exhibit A - 2024 IRM Application
C10: Proposed Revenue from Rates
C15: Rate Group | E15: Monthly Service Charge | F15: Delivery First 1,000 m3 | G15: Delivery Over 1,000 m3 | H15: Delivery Next 24,000 m3 | I15: Delivery Over 25,000 m3 | J15: Demand - Firm | K15: Delivery - Firm | L15: Commodity | M15: Delivery - Int - Lower | N15: Delivery - Int - Upper | O15: Total
C16: RATE 1 - General Service Rate - Residential | E16: ='E1.1 Proposed Dist Rates '!E16*'E1.2 Billing Determinants'!E16*12 -> 2246492.5 | F16: ='E1.1 Proposed Dist Rates '!F16*'E1.2 Billing Determinants'!F16/100 -> 2700740.543 | G16: ='E1.1 Proposed Dist Rates '!G16*'E1.2 Billing Determinants'!G16/100 -> 34729.97404 | H16: ='E1.1 Proposed Dist Rates '!H16*'E1.2 Billing Determinants'!H16/100 -> 0 | I16: ='E1.1 Proposed Dist Rates '!I16*'E1.2 Billing Determinants'!I16/100 -> 0 | J16: ='E1.1 Proposed Dist Rates '!J16*'E1.2 Billing Determinants'!J16/100 -> 0 | K16: ='E1.1 Proposed Dist Rates '!K16*'E1.2 Billing Determinants'!K16/100 -> 0 | L16: ='E1.1 Proposed Dist Rates '!L16*'E1.2 Billing Determinants'!L16/100 -> 8200.018352 | M16: ='E1.1 Proposed Dist Rates '!M16*'E1.2 Billing Determinants'!M16/100 -> 0 | N16: ='E1.1 Proposed Dist Rates '!N16*'E1.2 Billing Determinants'!N16/100 -> 0 | O16: =SUM(E16:N16) -> 4990163.035
C17: RATE 1 - General Service Rate - Commercial | E17: ='E1.1 Proposed Dist Rates '!E17*'E1.2 Billing Determinants'!E17*12 -> 139482 | F17: ='E1.1 Proposed Dist Rates '!F17*'E1.2 Billing Determinants'!F17/100 -> 391151.3122 | G17: ='E1.1 Proposed Dist Rates '!G17*'E1.2 Billing Determinants'!G17/100 -> 402001.2121 | H17: ='E1.1 Proposed Dist Rates '!H17*'E1.2 Billing Determinants'!H17/100 -> 0 | I17: ='E1.1 Proposed Dist Rates '!I17*'E1.2 Billing Determinants'!I17/100 -> 0 | J17: ='E1.1 Proposed Dist Rates '!J17*'E1.2 Billing Determinants'!J17/100 -> 0 | K17: ='E1.1 Proposed Dist Rates '!K17*'E1.2 Billing Determinants'!K17/100 -> 0 | L17: ='E1.1 Proposed Dist Rates '!L17*'E1.2 Billing Determinants'!L17/100 -> 2513.484854 | M17: ='E1.1 Proposed Dist Rates '!M17*'E1.2 Billing Determinants'!M17/100 -> 0 | N17: ='E1.1 Proposed Dist Rates '!N17*'E1.2 Billing Determinants'!N17/100 -> 0 | O17: =SUM(E17:N17) -> 935148.0091
C18: RATE 1 - General Service Rate - Industrial | E18: ='E1.1 Proposed Dist Rates '!E18*'E1.2 Billing Determinants'!E18*12 -> 18942 | F18: ='E1.1 Proposed Dist Rates '!F18*'E1.2 Billing Determinants'!F18/100 -> 71716.99798 | G18: ='E1.1 Proposed Dist Rates '!G18*'E1.2 Billing Determinants'!G18/100 -> 215197.6792 | H18: ='E1.1 Proposed Dist Rates '!H18*'E1.2 Billing Determinants'!H18/100 -> 0 | I18: ='E1.1 Proposed Dist Rates '!I18*'E1.2 Billing Determinants'!I18/100 -> 0 | J18: ='E1.1 Proposed Dist Rates '!J18*'E1.2 Billing Determinants'!J18/100 -> 0 | K18: ='E1.1 Proposed Dist Rates '!K18*'E1.2 Billing Determinants'!K18/100 -> 0 | L18: ='E1.1 Proposed Dist Rates '!L18*'E1.2 Billing Determinants'!L18/100 -> 929.8431675 | M18: ='E1.1 Proposed Dist Rates '!M18*'E1.2 Billing Determinants'!M18/100 -> 0 | N18: ='E1.1 Proposed Dist Rates '!N18*'E1.2 Billing Determinants'!N18/100 -> 0 | O18: 306786.5203
C19: RATE 2 - Seasonal Service - Apr to Oct | E19: ='E1.1 Proposed Dist Rates '!E19*'E1.2 Billing Determinants'!E19*7 -> 8224.231986 | F19: ='E1.1 Proposed Dist Rates '!F19*'E1.2 Billing Determinants'!F19/100 -> 12391.80054 | G19: ='E1.1 Proposed Dist Rates '!G19*'E1.2 Billing Determinants'!G19/100 -> 0 | H19: ='E1.1 Proposed Dist Rates '!H19*'E1.2 Billing Determinants'!H19/100 -> 34745.94941 | I19: ='E1.1 Proposed Dist Rates '!I19*'E1.2 Billing Determinants'!I19/100 -> 5657.449016 | J19: ='E1.1 Proposed Dist Rates '!J19*'E1.2 Billing Determinants'!J19/100 -> 0 | K19: ='E1.1 Proposed Dist Rates '!K19*'E1.2 Billing Determinants'!K19/100 -> 0 | L19: ='E1.1 Proposed Dist Rates '!L19*'E1.2 Billing Determinants'!L19/100 -> 216.7695915 | M19: ='E1.1 Proposed Dist Rates '!M19*'E1.2 Billing Determinants'!M19/100 -> 0 | N19: ='E1.1 Proposed Dist Rates '!N19*'E1.2 Billing Determinants'!N19/100 -> 0 | O19: 61236.20054
C20: RATE 2 - Seasonal Service - Nov to Mar | E20: ='E1.1 Proposed Dist Rates '!E20*'E1.2 Billing Determinants'!E20*5 -> 5874.451419 | F20: ='E1.1 Proposed Dist Rates '!F20*'E1.2 Billing Determinants'!F20/100 -> 15986.2748 | G20: ='E1.1 Proposed Dist Rates '!G20*'E1.2 Billing Determinants'!G20/100 -> 0 | H20: ='E1.1 Proposed Dist Rates '!H20*'E1.2 Billing Determinants'!H20/100 -> 40274.26268 | I20: ='E1.1 Proposed Dist Rates '!I20*'E1.2 Billing Determinants'!I20/100 -> 1791.628138 | J20: ='E1.1 Proposed Dist Rates '!J20*'E1.2 Billing Determinants'!J20/100 -> 0 | K20: ='E1.1 Proposed Dist Rates '!K20*'E1.2 Billing Determinants'!K20/100 -> 0 | L20: ='E1.1 Proposed Dist Rates '!L20*'E1.2 Billing Determinants'!L20/100 -> 143.1297465 | M20: ='E1.1 Proposed Dist Rates '!M20*'E1.2 Billing Determinants'!M20/100 -> 0 | N20: ='E1.1 Proposed Dist Rates '!N20*'E1.2 Billing Determinants'!N20/100 -> 0 | O20: 64069.74677
C21: RATE 3 - Special Large Volume Contract Rate | E21: ='E1.1 Proposed Dist Rates '!E21*'E1.2 Billing Determinants'!E21*12 -> 13556.42635 | F21: ='E1.1 Proposed Dist Rates '!F21*'E1.2 Billing Determinants'!F21/100 -> 0 | G21: ='E1.1 Proposed Dist Rates '!G21*'E1.2 Billing Determinants'!G21/100 -> 0 | H21: ='E1.1 Proposed Dist Rates '!H21*'E1.2 Billing Determinants'!H21/100 -> 0 | I21: ='E1.1 Proposed Dist Rates '!I21*'E1.2 Billing Determinants'!I21/100 -> 0 | J21: ='E1.1 Proposed Dist Rates '!J21*'E1.2 Billing Determinants'!J21/100 -> 63455.93897 | K21: ='E1.1 Proposed Dist Rates '!K21*'E1.2 Billing Determinants'!K21/100 -> 70366.87847 | L21: ='E1.1 Proposed Dist Rates '!L21*'E1.2 Billing Determinants'!L21/100 -> 617.789262 | M21: ='E1.1 Proposed Dist Rates '!M21*'E1.2 Billing Determinants'!M21/100 -> 0 | N21: ='E1.1 Proposed Dist Rates '!N21*'E1.2 Billing Determinants'!N21/100 -> 0 | O21: 147997.033
C22: RATE 4 - General Service Peaking - Apr to Dec | E22: ='E1.1 Proposed Dist Rates '!E22*'E1.2 Billing Determinants'!E22*9 -> 8337.202206 | F22: ='E1.1 Proposed Dist Rates '!F22*'E1.2 Billing Determinants'!F22/100 -> 21510.72229 | G22: ='E1.1 Proposed Dist Rates '!G22*'E1.2 Billing Determinants'!G22/100 -> 178871.657 | H22: ='E1.1 Proposed Dist Rates '!H22*'E1.2 Billing Determinants'!H22/100 -> 0 | I22: ='E1.1 Proposed Dist Rates '!I22*'E1.2 Billing Determinants'!I22/100 -> 0 | J22: ='E1.1 Proposed Dist Rates '!J22*'E1.2 Billing Determinants'!J22/100 -> 0 | K22: ='E1.1 Proposed Dist Rates '!K22*'E1.2 Billing Determinants'!K22/100 -> 0 | L22: ='E1.1 Proposed Dist Rates '!L22*'E1.2 Billing Determinants'!L22/100 -> 660.0021405 | M22: ='E1.1 Proposed Dist Rates '!M22*'E1.2 Billing Determinants'!M22/100 -> 0 | N22: ='E1.1 Proposed Dist Rates '!N22*'E1.2 Billing Determinants'!N22/100 -> 0 | O22: 209379.5836
C23: RATE 4 - General Service Peaking - Jan to Mar | E23: ='E1.1 Proposed Dist Rates '!E23*'E1.2 Billing Determinants'!E23*3 -> 2779.067402 | F23: ='E1.1 Proposed Dist Rates '!F23*'E1.2 Billing Determinants'!F23/100 -> 7094.491225 | G23: ='E1.1 Proposed Dist Rates '!G23*'E1.2 Billing Determinants'!G23/100 -> 19117.20204 | H23: ='E1.1 Proposed Dist Rates '!H23*'E1.2 Billing Determinants'!H23/100 -> 0 | I23: ='E1.1 Proposed Dist Rates '!I23*'E1.2 Billing Determinants'!I23/100 -> 0 | J23: ='E1.1 Proposed Dist Rates '!J23*'E1.2 Billing Determinants'!J23/100 -> 0 | K23: ='E1.1 Proposed Dist Rates '!K23*'E1.2 Billing Determinants'!K23/100 -> 0 | L23: ='E1.1 Proposed Dist Rates '!L23*'E1.2 Billing Determinants'!L23/100 -> 52.6114665 | M23: ='E1.1 Proposed Dist Rates '!M23*'E1.2 Billing Determinants'!M23/100 -> 0 | N23: ='E1.1 Proposed Dist Rates '!N23*'E1.2 Billing Determinants'!N23/100 -> 0 | O23: 29043.37214
C24: RATE 5 - Interruptible Peaking Contract Rate | E24: ='E1.1 Proposed Dist Rates '!E24*'E1.2 Billing Determinants'!E24*12 -> 10302.88403 | F24: ='E1.1 Proposed Dist Rates '!F24*'E1.2 Billing Determinants'!F24/100 -> 0 | G24: ='E1.1 Proposed Dist Rates '!G24*'E1.2 Billing Determinants'!G24/100 -> 0 | H24: ='E1.1 Proposed Dist Rates '!H24*'E1.2 Billing Determinants'!H24/100 -> 0 | I24: ='E1.1 Proposed Dist Rates '!I24*'E1.2 Billing Determinants'!I24/100 -> 0 | J24: ='E1.1 Proposed Dist Rates '!J24*'E1.2 Billing Determinants'!J24/100 -> 51481.53404 | K24: ='E1.1 Proposed Dist Rates '!K24*'E1.2 Billing Determinants'!K24/100 -> 0 | L24: ='E1.1 Proposed Dist Rates '!L24*'E1.2 Billing Determinants'!L24/100 -> 260.064489 | M24: ='E1.1 Proposed Dist Rates '!M24*'E1.2 Billing Determinants'!M24/100 -> 0 | N24: ='E1.1 Proposed Dist Rates '!N24*'E1.2 Billing Determinants'!N24/100 -> 0 | O24: 62044.48255
C25: RATE 6 - Integrated Grain Processors Co-Operative Aylmer Ethanol Production Facility | E25: ='E1.1 Proposed Dist Rates '!E25*'E1.2 Billing Determinants'!E25*12 -> 830046.3984 | F25: ='E1.1 Proposed Dist Rates '!F25*'E1.2 Billing Determinants'!F25/100 -> 0 | G25: ='E1.1 Proposed Dist Rates '!G25*'E1.2 Billing Determinants'!G25/100 -> 0 | H25: ='E1.1 Proposed Dist Rates '!H25*'E1.2 Billing Determinants'!H25/100 -> 0 | I25: ='E1.1 Proposed Dist Rates '!I25*'E1.2 Billing Determinants'!I25/100 -> 0 | J25: ='E1.1 Proposed Dist Rates '!J25*'E1.2 Billing Determinants'!J25/100 -> 0 | K25: ='E1.1 Proposed Dist Rates '!K25*'E1.2 Billing Determinants'!K25/100 -> 0 | L25: ='E1.1 Proposed Dist Rates '!L25*'E1.2 Billing Determinants'!L25/100 -> 0 | M25: ='E1.1 Proposed Dist Rates '!M25*'E1.2 Billing Determinants'!M25/100 -> 0 | N25: ='E1.1 Proposed Dist Rates '!N25*'E1.2 Billing Determinants'!N25/100 -> 0 | O25: 830046.3984
E26: =SUM(E16:E25) -> 3284037.162 | F26: =SUM(F16:F25) -> 3220592.142 | G26: 849917.7243 | H26: 75020.21208 | I26: 7449.077154 | J26: 114937.473 | K26: 70366.87847 | L26: 13593.71307 | M26: 0 | N26: 0 | O26: 7635914.382
N28: Proposed Revenue | O28: =O26 -> 7635914.382
N29: Current Revenue | O29: ='B1.3 Current Rev From Rates'!O26 -> 7314667.151
N30: Change | O30: =O28-O29 -> 321247.2313
O31: =O30/O29 -> 0.04391822958
C33: =MID(CELL("filename",A1),FIND("]",CELL("filename",A1))+1,255) -> E1.3 Proposed Rev From Rate

Sheet F1.1 REDA
C2: ='A1.1 Distributor Information'!C3 -> Name of LDC: EPCOR Natural Gas Limited Partnership
C3: ='A1.1 Distributor Information'!C4 -> OEB Application Number: EB-2023-0160 Exhibit A - 2024 IRM Application
C10: REDA
C15: REDA Cost Type | D15: Number of Customers to Allocate | F15: Disposition Amount ($) | H15: Disposition Rate ($ / customer / month)
C16: DSM | D16: 9878 | F16: 2196 | H16: =F16/D16/12 -> 0.01852601741
C21: Rate Class | H21: Proposed Rate Rider ($ / customer / month)
C22: Rates 1 - 5 | H22: =ROUND(H16+H17,2) -> 0.02
C23: Rate 6
C28: =MID(CELL("filename",A1),FIND("]",CELL("filename",A1))+1,255) -> F1.1 REDA

Sheet F1.2 PGTVA
C2: ='A1.1 Distributor Information'!C3 -> Name of LDC: EPCOR Natural Gas Limited Partnership
C3: ='A1.1 Distributor Information'!C4 -> OEB Application Number: EB-2023-0160 Exhibit A - 2024 IRM Application
C10: PGTVA Rates 1 - 5
C15: Volume (m3) | E15: Disposition Amount ($) | G15: Proposed Rate Rider (cents / m3)
C16: =SUM('E1.2 Billing Determinants'!F16:J24) -> 31971143.1 | E16: 252285.0827 | G16: =E16/C16*100 -> 0.7891024788
C21: =MID(CELL("filename",A1),FIND("]",CELL("filename",A1))+1,255) -> F1.2 PGTVA

Sheet F1.3 ADVADA
D2: ='A1.1 Distributor Information'!C3 -> Name of LDC: EPCOR Natural Gas Limited Partnership
D3: ='A1.1 Distributor Information'!C4 -> OEB Application Number: EB-2023-0160 Exhibit A - 2024 IRM Application
C10: ADVADA
C15: Rate Class | D15: Number of Customers | E15: Volume (m3) | F15: Disposition Amount ($) | G15: Rate Rider Unit | H15: Proposed Rate Rider
C16: Rate 1 - 5 | E16: =SUM('E1.2 Billing Determinants'!F16:J24) -> 31971143.1 | F16: -9258 | G16: cents / m3 | H16: =F16/E16*100 -> -0.02895736312
C17: Rate 6 | D17: 0 | G17: $ / customer / month | H17: =F17/D17/12 -> 
C21: =MID(CELL("filename",A1),FIND("]",CELL("filename",A1))+1,255) -> F1.3 ADVADA

Sheet F1.4 LDMDA (hidden)
D2: ='A1.1 Distributor Information'!C3 -> Name of LDC: EPCOR Natural Gas Limited Partnership
D3: ='A1.1 Distributor Information'!C4 -> OEB Application Number: EB-2023-0160 Exhibit A - 2024 IRM Application
C10: LDMDA
C15: Rate Class | D15: Number of Customers | E15: Volume (m3) | F15: Disposition Amount ($) | G15: Rate Rider Unit | H15: Proposed Rate Rider
C21: =MID(CELL("filename",A1),FIND("]",CELL("filename",A1))+1,255) -> F1.4 LDMDA

Sheet F1.5 SICDA (hidden)
D2: ='A1.1 Distributor Information'!C3 -> Name of LDC: EPCOR Natural Gas Limited Partnership
D3: ='A1.1 Distributor Information'!C4 -> OEB Application Number: EB-2023-0160 Exhibit A - 2024 IRM Application
C10: SICDA
C15: Rate Class | D15: Number of Customers | E15: Volume (m3) | F15: Disposition Amount ($) | G15: Rate Rider Unit | H15: Proposed Rate Rider
C22: =MID(CELL("filename",A1),FIND("]",CELL("filename",A1))+1,255) -> F1.5 SICDA

Sheet F1.4 Proposed Rate Riders
C2: ='A1.1 Distributor Information'!C3 -> Name of LDC: EPCOR Natural Gas Limited Partnership
C3: ='A1.1 Distributor Information'!C4 -> OEB Application Number: EB-2023-0160 Exhibit A - 2024 IRM Application
C7: Proposed Rate Riders
C9: Description | E9: REDA | F9: PGTVA | G9: ADVADA Rate 1 - 5 | H9: ADVADA Rate 6 | I9: LDMDA | J9: SICDA
E10: Effective for 12 months | F10: Effective for 12 months | G10: Effective for 12 months | H10: Effective for 12 months | I10: Effective for 12 months | J10: Effective for 12 months
C11: Rate Group | E11: $ per Customer Per Month | F11: cents / m3 | G11: cents / m3 | H11: $ per Customer Per Month | I11: $ per Customer Per Month | J11: cents / m3
C13: RATE 1 - General Service Rate - Residential | E13: ='F1.1 REDA'!$H$22 -> 0.02 | F13: ='F1.2 PGTVA'!$G$16 -> 0.7891024788 | G13: ='F1.3 ADVADA'!$H$16 -> -0.02895736312 | I13: ='F1.4 LDMDA'!$H$16 -> 0 | J13: ='F1.5 SICDA'!$H$16 -> 0
C14: RATE 1 - General Service Rate - Commercial | E14: ='F1.1 REDA'!$H$22 -> 0.02 | F14: ='F1.2 PGTVA'!$G$16 -> 0.7891024788 | G14: ='F1.3 ADVADA'!$H$16 -> -0.02895736312 | I14: ='F1.4 LDMDA'!$H$16 -> 0 | J14: ='F1.5 SICDA'!$H$16 -> 0
C15: RATE 1 - General Service Rate - Industrial | E15: ='F1.1 REDA'!$H$22 -> 0.02 | F15: ='F1.2 PGTVA'!$G$16 -> 0.7891024788 | G15: ='F1.3 ADVADA'!$H$16 -> -0.02895736312 | I15: ='F1.4 LDMDA'!$H$16 -> 0 | J15: ='F1.5 SICDA'!$H$16 -> 0
C16: RATE 2 - Seasonal Service - Apr to Oct | E16: ='F1.1 REDA'!$H$22 -> 0.02 | F16: ='F1.2 PGTVA'!$G$16 -> 0.7891024788 | G16: ='F1.3 ADVADA'!$H$16 -> -0.02895736312 | J16: ='F1.5 SICDA'!H17 -> 0
C17: RATE 2 - Seasonal Service - Nov to Mar | E17: ='F1.1 REDA'!$H$22 -> 0.02 | F17: ='F1.2 PGTVA'!$G$16 -> 0.7891024788 | G17: ='F1.3 ADVADA'!$H$16 -> -0.02895736312 | J17: =J16 -> 0
C18: RATE 3 - Special Large Volume Contract Rate | E18: ='F1.1 REDA'!$H$22 -> 0.02 | F18: ='F1.2 PGTVA'!$G$16 -> 0.7891024788 | G18: ='F1.3 ADVADA'!$H$16 -> -0.02895736312 | J18: ='F1.5 SICDA'!H18 -> 0
C19: RATE 4 - General Service Peaking - Apr to Dec | E19: ='F1.1 REDA'!$H$22 -> 0.02 | F19: ='F1.2 PGTVA'!$G$16 -> 0.7891024788 | G19: ='F1.3 ADVADA'!$H$16 -> -0.02895736312 | J19: ='F1.5 SICDA'!H19 -> 0
C20: RATE 4 - General Service Peaking - Jan to Mar | E20: ='F1.1 REDA'!$H$22 -> 0.02 | F20: ='F1.2 PGTVA'!$G$16 -> 0.7891024788 | G20: ='F1.3 ADVADA'!$H$16 -> -0.02895736312 | J20: =J19 -> 0
C21: RATE 5 - Interruptible Peaking Contract Rate | E21: ='F1.1 REDA'!$H$22 -> 0.02 | F21: ='F1.2 PGTVA'!$G$16 -> 0.7891024788 | G21: ='F1.3 ADVADA'!$H$16 -> -0.02895736312 | J21: ='F1.5 SICDA'!H20 -> 0
C22: RATE 6 - Integrated Grain Processors Co-Operative Aylmer Ethanol Production Facility | H22: ='F1.3 ADVADA'!H17 -> 
C28: =MID(CELL("filename",A15),FIND("]",CELL("filename",A15))+1,255) -> F1.4 Proposed Rate Riders

Sheet G1.1 Rate 1 Bill Impact
C2: ='A1.1 Distributor Information'!C3 -> Name of LDC: EPCOR Natural Gas Limited Partnership
C3: ='A1.1 Distributor Information'!C4 -> OEB Application Number: EB-2023-0160 Exhibit A - 2024 IRM Application
C7: Rate 1 Delivery Bill Impact
C10: ='For Bill Impact(HideBeforeFile)'!C6 -> RATE 1 - General Service Rate - Residential | F10: Current | H10: Proposed | J10: Bill Determinant | O10: Look-up
C14: =INDEX('For Bill Impact(HideBeforeFile)'!$D$48:$S$57,MATCH(C10,'For Bill Impact(HideBeforeFile)'!$C$62:$C$71,0),MATCH($O14,'For Bill Impact(HideBeforeFile)'!$D$61:$S$61,0)) -> Commodity | D14: =INDEX('For Bill Impact(HideBeforeFile)'!$D$62:$S$71,MATCH(C10,'For Bill Impact(HideBeforeFile)'!$C$62:$C$71,0),MATCH($O14,'For Bill Impact(HideBeforeFile)'!$D$61:$S$61,0)) -> cents / m3 | F14: =INDEX('For Bill Impact(HideBeforeFile)'!$D$6:$S$15,MATCH(C10,'For Bill Impact(HideBeforeFile)'!$C$62:$C$71,0),MATCH($O14,'For Bill Impact(HideBeforeFile)'!$D$61:$S$61,0)) -> 23.2609 | H14: =INDEX('For Bill Impact(HideBeforeFile)'!$D$20:$S$29,MATCH(C10,'For Bill Impact(HideBeforeFile)'!$C$62:$C$71,0),MATCH($O14,'For Bill Impact(HideBeforeFile)'!$D$61:$S$61,0)) -> 23.2609 | J14: =INDEX('For Bill Impact(HideBeforeFile)'!$D$34:$S$43,MATCH(C10,'For Bill Impact(HideBeforeFile)'!$C$62:$C$71,0),MATCH($O14,'For Bill Impact(HideBeforeFile)'!$D$61:$S$61,0)) -> 2067.376984 | O14: ='For Bill Impact(HideBeforeFile)'!$D$5 -> Commodity
C16: =INDEX('For Bill Impact(HideBeforeFile)'!$D$48:$S$57,MATCH(C10,'For Bill Impact(HideBeforeFile)'!$C$62:$C$71,0),MATCH($O16,'For Bill Impact(HideBeforeFile)'!$D$61:$S$61,0)) -> Customer (excl. Bill 32) | D16: =INDEX('For Bill Impact(HideBeforeFile)'!$D$62:$S$71,MATCH(C10,'For Bill Impact(HideBeforeFile)'!$C$62:$C$71,0),MATCH($O16,'For Bill Impact(HideBeforeFile)'!$D$61:$S$61,0)) -> $ / month | F16: =INDEX('For Bill Impact(HideBeforeFile)'!$D$6:$S$15,MATCH(C10,'For Bill Impact(HideBeforeFile)'!$C$62:$C$71,0),MATCH($O16,'For Bill Impact(HideBeforeFile)'!$D$61:$S$61,0)) -> 19.5 | H16: =INDEX('For Bill Impact(HideBeforeFile)'!$D$20:$S$29,MATCH(C10,'For Bill Impact(HideBeforeFile)'!$C$62:$C$71,0),MATCH($O16,'For Bill Impact(HideBeforeFile)'!$D$61:$S$61,0)) -> 20.5 | J16: =INDEX('For Bill Impact(HideBeforeFile)'!$D$34:$S$43,MATCH(C10,'For Bill Impact(HideBeforeFile)'!$C$62:$C$71,0),MATCH($O16,'For Bill Impact(HideBeforeFile)'!$D$61:$S$61,0)) -> 12 | O16: ='For Bill Impact(HideBeforeFile)'!$O$5 -> Dist. Customer Rate
C17: =INDEX('For Bill Impact(HideBeforeFile)'!$D$48:$S$57,MATCH(C10,'For Bill Impact(HideBeforeFile)'!$C$62:$C$71,0),MATCH($O17,'For Bill Impact(HideBeforeFile)'!$D$61:$S$61,0)) -> Block 1 (First 1,000 m3 per month) | D17: =INDEX('For Bill Impact(HideBeforeFile)'!$D$62:$S$71,MATCH(C10,'For Bill Impact(HideBeforeFile)'!$C$62:$C$71,0),MATCH($O17,'For Bill Impact(HideBeforeFile)'!$D$61:$S$61,0)) -> cents / m3 | F17: =INDEX('For Bill Impact(HideBeforeFile)'!$D$6:$S$15,MATCH(C10,'For Bill Impact(HideBeforeFile)'!$C$62:$C$71,0),MATCH($O17,'For Bill Impact(HideBeforeFile)'!$D$61:$S$61,0)) -> 13.9823 | H17: =INDEX('For Bill Impact(HideBeforeFile)'!$D$20:$S$29,MATCH(C10,'For Bill Impact(HideBeforeFile)'!$C$62:$C$71,0),MATCH($O17,'For Bill Impact(HideBeforeFile)'!$D$61:$S$61,0)) -> 14.5340662 | J17: =INDEX('For Bill Impact(HideBeforeFile)'!$D$34:$S$43,MATCH(C10,'For Bill Impact(HideBeforeFile)'!$C$62:$C$71,0),MATCH($O17,'For Bill Impact(HideBeforeFile)'!$D$61:$S$61,0)) -> 2034.819375 | O17: ='For Bill Impact(HideBeforeFile)'!$P$5 -> Dist. Vol. Rate Tier 1
C18: =INDEX('For Bill Impact(HideBeforeFile)'!$D$48:$S$57,MATCH(C10,'For Bill Impact(HideBeforeFile)'!$C$62:$C$71,0),MATCH($O18,'For Bill Impact(HideBeforeFile)'!$D$61:$S$61,0)) -> Block 2 (Over 1,000 m3 per month) | D18: =INDEX('For Bill Impact(HideBeforeFile)'!$D$62:$S$71,MATCH(C10,'For Bill Impact(HideBeforeFile)'!$C$62:$C$71,0),MATCH($O18,'For Bill Impact(HideBeforeFile)'!$D$61:$S$61,0)) -> cents / m3 | F18: =INDEX('For Bill Impact(HideBeforeFile)'!$D$6:$S$15,MATCH(C10,'For Bill Impact(HideBeforeFile)'!$C$62:$C$71,0),MATCH($O18,'For Bill Impact(HideBeforeFile)'!$D$61:$S$61,0)) -> 11.2376 | H18: =INDEX('For Bill Impact(HideBeforeFile)'!$D$20:$S$29,MATCH(C10,'For Bill Impact(HideBeforeFile)'!$C$62:$C$71,0),MATCH($O18,'For Bill Impact(HideBeforeFile)'!$D$61:$S$61,0)) -> 11.6810555 | J18: =INDEX('For Bill Impact(HideBeforeFile)'!$D$34:$S$43,MATCH(C10,'For Bill Impact(HideBeforeFile)'!$C$62:$C$71,0),MATCH($O18,'For Bill Impact(HideBeforeFile)'!$D$61:$S$61,0)) -> 32.55760916 | O18: ='For Bill Impact(HideBeforeFile)'!$Q$5 -> Dist. Vol. Rate Tier 2
C19: =INDEX('For Bill Impact(HideBeforeFile)'!$D$48:$S$57,MATCH(C10,'For Bill Impact(HideBeforeFile)'!$C$62:$C$71,0),MATCH($O19,'For Bill Impact(HideBeforeFile)'!$D$61:$S$61,0)) ->  | D19: =INDEX('For Bill Impact(HideBeforeFile)'!$D$62:$S$71,MATCH(C10,'For Bill Impact(HideBeforeFile)'!$C$62:$C$71,0),MATCH($O19,'For Bill Impact(HideBeforeFile)'!$D$61:$S$61,0)) ->  | F19: =INDEX('For Bill Impact(HideBeforeFile)'!$D$6:$S$15,MATCH(C10,'For Bill Impact(HideBeforeFile)'!$C$62:$C$71,0),MATCH($O19,'For Bill Impact(HideBeforeFile)'!$D$61:$S$61,0)) ->  | H19: =INDEX('For Bill Impact(HideBeforeFile)'!$D$20:$S$29,MATCH(C10,'For Bill Impact(HideBeforeFile)'!$C$62:$C$71,0),MATCH($O19,'For Bill Impact(HideBeforeFile)'!$D$61:$S$61,0)) ->  | J19: =INDEX('For Bill Impact(HideBeforeFile)'!$D$34:$S$43,MATCH(C10,'For Bill Impact(HideBeforeFile)'!$C$62:$C$71,0),MATCH($O19,'For Bill Impact(HideBeforeFile)'!$D$61:$S$61,0)) ->  | O19: ='For Bill Impact(HideBeforeFile)'!$R$5 -> Dist. Vol. Rate Tier 3
C20: =INDEX('For Bill Impact(HideBeforeFile)'!$D$48:$S$57,MATCH(C10,'For Bill Impact(HideBeforeFile)'!$C$62:$C$71,0),MATCH($O20,'For Bill Impact(HideBeforeFile)'!$D$61:$S$61,0)) ->  | D20: =INDEX('For Bill Impact(HideBeforeFile)'!$D$62:$S$71,MATCH(C10,'For Bill Impact(HideBeforeFile)'!$C$62:$C$71,0),MATCH($O20,'For Bill Impact(HideBeforeFile)'!$D$61:$S$61,0)) ->  | F20: =INDEX('For Bill Impact(HideBeforeFile)'!$D$6:$S$15,MATCH(C10,'For Bill Impact(HideBeforeFile)'!$C$62:$C$71,0),MATCH($O20,'For Bill Impact(HideBeforeFile)'!$D$61:$S$61,0)) ->  | H20: =INDEX('For Bill Impact(HideBeforeFile)'!$D$20:$S$29,MATCH(C10,'For Bill Impact(HideBeforeFile)'!$C$62:$C$71,0),MATCH($O20,'For Bill Impact(HideBeforeFile)'!$D$61:$S$61,0)) ->  | J20: =INDEX('For Bill Impact(HideBeforeFile)'!$D$34:$S$43,MATCH(C10,'For Bill Impact(HideBeforeFile)'!$C$62:$C$71,0),MATCH($O20,'For Bill Impact(HideBeforeFile)'!$D$61:$S$61,0)) ->  | O20: ='For Bill Impact(HideBeforeFile)'!$S$5 -> Dist. Capacity Rate
C21: =INDEX('For Bill Impact(HideBeforeFile)'!$D$48:$S$57,MATCH(C10,'For Bill Impact(HideBeforeFile)'!$C$62:$C$71,0),MATCH($O21,'For Bill Impact(HideBeforeFile)'!$D$61:$S$61,0)) -> System Gas Charge | D21: =INDEX('For Bill Impact(HideBeforeFile)'!$D$62:$S$71,MATCH(C10,'For Bill Impact(HideBeforeFile)'!$C$62:$C$71,0),MATCH($O21,'For Bill Impact(HideBeforeFile)'!$D$61:$S$61,0)) -> cents / m3 | F21: =INDEX('For Bill Impact(HideBeforeFile)'!$D$6:$S$15,MATCH(C10,'For Bill Impact(HideBeforeFile)'!$C$62:$C$71,0),MATCH($O21,'For Bill Impact(HideBeforeFile)'!$D$61:$S$61,0)) -> 0.0435 | H21: =INDEX('For Bill Impact(HideBeforeFile)'!$D$20:$S$29,MATCH(C10,'For Bill Impact(HideBeforeFile)'!$C$62:$C$71,0),MATCH($O21,'For Bill Impact(HideBeforeFile)'!$D$61:$S$61,0)) -> 0.0435 | J21: =INDEX('For Bill Impact(HideBeforeFile)'!$D$34:$S$43,MATCH(C10,'For Bill Impact(HideBeforeFile)'!$C$62:$C$71,0),MATCH($O21,'For Bill Impact(HideBeforeFile)'!$D$61:$S$61,0)) -> 2067.376984 | O21: ='For Bill Impact(HideBeforeFile)'!$E$5 -> System Gas
C23: =INDEX('For Bill Impact(HideBeforeFile)'!$D$48:$S$57,MATCH(C10,'For Bill Impact(HideBeforeFile)'!$C$62:$C$71,0),MATCH($O23,'For Bill Impact(HideBeforeFile)'!$D$61:$S$61,0)) -> REDA | D23: =INDEX('For Bill Impact(HideBeforeFile)'!$D$62:$S$71,MATCH(C10,'For Bill Impact(HideBeforeFile)'!$C$62:$C$71,0),MATCH($O23,'For Bill Impact(HideBeforeFile)'!$D$61:$S$61,0)) -> $ / month | F23: =INDEX('For Bill Impact(HideBeforeFile)'!$D$6:$S$15,MATCH(C10,'For Bill Impact(HideBeforeFile)'!$C$62:$C$71,0),MATCH($O23,'For Bill Impact(HideBeforeFile)'!$D$61:$S$61,0)) -> 0.02 | H23: =INDEX('For Bill Impact(HideBeforeFile)'!$D$20:$S$29,MATCH(C10,'For Bill Impact(HideBeforeFile)'!$C$62:$C$71,0),MATCH($O23,'For Bill Impact(HideBeforeFile)'!$D$61:$S$61,0)) -> 0.02 | J23: =INDEX('For Bill Impact(HideBeforeFile)'!$D$34:$S$43,MATCH(C10,'For Bill Impact(HideBeforeFile)'!$C$62:$C$71,0),MATCH($O23,'For Bill Impact(HideBeforeFile)'!$D$61:$S$61,0)) -> 12 | O23: ='For Bill Impact(HideBeforeFile)'!$F$5 -> REDA
C24: =INDEX('For Bill Impact(HideBeforeFile)'!$D$48:$S$57,MATCH(C10,'For Bill Impact(HideBeforeFile)'!$C$62:$C$71,0),MATCH($O24,'For Bill Impact(HideBeforeFile)'!$D$61:$S$61,0)) -> PGTVA | D24: =INDEX('For Bill Impact(HideBeforeFile)'!$D$62:$S$71,MATCH(C10,'For Bill Impact(HideBeforeFile)'!$C$62:$C$71,0),MATCH($O24,'For Bill Impact(HideBeforeFile)'!$D$61:$S$61,0)) -> cents / m3 | F24: =INDEX('For Bill Impact(HideBeforeFile)'!$D$6:$S$15,MATCH(C10,'For Bill Impact(HideBeforeFile)'!$C$62:$C$71,0),MATCH($O24,'For Bill Impact(HideBeforeFile)'!$D$61:$S$61,0)) -> 0.4355 | H24: =INDEX('For Bill Impact(HideBeforeFile)'!$D$20:$S$29,MATCH(C10,'For Bill Impact(HideBeforeFile)'!$C$62:$C$71,0),MATCH($O24,'For Bill Impact(HideBeforeFile)'!$D$61:$S$61,0)) -> 0.7891024788 | J24: =INDEX('For Bill Impact(HideBeforeFile)'!$D$34:$S$43,MATCH(C10,'For Bill Impact(HideBeforeFile)'!$C$62:$C$71,0),MATCH($O24,'For Bill Impact(HideBeforeFile)'!$D$61:$S$61,0)) -> 2067.376984 | O24: ='For Bill Impact(HideBeforeFile)'!$G$5 -> PGTVA
C25: =INDEX('For Bill Impact(HideBeforeFile)'!$D$48:$S$57,MATCH(C10,'For Bill Impact(HideBeforeFile)'!$C$62:$C$71,0),MATCH($O25,'For Bill Impact(HideBeforeFile)'!$D$61:$S$61,0)) -> ADVADA | D25: =INDEX('For Bill Impact(HideBeforeFile)'!$D$62:$S$71,MATCH(C10,'For Bill Impact(HideBeforeFile)'!$C$62:$C$71,0),MATCH($O25,'For Bill Impact(HideBeforeFile)'!$D$61:$S$61,0)) -> cents / m3 | F25: =INDEX('For Bill Impact(HideBeforeFile)'!$D$6:$S$15,MATCH(C10,'For Bill Impact(HideBeforeFile)'!$C$62:$C$71,0),MATCH($O25,'For Bill Impact(HideBeforeFile)'!$D$61:$S$61,0)) -> 0 | H25: =INDEX('For Bill Impact(HideBeforeFile)'!$D$20:$S$29,MATCH(C10,'For Bill Impact(HideBeforeFile)'!$C$62:$C$71,0),MATCH($O25,'For Bill Impact(HideBeforeFile)'!$D$61:$S$61,0)) -> -0.02895736312 | J25: =INDEX('For Bill Impact(HideBeforeFile)'!$D$34:$S$43,MATCH(C10,'For Bill Impact(HideBeforeFile)'!$C$62:$C$71,0),MATCH($O25,'For Bill Impact(HideBeforeFile)'!$D$61:$S$61,0)) -> 2067.376984 | O25: ='For Bill Impact(HideBeforeFile)'!$H$5 -> ADVADA
C26: =INDEX('For Bill Impact(HideBeforeFile)'!$D$48:$S$57,MATCH(C10,'For Bill Impact(HideBeforeFile)'!$C$62:$C$71,0),MATCH($O26,'For Bill Impact(HideBeforeFile)'!$D$61:$S$61,0)) -> LDMDA | D26: =INDEX('For Bill Impact(HideBeforeFile)'!$D$62:$S$71,MATCH(C10,'For Bill Impact(HideBeforeFile)'!$C$62:$C$71,0),MATCH($O26,'For Bill Impact(HideBeforeFile)'!$D$61:$S$61,0)) -> $ / month | F26: =INDEX('For Bill Impact(HideBeforeFile)'!$D$6:$S$15,MATCH(C10,'For Bill Impact(HideBeforeFile)'!$C$62:$C$71,0),MATCH($O26,'For Bill Impact(HideBeforeFile)'!$D$61:$S$61,0)) -> 0 | H26: =INDEX('For Bill Impact(HideBeforeFile)'!$D$20:$S$29,MATCH(C10,'For Bill Impact(HideBeforeFile)'!$C$62:$C$71,0),MATCH($O26,'For Bill Impact(HideBeforeFile)'!$D$61:$S$61,0)) -> 0 | J26: =INDEX('For Bill Impact(HideBeforeFile)'!$D$34:$S$43,MATCH(C10,'For Bill Impact(HideBeforeFile)'!$C$62:$C$71,0),MATCH($O26,'For Bill Impact(HideBeforeFile)'!$D$61:$S$61,0)) -> 12 | O26: LDMDA
C27: =INDEX('For Bill Impact(HideBeforeFile)'!$D$48:$S$57,MATCH(C10,'For Bill Impact(HideBeforeFile)'!$C$62:$C$71,0),MATCH($O27,'For Bill Impact(HideBeforeFile)'!$D$61:$S$61,0)) -> SICDA | D27: =INDEX('For Bill Impact(HideBeforeFile)'!$D$62:$S$71,MATCH(C10,'For Bill Impact(HideBeforeFile)'!$C$62:$C$71,0),MATCH($O27,'For Bill Impact(HideBeforeFile)'!$D$61:$S$61,0)) -> cents / m3 | F27: =INDEX('For Bill Impact(HideBeforeFile)'!$D$6:$S$15,MATCH(C10,'For Bill Impact(HideBeforeFile)'!$C$62:$C$71,0),MATCH($O27,'For Bill Impact(HideBeforeFile)'!$D$61:$S$61,0)) -> 0 | H27: =INDEX('For Bill Impact(HideBeforeFile)'!$D$20:$S$29,MATCH(C10,'For Bill Impact(HideBeforeFile)'!$C$62:$C$71,0),MATCH($O27,'For Bill Impact(HideBeforeFile)'!$D$61:$S$61,0)) -> 0 | J27: =INDEX('For Bill Impact(HideBeforeFile)'!$D$34:$S$43,MATCH(C10,'For Bill Impact(HideBeforeFile)'!$C$62:$C$71,0),MATCH($O27,'For Bill Impact(HideBeforeFile)'!$D$61:$S$61,0)) -> 2067.376984 | O27: SICDA
C28: =INDEX('For Bill Impact(HideBeforeFile)'!$D$48:$S$57,MATCH(C10,'For Bill Impact(HideBeforeFile)'!$C$62:$C$71,0),MATCH($O28,'For Bill Impact(HideBeforeFile)'!$D$61:$S$61,0)) -> FCCVA | D28: =INDEX('For Bill Impact(HideBeforeFile)'!$D$62:$S$71,MATCH(C10,'For Bill Impact(HideBeforeFile)'!$C$62:$C$71,0),MATCH($O28,'For Bill Impact(HideBeforeFile)'!$D$61:$S$61,0)) -> $ / month | F28: =INDEX('For Bill Impact(HideBeforeFile)'!$D$6:$S$15,MATCH(C10,'For Bill Impact(HideBeforeFile)'!$C$62:$C$71,0),MATCH($O28,'For Bill Impact(HideBeforeFile)'!$D$61:$S$61,0)) -> 0 | H28: =INDEX('For Bill Impact(HideBeforeFile)'!$D$20:$S$29,MATCH(C10,'For Bill Impact(HideBeforeFile)'!$C$62:$C$71,0),MATCH($O28,'For Bill Impact(HideBeforeFile)'!$D$61:$S$61,0)) -> 0 | J28: =INDEX('For Bill Impact(HideBeforeFile)'!$D$34:$S$43,MATCH(C10,'For Bill Impact(HideBeforeFile)'!$C$62:$C$71,0),MATCH($O28,'For Bill Impact(HideBeforeFile)'!$D$61:$S$61,0)) -> 12 | O28: FCCVA
C29: =INDEX('For Bill Impact(HideBeforeFile)'!$D$48:$S$57,MATCH(C10,'For Bill Impact(HideBeforeFile)'!$C$62:$C$71,0),MATCH($O29,'For Bill Impact(HideBeforeFile)'!$D$61:$S$61,0)) -> GGEADA | D29: =INDEX('For Bill Impact(HideBeforeFile)'!$D$62:$S$71,MATCH(C10,'For Bill Impact(HideBeforeFile)'!$C$62:$C$71,0),MATCH($O29,'For Bill Impact(HideBeforeFile)'!$D$61:$S$61,0)) -> $ / month | F29: =INDEX('For Bill Impact(HideBeforeFile)'!$D$6:$S$15,MATCH(C10,'For Bill Impact(HideBeforeFile)'!$C$62:$C$71,0),MATCH($O29,'For Bill Impact(HideBeforeFile)'!$D$61:$S$61,0)) -> 0 | H29: =INDEX('For Bill Impact(HideBeforeFile)'!$D$20:$S$29,MATCH(C10,'For Bill Impact(HideBeforeFile)'!$C$62:$C$71,0),MATCH($O29,'For Bill Impact(HideBeforeFile)'!$D$61:$S$61,0)) -> 0 | J29: =INDEX('For Bill Impact(HideBeforeFile)'!$D$34:$S$43,MATCH(C10,'For Bill Impact(HideBeforeFile)'!$C$62:$C$71,0),MATCH($O29,'For Bill Impact(HideBeforeFile)'!$D$61:$S$61,0)) -> 12 | O29: GGEADA
C31: =INDEX('For Bill Impact(HideBeforeFile)'!$D$48:$S$57,MATCH(C10,'For Bill Impact(HideBeforeFile)'!$C$62:$C$71,0),MATCH($O31,'For Bill Impact(HideBeforeFile)'!$D$61:$S$61,0)) -> Federal Carbon | D31: =INDEX('For Bill Impact(HideBeforeFile)'!$D$62:$S$71,MATCH(C10,'For Bill Impact(HideBeforeFile)'!$C$62:$C$71,0),MATCH($O31,'For Bill Impact(HideBeforeFile)'!$D$61:$S$61,0)) -> cents / m3 | F31: =INDEX('For Bill Impact(HideBeforeFile)'!$D$6:$S$15,MATCH(C10,'For Bill Impact(HideBeforeFile)'!$C$62:$C$71,0),MATCH($O31,'For Bill Impact(HideBeforeFile)'!$D$61:$S$61,0)) -> 12.39 | H31: =INDEX('For Bill Impact(HideBeforeFile)'!$D$20:$S$29,MATCH(C10,'For Bill Impact(HideBeforeFile)'!$C$62:$C$71,0),MATCH($O31,'For Bill Impact(HideBeforeFile)'!$D$61:$S$61,0)) -> 12.39 | J31: =INDEX('For Bill Impact(HideBeforeFile)'!$D$34:$S$43,MATCH(C10,'For Bill Impact(HideBeforeFile)'!$C$62:$C$71,0),MATCH($O31,'For Bill Impact(HideBeforeFile)'!$D$61:$S$61,0)) -> 2067.376984 | O31: ='For Bill Impact(HideBeforeFile)'!$M$5 -> Federal Carbon
C32: =INDEX('For Bill Impact(HideBeforeFile)'!$D$48:$S$57,MATCH(C10,'For Bill Impact(HideBeforeFile)'!$C$62:$C$71,0),MATCH($O32,'For Bill Impact(HideBeforeFile)'!$D$61:$S$61,0)) -> Facility Carbon | D32: =INDEX('For Bill Impact(HideBeforeFile)'!$D$62:$S$71,MATCH(C10,'For Bill Impact(HideBeforeFile)'!$C$62:$C$71,0),MATCH($O32,'For Bill Impact(HideBeforeFile)'!$D$61:$S$61,0)) -> cents / m3 | F32: =INDEX('For Bill Impact(HideBeforeFile)'!$D$6:$S$15,MATCH(C10,'For Bill Impact(HideBeforeFile)'!$C$62:$C$71,0),MATCH($O32,'For Bill Impact(HideBeforeFile)'!$D$61:$S$61,0)) -> 0.0037 | H32: =INDEX('For Bill Impact(HideBeforeFile)'!$D$20:$S$29,MATCH(C10,'For Bill Impact(HideBeforeFile)'!$C$62:$C$71,0),MATCH($O32,'For Bill Impact(HideBeforeFile)'!$D$61:$S$61,0)) -> 0.0037 | J32: =INDEX('For Bill Impact(HideBeforeFile)'!$D$34:$S$43,MATCH(C10,'For Bill Impact(HideBeforeFile)'!$C$62:$C$71,0),MATCH($O32,'For Bill Impact(HideBeforeFile)'!$D$61:$S$61,0)) -> 2067.376984 | O32: ='For Bill Impact(HideBeforeFile)'!$N$5 -> Facility Carbon
C35: Commodity | F35: Current | H35: Proposed | J35: Change $ | L35: Change %
F36: =F14*$J14/100 -> 480.8904929 | H36: =H14*$J14/100 -> 480.8904929 | J36: =H36-F36 -> 0 | L36: =IFERROR(J36/F36,"") -> 0 | O36: ='For Bill Impact(HideBeforeFile)'!$D$5 -> Commodity
C38: Delivery | F38: Current Rate | H38: Proposed Rate | J38: Change $ | L38: Change %
C39: =IF(C16<>"",C16,"") -> Customer (excl. Bill 32) | F39: =F16*$J16 -> 234 | H39: =H16*$J16 -> 246 | J39: =IFERROR(H39-F39,"") -> 12 | L39: =IFERROR(J39/F39,"") -> 0.05128205128 | O39: ='For Bill Impact(HideBeforeFile)'!$O$5 -> Dist. Customer Rate
C40: Bill 32 | F40: 12 | H40: 12 | J40: =IFERROR(H40-F40,"") -> 0 | L40: =IFERROR(J40/F40,"") -> 0
C41: =IF(C17<>"",C17,"") -> Block 1 (First 1,000 m3 per month) | F41: =IFERROR(F17*$J17/100,"") -> 284.5145495 | H41: =IFERROR(H17*$J17/100,"") -> 295.7419949 | J41: =IFERROR(H41-F41,"") -> 11.22744548 | L41: =IFERROR(J41/F41,"") -> 0.03946176217 | O41: ='For Bill Impact(HideBeforeFile)'!$P$5 -> Dist. Vol. Rate Tier 1
C42: =IF(C18<>"",C18,"") -> Block 2 (Over 1,000 m3 per month) | F42: =IFERROR(F18*$J18/100,"") -> 3.658693887 | H42: =IFERROR(H18*$J18/100,"") -> 3.803072395 | J42: 0.144378508 | L42: 0.03946176217 | O42: ='For Bill Impact(HideBeforeFile)'!$Q$5 -> Dist. Vol. Rate Tier 2
C43: =IF(C19<>"",C19,"") ->  | F43: =IFERROR(F19*$J19/100,"") ->  | H43: =IFERROR(H19*$J19/100,"") ->  | O43: ='For Bill Impact(HideBeforeFile)'!$R$5 -> Dist. Vol. Rate Tier 3
C44: =IF(C20<>"",C20,"") ->  | F44: =IFERROR(F20*$J20/100,"") ->  | H44: =IFERROR(H20*$J20/100,"") ->  | O44: ='For Bill Impact(HideBeforeFile)'!$S$5 -> Dist. Capacity Rate
C45: =IF(C21<>"",C21,"") -> System Gas Charge | F45: =IFERROR(F21*$J21/100,"") -> 0.8993089881 | H45: =IFERROR(H21*$J21/100,"") -> 0.8993089881 | J45: 0 | L45: 0 | O45: ='For Bill Impact(HideBeforeFile)'!$E$5 -> System Gas
C46: Total Delivery | F46: =SUM(F39:F45) -> 535.0725523 | H46: =SUM(H39:H45) -> 558.4443763 | J46: =H46-F46 -> 23.37182399 | L46: =IF(ISERROR(J46/F46),0,J46/F46) -> 0.04367972883
C48: Rate Riders
C50: Rate Riders | F50: Current Rate | H50: Proposed Rate | J50: Change $ | L50: Change %
C51: =C23 -> REDA | F51: =F23*$J23 -> 0.24 | H51: =H23*$J23 -> 0.24 | J51: =IFERROR(H51-F51,"") -> 0 | L51: =IFERROR(J51/F51,"") -> 0 | O51: ='For Bill Impact(HideBeforeFile)'!$F$5 -> REDA
C52: =C24 -> PGTVA | F52: =IFERROR(F24*$J24/100,"") -> 9.003426766 | H52: =IFERROR(H24*$J24/100,"") -> 16.31372303 | J52: =IFERROR(H52-F52,"") -> 7.310296261 | L52: =IFERROR(J52/F52,"") -> 0.8119459903 | O52: ='For Bill Impact(HideBeforeFile)'!$G$5 -> PGTVA
C53: =C25 -> ADVADA | F53: =IFERROR(F25*$J25/100,"") -> 0 | H53: =IFERROR(H25*$J25/100,"") -> -0.5986578603 | J53: -0.5986578603 | O53: ='For Bill Impact(HideBeforeFile)'!$H$5 -> ADVADA
C54: =C26 -> LDMDA | F54: =F26*$J26 -> 0 | H54: =H26*$J26 -> 0 | J54: 0 | O54: ='For Bill Impact(HideBeforeFile)'!$I$5 -> LDMDA
C55: =C27 -> SICDA | F55: =IFERROR(F27*$J27/100,"") -> 0 | H55: =IFERROR(H27*$J27/100,"") -> 0 | J55: 0 | O55: ='For Bill Impact(HideBeforeFile)'!$J$5 -> SICDA
C56: =C28 -> FCCVA | F56: =F28*$J28 -> 0 | H56: =H28*$J28 -> 0 | J56: =IFERROR(H56-F56,"") -> 0 | L56: =IFERROR(J56/F56,"") -> 
C57: GGEADA | F57: 0 | H57: 0 | J57: 0
C58: Total Rate Riders | F58: =SUM(F51:F57) -> 9.243426766 | H58: =SUM(H51:H57) -> 15.95506517 | J58: =SUM(J51:J57) -> 6.711638401 | L58: =IF(ISERROR(J58/F58),0,J58/F58) -> 0.7260985099
C60: Carbon Tax
C61: Federal Carbon | F61: =F31*$J31/100 -> 256.1480083 | H61: =H31*$J31/100 -> 256.1480083 | J61: =IFERROR(H61-F61,"") -> 0 | L61: =IFERROR(J61/F61,"") -> 0
C62: Facility Carbon | F62: =F32*$J32/100 -> 0.07649294841 | H62: =H32*$J32/100 -> 0.07649294841 | J62: =IFERROR(H62-F62,"") -> 0 | L62: 0
C63: Total Carbon Tax | F63: =SUM(F61:F62) -> 256.2245013 | H63: =SUM(H61:H62) -> 256.2245013 | J63: =SUM(J61:J62) -> 0 | L63: =IF(ISERROR(J63/F63),0,J63/F63) -> 0
C65: Total Bill Impact | F65: =SUM(F36,F46,F58,F63) -> 1281.430973 | H65: =SUM(H36,H46,H58,H63) -> 1311.514436 | J65: =SUM(J36,J46,J58,J63) -> 30.08346239 | L65: =IFERROR(J65/F65,"") -> 0.02347645954
C68: =MID(CELL("filename",A1),FIND("]",CELL("filename",A1))+1,255) -> G1.1 Rate 1 Bill Impact
C70: ='For Bill Impact(HideBeforeFile)'!C7 -> RATE 1 - General Service Rate - Commercial | F70: Current | H70: Proposed | J70: Bill Determinant | O70: Look-up
C74: =INDEX('For Bill Impact(HideBeforeFile)'!$D$48:$S$57,MATCH(C70,'For Bill Impact(HideBeforeFile)'!$C$62:$C$71,0),MATCH($O74,'For Bill Impact(HideBeforeFile)'!$D$61:$S$61,0)) -> Commodity | D74: =INDEX('For Bill Impact(HideBeforeFile)'!$D$62:$S$71,MATCH(C70,'For Bill Impact(HideBeforeFile)'!$C$62:$C$71,0),MATCH($O74,'For Bill Impact(HideBeforeFile)'!$D$61:$S$61,0)) -> cents / m3 | F74: =INDEX('For Bill Impact(HideBeforeFile)'!$D$6:$S$15,MATCH(C70,'For Bill Impact(HideBeforeFile)'!$C$62:$C$71,0),MATCH($O74,'For Bill Impact(HideBeforeFile)'!$D$61:$S$61,0)) -> 23.2609 | H74: =INDEX('For Bill Impact(HideBeforeFile)'!$D$20:$S$29,MATCH(C70,'For Bill Impact(HideBeforeFile)'!$C$62:$C$71,0),MATCH($O74,'For Bill Impact(HideBeforeFile)'!$D$61:$S$61,0)) -> 23.2609 | J74: =INDEX('For Bill Impact(HideBeforeFile)'!$D$34:$S$43,MATCH(C70,'For Bill Impact(HideBeforeFile)'!$C$62:$C$71,0),MATCH($O74,'For Bill Impact(HideBeforeFile)'!$D$61:$S$61,0)) -> 10816.14215 | O74: ='For Bill Impact(HideBeforeFile)'!$D$5 -> Commodity
C76: =INDEX('For Bill Impact(HideBeforeFile)'!$D$48:$S$57,MATCH(C70,'For Bill Impact(HideBeforeFile)'!$C$62:$C$71,0),MATCH($O76,'For Bill Impact(HideBeforeFile)'!$D$61:$S$61,0)) -> Customer (excl. Bill 32) | D76: =INDEX('For Bill Impact(HideBeforeFile)'!$D$62:$S$71,MATCH(C70,'For Bill Impact(HideBeforeFile)'!$C$62:$C$71,0),MATCH($O76,'For Bill Impact(HideBeforeFile)'!$D$61:$S$61,0)) -> $ / month | F76: =INDEX('For Bill Impact(HideBeforeFile)'!$D$6:$S$15,MATCH(C70,'For Bill Impact(HideBeforeFile)'!$C$62:$C$71,0),MATCH($O76,'For Bill Impact(HideBeforeFile)'!$D$61:$S$61,0)) -> 19.5 | H76: =INDEX('For Bill Impact(HideBeforeFile)'!$D$20:$S$29,MATCH(C70,'For Bill Impact(HideBeforeFile)'!$C$62:$C$71,0),MATCH($O76,'For Bill Impact(HideBeforeFile)'!$D$61:$S$61,0)) -> 20.5 | J76: =INDEX('For Bill Impact(HideBeforeFile)'!$D$34:$S$43,MATCH(C70,'For Bill Impact(HideBeforeFile)'!$C$62:$C$71,0),MATCH($O76,'For Bill Impact(HideBeforeFile)'!$D$61:$S$61,0)) -> 12 | O76: ='For Bill Impact(HideBeforeFile)'!$O$5 -> Dist. Customer Rate
C77: =INDEX('For Bill Impact(HideBeforeFile)'!$D$48:$S$57,MATCH(C70,'For Bill Impact(HideBeforeFile)'!$C$62:$C$71,0),MATCH($O77,'For Bill Impact(HideBeforeFile)'!$D$61:$S$61,0)) -> Block 1 (First 1,000 m3 per month) | D77: =INDEX('For Bill Impact(HideBeforeFile)'!$D$62:$S$71,MATCH(C70,'For Bill Impact(HideBeforeFile)'!$C$62:$C$71,0),MATCH($O77,'For Bill Impact(HideBeforeFile)'!$D$61:$S$61,0)) -> cents / m3 | F77: =INDEX('For Bill Impact(HideBeforeFile)'!$D$6:$S$15,MATCH(C70,'For Bill Impact(HideBeforeFile)'!$C$62:$C$71,0),MATCH($O77,'For Bill Impact(HideBeforeFile)'!$D$61:$S$61,0)) -> 13.9823 | H77: =INDEX('For Bill Impact(HideBeforeFile)'!$D$20:$S$29,MATCH(C70,'For Bill Impact(HideBeforeFile)'!$C$62:$C$71,0),MATCH($O77,'For Bill Impact(HideBeforeFile)'!$D$61:$S$61,0)) -> 14.5340662 | J77: =INDEX('For Bill Impact(HideBeforeFile)'!$D$34:$S$43,MATCH(C70,'For Bill Impact(HideBeforeFile)'!$C$62:$C$71,0),MATCH($O77,'For Bill Impact(HideBeforeFile)'!$D$61:$S$61,0)) -> 4746.512169 | O77: ='For Bill Impact(HideBeforeFile)'!$P$5 -> Dist. Vol. Rate Tier 1
C78: =INDEX('For Bill Impact(HideBeforeFile)'!$D$48:$S$57,MATCH(C70,'For Bill Impact(HideBeforeFile)'!$C$62:$C$71,0),MATCH($O78,'For Bill Impact(HideBeforeFile)'!$D$61:$S$61,0)) -> Block 2 (Over 1,000 m3 per month) | D78: =INDEX('For Bill Impact(HideBeforeFile)'!$D$62:$S$71,MATCH(C70,'For Bill Impact(HideBeforeFile)'!$C$62:$C$71,0),MATCH($O78,'For Bill Impact(HideBeforeFile)'!$D$61:$S$61,0)) -> cents / m3 | F78: =INDEX('For Bill Impact(HideBeforeFile)'!$D$6:$S$15,MATCH(C70,'For Bill Impact(HideBeforeFile)'!$C$62:$C$71,0),MATCH($O78,'For Bill Impact(HideBeforeFile)'!$D$61:$S$61,0)) -> 11.2376 | H78: =INDEX('For Bill Impact(HideBeforeFile)'!$D$20:$S$29,MATCH(C70,'For Bill Impact(HideBeforeFile)'!$C$62:$C$71,0),MATCH($O78,'For Bill Impact(HideBeforeFile)'!$D$61:$S$61,0)) -> 11.6810555 | J78: =INDEX('For Bill Impact(HideBeforeFile)'!$D$34:$S$43,MATCH(C70,'For Bill Impact(HideBeforeFile)'!$C$62:$C$71,0),MATCH($O78,'For Bill Impact(HideBeforeFile)'!$D$61:$S$61,0)) -> 6069.629982 | O78: ='For Bill Impact(HideBeforeFile)'!$Q$5 -> Dist. Vol. Rate Tier 2
C79: =INDEX('For Bill Impact(HideBeforeFile)'!$D$48:$S$57,MATCH(C70,'For Bill Impact(HideBeforeFile)'!$C$62:$C$71,0),MATCH($O79,'For Bill Impact(HideBeforeFile)'!$D$61:$S$61,0)) ->  | D79: =INDEX('For Bill Impact(HideBeforeFile)'!$D$62:$S$71,MATCH(C70,'For Bill Impact(HideBeforeFile)'!$C$62:$C$71,0),MATCH($O79,'For Bill Impact(HideBeforeFile)'!$D$61:$S$61,0)) ->  | F79: =INDEX('For Bill Impact(HideBeforeFile)'!$D$6:$S$15,MATCH(C70,'For Bill Impact(HideBeforeFile)'!$C$62:$C$71,0),MATCH($O79,'For Bill Impact(HideBeforeFile)'!$D$61:$S$61,0)) ->  | H79: =INDEX('For Bill Impact(HideBeforeFile)'!$D$20:$S$29,MATCH(C70,'For Bill Impact(HideBeforeFile)'!$C$62:$C$71,0),MATCH($O79,'For Bill Impact(HideBeforeFile)'!$D$61:$S$61,0)) ->  | J79: =INDEX('For Bill Impact(HideBeforeFile)'!$D$34:$S$43,MATCH(C70,'For Bill Impact(HideBeforeFile)'!$C$62:$C$71,0),MATCH($O79,'For Bill Impact(HideBeforeFile)'!$D$61:$S$61,0)) ->  | O79: ='For Bill Impact(HideBeforeFile)'!$R$5 -> Dist. Vol. Rate Tier 3
C80: =INDEX('For Bill Impact(HideBeforeFile)'!$D$48:$S$57,MATCH(C70,'For Bill Impact(HideBeforeFile)'!$C$62:$C$71,0),MATCH($O80,'For Bill Impact(HideBeforeFile)'!$D$61:$S$61,0)) ->  | D80: =INDEX('For Bill Impact(HideBeforeFile)'!$D$62:$S$71,MATCH(C70,'For Bill Impact(HideBeforeFile)'!$C$62:$C$71,0),MATCH($O80,'For Bill Impact(HideBeforeFile)'!$D$61:$S$61,0)) ->  | F80: =INDEX('For Bill Impact(HideBeforeFile)'!$D$6:$S$15,MATCH(C70,'For Bill Impact(HideBeforeFile)'!$C$62:$C$71,0),MATCH($O80,'For Bill Impact(HideBeforeFile)'!$D$61:$S$61,0)) ->  | H80: =INDEX('For Bill Impact(HideBeforeFile)'!$D$20:$S$29,MATCH(C70,'For Bill Impact(HideBeforeFile)'!$C$62:$C$71,0),MATCH($O80,'For Bill Impact(HideBeforeFile)'!$D$61:$S$61,0)) ->  | J80: =INDEX('For Bill Impact(HideBeforeFile)'!$D$34:$S$43,MATCH(C70,'For Bill Impact(HideBeforeFile)'!$C$62:$C$71,0),MATCH($O80,'For Bill Impact(HideBeforeFile)'!$D$61:$S$61,0)) ->  | O80: ='For Bill Impact(HideBeforeFile)'!$S$5 -> Dist. Capacity Rate
C81: =INDEX('For Bill Impact(HideBeforeFile)'!$D$48:$S$57,MATCH(C70,'For Bill Impact(HideBeforeFile)'!$C$62:$C$71,0),MATCH($O81,'For Bill Impact(HideBeforeFile)'!$D$61:$S$61,0)) -> System Gas Charge | D81: =INDEX('For Bill Impact(HideBeforeFile)'!$D$62:$S$71,MATCH(C70,'For Bill Impact(HideBeforeFile)'!$C$62:$C$71,0),MATCH($O81,'For Bill Impact(HideBeforeFile)'!$D$61:$S$61,0)) -> cents / m3 | F81: =INDEX('For Bill Impact(HideBeforeFile)'!$D$6:$S$15,MATCH(C70,'For Bill Impact(HideBeforeFile)'!$C$62:$C$71,0),MATCH($O81,'For Bill Impact(HideBeforeFile)'!$D$61:$S$61,0)) -> 0.0435 | H81: =INDEX('For Bill Impact(HideBeforeFile)'!$D$20:$S$29,MATCH(C70,'For Bill Impact(HideBeforeFile)'!$C$62:$C$71,0),MATCH($O81,'For Bill Impact(HideBeforeFile)'!$D$61:$S$61,0)) -> 0.0435 | J81: =INDEX('For Bill Impact(HideBeforeFile)'!$D$34:$S$43,MATCH(C70,'For Bill Impact(HideBeforeFile)'!$C$62:$C$71,0),MATCH($O81,'For Bill Impact(HideBeforeFile)'!$D$61:$S$61,0)) -> 10816.14215 | O81: ='For Bill Impact(HideBeforeFile)'!$E$5 -> System Gas
C83: =INDEX('For Bill Impact(HideBeforeFile)'!$D$48:$S$57,MATCH(C70,'For Bill Impact(HideBeforeFile)'!$C$62:$C$71,0),MATCH($O83,'For Bill Impact(HideBeforeFile)'!$D$61:$S$61,0)) -> REDA | D83: =INDEX('For Bill Impact(HideBeforeFile)'!$D$62:$S$71,MATCH(C70,'For Bill Impact(HideBeforeFile)'!$C$62:$C$71,0),MATCH($O83,'For Bill Impact(HideBeforeFile)'!$D$61:$S$61,0)) -> $ / month | F83: =INDEX('For Bill Impact(HideBeforeFile)'!$D$6:$S$15,MATCH(C70,'For Bill Impact(HideBeforeFile)'!$C$62:$C$71,0),MATCH($O83,'For Bill Impact(HideBeforeFile)'!$D$61:$S$61,0)) -> 0.02 | H83: =INDEX('For Bill Impact(HideBeforeFile)'!$D$20:$S$29,MATCH(C70,'For Bill Impact(HideBeforeFile)'!$C$62:$C$71,0),MATCH($O83,'For Bill Impact(HideBeforeFile)'!$D$61:$S$61,0)) -> 0.02 | J83: =INDEX('For Bill Impact(HideBeforeFile)'!$D$34:$S$43,MATCH(C70,'For Bill Impact(HideBeforeFile)'!$C$62:$C$71,0),MATCH($O83,'For Bill Impact(HideBeforeFile)'!$D$61:$S$61,0)) -> 12 | O83: =O23 -> REDA
C84: =INDEX('For Bill Impact(HideBeforeFile)'!$D$48:$S$57,MATCH(C70,'For Bill Impact(HideBeforeFile)'!$C$62:$C$71,0),MATCH($O84,'For Bill Impact(HideBeforeFile)'!$D$61:$S$61,0)) -> PGTVA | D84: =INDEX('For Bill Impact(HideBeforeFile)'!$D$62:$S$71,MATCH(C70,'For Bill Impact(HideBeforeFile)'!$C$62:$C$71,0),MATCH($O84,'For Bill Impact(HideBeforeFile)'!$D$61:$S$61,0)) -> cents / m3 | F84: =INDEX('For Bill Impact(HideBeforeFile)'!$D$6:$S$15,MATCH(C70,'For Bill Impact(HideBeforeFile)'!$C$62:$C$71,0),MATCH($O84,'For Bill Impact(HideBeforeFile)'!$D$61:$S$61,0)) -> 0.4355 | H84: =INDEX('For Bill Impact(HideBeforeFile)'!$D$20:$S$29,MATCH(C70,'For Bill Impact(HideBeforeFile)'!$C$62:$C$71,0),MATCH($O84,'For Bill Impact(HideBeforeFile)'!$D$61:$S$61,0)) -> 0.7891024788 | J84: =INDEX('For Bill Impact(HideBeforeFile)'!$D$34:$S$43,MATCH(C70,'For Bill Impact(HideBeforeFile)'!$C$62:$C$71,0),MATCH($O84,'For Bill Impact(HideBeforeFile)'!$D$61:$S$61,0)) -> 10816.14215 | O84: =O24 -> PGTVA
C85: =INDEX('For Bill Impact(HideBeforeFile)'!$D$48:$S$57,MATCH(C70,'For Bill Impact(HideBeforeFile)'!$C$62:$C$71,0),MATCH($O85,'For Bill Impact(HideBeforeFile)'!$D$61:$S$61,0)) -> ADVADA | D85: =INDEX('For Bill Impact(HideBeforeFile)'!$D$62:$S$71,MATCH(C70,'For Bill Impact(HideBeforeFile)'!$C$62:$C$71,0),MATCH($O85,'For Bill Impact(HideBeforeFile)'!$D$61:$S$61,0)) -> cents / m3 | F85: =INDEX('For Bill Impact(HideBeforeFile)'!$D$6:$S$15,MATCH(C70,'For Bill Impact(HideBeforeFile)'!$C$62:$C$71,0),MATCH($O85,'For Bill Impact(HideBeforeFile)'!$D$61:$S$61,0)) -> 0 | H85: =INDEX('For Bill Impact(HideBeforeFile)'!$D$20:$S$29,MATCH(C70,'For Bill Impact(HideBeforeFile)'!$C$62:$C$71,0),MATCH($O85,'For Bill Impact(HideBeforeFile)'!$D$61:$S$61,0)) -> -0.02895736312 | J85: =INDEX('For Bill Impact(HideBeforeFile)'!$D$34:$S$43,MATCH(C70,'For Bill Impact(HideBeforeFile)'!$C$62:$C$71,0),MATCH($O85,'For Bill Impact(HideBeforeFile)'!$D$61:$S$61,0)) -> 10816.14215 | O85: =O25 -> ADVADA
C86: =INDEX('For Bill Impact(HideBeforeFile)'!$D$48:$S$57,MATCH(C70,'For Bill Impact(HideBeforeFile)'!$C$62:$C$71,0),MATCH($O86,'For Bill Impact(HideBeforeFile)'!$D$61:$S$61,0)) -> LDMDA | D86: =INDEX('For Bill Impact(HideBeforeFile)'!$D$62:$S$71,MATCH(C70,'For Bill Impact(HideBeforeFile)'!$C$62:$C$71,0),MATCH($O86,'For Bill Impact(HideBeforeFile)'!$D$61:$S$61,0)) -> $ / month | F86: =INDEX('For Bill Impact(HideBeforeFile)'!$D$6:$S$15,MATCH(C70,'For Bill Impact(HideBeforeFile)'!$C$62:$C$71,0),MATCH($O86,'For Bill Impact(HideBeforeFile)'!$D$61:$S$61,0)) -> 0 | H86: =INDEX('For Bill Impact(HideBeforeFile)'!$D$20:$S$29,MATCH(C70,'For Bill Impact(HideBeforeFile)'!$C$62:$C$71,0),MATCH($O86,'For Bill Impact(HideBeforeFile)'!$D$61:$S$61,0)) -> 0 | J86: =INDEX('For Bill Impact(HideBeforeFile)'!$D$34:$S$43,MATCH(C70,'For Bill Impact(HideBeforeFile)'!$C$62:$C$71,0),MATCH($O86,'For Bill Impact(HideBeforeFile)'!$D$61:$S$61,0)) -> 12 | O86: =O26 -> LDMDA
C87: =INDEX('For Bill Impact(HideBeforeFile)'!$D$48:$S$57,MATCH(C70,'For Bill Impact(HideBeforeFile)'!$C$62:$C$71,0),MATCH($O87,'For Bill Impact(HideBeforeFile)'!$D$61:$S$61,0)) -> SICDA | D87: =INDEX('For Bill Impact(HideBeforeFile)'!$D$62:$S$71,MATCH(C70,'For Bill Impact(HideBeforeFile)'!$C$62:$C$71,0),MATCH($O87,'For Bill Impact(HideBeforeFile)'!$D$61:$S$61,0)) -> cents / m3 | F87: =INDEX('For Bill Impact(HideBeforeFile)'!$D$6:$S$15,MATCH(C70,'For Bill Impact(HideBeforeFile)'!$C$62:$C$71,0),MATCH($O87,'For Bill Impact(HideBeforeFile)'!$D$61:$S$61,0)) -> 0 | H87: =INDEX('For Bill Impact(HideBeforeFile)'!$D$20:$S$29,MATCH(C70,'For Bill Impact(HideBeforeFile)'!$C$62:$C$71,0),MATCH($O87,'For Bill Impact(HideBeforeFile)'!$D$61:$S$61,0)) -> 0 | J87: =INDEX('For Bill Impact(HideBeforeFile)'!$D$34:$S$43,MATCH(C70,'For Bill Impact(HideBeforeFile)'!$C$62:$C$71,0),MATCH($O87,'For Bill Impact(HideBeforeFile)'!$D$61:$S$61,0)) -> 10816.14215 | O87: =O27 -> SICDA
C88: =INDEX('For Bill Impact(HideBeforeFile)'!$D$48:$S$57,MATCH(C70,'For Bill Impact(HideBeforeFile)'!$C$62:$C$71,0),MATCH($O88,'For Bill Impact(HideBeforeFile)'!$D$61:$S$61,0)) -> FCCVA | D88: =INDEX('For Bill Impact(HideBeforeFile)'!$D$62:$S$71,MATCH(C70,'For Bill Impact(HideBeforeFile)'!$C$62:$C$71,0),MATCH($O88,'For Bill Impact(HideBeforeFile)'!$D$61:$S$61,0)) -> $ / month | F88: =INDEX('For Bill Impact(HideBeforeFile)'!$D$6:$S$15,MATCH(C70,'For Bill Impact(HideBeforeFile)'!$C$62:$C$71,0),MATCH($O88,'For Bill Impact(HideBeforeFile)'!$D$61:$S$61,0)) -> 0 | H88: =INDEX('For Bill Impact(HideBeforeFile)'!$D$20:$S$29,MATCH(C70,'For Bill Impact(HideBeforeFile)'!$C$62:$C$71,0),MATCH($O88,'For Bill Impact(HideBeforeFile)'!$D$61:$S$61,0)) -> 0 | J88: =INDEX('For Bill Impact(HideBeforeFile)'!$D$34:$S$43,MATCH(C70,'For Bill Impact(HideBeforeFile)'!$C$62:$C$71,0),MATCH($O88,'For Bill Impact(HideBeforeFile)'!$D$61:$S$61,0)) -> 12 | O88: FCCVA
C89: =INDEX('For Bill Impact(HideBeforeFile)'!$D$48:$S$57,MATCH(C70,'For Bill Impact(HideBeforeFile)'!$C$62:$C$71,0),MATCH($O89,'For Bill Impact(HideBeforeFile)'!$D$61:$S$61,0)) -> GGEADA | D89: =INDEX('For Bill Impact(HideBeforeFile)'!$D$62:$S$71,MATCH(C70,'For Bill Impact(HideBeforeFile)'!$C$62:$C$71,0),MATCH($O89,'For Bill Impact(HideBeforeFile)'!$D$61:$S$61,0)) -> $ / month | F89: =INDEX('For Bill Impact(HideBeforeFile)'!$D$6:$S$15,MATCH(C70,'For Bill Impact(HideBeforeFile)'!$C$62:$C$71,0),MATCH($O89,'For Bill Impact(HideBeforeFile)'!$D$61:$S$61,0)) -> 0 | H89: =INDEX('For Bill Impact(HideBeforeFile)'!$D$20:$S$29,MATCH(C70,'For Bill Impact(HideBeforeFile)'!$C$62:$C$71,0),MATCH($O89,'For Bill Impact(HideBeforeFile)'!$D$61:$S$61,0)) -> 0 | J89: =INDEX('For Bill Impact(HideBeforeFile)'!$D$34:$S$43,MATCH(C70,'For Bill Impact(HideBeforeFile)'!$C$62:$C$71,0),MATCH($O89,'For Bill Impact(HideBeforeFile)'!$D$61:$S$61,0)) -> 12 | O89: GGEADA
C91: =INDEX('For Bill Impact(HideBeforeFile)'!$D$48:$S$57,MATCH(C70,'For Bill Impact(HideBeforeFile)'!$C$62:$C$71,0),MATCH($O91,'For Bill Impact(HideBeforeFile)'!$D$61:$S$61,0)) -> Federal Carbon | D91: =INDEX('For Bill Impact(HideBeforeFile)'!$D$62:$S$71,MATCH(C70,'For Bill Impact(HideBeforeFile)'!$C$62:$C$71,0),MATCH($O91,'For Bill Impact(HideBeforeFile)'!$D$61:$S$61,0)) -> cents / m3 | F91: =INDEX('For Bill Impact(HideBeforeFile)'!$D$6:$S$15,MATCH(C70,'For Bill Impact(HideBeforeFile)'!$C$62:$C$71,0),MATCH($O91,'For Bill Impact(HideBeforeFile)'!$D$61:$S$61,0)) -> 12.39 | H91: =INDEX('For Bill Impact(HideBeforeFile)'!$D$20:$S$29,MATCH(C70,'For Bill Impact(HideBeforeFile)'!$C$62:$C$71,0),MATCH($O91,'For Bill Impact(HideBeforeFile)'!$D$61:$S$61,0)) -> 12.39 | J91: =INDEX('For Bill Impact(HideBeforeFile)'!$D$34:$S$43,MATCH(C70,'For Bill Impact(HideBeforeFile)'!$C$62:$C$71,0),MATCH($O91,'For Bill Impact(HideBeforeFile)'!$D$61:$S$61,0)) -> 10816.14215 | O91: ='For Bill Impact(HideBeforeFile)'!$M$5 -> Federal Carbon
C92: =INDEX('For Bill Impact(HideBeforeFile)'!$D$48:$S$57,MATCH(C70,'For Bill Impact(HideBeforeFile)'!$C$62:$C$71,0),MATCH($O92,'For Bill Impact(HideBeforeFile)'!$D$61:$S$61,0)) -> Facility Carbon | D92: =INDEX('For Bill Impact(HideBeforeFile)'!$D$62:$S$71,MATCH(C70,'For Bill Impact(HideBeforeFile)'!$C$62:$C$71,0),MATCH($O92,'For Bill Impact(HideBeforeFile)'!$D$61:$S$61,0)) -> cents / m3 | F92: =INDEX('For Bill Impact(HideBeforeFile)'!$D$6:$S$15,MATCH(C70,'For Bill Impact(HideBeforeFile)'!$C$62:$C$71,0),MATCH($O92,'For Bill Impact(HideBeforeFile)'!$D$61:$S$61,0)) -> 0.0037 | H92: =INDEX('For Bill Impact(HideBeforeFile)'!$D$20:$S$29,MATCH(C70,'For Bill Impact(HideBeforeFile)'!$C$62:$C$71,0),MATCH($O92,'For Bill Impact(HideBeforeFile)'!$D$61:$S$61,0)) -> 0.0037 | J92: =INDEX('For Bill Impact(HideBeforeFile)'!$D$34:$S$43,MATCH(C70,'For Bill Impact(HideBeforeFile)'!$C$62:$C$71,0),MATCH($O92,'For Bill Impact(HideBeforeFile)'!$D$61:$S$61,0)) -> 10816.14215 | O92: ='For Bill Impact(HideBeforeFile)'!$N$5 -> Facility Carbon
C95: Commodity | F95: Current | H95: Proposed | J95: Change $ | L95: Change %
F96: =F74*$J74/100 -> 2515.93201 | H96: =H74*$J74/100 -> 2515.93201 | J96: =H96-F96 -> 0 | L96: =IFERROR(J96/F96,"") -> 0
C98: Delivery | F98: Current Rate | H98: Proposed Rate | J98: Change $ | L98: Change %
C99: =IF(C76<>"",C76,"") -> Customer (excl. Bill 32) | F99: =F76*$J76 -> 234 | H99: =H76*$J76 -> 246 | J99: =IFERROR(H99-F99,"") -> 12 | L99: =IFERROR(J99/F99,"") -> 0.05128205128
C100: Bill 32 | F100: 12 | H100: 12 | J100: =IFERROR(H100-F100,"") -> 0 | L100: =IFERROR(J100/F100,"") -> 0
C101: =IF(C77<>"",C77,"") -> Block 1 (First 1,000 m3 per month) | F101: =IFERROR(F77*$J77/100,"") -> 663.671571 | H101: =IFERROR(H77*$J77/100,"") -> 689.8612207 | J101: =IFERROR(H101-F101,"") -> 26.18964969 | L101: =IFERROR(J101/F101,"") -> 0.03946176217
C102: =IF(C78<>"",C78,"") -> Block 2 (Over 1,000 m3 per month) | F102: =IFERROR(F78*$J78/100,"") -> 682.0807389 | H102: =IFERROR(H78*$J78/100,"") -> 708.9968468 | J102: 26.9161079 | L102: 0.03946176217
C103: =IF(C79<>"",C79,"") ->  | F103: =IFERROR(F79*$J79/100,"") ->  | H103: =IFERROR(H79*$J79/100,"") -> 
C104: =IF(C80<>"",C80,"") ->  | F104: =IFERROR(F80*$J80/100,"") ->  | H104: =IFERROR(H80*$J80/100,"") -> 
C105: =IF(C81<>"",C81,"") -> System Gas Charge | F105: =IFERROR(F81*$J81/100,"") -> 4.705021836 | H105: =IFERROR(H81*$J81/100,"") -> 4.705021836 | J105: 0 | L105: 0
C106: Total Delivery | F106: =SUM(F99:F105) -> 1596.457332 | H106: =SUM(H99:H105) -> 1661.563089 | J106: =H106-F106 -> 65.10575759 | L106: =IF(ISERROR(J106/F106),0,J106/F106) -> 0.04078139534
C108: Rate Riders
C110: Rate Riders | F110: Current Rate | H110: Proposed Rate | J110: Change $ | L110: Change %
C111: =C83 -> REDA | F111: =F83*$J83 -> 0.24 | H111: =H83*$J83 -> 0.24 | J111: =IFERROR(H111-F111,"") -> 0 | L111: =IFERROR(J111/F111,"") -> 0
C112: =C84 -> PGTVA | F112: =IFERROR(F84*$J84/100,"") -> 47.10429907 | H112: =IFERROR(H84*$J84/100,"") -> 85.35044582 | J112: =IFERROR(H112-F112,"") -> 38.24614675 | L112: =IFERROR(J112/F112,"") -> 0.8119459903
C113: =C85 -> ADVADA | F113: =IFERROR(F85*$J85/100,"") -> 0 | H113: =IFERROR(H85*$J85/100,"") -> -3.132069558 | J113: -3.132069558
C114: =C86 -> LDMDA | F114: =F86*$J86 -> 0 | H114: =H86*$J86 -> 0 | J114: 0
C115: =C87 -> SICDA | F115: =IFERROR(F87*$J87/100,"") -> 0 | H115: =IFERROR(H87*$J87/100,"") -> 0 | J115: 0
C116: =C88 -> FCCVA | F116: =F88*$J88 -> 0 | H116: =H88*$J88 -> 0 | J116: 0
C117: GGEADA | F117: 0 | H117: 0 | J117: 0
C118: Total Rate Riders | F118: =SUM(F111:F117) -> 47.34429907 | H118: =SUM(H111:H117) -> 82.45837627 | J118: =SUM(J111:J115) -> 35.1140772 | L118: =IF(ISERROR(J118/F118),0,J118/F118) -> 0.7416748771
C120: Carbon Tax
C121: Federal Carbon | F121: =F91*$J91/100 -> 1340.120013 | H121: =H91*$J91/100 -> 1340.120013 | J121: =IFERROR(H121-F121,"") -> 0 | L121: =IFERROR(J121/F121,"") -> 0
C122: Facility Carbon | F122: =F92*$J92/100 -> 0.4001972596 | H122: =H92*$J92/100 -> 0.4001972596 | J122: =IFERROR(H122-F122,"") -> 0 | L122: 0
C123: Total Carbon Tax | F123: =SUM(F121:F122) -> 1340.52021 | H123: =SUM(H121:H122) -> 1340.52021 | J123: =SUM(J121:J122) -> 0 | L123: =IF(ISERROR(J123/F123),0,J123/F123) -> 0
C125: Total Bill Impact | F125: =SUM(F96,F106,F118,F123) -> 5500.25385 | H125: =SUM(H96,H106,H118,H123) -> 5600.473685 | J125: =SUM(J96,J106,J118,J123) -> 100.2198348 | L125: =IFERROR(J125/F125,"") -> 0.01822094716
C128: =MID(CELL("filename",A61),FIND("]",CELL("filename",A61))+1,255) -> G1.1 Rate 1 Bill Impact
C130: ='For Bill Impact(HideBeforeFile)'!C8 -> RATE 1 - General Service Rate - Industrial | F130: Current | H130: Proposed | J130: Bill Determinant | O130: Look-up
C134: =INDEX('For Bill Impact(HideBeforeFile)'!$D$48:$S$57,MATCH(C130,'For Bill Impact(HideBeforeFile)'!$C$62:$C$71,0),MATCH($O134,'For Bill Impact(HideBeforeFile)'!$D$61:$S$61,0)) -> Commodity | D134: =INDEX('For Bill Impact(HideBeforeFile)'!$D$62:$S$71,MATCH(C130,'For Bill Impact(HideBeforeFile)'!$C$62:$C$71,0),MATCH($O134,'For Bill Impact(HideBeforeFile)'!$D$61:$S$61,0)) -> cents / m3 | F134: =INDEX('For Bill Impact(HideBeforeFile)'!$D$6:$S$15,MATCH(C130,'For Bill Impact(HideBeforeFile)'!$C$62:$C$71,0),MATCH($O134,'For Bill Impact(HideBeforeFile)'!$D$61:$S$61,0)) -> 23.2609 | H134: =INDEX('For Bill Impact(HideBeforeFile)'!$D$20:$S$29,MATCH(C130,'For Bill Impact(HideBeforeFile)'!$C$62:$C$71,0),MATCH($O134,'For Bill Impact(HideBeforeFile)'!$D$61:$S$61,0)) -> 23.2609 | J134: =INDEX('For Bill Impact(HideBeforeFile)'!$D$34:$S$43,MATCH(C130,'For Bill Impact(HideBeforeFile)'!$C$62:$C$71,0),MATCH($O134,'For Bill Impact(HideBeforeFile)'!$D$61:$S$61,0)) -> 30334.02727 | O134: ='For Bill Impact(HideBeforeFile)'!$D$5 -> Commodity
C136: =INDEX('For Bill Impact(HideBeforeFile)'!$D$48:$S$57,MATCH(C130,'For Bill Impact(HideBeforeFile)'!$C$62:$C$71,0),MATCH($O136,'For Bill Impact(HideBeforeFile)'!$D$61:$S$61,0)) -> Customer (excl. Bill 32) | D136: =INDEX('For Bill Impact(HideBeforeFile)'!$D$62:$S$71,MATCH(C130,'For Bill Impact(HideBeforeFile)'!$C$62:$C$71,0),MATCH($O136,'For Bill Impact(HideBeforeFile)'!$D$61:$S$61,0)) -> $ / month | F136: =INDEX('For Bill Impact(HideBeforeFile)'!$D$6:$S$15,MATCH(C130,'For Bill Impact(HideBeforeFile)'!$C$62:$C$71,0),MATCH($O136,'For Bill Impact(HideBeforeFile)'!$D$61:$S$61,0)) -> 19.5 | H136: =INDEX('For Bill Impact(HideBeforeFile)'!$D$20:$S$29,MATCH(C130,'For Bill Impact(HideBeforeFile)'!$C$62:$C$71,0),MATCH($O136,'For Bill Impact(HideBeforeFile)'!$D$61:$S$61,0)) -> 20.5 | J136: =INDEX('For Bill Impact(HideBeforeFile)'!$D$34:$S$43,MATCH(C130,'For Bill Impact(HideBeforeFile)'!$C$62:$C$71,0),MATCH($O136,'For Bill Impact(HideBeforeFile)'!$D$61:$S$61,0)) -> 12 | O136: ='For Bill Impact(HideBeforeFile)'!$O$5 -> Dist. Customer Rate
C137: =INDEX('For Bill Impact(HideBeforeFile)'!$D$48:$S$57,MATCH(C130,'For Bill Impact(HideBeforeFile)'!$C$62:$C$71,0),MATCH($O137,'For Bill Impact(HideBeforeFile)'!$D$61:$S$61,0)) -> Block 1 (First 1,000 m3 per month) | D137: =INDEX('For Bill Impact(HideBeforeFile)'!$D$62:$S$71,MATCH(C130,'For Bill Impact(HideBeforeFile)'!$C$62:$C$71,0),MATCH($O137,'For Bill Impact(HideBeforeFile)'!$D$61:$S$61,0)) -> cents / m3 | F137: =INDEX('For Bill Impact(HideBeforeFile)'!$D$6:$S$15,MATCH(C130,'For Bill Impact(HideBeforeFile)'!$C$62:$C$71,0),MATCH($O137,'For Bill Impact(HideBeforeFile)'!$D$61:$S$61,0)) -> 13.9823 | H137: =INDEX('For Bill Impact(HideBeforeFile)'!$D$20:$S$29,MATCH(C130,'For Bill Impact(HideBeforeFile)'!$C$62:$C$71,0),MATCH($O137,'For Bill Impact(HideBeforeFile)'!$D$61:$S$61,0)) -> 14.5340662 | J137: =INDEX('For Bill Impact(HideBeforeFile)'!$D$34:$S$43,MATCH(C130,'For Bill Impact(HideBeforeFile)'!$C$62:$C$71,0),MATCH($O137,'For Bill Impact(HideBeforeFile)'!$D$61:$S$61,0)) -> 6408.320779 | O137: ='For Bill Impact(HideBeforeFile)'!$P$5 -> Dist. Vol. Rate Tier 1
C138: =INDEX('For Bill Impact(HideBeforeFile)'!$D$48:$S$57,MATCH(C130,'For Bill Impact(HideBeforeFile)'!$C$62:$C$71,0),MATCH($O138,'For Bill Impact(HideBeforeFile)'!$D$61:$S$61,0)) -> Block 2 (Over 1,000 m3 per month) | D138: =INDEX('For Bill Impact(HideBeforeFile)'!$D$62:$S$71,MATCH(C130,'For Bill Impact(HideBeforeFile)'!$C$62:$C$71,0),MATCH($O138,'For Bill Impact(HideBeforeFile)'!$D$61:$S$61,0)) -> cents / m3 | F138: =INDEX('For Bill Impact(HideBeforeFile)'!$D$6:$S$15,MATCH(C130,'For Bill Impact(HideBeforeFile)'!$C$62:$C$71,0),MATCH($O138,'For Bill Impact(HideBeforeFile)'!$D$61:$S$61,0)) -> 11.2376 | H138: =INDEX('For Bill Impact(HideBeforeFile)'!$D$20:$S$29,MATCH(C130,'For Bill Impact(HideBeforeFile)'!$C$62:$C$71,0),MATCH($O138,'For Bill Impact(HideBeforeFile)'!$D$61:$S$61,0)) -> 11.6810555 | J138: =INDEX('For Bill Impact(HideBeforeFile)'!$D$34:$S$43,MATCH(C130,'For Bill Impact(HideBeforeFile)'!$C$62:$C$71,0),MATCH($O138,'For Bill Impact(HideBeforeFile)'!$D$61:$S$61,0)) -> 23925.70649 | O138: ='For Bill Impact(HideBeforeFile)'!$Q$5 -> Dist. Vol. Rate Tier 2
C139: =INDEX('For Bill Impact(HideBeforeFile)'!$D$48:$S$57,MATCH(C130,'For Bill Impact(HideBeforeFile)'!$C$62:$C$71,0),MATCH($O139,'For Bill Impact(HideBeforeFile)'!$D$61:$S$61,0)) ->  | D139: =INDEX('For Bill Impact(HideBeforeFile)'!$D$62:$S$71,MATCH(C130,'For Bill Impact(HideBeforeFile)'!$C$62:$C$71,0),MATCH($O139,'For Bill Impact(HideBeforeFile)'!$D$61:$S$61,0)) ->  | F139: =INDEX('For Bill Impact(HideBeforeFile)'!$D$6:$S$15,MATCH(C130,'For Bill Impact(HideBeforeFile)'!$C$62:$C$71,0),MATCH($O139,'For Bill Impact(HideBeforeFile)'!$D$61:$S$61,0)) ->  | H139: =INDEX('For Bill Impact(HideBeforeFile)'!$D$20:$S$29,MATCH(C130,'For Bill Impact(HideBeforeFile)'!$C$62:$C$71,0),MATCH($O139,'For Bill Impact(HideBeforeFile)'!$D$61:$S$61,0)) ->  | J139: =INDEX('For Bill Impact(HideBeforeFile)'!$D$34:$S$43,MATCH(C130,'For Bill Impact(HideBeforeFile)'!$C$62:$C$71,0),MATCH($O139,'For Bill Impact(HideBeforeFile)'!$D$61:$S$61,0)) ->  | O139: ='For Bill Impact(HideBeforeFile)'!$R$5 -> Dist. Vol. Rate Tier 3
C140: =INDEX('For Bill Impact(HideBeforeFile)'!$D$48:$S$57,MATCH(C130,'For Bill Impact(HideBeforeFile)'!$C$62:$C$71,0),MATCH($O140,'For Bill Impact(HideBeforeFile)'!$D$61:$S$61,0)) ->  | D140: =INDEX('For Bill Impact(HideBeforeFile)'!$D$62:$S$71,MATCH(C130,'For Bill Impact(HideBeforeFile)'!$C$62:$C$71,0),MATCH($O140,'For Bill Impact(HideBeforeFile)'!$D$61:$S$61,0)) ->  | F140: =INDEX('For Bill Impact(HideBeforeFile)'!$D$6:$S$15,MATCH(C130,'For Bill Impact(HideBeforeFile)'!$C$62:$C$71,0),MATCH($O140,'For Bill Impact(HideBeforeFile)'!$D$61:$S$61,0)) ->  | H140: =INDEX('For Bill Impact(HideBeforeFile)'!$D$20:$S$29,MATCH(C130,'For Bill Impact(HideBeforeFile)'!$C$62:$C$71,0),MATCH($O140,'For Bill Impact(HideBeforeFile)'!$D$61:$S$61,0)) ->  | J140: =INDEX('For Bill Impact(HideBeforeFile)'!$D$34:$S$43,MATCH(C130,'For Bill Impact(HideBeforeFile)'!$C$62:$C$71,0),MATCH($O140,'For Bill Impact(HideBeforeFile)'!$D$61:$S$61,0)) ->  | O140: ='For Bill Impact(HideBeforeFile)'!$S$5 -> Dist. Capacity Rate
C141: =INDEX('For Bill Impact(HideBeforeFile)'!$D$48:$S$57,MATCH(C130,'For Bill Impact(HideBeforeFile)'!$C$62:$C$71,0),MATCH($O141,'For Bill Impact(HideBeforeFile)'!$D$61:$S$61,0)) -> System Gas Charge | D141: =INDEX('For Bill Impact(HideBeforeFile)'!$D$62:$S$71,MATCH(C130,'For Bill Impact(HideBeforeFile)'!$C$62:$C$71,0),MATCH($O141,'For Bill Impact(HideBeforeFile)'!$D$61:$S$61,0)) -> cents / m3 | F141: =INDEX('For Bill Impact(HideBeforeFile)'!$D$6:$S$15,MATCH(C130,'For Bill Impact(HideBeforeFile)'!$C$62:$C$71,0),MATCH($O141,'For Bill Impact(HideBeforeFile)'!$D$61:$S$61,0)) -> 0.0435 | H141: =INDEX('For Bill Impact(HideBeforeFile)'!$D$20:$S$29,MATCH(C130,'For Bill Impact(HideBeforeFile)'!$C$62:$C$71,0),MATCH($O141,'For Bill Impact(HideBeforeFile)'!$D$61:$S$61,0)) -> 0.0435 | J141: =INDEX('For Bill Impact(HideBeforeFile)'!$D$34:$S$43,MATCH(C130,'For Bill Impact(HideBeforeFile)'!$C$62:$C$71,0),MATCH($O141,'For Bill Impact(HideBeforeFile)'!$D$61:$S$61,0)) -> 30334.02727 | O141: ='For Bill Impact(HideBeforeFile)'!$E$5 -> System Gas
C143: =INDEX('For Bill Impact(HideBeforeFile)'!$D$48:$S$57,MATCH(C130,'For Bill Impact(HideBeforeFile)'!$C$62:$C$71,0),MATCH($O143,'For Bill Impact(HideBeforeFile)'!$D$61:$S$61,0)) -> REDA | D143: =INDEX('For Bill Impact(HideBeforeFile)'!$D$62:$S$71,MATCH(C130,'For Bill Impact(HideBeforeFile)'!$C$62:$C$71,0),MATCH($O143,'For Bill Impact(HideBeforeFile)'!$D$61:$S$61,0)) -> $ / month | F143: =INDEX('For Bill Impact(HideBeforeFile)'!$D$6:$S$15,MATCH(C130,'For Bill Impact(HideBeforeFile)'!$C$62:$C$71,0),MATCH($O143,'For Bill Impact(HideBeforeFile)'!$D$61:$S$61,0)) -> 0.02 | H143: =INDEX('For Bill Impact(HideBeforeFile)'!$D$20:$S$29,MATCH(C130,'For Bill Impact(HideBeforeFile)'!$C$62:$C$71,0),MATCH($O143,'For Bill Impact(HideBeforeFile)'!$D$61:$S$61,0)) -> 0.02 | J143: =INDEX('For Bill Impact(HideBeforeFile)'!$D$34:$S$43,MATCH(C130,'For Bill Impact(HideBeforeFile)'!$C$62:$C$71,0),MATCH($O143,'For Bill Impact(HideBeforeFile)'!$D$61:$S$61,0)) -> 12 | O143: =O83 -> REDA
C144: =INDEX('For Bill Impact(HideBeforeFile)'!$D$48:$S$57,MATCH(C130,'For Bill Impact(HideBeforeFile)'!$C$62:$C$71,0),MATCH($O144,'For Bill Impact(HideBeforeFile)'!$D$61:$S$61,0)) -> PGTVA | D144: =INDEX('For Bill Impact(HideBeforeFile)'!$D$62:$S$71,MATCH(C130,'For Bill Impact(HideBeforeFile)'!$C$62:$C$71,0),MATCH($O144,'For Bill Impact(HideBeforeFile)'!$D$61:$S$61,0)) -> cents / m3 | F144: =INDEX('For Bill Impact(HideBeforeFile)'!$D$6:$S$15,MATCH(C130,'For Bill Impact(HideBeforeFile)'!$C$62:$C$71,0),MATCH($O144,'For Bill Impact(HideBeforeFile)'!$D$61:$S$61,0)) -> 0.4355 | H144: =INDEX('For Bill Impact(HideBeforeFile)'!$D$20:$S$29,MATCH(C130,'For Bill Impact(HideBeforeFile)'!$C$62:$C$71,0),MATCH($O144,'For Bill Impact(HideBeforeFile)'!$D$61:$S$61,0)) -> 0.7891024788 | J144: =INDEX('For Bill Impact(HideBeforeFile)'!$D$34:$S$43,MATCH(C130,'For Bill Impact(HideBeforeFile)'!$C$62:$C$71,0),MATCH($O144,'For Bill Impact(HideBeforeFile)'!$D$61:$S$61,0)) -> 30334.02727 | O144: =O84 -> PGTVA
C145: =INDEX('For Bill Impact(HideBeforeFile)'!$D$48:$S$57,MATCH(C130,'For Bill Impact(HideBeforeFile)'!$C$62:$C$71,0),MATCH($O145,'For Bill Impact(HideBeforeFile)'!$D$61:$S$61,0)) -> ADVADA | D145: =INDEX('For Bill Impact(HideBeforeFile)'!$D$62:$S$71,MATCH(C130,'For Bill Impact(HideBeforeFile)'!$C$62:$C$71,0),MATCH($O145,'For Bill Impact(HideBeforeFile)'!$D$61:$S$61,0)) -> cents / m3 | F145: =INDEX('For Bill Impact(HideBeforeFile)'!$D$6:$S$15,MATCH(C130,'For Bill Impact(HideBeforeFile)'!$C$62:$C$71,0),MATCH($O145,'For Bill Impact(HideBeforeFile)'!$D$61:$S$61,0)) -> 0 | H145: =INDEX('For Bill Impact(HideBeforeFile)'!$D$20:$S$29,MATCH(C130,'For Bill Impact(HideBeforeFile)'!$C$62:$C$71,0),MATCH($O145,'For Bill Impact(HideBeforeFile)'!$D$61:$S$61,0)) -> -0.02895736312 | J145: =INDEX('For Bill Impact(HideBeforeFile)'!$D$34:$S$43,MATCH(C130,'For Bill Impact(HideBeforeFile)'!$C$62:$C$71,0),MATCH($O145,'For Bill Impact(HideBeforeFile)'!$D$61:$S$61,0)) -> 30334.02727 | O145: =O85 -> ADVADA
C146: =INDEX('For Bill Impact(HideBeforeFile)'!$D$48:$S$57,MATCH(C130,'For Bill Impact(HideBeforeFile)'!$C$62:$C$71,0),MATCH($O146,'For Bill Impact(HideBeforeFile)'!$D$61:$S$61,0)) -> LDMDA | D146: =INDEX('For Bill Impact(HideBeforeFile)'!$D$62:$S$71,MATCH(C130,'For Bill Impact(HideBeforeFile)'!$C$62:$C$71,0),MATCH($O146,'For Bill Impact(HideBeforeFile)'!$D$61:$S$61,0)) -> $ / month | F146: =INDEX('For Bill Impact(HideBeforeFile)'!$D$6:$S$15,MATCH(C130,'For Bill Impact(HideBeforeFile)'!$C$62:$C$71,0),MATCH($O146,'For Bill Impact(HideBeforeFile)'!$D$61:$S$61,0)) -> 0 | H146: =INDEX('For Bill Impact(HideBeforeFile)'!$D$20:$S$29,MATCH(C130,'For Bill Impact(HideBeforeFile)'!$C$62:$C$71,0),MATCH($O146,'For Bill Impact(HideBeforeFile)'!$D$61:$S$61,0)) -> 0 | J146: =INDEX('For Bill Impact(HideBeforeFile)'!$D$34:$S$43,MATCH(C130,'For Bill Impact(HideBeforeFile)'!$C$62:$C$71,0),MATCH($O146,'For Bill Impact(HideBeforeFile)'!$D$61:$S$61,0)) -> 12 | O146: =O86 -> LDMDA
C147: =INDEX('For Bill Impact(HideBeforeFile)'!$D$48:$S$57,MATCH(C130,'For Bill Impact(HideBeforeFile)'!$C$62:$C$71,0),MATCH($O147,'For Bill Impact(HideBeforeFile)'!$D$61:$S$61,0)) -> SICDA | D147: =INDEX('For Bill Impact(HideBeforeFile)'!$D$62:$S$71,MATCH(C130,'For Bill Impact(HideBeforeFile)'!$C$62:$C$71,0),MATCH($O147,'For Bill Impact(HideBeforeFile)'!$D$61:$S$61,0)) -> cents / m3 | F147: =INDEX('For Bill Impact(HideBeforeFile)'!$D$6:$S$15,MATCH(C130,'For Bill Impact(HideBeforeFile)'!$C$62:$C$71,0),MATCH($O147,'For Bill Impact(HideBeforeFile)'!$D$61:$S$61,0)) -> 0 | H147: =INDEX('For Bill Impact(HideBeforeFile)'!$D$20:$S$29,MATCH(C130,'For Bill Impact(HideBeforeFile)'!$C$62:$C$71,0),MATCH($O147,'For Bill Impact(HideBeforeFile)'!$D$61:$S$61,0)) -> 0 | J147: =INDEX('For Bill Impact(HideBeforeFile)'!$D$34:$S$43,MATCH(C130,'For Bill Impact(HideBeforeFile)'!$C$62:$C$71,0),MATCH($O147,'For Bill Impact(HideBeforeFile)'!$D$61:$S$61,0)) -> 30334.02727 | O147: =O87 -> SICDA
C148: =INDEX('For Bill Impact(HideBeforeFile)'!$D$48:$S$57,MATCH(C130,'For Bill Impact(HideBeforeFile)'!$C$62:$C$71,0),MATCH($O148,'For Bill Impact(HideBeforeFile)'!$D$61:$S$61,0)) -> FCCVA | D148: =INDEX('For Bill Impact(HideBeforeFile)'!$D$62:$S$71,MATCH(C130,'For Bill Impact(HideBeforeFile)'!$C$62:$C$71,0),MATCH($O148,'For Bill Impact(HideBeforeFile)'!$D$61:$S$61,0)) -> $ / month | F148: =INDEX('For Bill Impact(HideBeforeFile)'!$D$6:$S$15,MATCH(C130,'For Bill Impact(HideBeforeFile)'!$C$62:$C$71,0),MATCH($O148,'For Bill Impact(HideBeforeFile)'!$D$61:$S$61,0)) -> 0 | H148: =INDEX('For Bill Impact(HideBeforeFile)'!$D$20:$S$29,MATCH(C130,'For Bill Impact(HideBeforeFile)'!$C$62:$C$71,0),MATCH($O148,'For Bill Impact(HideBeforeFile)'!$D$61:$S$61,0)) -> 0 | J148: =INDEX('For Bill Impact(HideBeforeFile)'!$D$34:$S$43,MATCH(C130,'For Bill Impact(HideBeforeFile)'!$C$62:$C$71,0),MATCH($O148,'For Bill Impact(HideBeforeFile)'!$D$61:$S$61,0)) -> 12 | O148: FCCVA
C149: =INDEX('For Bill Impact(HideBeforeFile)'!$D$48:$S$57,MATCH(C130,'For Bill Impact(HideBeforeFile)'!$C$62:$C$71,0),MATCH($O149,'For Bill Impact(HideBeforeFile)'!$D$61:$S$61,0)) -> GGEADA | D149: =INDEX('For Bill Impact(HideBeforeFile)'!$D$62:$S$71,MATCH(C130,'For Bill Impact(HideBeforeFile)'!$C$62:$C$71,0),MATCH($O149,'For Bill Impact(HideBeforeFile)'!$D$61:$S$61,0)) -> $ / month | F149: =INDEX('For Bill Impact(HideBeforeFile)'!$D$6:$S$15,MATCH(C130,'For Bill Impact(HideBeforeFile)'!$C$62:$C$71,0),MATCH($O149,'For Bill Impact(HideBeforeFile)'!$D$61:$S$61,0)) -> 0 | H149: =INDEX('For Bill Impact(HideBeforeFile)'!$D$20:$S$29,MATCH(C130,'For Bill Impact(HideBeforeFile)'!$C$62:$C$71,0),MATCH($O149,'For Bill Impact(HideBeforeFile)'!$D$61:$S$61,0)) -> 0 | J149: =INDEX('For Bill Impact(HideBeforeFile)'!$D$34:$S$43,MATCH(C130,'For Bill Impact(HideBeforeFile)'!$C$62:$C$71,0),MATCH($O149,'For Bill Impact(HideBeforeFile)'!$D$61:$S$61,0)) -> 12 | O149: GGEADA
C151: =INDEX('For Bill Impact(HideBeforeFile)'!$D$48:$S$57,MATCH(C130,'For Bill Impact(HideBeforeFile)'!$C$62:$C$71,0),MATCH($O151,'For Bill Impact(HideBeforeFile)'!$D$61:$S$61,0)) -> Federal Carbon | D151: =INDEX('For Bill Impact(HideBeforeFile)'!$D$62:$S$71,MATCH(C130,'For Bill Impact(HideBeforeFile)'!$C$62:$C$71,0),MATCH($O151,'For Bill Impact(HideBeforeFile)'!$D$61:$S$61,0)) -> cents / m3 | F151: =INDEX('For Bill Impact(HideBeforeFile)'!$D$6:$S$15,MATCH(C130,'For Bill Impact(HideBeforeFile)'!$C$62:$C$71,0),MATCH($O151,'For Bill Impact(HideBeforeFile)'!$D$61:$S$61,0)) -> 12.39 | H151: =INDEX('For Bill Impact(HideBeforeFile)'!$D$20:$S$29,MATCH(C130,'For Bill Impact(HideBeforeFile)'!$C$62:$C$71,0),MATCH($O151,'For Bill Impact(HideBeforeFile)'!$D$61:$S$61,0)) -> 12.39 | J151: =INDEX('For Bill Impact(HideBeforeFile)'!$D$34:$S$43,MATCH(C130,'For Bill Impact(HideBeforeFile)'!$C$62:$C$71,0),MATCH($O151,'For Bill Impact(HideBeforeFile)'!$D$61:$S$61,0)) -> 30334.02727 | O151: ='For Bill Impact(HideBeforeFile)'!$M$5 -> Federal Carbon
C152: =INDEX('For Bill Impact(HideBeforeFile)'!$D$48:$S$57,MATCH(C130,'For Bill Impact(HideBeforeFile)'!$C$62:$C$71,0),MATCH($O152,'For Bill Impact(HideBeforeFile)'!$D$61:$S$61,0)) -> Facility Carbon | D152: =INDEX('For Bill Impact(HideBeforeFile)'!$D$62:$S$71,MATCH(C130,'For Bill Impact(HideBeforeFile)'!$C$62:$C$71,0),MATCH($O152,'For Bill Impact(HideBeforeFile)'!$D$61:$S$61,0)) -> cents / m3 | F152: =INDEX('For Bill Impact(HideBeforeFile)'!$D$6:$S$15,MATCH(C130,'For Bill Impact(HideBeforeFile)'!$C$62:$C$71,0),MATCH($O152,'For Bill Impact(HideBeforeFile)'!$D$61:$S$61,0)) -> 0.0037 | H152: =INDEX('For Bill Impact(HideBeforeFile)'!$D$20:$S$29,MATCH(C130,'For Bill Impact(HideBeforeFile)'!$C$62:$C$71,0),MATCH($O152,'For Bill Impact(HideBeforeFile)'!$D$61:$S$61,0)) -> 0.0037 | J152: =INDEX('For Bill Impact(HideBeforeFile)'!$D$34:$S$43,MATCH(C130,'For Bill Impact(HideBeforeFile)'!$C$62:$C$71,0),MATCH($O152,'For Bill Impact(HideBeforeFile)'!$D$61:$S$61,0)) -> 30334.02727 | O152: ='For Bill Impact(HideBeforeFile)'!$N$5 -> Facility Carbon
C155: Commodity | F155: Current | H155: Proposed | J155: Change $ | L155: Change %
F156: =F134*$J134/100 -> 7055.96775 | H156: =H134*$J134/100 -> 7055.96775 | J156: =H156-F156 -> 0 | L156: =IFERROR(J156/F156,"") -> 0
C158: Delivery | F158: Current Rate | H158: Proposed Rate | J158: Change $ | L158: Change %
C159: =IF(C136<>"",C136,"") -> Customer (excl. Bill 32) | F159: =F136*$J136 -> 234 | H159: =H136*$J136 -> 246 | J159: =IFERROR(H159-F159,"") -> 12 | L159: =IFERROR(J159/F159,"") -> 0.05128205128
C160: Bill 32 | F160: 12 | H160: 12 | J160: =IFERROR(H160-F160,"") -> 0 | L160: =IFERROR(J160/F160,"") -> 0
C161: =IF(C137<>"",C137,"") -> Block 1 (First 1,000 m3 per month) | F161: =IFERROR(F137*$J137/100,"") -> 896.0306363 | H161: =IFERROR(H137*$J137/100,"") -> 931.3895842 | J161: =IFERROR(H161-F161,"") -> 35.35894786 | L161: =IFERROR(J161/F161,"") -> 0.03946176217
C162: =IF(C138<>"",C138,"") -> Block 2 (Over 1,000 m3 per month) | F162: =IFERROR(F138*$J138/100,"") -> 2688.675193 | H162: =IFERROR(H138*$J138/100,"") -> 2794.775054 | J162: 106.099861 | L162: 0.03946176217
C163: =IF(C139<>"",C139,"") ->  | F163: =IFERROR(F139*$J139/100,"") ->  | H163: =IFERROR(H139*$J139/100,"") -> 
C164: =IF(C140<>"",C140,"") ->  | F164: =IFERROR(F140*$J140/100,"") ->  | H164: =IFERROR(H140*$J140/100,"") -> 
C165: =IF(C141<>"",C141,"") -> System Gas Charge | F165: =IFERROR(F141*$J141/100,"") -> 13.19530186 | H165: =IFERROR(H141*$J141/100,"") -> 13.19530186 | J165: 0 | L165: 0
C166: Total Delivery | F166: =SUM(F159:F165) -> 3843.901131 | H166: =SUM(H159:H165) -> 3997.35994 | J166: =H166-F166 -> 153.4588089 | L166: =IF(ISERROR(J166/F166),0,J166/F166) -> 0.03992267325
C168: Rate Riders
C170: Rate Riders | F170: Current Rate | H170: Proposed Rate | J170: Change $ | L170: Change %
C171: =C111 -> REDA | F171: =F143*$J143 -> 0.24 | H171: =H143*$J143 -> 0.24 | J171: =IFERROR(H171-F171,"") -> 0 | L171: =IFERROR(J171/F171,"") -> 0
C172: =C112 -> PGTVA | F172: =IFERROR(F144*$J144/100,"") -> 132.1046888 | H172: =IFERROR(H144*$J144/100,"") -> 239.3665611 | J172: =IFERROR(H172-F172,"") -> 107.2618723 | L172: =IFERROR(J172/F172,"") -> 0.8119459903
C173: ADVADA | F173: =IFERROR(F145*$J145/100,"") -> 0 | H173: =IFERROR(H145*$J145/100,"") -> -8.783934425 | J173: -8.783934425
C174: LDMDA | F174: =F146*$J146 -> 0 | H174: =H146*$J146 -> 0 | J174: 0
C175: SICDA | F175: =IFERROR(F147*$J147/100,"") -> 0 | H175: =IFERROR(H147*$J147/100,"") -> 0 | J175: 0
C176: FCCVA | F176: =F148*$J148 -> 0 | H176: =H148*$J148 -> 0 | J176: 0
C177: GGEADA | F177: 0 | H177: 0 | J177: 0
C178: Total Rate Riders | F178: =SUM(F171:F177) -> 132.3446888 | H178: =SUM(H171:H177) -> 230.8226267 | J178: =SUM(J171:J177) -> 98.47793792 | L178: =IF(ISERROR(J178/F178),0,J178/F178) -> 0.7441019268
C180: Carbon Tax
C181: Federal Carbon | F181: =F151*$J151/100 -> 3758.385979 | H181: =H151*$J151/100 -> 3758.385979 | J181: =IFERROR(H181-F181,"") -> 0 | L181: =IFERROR(J181/F181,"") -> 0
C182: Facility Carbon | F182: =F152*$J152/100 -> 1.122359009 | H182: =H152*$J152/100 -> 1.122359009 | J182: =IFERROR(H182-F182,"") -> 0 | L182: 0
C183: Total Carbon Tax | F183: =SUM(F181:F182) -> 3759.508338 | H183: =SUM(H181:H182) -> 3759.508338 | J183: =SUM(J181:J182) -> 0 | L183: =IF(ISERROR(J183/F183),0,J183/F183) -> 0
C185: Total Bill Impact | F185: =SUM(F156,F166,F178,F183) -> 14791.72191 | H185: =SUM(H156,H166,H178,H183) -> 15043.65865 | J185: =SUM(J156,J166,J178,J183) -> 251.9367468 | L185: =IFERROR(J185/F185,"") -> 0.01703227984
C188: =MID(CELL("filename",A121),FIND("]",CELL("filename",A121))+1,255) -> G1.1 Rate 1 Bill Impact

Sheet G1.2 Rate 2 Bill Impact
C2: ='A1.1 Distributor Information'!C3 -> Name of LDC: EPCOR Natural Gas Limited Partnership
C3: ='A1.1 Distributor Information'!C4 -> OEB Application Number: EB-2023-0160 Exhibit A - 2024 IRM Application
C7: Rate 2 Delivery Bill Impact
C10: ='For Bill Impact(HideBeforeFile)'!C9 -> RATE 2 - Seasonal Service - Apr to Oct | F10: Current | H10: Proposed | J10: Bill Determinant | O10: Look-up
C14: =INDEX('For Bill Impact(HideBeforeFile)'!$D$48:$S$57,MATCH(C10,'For Bill Impact(HideBeforeFile)'!$C$62:$C$71,0),MATCH($O14,'For Bill Impact(HideBeforeFile)'!$D$61:$S$61,0)) -> Commodity | D14: =INDEX('For Bill Impact(HideBeforeFile)'!$D$62:$S$71,MATCH(C10,'For Bill Impact(HideBeforeFile)'!$C$62:$C$71,0),MATCH($O14,'For Bill Impact(HideBeforeFile)'!$D$61:$S$61,0)) -> cents / m3 | F14: =INDEX('For Bill Impact(HideBeforeFile)'!$D$6:$S$15,MATCH(C10,'For Bill Impact(HideBeforeFile)'!$C$62:$C$71,0),MATCH($O14,'For Bill Impact(HideBeforeFile)'!$D$61:$S$61,0)) -> 23.2609 | H14: =INDEX('For Bill Impact(HideBeforeFile)'!$D$20:$S$29,MATCH(C10,'For Bill Impact(HideBeforeFile)'!$C$62:$C$71,0),MATCH($O14,'For Bill Impact(HideBeforeFile)'!$D$61:$S$61,0)) -> 23.2609 | J14: =INDEX('For Bill Impact(HideBeforeFile)'!$D$34:$S$43,MATCH(C10,'For Bill Impact(HideBeforeFile)'!$C$62:$C$71,0),MATCH($O14,'For Bill Impact(HideBeforeFile)'!$D$61:$S$61,0)) -> 9583.094231 | O14: ='For Bill Impact(HideBeforeFile)'!$D$5 -> Commodity
C16: =INDEX('For Bill Impact(HideBeforeFile)'!$D$48:$S$57,MATCH(C10,'For Bill Impact(HideBeforeFile)'!$C$62:$C$71,0),MATCH($O16,'For Bill Impact(HideBeforeFile)'!$D$61:$S$61,0)) -> Customer (excl. Bill 32) | D16: =INDEX('For Bill Impact(HideBeforeFile)'!$D$62:$S$71,MATCH(C10,'For Bill Impact(HideBeforeFile)'!$C$62:$C$71,0),MATCH($O16,'For Bill Impact(HideBeforeFile)'!$D$61:$S$61,0)) -> $ / month | F16: =INDEX('For Bill Impact(HideBeforeFile)'!$D$6:$S$15,MATCH(C10,'For Bill Impact(HideBeforeFile)'!$C$62:$C$71,0),MATCH($O16,'For Bill Impact(HideBeforeFile)'!$D$61:$S$61,0)) -> 21.64180452 | H16: =INDEX('For Bill Impact(HideBeforeFile)'!$D$20:$S$29,MATCH(C10,'For Bill Impact(HideBeforeFile)'!$C$62:$C$71,0),MATCH($O16,'For Bill Impact(HideBeforeFile)'!$D$61:$S$61,0)) -> 22.59404392 | J16: =INDEX('For Bill Impact(HideBeforeFile)'!$D$34:$S$43,MATCH(C10,'For Bill Impact(HideBeforeFile)'!$C$62:$C$71,0),MATCH($O16,'For Bill Impact(HideBeforeFile)'!$D$61:$S$61,0)) -> 7 | O16: ='For Bill Impact(HideBeforeFile)'!$O$5 -> Dist. Customer Rate
C17: =INDEX('For Bill Impact(HideBeforeFile)'!$D$48:$S$57,MATCH(C10,'For Bill Impact(HideBeforeFile)'!$C$62:$C$71,0),MATCH($O17,'For Bill Impact(HideBeforeFile)'!$D$61:$S$61,0)) -> Block 1 (First 1,000 m3 per month) | D17: =INDEX('For Bill Impact(HideBeforeFile)'!$D$62:$S$71,MATCH(C10,'For Bill Impact(HideBeforeFile)'!$C$62:$C$71,0),MATCH($O17,'For Bill Impact(HideBeforeFile)'!$D$61:$S$61,0)) -> cents / m3 | F17: =INDEX('For Bill Impact(HideBeforeFile)'!$D$6:$S$15,MATCH(C10,'For Bill Impact(HideBeforeFile)'!$C$62:$C$71,0),MATCH($O17,'For Bill Impact(HideBeforeFile)'!$D$61:$S$61,0)) -> 17.94689923 | H17: =INDEX('For Bill Impact(HideBeforeFile)'!$D$20:$S$29,MATCH(C10,'For Bill Impact(HideBeforeFile)'!$C$62:$C$71,0),MATCH($O17,'For Bill Impact(HideBeforeFile)'!$D$61:$S$61,0)) -> 18.7365628 | J17: =INDEX('For Bill Impact(HideBeforeFile)'!$D$34:$S$43,MATCH(C10,'For Bill Impact(HideBeforeFile)'!$C$62:$C$71,0),MATCH($O17,'For Bill Impact(HideBeforeFile)'!$D$61:$S$61,0)) -> 1271.865385 | O17: ='For Bill Impact(HideBeforeFile)'!$P$5 -> Dist. Vol. Rate Tier 1
C18: =INDEX('For Bill Impact(HideBeforeFile)'!$D$48:$S$57,MATCH(C10,'For Bill Impact(HideBeforeFile)'!$C$62:$C$71,0),MATCH($O18,'For Bill Impact(HideBeforeFile)'!$D$61:$S$61,0)) -> Block 2 (Next 24,000 m3 per month) | D18: =INDEX('For Bill Impact(HideBeforeFile)'!$D$62:$S$71,MATCH(C10,'For Bill Impact(HideBeforeFile)'!$C$62:$C$71,0),MATCH($O18,'For Bill Impact(HideBeforeFile)'!$D$61:$S$61,0)) -> cents / m3 | F18: =INDEX('For Bill Impact(HideBeforeFile)'!$D$6:$S$15,MATCH(C10,'For Bill Impact(HideBeforeFile)'!$C$62:$C$71,0),MATCH($O18,'For Bill Impact(HideBeforeFile)'!$D$61:$S$61,0)) -> 9.286281901 | H18: =INDEX('For Bill Impact(HideBeforeFile)'!$D$20:$S$29,MATCH(C10,'For Bill Impact(HideBeforeFile)'!$C$62:$C$71,0),MATCH($O18,'For Bill Impact(HideBeforeFile)'!$D$61:$S$61,0)) -> 9.694878305 | J18: =INDEX('For Bill Impact(HideBeforeFile)'!$D$34:$S$43,MATCH(C10,'For Bill Impact(HideBeforeFile)'!$C$62:$C$71,0),MATCH($O18,'For Bill Impact(HideBeforeFile)'!$D$61:$S$61,0)) -> 6892.209615 | O18: ='For Bill Impact(HideBeforeFile)'!$Q$5 -> Dist. Vol. Rate Tier 2
C19: =INDEX('For Bill Impact(HideBeforeFile)'!$D$48:$S$57,MATCH(C10,'For Bill Impact(HideBeforeFile)'!$C$62:$C$71,0),MATCH($O19,'For Bill Impact(HideBeforeFile)'!$D$61:$S$61,0)) -> Block 3 (Over 25,000 m3 per month) | D19: =INDEX('For Bill Impact(HideBeforeFile)'!$D$62:$S$71,MATCH(C10,'For Bill Impact(HideBeforeFile)'!$C$62:$C$71,0),MATCH($O19,'For Bill Impact(HideBeforeFile)'!$D$61:$S$61,0)) -> cents / m3 | F19: =INDEX('For Bill Impact(HideBeforeFile)'!$D$6:$S$15,MATCH(C10,'For Bill Impact(HideBeforeFile)'!$C$62:$C$71,0),MATCH($O19,'For Bill Impact(HideBeforeFile)'!$D$61:$S$61,0)) -> 7.343929946 | H19: =INDEX('For Bill Impact(HideBeforeFile)'!$D$20:$S$29,MATCH(C10,'For Bill Impact(HideBeforeFile)'!$C$62:$C$71,0),MATCH($O19,'For Bill Impact(HideBeforeFile)'!$D$61:$S$61,0)) -> 7.667062863 | J19: =INDEX('For Bill Impact(HideBeforeFile)'!$D$34:$S$43,MATCH(C10,'For Bill Impact(HideBeforeFile)'!$C$62:$C$71,0),MATCH($O19,'For Bill Impact(HideBeforeFile)'!$D$61:$S$61,0)) -> 1419.019231 | O19: ='For Bill Impact(HideBeforeFile)'!$R$5 -> Dist. Vol. Rate Tier 3
C20: =INDEX('For Bill Impact(HideBeforeFile)'!$D$48:$S$57,MATCH(C10,'For Bill Impact(HideBeforeFile)'!$C$62:$C$71,0),MATCH($O20,'For Bill Impact(HideBeforeFile)'!$D$61:$S$61,0)) ->  | D20: =INDEX('For Bill Impact(HideBeforeFile)'!$D$62:$S$71,MATCH(C10,'For Bill Impact(HideBeforeFile)'!$C$62:$C$71,0),MATCH($O20,'For Bill Impact(HideBeforeFile)'!$D$61:$S$61,0)) ->  | F20: =INDEX('For Bill Impact(HideBeforeFile)'!$D$6:$S$15,MATCH(C10,'For Bill Impact(HideBeforeFile)'!$C$62:$C$71,0),MATCH($O20,'For Bill Impact(HideBeforeFile)'!$D$61:$S$61,0)) ->  | H20: =INDEX('For Bill Impact(HideBeforeFile)'!$D$20:$S$29,MATCH(C10,'For Bill Impact(HideBeforeFile)'!$C$62:$C$71,0),MATCH($O20,'For Bill Impact(HideBeforeFile)'!$D$61:$S$61,0)) ->  | J20: =INDEX('For Bill Impact(HideBeforeFile)'!$D$34:$S$43,MATCH(C10,'For Bill Impact(HideBeforeFile)'!$C$62:$C$71,0),MATCH($O20,'For Bill Impact(HideBeforeFile)'!$D$61:$S$61,0)) ->  | O20: ='For Bill Impact(HideBeforeFile)'!$S$5 -> Dist. Capacity Rate
C21: =INDEX('For Bill Impact(HideBeforeFile)'!$D$48:$S$57,MATCH(C10,'For Bill Impact(HideBeforeFile)'!$C$62:$C$71,0),MATCH($O21,'For Bill Impact(HideBeforeFile)'!$D$61:$S$61,0)) -> System Gas Charge | D21: =INDEX('For Bill Impact(HideBeforeFile)'!$D$62:$S$71,MATCH(C10,'For Bill Impact(HideBeforeFile)'!$C$62:$C$71,0),MATCH($O21,'For Bill Impact(HideBeforeFile)'!$D$61:$S$61,0)) -> cents / m3 | F21: =INDEX('For Bill Impact(HideBeforeFile)'!$D$6:$S$15,MATCH(C10,'For Bill Impact(HideBeforeFile)'!$C$62:$C$71,0),MATCH($O21,'For Bill Impact(HideBeforeFile)'!$D$61:$S$61,0)) -> 0.0435 | H21: =INDEX('For Bill Impact(HideBeforeFile)'!$D$20:$S$29,MATCH(C10,'For Bill Impact(HideBeforeFile)'!$C$62:$C$71,0),MATCH($O21,'For Bill Impact(HideBeforeFile)'!$D$61:$S$61,0)) -> 0.0435 | J21: =INDEX('For Bill Impact(HideBeforeFile)'!$D$34:$S$43,MATCH(C10,'For Bill Impact(HideBeforeFile)'!$C$62:$C$71,0),MATCH($O21,'For Bill Impact(HideBeforeFile)'!$D$61:$S$61,0)) -> 9583.094231 | O21: ='For Bill Impact(HideBeforeFile)'!$E$5 -> System Gas
C23: =INDEX('For Bill Impact(HideBeforeFile)'!$D$48:$S$57,MATCH(C10,'For Bill Impact(HideBeforeFile)'!$C$62:$C$71,0),MATCH($O23,'For Bill Impact(HideBeforeFile)'!$D$61:$S$61,0)) -> REDA | D23: =INDEX('For Bill Impact(HideBeforeFile)'!$D$62:$S$71,MATCH(C10,'For Bill Impact(HideBeforeFile)'!$C$62:$C$71,0),MATCH($O23,'For Bill Impact(HideBeforeFile)'!$D$61:$S$61,0)) -> $ / month | F23: =INDEX('For Bill Impact(HideBeforeFile)'!$D$6:$S$15,MATCH(C10,'For Bill Impact(HideBeforeFile)'!$C$62:$C$71,0),MATCH($O23,'For Bill Impact(HideBeforeFile)'!$D$61:$S$61,0)) -> 0.02 | H23: =INDEX('For Bill Impact(HideBeforeFile)'!$D$20:$S$29,MATCH(C10,'For Bill Impact(HideBeforeFile)'!$C$62:$C$71,0),MATCH($O23,'For Bill Impact(HideBeforeFile)'!$D$61:$S$61,0)) -> 0.02 | J23: =INDEX('For Bill Impact(HideBeforeFile)'!$D$34:$S$43,MATCH(C10,'For Bill Impact(HideBeforeFile)'!$C$62:$C$71,0),MATCH($O23,'For Bill Impact(HideBeforeFile)'!$D$61:$S$61,0)) -> 7 | O23: ='For Bill Impact(HideBeforeFile)'!$F$5 -> REDA
C24: =INDEX('For Bill Impact(HideBeforeFile)'!$D$48:$S$57,MATCH(C10,'For Bill Impact(HideBeforeFile)'!$C$62:$C$71,0),MATCH($O24,'For Bill Impact(HideBeforeFile)'!$D$61:$S$61,0)) -> PGTVA | D24: =INDEX('For Bill Impact(HideBeforeFile)'!$D$62:$S$71,MATCH(C10,'For Bill Impact(HideBeforeFile)'!$C$62:$C$71,0),MATCH($O24,'For Bill Impact(HideBeforeFile)'!$D$61:$S$61,0)) -> cents / m3 | F24: =INDEX('For Bill Impact(HideBeforeFile)'!$D$6:$S$15,MATCH(C10,'For Bill Impact(HideBeforeFile)'!$C$62:$C$71,0),MATCH($O24,'For Bill Impact(HideBeforeFile)'!$D$61:$S$61,0)) -> 0.4355 | H24: =INDEX('For Bill Impact(HideBeforeFile)'!$D$20:$S$29,MATCH(C10,'For Bill Impact(HideBeforeFile)'!$C$62:$C$71,0),MATCH($O24,'For Bill Impact(HideBeforeFile)'!$D$61:$S$61,0)) -> 0.7891024788 | J24: =INDEX('For Bill Impact(HideBeforeFile)'!$D$34:$S$43,MATCH(C10,'For Bill Impact(HideBeforeFile)'!$C$62:$C$71,0),MATCH($O24,'For Bill Impact(HideBeforeFile)'!$D$61:$S$61,0)) -> 9583.094231 | O24: ='For Bill Impact(HideBeforeFile)'!$G$5 -> PGTVA
C25: =INDEX('For Bill Impact(HideBeforeFile)'!$D$48:$S$57,MATCH(C10,'For Bill Impact(HideBeforeFile)'!$C$62:$C$71,0),MATCH($O25,'For Bill Impact(HideBeforeFile)'!$D$61:$S$61,0)) -> ADVADA | D25: =INDEX('For Bill Impact(HideBeforeFile)'!$D$62:$S$71,MATCH(C10,'For Bill Impact(HideBeforeFile)'!$C$62:$C$71,0),MATCH($O25,'For Bill Impact(HideBeforeFile)'!$D$61:$S$61,0)) -> cents / m3 | F25: =INDEX('For Bill Impact(HideBeforeFile)'!$D$6:$S$15,MATCH(C10,'For Bill Impact(HideBeforeFile)'!$C$62:$C$71,0),MATCH($O25,'For Bill Impact(HideBeforeFile)'!$D$61:$S$61,0)) -> 0 | H25: =INDEX('For Bill Impact(HideBeforeFile)'!$D$20:$S$29,MATCH(C10,'For Bill Impact(HideBeforeFile)'!$C$62:$C$71,0),MATCH($O25,'For Bill Impact(HideBeforeFile)'!$D$61:$S$61,0)) -> -0.02895736312 | J25: =INDEX('For Bill Impact(HideBeforeFile)'!$D$34:$S$43,MATCH(C10,'For Bill Impact(HideBeforeFile)'!$C$62:$C$71,0),MATCH($O25,'For Bill Impact(HideBeforeFile)'!$D$61:$S$61,0)) -> 9583.094231 | O25: ='For Bill Impact(HideBeforeFile)'!$H$5 -> ADVADA
C26: =INDEX('For Bill Impact(HideBeforeFile)'!$D$48:$S$57,MATCH(C10,'For Bill Impact(HideBeforeFile)'!$C$62:$C$71,0),MATCH($O26,'For Bill Impact(HideBeforeFile)'!$D$61:$S$61,0)) -> LDMDA | D26: =INDEX('For Bill Impact(HideBeforeFile)'!$D$62:$S$71,MATCH(C10,'For Bill Impact(HideBeforeFile)'!$C$62:$C$71,0),MATCH($O26,'For Bill Impact(HideBeforeFile)'!$D$61:$S$61,0)) -> $ / month | F26: =INDEX('For Bill Impact(HideBeforeFile)'!$D$6:$S$15,MATCH(C10,'For Bill Impact(HideBeforeFile)'!$C$62:$C$71,0),MATCH($O26,'For Bill Impact(HideBeforeFile)'!$D$61:$S$61,0)) -> 0 | H26: =INDEX('For Bill Impact(HideBeforeFile)'!$D$20:$S$29,MATCH(C10,'For Bill Impact(HideBeforeFile)'!$C$62:$C$71,0),MATCH($O26,'For Bill Impact(HideBeforeFile)'!$D$61:$S$61,0)) -> 0 | J26: =INDEX('For Bill Impact(HideBeforeFile)'!$D$34:$S$43,MATCH(C10,'For Bill Impact(HideBeforeFile)'!$C$62:$C$71,0),MATCH($O26,'For Bill Impact(HideBeforeFile)'!$D$61:$S$61,0)) -> 7 | O26: LDMDA
C27: =INDEX('For Bill Impact(HideBeforeFile)'!$D$48:$S$57,MATCH(C10,'For Bill Impact(HideBeforeFile)'!$C$62:$C$71,0),MATCH($O27,'For Bill Impact(HideBeforeFile)'!$D$61:$S$61,0)) -> SICDA | D27: =INDEX('For Bill Impact(HideBeforeFile)'!$D$62:$S$71,MATCH(C10,'For Bill Impact(HideBeforeFile)'!$C$62:$C$71,0),MATCH($O27,'For Bill Impact(HideBeforeFile)'!$D$61:$S$61,0)) -> cents / m3 | F27: =INDEX('For Bill Impact(HideBeforeFile)'!$D$6:$S$15,MATCH(C10,'For Bill Impact(HideBeforeFile)'!$C$62:$C$71,0),MATCH($O27,'For Bill Impact(HideBeforeFile)'!$D$61:$S$61,0)) -> 0 | H27: =INDEX('For Bill Impact(HideBeforeFile)'!$D$20:$S$29,MATCH(C10,'For Bill Impact(HideBeforeFile)'!$C$62:$C$71,0),MATCH($O27,'For Bill Impact(HideBeforeFile)'!$D$61:$S$61,0)) -> 0 | J27: =INDEX('For Bill Impact(HideBeforeFile)'!$D$34:$S$43,MATCH(C10,'For Bill Impact(HideBeforeFile)'!$C$62:$C$71,0),MATCH($O27,'For Bill Impact(HideBeforeFile)'!$D$61:$S$61,0)) -> 9583.094231 | O27: SICDA
C28: =INDEX('For Bill Impact(HideBeforeFile)'!$D$48:$S$57,MATCH(C10,'For Bill Impact(HideBeforeFile)'!$C$62:$C$71,0),MATCH($O28,'For Bill Impact(HideBeforeFile)'!$D$61:$S$61,0)) -> FCCVA | D28: =INDEX('For Bill Impact(HideBeforeFile)'!$D$62:$S$71,MATCH(C10,'For Bill Impact(HideBeforeFile)'!$C$62:$C$71,0),MATCH($O28,'For Bill Impact(HideBeforeFile)'!$D$61:$S$61,0)) -> $ / month | F28: =INDEX('For Bill Impact(HideBeforeFile)'!$D$6:$S$15,MATCH(C10,'For Bill Impact(HideBeforeFile)'!$C$62:$C$71,0),MATCH($O28,'For Bill Impact(HideBeforeFile)'!$D$61:$S$61,0)) -> 0 | H28: =INDEX('For Bill Impact(HideBeforeFile)'!$D$20:$S$29,MATCH(C10,'For Bill Impact(HideBeforeFile)'!$C$62:$C$71,0),MATCH($O28,'For Bill Impact(HideBeforeFile)'!$D$61:$S$61,0)) -> 0 | J28: =INDEX('For Bill Impact(HideBeforeFile)'!$D$34:$S$43,MATCH(C10,'For Bill Impact(HideBeforeFile)'!$C$62:$C$71,0),MATCH($O28,'For Bill Impact(HideBeforeFile)'!$D$61:$S$61,0)) -> 7 | O28: FCCVA
C29: =INDEX('For Bill Impact(HideBeforeFile)'!$D$48:$S$57,MATCH(C10,'For Bill Impact(HideBeforeFile)'!$C$62:$C$71,0),MATCH($O29,'For Bill Impact(HideBeforeFile)'!$D$61:$S$61,0)) -> GGEADA | D29: =INDEX('For Bill Impact(HideBeforeFile)'!$D$62:$S$71,MATCH(C10,'For Bill Impact(HideBeforeFile)'!$C$62:$C$71,0),MATCH($O29,'For Bill Impact(HideBeforeFile)'!$D$61:$S$61,0)) -> $ / month | F29: =INDEX('For Bill Impact(HideBeforeFile)'!$D$6:$S$15,MATCH(C10,'For Bill Impact(HideBeforeFile)'!$C$62:$C$71,0),MATCH($O29,'For Bill Impact(HideBeforeFile)'!$D$61:$S$61,0)) -> 0 | H29: =INDEX('For Bill Impact(HideBeforeFile)'!$D$20:$S$29,MATCH(C10,'For Bill Impact(HideBeforeFile)'!$C$62:$C$71,0),MATCH($O29,'For Bill Impact(HideBeforeFile)'!$D$61:$S$61,0)) -> 0 | J29: =INDEX('For Bill Impact(HideBeforeFile)'!$D$34:$S$43,MATCH(C10,'For Bill Impact(HideBeforeFile)'!$C$62:$C$71,0),MATCH($O29,'For Bill Impact(HideBeforeFile)'!$D$61:$S$61,0)) -> 7 | O29: GGEADA
C31: =INDEX('For Bill Impact(HideBeforeFile)'!$D$48:$S$57,MATCH(C10,'For Bill Impact(HideBeforeFile)'!$C$62:$C$71,0),MATCH($O31,'For Bill Impact(HideBeforeFile)'!$D$61:$S$61,0)) -> Federal Carbon | D31: =INDEX('For Bill Impact(HideBeforeFile)'!$D$62:$S$71,MATCH(C10,'For Bill Impact(HideBeforeFile)'!$C$62:$C$71,0),MATCH($O31,'For Bill Impact(HideBeforeFile)'!$D$61:$S$61,0)) -> cents / m3 | F31: =INDEX('For Bill Impact(HideBeforeFile)'!$D$6:$S$15,MATCH(C10,'For Bill Impact(HideBeforeFile)'!$C$62:$C$71,0),MATCH($O31,'For Bill Impact(HideBeforeFile)'!$D$61:$S$61,0)) -> 12.39 | H31: =INDEX('For Bill Impact(HideBeforeFile)'!$D$20:$S$29,MATCH(C10,'For Bill Impact(HideBeforeFile)'!$C$62:$C$71,0),MATCH($O31,'For Bill Impact(HideBeforeFile)'!$D$61:$S$61,0)) -> 12.39 | J31: =INDEX('For Bill Impact(HideBeforeFile)'!$D$34:$S$43,MATCH(C10,'For Bill Impact(HideBeforeFile)'!$C$62:$C$71,0),MATCH($O31,'For Bill Impact(HideBeforeFile)'!$D$61:$S$61,0)) -> 9583.094231 | O31: ='For Bill Impact(HideBeforeFile)'!$M$5 -> Federal Carbon
C32: =INDEX('For Bill Impact(HideBeforeFile)'!$D$48:$S$57,MATCH(C10,'For Bill Impact(HideBeforeFile)'!$C$62:$C$71,0),MATCH($O32,'For Bill Impact(HideBeforeFile)'!$D$61:$S$61,0)) -> Facility Carbon | D32: =INDEX('For Bill Impact(HideBeforeFile)'!$D$62:$S$71,MATCH(C10,'For Bill Impact(HideBeforeFile)'!$C$62:$C$71,0),MATCH($O32,'For Bill Impact(HideBeforeFile)'!$D$61:$S$61,0)) -> cents / m3 | F32: =INDEX('For Bill Impact(HideBeforeFile)'!$D$6:$S$15,MATCH(C10,'For Bill Impact(HideBeforeFile)'!$C$62:$C$71,0),MATCH($O32,'For Bill Impact(HideBeforeFile)'!$D$61:$S$61,0)) -> 0.0037 | H32: =INDEX('For Bill Impact(HideBeforeFile)'!$D$20:$S$29,MATCH(C10,'For Bill Impact(HideBeforeFile)'!$C$62:$C$71,0),MATCH($O32,'For Bill Impact(HideBeforeFile)'!$D$61:$S$61,0)) -> 0.0037 | J32: =INDEX('For Bill Impact(HideBeforeFile)'!$D$34:$S$43,MATCH(C10,'For Bill Impact(HideBeforeFile)'!$C$62:$C$71,0),MATCH($O32,'For Bill Impact(HideBeforeFile)'!$D$61:$S$61,0)) -> 9583.094231 | O32: ='For Bill Impact(HideBeforeFile)'!$N$5 -> Facility Carbon
C35: Commodity | F35: Current | H35: Proposed | J35: Change $ | L35: Change %
F36: =F14*$J14/100 -> 2229.113966 | H36: =H14*$J14/100 -> 2229.113966 | J36: =H36-F36 -> 0 | L36: =IFERROR(J36/F36,"") -> 0 | O36: ='For Bill Impact(HideBeforeFile)'!$D$5 -> Commodity
C38: Delivery | F38: Current Rate | H38: Proposed Rate | J38: Change $ | L38: Change %
C39: =IF(C16<>"",C16,"") -> Customer (excl. Bill 32) | F39: =F16*$J16 -> 151.4926316 | H39: =H16*$J16 -> 158.1583074 | J39: =IFERROR(H39-F39,"") -> 6.665675792 | L39: =IFERROR(J39/F39,"") -> 0.044 | O39: ='For Bill Impact(HideBeforeFile)'!$O$5 -> Dist. Customer Rate
C40: Bill 32 | F40: =J16 -> 7 | H40: =J16 -> 7 | J40: =IFERROR(H40-F40,"") -> 0 | L40: =IFERROR(J40/F40,"") -> 0
C41: =IF(C17<>"",C17,"") -> Block 1 (First 1,000 m3 per month) | F41: =IFERROR(F17*$J17/100,"") -> 228.260399 | H41: =IFERROR(H17*$J17/100,"") -> 238.3038565 | J41: =IFERROR(H41-F41,"") -> 10.04345755 | L41: =IFERROR(J41/F41,"") -> 0.044 | O41: ='For Bill Impact(HideBeforeFile)'!$P$5 -> Dist. Vol. Rate Tier 1
C42: =IF(C18<>"",C18,"") -> Block 2 (Next 24,000 m3 per month) | F42: =IFERROR(F18*$J18/100,"") -> 640.0300141 | H42: =IFERROR(H18*$J18/100,"") -> 668.1913347 | J42: 28.16132062 | L42: 0.044 | O42: ='For Bill Impact(HideBeforeFile)'!$Q$5 -> Dist. Vol. Rate Tier 2
C43: =IF(C19<>"",C19,"") -> Block 3 (Over 25,000 m3 per month) | F43: =IFERROR(F19*$J19/100,"") -> 104.2117782 | H43: =IFERROR(H19*$J19/100,"") -> 108.7970965 | J43: 4.585318242 | L43: 0.044 | O43: ='For Bill Impact(HideBeforeFile)'!$R$5 -> Dist. Vol. Rate Tier 3
C44: =IF(C20<>"",C20,"") ->  | F44: =IFERROR(F20*$J20/100,"") ->  | H44: =IFERROR(H20*$J20/100,"") ->  | O44: ='For Bill Impact(HideBeforeFile)'!$S$5 -> Dist. Capacity Rate
C45: =IF(C21<>"",C21,"") -> System Gas Charge | F45: =IFERROR(F21*$J21/100,"") -> 4.16864599 | H45: =IFERROR(H21*$J21/100,"") -> 4.16864599 | J45: 0 | L45: 0 | O45: ='For Bill Impact(HideBeforeFile)'!$E$5 -> System Gas
C46: Total Delivery | F46: =SUM(F39:F45) -> 1135.163469 | H46: =SUM(H39:H45) -> 1184.619241 | J46: =H46-F46 -> 49.45577221 | L46: =IF(ISERROR(J46/F46),0,J46/F46) -> 0.04356709281
C48: Rate Riders
C50: Rate Riders | F50: Current Rate | H50: Proposed Rate | J50: Change $ | L50: Change %
C51: =C23 -> REDA | F51: =F23*$J23 -> 0.14 | H51: =H23*$J23 -> 0.14 | J51: =IFERROR(H51-F51,"") -> 0 | L51: =IFERROR(J51/F51,"") -> 0 | O51: ='For Bill Impact(HideBeforeFile)'!$F$5 -> REDA
C52: PGTVA | F52: =IFERROR(F24*$J24/100,"") -> 41.73437537 | H52: =IFERROR(H24*$J24/100,"") -> 75.62043412 | J52: =IFERROR(H52-F52,"") -> 33.88605874 | L52: =IFERROR(J52/F52,"") -> 0.8119459903 | O52: ='For Bill Impact(HideBeforeFile)'!$G$5 -> PGTVA
C53: ADVADA | F53: =IFERROR(F25*$J25/100,"") -> 0 | H53: =IFERROR(H25*$J25/100,"") -> -2.775011394 | J53: -2.775011394 | O53: ='For Bill Impact(HideBeforeFile)'!$H$5 -> ADVADA
C54: LDMDA | F54: =F26*$J26 -> 0 | H54: =H26*$J26 -> 0 | J54: 0 | O54: ='For Bill Impact(HideBeforeFile)'!$I$5 -> LDMDA
C55: SICDA | F55: =IFERROR(F27*$J27/100,"") -> 0 | H55: =IFERROR(H27*$J27/100,"") -> 0 | J55: 0 | O55: ='For Bill Impact(HideBeforeFile)'!$J$5 -> SICDA
C56: FCCVA | F56: =F28*$J28 -> 0 | H56: =H28*$J28 -> 0 | J56: 0 | O56: ='For Bill Impact(HideBeforeFile)'!$I$5 -> LDMDA
C57: GGEADA | F57: 0 | H57: 0 | J57: 0 | O57: ='For Bill Impact(HideBeforeFile)'!$J$5 -> SICDA
C58: Total Rate Riders | F58: =SUM(F51:F57) -> 41.87437537 | H58: =SUM(H51:H57) -> 72.98542272 | J58: =SUM(J51:J57) -> 31.11104735 | L58: =IF(ISERROR(J58/F58),0,J58/F58) -> 0.7429614667
C60: Carbon Tax
C61: Federal Carbon | F61: =F31*$J31/100 -> 1187.345375 | H61: =H31*$J31/100 -> 1187.345375 | J61: =IFERROR(H61-F61,"") -> 0 | L61: =IFERROR(J61/F61,"") -> 0
C62: Facility Carbon | F62: =F32*$J32/100 -> 0.3545744865 | H62: =H32*$J32/100 -> 0.3545744865 | J62: =IFERROR(H62-F62,"") -> 0 | L62: 0
C63: Total Carbon Tax | F63: =SUM(F61:F62) -> 1187.69995 | H63: =SUM(H61:H62) -> 1187.69995 | J63: =SUM(J61:J62) -> 0 | L63: =IF(ISERROR(J63/F63),0,J63/F63) -> 0
C65: Total Bill Impact | F65: =SUM(F36,F46,F58,F63) -> 4593.85176 | H65: =SUM(H36,H46,H58,H63) -> 4674.418579 | J65: =SUM(J36,J46,J58,J63) -> 80.56681956 | L65: =IFERROR(J65/F65,"") -> 0.01753796678
C68: =MID(CELL("filename",A1),FIND("]",CELL("filename",A1))+1,255) -> G1.2 Rate 2 Bill Impact
C70: ='For Bill Impact(HideBeforeFile)'!C10 -> RATE 2 - Seasonal Service - Nov to Mar | F70: Current | H70: Proposed | J70: Bill Determinant | O70: Look-up
C74: =INDEX('For Bill Impact(HideBeforeFile)'!$D$48:$S$57,MATCH(C70,'For Bill Impact(HideBeforeFile)'!$C$62:$C$71,0),MATCH($O74,'For Bill Impact(HideBeforeFile)'!$D$61:$S$61,0)) -> Commodity | D74: =INDEX('For Bill Impact(HideBeforeFile)'!$D$62:$S$71,MATCH(C70,'For Bill Impact(HideBeforeFile)'!$C$62:$C$71,0),MATCH($O74,'For Bill Impact(HideBeforeFile)'!$D$61:$S$61,0)) -> cents / m3 | F74: =INDEX('For Bill Impact(HideBeforeFile)'!$D$6:$S$15,MATCH(C70,'For Bill Impact(HideBeforeFile)'!$C$62:$C$71,0),MATCH($O74,'For Bill Impact(HideBeforeFile)'!$D$61:$S$61,0)) -> 23.2609 | H74: =INDEX('For Bill Impact(HideBeforeFile)'!$D$20:$S$29,MATCH(C70,'For Bill Impact(HideBeforeFile)'!$C$62:$C$71,0),MATCH($O74,'For Bill Impact(HideBeforeFile)'!$D$61:$S$61,0)) -> 23.2609 | J74: =INDEX('For Bill Impact(HideBeforeFile)'!$D$34:$S$43,MATCH(C70,'For Bill Impact(HideBeforeFile)'!$C$62:$C$71,0),MATCH($O74,'For Bill Impact(HideBeforeFile)'!$D$61:$S$61,0)) -> 6327.575 | O74: ='For Bill Impact(HideBeforeFile)'!$D$5 -> Commodity
C76: =INDEX('For Bill Impact(HideBeforeFile)'!$D$48:$S$57,MATCH(C70,'For Bill Impact(HideBeforeFile)'!$C$62:$C$71,0),MATCH($O76,'For Bill Impact(HideBeforeFile)'!$D$61:$S$61,0)) -> Customer (excl. Bill 32) | D76: =INDEX('For Bill Impact(HideBeforeFile)'!$D$62:$S$71,MATCH(C70,'For Bill Impact(HideBeforeFile)'!$C$62:$C$71,0),MATCH($O76,'For Bill Impact(HideBeforeFile)'!$D$61:$S$61,0)) -> $ / month | F76: =INDEX('For Bill Impact(HideBeforeFile)'!$D$6:$S$15,MATCH(C70,'For Bill Impact(HideBeforeFile)'!$C$62:$C$71,0),MATCH($O76,'For Bill Impact(HideBeforeFile)'!$D$61:$S$61,0)) -> 21.64180452 | H76: =INDEX('For Bill Impact(HideBeforeFile)'!$D$20:$S$29,MATCH(C70,'For Bill Impact(HideBeforeFile)'!$C$62:$C$71,0),MATCH($O76,'For Bill Impact(HideBeforeFile)'!$D$61:$S$61,0)) -> 22.59404392 | J76: =INDEX('For Bill Impact(HideBeforeFile)'!$D$34:$S$43,MATCH(C70,'For Bill Impact(HideBeforeFile)'!$C$62:$C$71,0),MATCH($O76,'For Bill Impact(HideBeforeFile)'!$D$61:$S$61,0)) -> 5 | O76: ='For Bill Impact(HideBeforeFile)'!$O$5 -> Dist. Customer Rate
C77: =INDEX('For Bill Impact(HideBeforeFile)'!$D$48:$S$57,MATCH(C70,'For Bill Impact(HideBeforeFile)'!$C$62:$C$71,0),MATCH($O77,'For Bill Impact(HideBeforeFile)'!$D$61:$S$61,0)) -> Block 1 (First 1,000 m3 per month) | D77: =INDEX('For Bill Impact(HideBeforeFile)'!$D$62:$S$71,MATCH(C70,'For Bill Impact(HideBeforeFile)'!$C$62:$C$71,0),MATCH($O77,'For Bill Impact(HideBeforeFile)'!$D$61:$S$61,0)) -> cents / m3 | F77: =INDEX('For Bill Impact(HideBeforeFile)'!$D$6:$S$15,MATCH(C70,'For Bill Impact(HideBeforeFile)'!$C$62:$C$71,0),MATCH($O77,'For Bill Impact(HideBeforeFile)'!$D$61:$S$61,0)) -> 22.62174543 | H77: =INDEX('For Bill Impact(HideBeforeFile)'!$D$20:$S$29,MATCH(C70,'For Bill Impact(HideBeforeFile)'!$C$62:$C$71,0),MATCH($O77,'For Bill Impact(HideBeforeFile)'!$D$61:$S$61,0)) -> 23.61710223 | J77: =INDEX('For Bill Impact(HideBeforeFile)'!$D$34:$S$43,MATCH(C70,'For Bill Impact(HideBeforeFile)'!$C$62:$C$71,0),MATCH($O77,'For Bill Impact(HideBeforeFile)'!$D$61:$S$61,0)) -> 1301.719231 | O77: ='For Bill Impact(HideBeforeFile)'!$P$5 -> Dist. Vol. Rate Tier 1
C78: =INDEX('For Bill Impact(HideBeforeFile)'!$D$48:$S$57,MATCH(C70,'For Bill Impact(HideBeforeFile)'!$C$62:$C$71,0),MATCH($O78,'For Bill Impact(HideBeforeFile)'!$D$61:$S$61,0)) -> Block 2 (Next 24,000 m3 per month) | D78: =INDEX('For Bill Impact(HideBeforeFile)'!$D$62:$S$71,MATCH(C70,'For Bill Impact(HideBeforeFile)'!$C$62:$C$71,0),MATCH($O78,'For Bill Impact(HideBeforeFile)'!$D$61:$S$61,0)) -> cents / m3 | F78: =INDEX('For Bill Impact(HideBeforeFile)'!$D$6:$S$15,MATCH(C70,'For Bill Impact(HideBeforeFile)'!$C$62:$C$71,0),MATCH($O78,'For Bill Impact(HideBeforeFile)'!$D$61:$S$61,0)) -> 15.37098345 | H78: =INDEX('For Bill Impact(HideBeforeFile)'!$D$20:$S$29,MATCH(C70,'For Bill Impact(HideBeforeFile)'!$C$62:$C$71,0),MATCH($O78,'For Bill Impact(HideBeforeFile)'!$D$61:$S$61,0)) -> 16.04730672 | J78: =INDEX('For Bill Impact(HideBeforeFile)'!$D$34:$S$43,MATCH(C70,'For Bill Impact(HideBeforeFile)'!$C$62:$C$71,0),MATCH($O78,'For Bill Impact(HideBeforeFile)'!$D$61:$S$61,0)) -> 4826.386538 | O78: ='For Bill Impact(HideBeforeFile)'!$Q$5 -> Dist. Vol. Rate Tier 2
C79: =INDEX('For Bill Impact(HideBeforeFile)'!$D$48:$S$57,MATCH(C70,'For Bill Impact(HideBeforeFile)'!$C$62:$C$71,0),MATCH($O79,'For Bill Impact(HideBeforeFile)'!$D$61:$S$61,0)) -> Block 3 (Over 25,000 m3 per month) | D79: =INDEX('For Bill Impact(HideBeforeFile)'!$D$62:$S$71,MATCH(C70,'For Bill Impact(HideBeforeFile)'!$C$62:$C$71,0),MATCH($O79,'For Bill Impact(HideBeforeFile)'!$D$61:$S$61,0)) -> cents / m3 | F79: =INDEX('For Bill Impact(HideBeforeFile)'!$D$6:$S$15,MATCH(C70,'For Bill Impact(HideBeforeFile)'!$C$62:$C$71,0),MATCH($O79,'For Bill Impact(HideBeforeFile)'!$D$61:$S$61,0)) -> 16.54505135 | H79: =INDEX('For Bill Impact(HideBeforeFile)'!$D$20:$S$29,MATCH(C70,'For Bill Impact(HideBeforeFile)'!$C$62:$C$71,0),MATCH($O79,'For Bill Impact(HideBeforeFile)'!$D$61:$S$61,0)) -> 17.27303361 | J79: =INDEX('For Bill Impact(HideBeforeFile)'!$D$34:$S$43,MATCH(C70,'For Bill Impact(HideBeforeFile)'!$C$62:$C$71,0),MATCH($O79,'For Bill Impact(HideBeforeFile)'!$D$61:$S$61,0)) -> 199.4692308 | O79: ='For Bill Impact(HideBeforeFile)'!$R$5 -> Dist. Vol. Rate Tier 3
C80: =INDEX('For Bill Impact(HideBeforeFile)'!$D$48:$S$57,MATCH(C70,'For Bill Impact(HideBeforeFile)'!$C$62:$C$71,0),MATCH($O80,'For Bill Impact(HideBeforeFile)'!$D$61:$S$61,0)) ->  | D80: =INDEX('For Bill Impact(HideBeforeFile)'!$D$62:$S$71,MATCH(C70,'For Bill Impact(HideBeforeFile)'!$C$62:$C$71,0),MATCH($O80,'For Bill Impact(HideBeforeFile)'!$D$61:$S$61,0)) ->  | F80: =INDEX('For Bill Impact(HideBeforeFile)'!$D$6:$S$15,MATCH(C70,'For Bill Impact(HideBeforeFile)'!$C$62:$C$71,0),MATCH($O80,'For Bill Impact(HideBeforeFile)'!$D$61:$S$61,0)) ->  | H80: =INDEX('For Bill Impact(HideBeforeFile)'!$D$20:$S$29,MATCH(C70,'For Bill Impact(HideBeforeFile)'!$C$62:$C$71,0),MATCH($O80,'For Bill Impact(HideBeforeFile)'!$D$61:$S$61,0)) ->  | J80: =INDEX('For Bill Impact(HideBeforeFile)'!$D$34:$S$43,MATCH(C70,'For Bill Impact(HideBeforeFile)'!$C$62:$C$71,0),MATCH($O80,'For Bill Impact(HideBeforeFile)'!$D$61:$S$61,0)) ->  | O80: ='For Bill Impact(HideBeforeFile)'!$S$5 -> Dist. Capacity Rate
C81: =INDEX('For Bill Impact(HideBeforeFile)'!$D$48:$S$57,MATCH(C70,'For Bill Impact(HideBeforeFile)'!$C$62:$C$71,0),MATCH($O81,'For Bill Impact(HideBeforeFile)'!$D$61:$S$61,0)) -> System Gas Charge | D81: =INDEX('For Bill Impact(HideBeforeFile)'!$D$62:$S$71,MATCH(C70,'For Bill Impact(HideBeforeFile)'!$C$62:$C$71,0),MATCH($O81,'For Bill Impact(HideBeforeFile)'!$D$61:$S$61,0)) -> cents / m3 | F81: =INDEX('For Bill Impact(HideBeforeFile)'!$D$6:$S$15,MATCH(C70,'For Bill Impact(HideBeforeFile)'!$C$62:$C$71,0),MATCH($O81,'For Bill Impact(HideBeforeFile)'!$D$61:$S$61,0)) -> 0.0435 | H81: =INDEX('For Bill Impact(HideBeforeFile)'!$D$20:$S$29,MATCH(C70,'For Bill Impact(HideBeforeFile)'!$C$62:$C$71,0),MATCH($O81,'For Bill Impact(HideBeforeFile)'!$D$61:$S$61,0)) -> 0.0435 | J81: =INDEX('For Bill Impact(HideBeforeFile)'!$D$34:$S$43,MATCH(C70,'For Bill Impact(HideBeforeFile)'!$C$62:$C$71,0),MATCH($O81,'For Bill Impact(HideBeforeFile)'!$D$61:$S$61,0)) -> 6327.575 | O81: ='For Bill Impact(HideBeforeFile)'!$E$5 -> System Gas
C83: =INDEX('For Bill Impact(HideBeforeFile)'!$D$48:$S$57,MATCH(C70,'For Bill Impact(HideBeforeFile)'!$C$62:$C$71,0),MATCH($O83,'For Bill Impact(HideBeforeFile)'!$D$61:$S$61,0)) -> REDA | D83: =INDEX('For Bill Impact(HideBeforeFile)'!$D$62:$S$71,MATCH(C70,'For Bill Impact(HideBeforeFile)'!$C$62:$C$71,0),MATCH($O83,'For Bill Impact(HideBeforeFile)'!$D$61:$S$61,0)) -> $ / month | F83: =INDEX('For Bill Impact(HideBeforeFile)'!$D$6:$S$15,MATCH(C70,'For Bill Impact(HideBeforeFile)'!$C$62:$C$71,0),MATCH($O83,'For Bill Impact(HideBeforeFile)'!$D$61:$S$61,0)) -> 0.02 | H83: =INDEX('For Bill Impact(HideBeforeFile)'!$D$20:$S$29,MATCH(C70,'For Bill Impact(HideBeforeFile)'!$C$62:$C$71,0),MATCH($O83,'For Bill Impact(HideBeforeFile)'!$D$61:$S$61,0)) -> 0.02 | J83: =INDEX('For Bill Impact(HideBeforeFile)'!$D$34:$S$43,MATCH(C70,'For Bill Impact(HideBeforeFile)'!$C$62:$C$71,0),MATCH($O83,'For Bill Impact(HideBeforeFile)'!$D$61:$S$61,0)) -> 5 | O83: =O23 -> REDA
C84: =INDEX('For Bill Impact(HideBeforeFile)'!$D$48:$S$57,MATCH(C70,'For Bill Impact(HideBeforeFile)'!$C$62:$C$71,0),MATCH($O84,'For Bill Impact(HideBeforeFile)'!$D$61:$S$61,0)) -> PGTVA | D84: =INDEX('For Bill Impact(HideBeforeFile)'!$D$62:$S$71,MATCH(C70,'For Bill Impact(HideBeforeFile)'!$C$62:$C$71,0),MATCH($O84,'For Bill Impact(HideBeforeFile)'!$D$61:$S$61,0)) -> cents / m3 | F84: =INDEX('For Bill Impact(HideBeforeFile)'!$D$6:$S$15,MATCH(C70,'For Bill Impact(HideBeforeFile)'!$C$62:$C$71,0),MATCH($O84,'For Bill Impact(HideBeforeFile)'!$D$61:$S$61,0)) -> 0.4355 | H84: =INDEX('For Bill Impact(HideBeforeFile)'!$D$20:$S$29,MATCH(C70,'For Bill Impact(HideBeforeFile)'!$C$62:$C$71,0),MATCH($O84,'For Bill Impact(HideBeforeFile)'!$D$61:$S$61,0)) -> 0.7891024788 | J84: =INDEX('For Bill Impact(HideBeforeFile)'!$D$34:$S$43,MATCH(C70,'For Bill Impact(HideBeforeFile)'!$C$62:$C$71,0),MATCH($O84,'For Bill Impact(HideBeforeFile)'!$D$61:$S$61,0)) -> 6327.575 | O84: =O24 -> PGTVA
C85: =INDEX('For Bill Impact(HideBeforeFile)'!$D$48:$S$57,MATCH(C70,'For Bill Impact(HideBeforeFile)'!$C$62:$C$71,0),MATCH($O85,'For Bill Impact(HideBeforeFile)'!$D$61:$S$61,0)) -> ADVADA | D85: =INDEX('For Bill Impact(HideBeforeFile)'!$D$62:$S$71,MATCH(C70,'For Bill Impact(HideBeforeFile)'!$C$62:$C$71,0),MATCH($O85,'For Bill Impact(HideBeforeFile)'!$D$61:$S$61,0)) -> cents / m3 | F85: =INDEX('For Bill Impact(HideBeforeFile)'!$D$6:$S$15,MATCH(C70,'For Bill Impact(HideBeforeFile)'!$C$62:$C$71,0),MATCH($O85,'For Bill Impact(HideBeforeFile)'!$D$61:$S$61,0)) -> 0 | H85: =INDEX('For Bill Impact(HideBeforeFile)'!$D$20:$S$29,MATCH(C70,'For Bill Impact(HideBeforeFile)'!$C$62:$C$71,0),MATCH($O85,'For Bill Impact(HideBeforeFile)'!$D$61:$S$61,0)) -> -0.02895736312 | J85: =INDEX('For Bill Impact(HideBeforeFile)'!$D$34:$S$43,MATCH(C70,'For Bill Impact(HideBeforeFile)'!$C$62:$C$71,0),MATCH($O85,'For Bill Impact(HideBeforeFile)'!$D$61:$S$61,0)) -> 6327.575 | O85: =O25 -> ADVADA
C86: =INDEX('For Bill Impact(HideBeforeFile)'!$D$48:$S$57,MATCH(C70,'For Bill Impact(HideBeforeFile)'!$C$62:$C$71,0),MATCH($O86,'For Bill Impact(HideBeforeFile)'!$D$61:$S$61,0)) -> LDMDA | D86: =INDEX('For Bill Impact(HideBeforeFile)'!$D$62:$S$71,MATCH(C70,'For Bill Impact(HideBeforeFile)'!$C$62:$C$71,0),MATCH($O86,'For Bill Impact(HideBeforeFile)'!$D$61:$S$61,0)) -> $ / month | F86: =INDEX('For Bill Impact(HideBeforeFile)'!$D$6:$S$15,MATCH(C70,'For Bill Impact(HideBeforeFile)'!$C$62:$C$71,0),MATCH($O86,'For Bill Impact(HideBeforeFile)'!$D$61:$S$61,0)) -> 0 | H86: =INDEX('For Bill Impact(HideBeforeFile)'!$D$20:$S$29,MATCH(C70,'For Bill Impact(HideBeforeFile)'!$C$62:$C$71,0),MATCH($O86,'For Bill Impact(HideBeforeFile)'!$D$61:$S$61,0)) -> 0 | J86: =INDEX('For Bill Impact(HideBeforeFile)'!$D$34:$S$43,MATCH(C70,'For Bill Impact(HideBeforeFile)'!$C$62:$C$71,0),MATCH($O86,'For Bill Impact(HideBeforeFile)'!$D$61:$S$61,0)) -> 5 | O86: =O26 -> LDMDA
C87: =INDEX('For Bill Impact(HideBeforeFile)'!$D$48:$S$57,MATCH(C70,'For Bill Impact(HideBeforeFile)'!$C$62:$C$71,0),MATCH($O87,'For Bill Impact(HideBeforeFile)'!$D$61:$S$61,0)) -> SICDA | D87: =INDEX('For Bill Impact(HideBeforeFile)'!$D$62:$S$71,MATCH(C70,'For Bill Impact(HideBeforeFile)'!$C$62:$C$71,0),MATCH($O87,'For Bill Impact(HideBeforeFile)'!$D$61:$S$61,0)) -> cents / m3 | F87: =INDEX('For Bill Impact(HideBeforeFile)'!$D$6:$S$15,MATCH(C70,'For Bill Impact(HideBeforeFile)'!$C$62:$C$71,0),MATCH($O87,'For Bill Impact(HideBeforeFile)'!$D$61:$S$61,0)) -> 0 | H87: =INDEX('For Bill Impact(HideBeforeFile)'!$D$20:$S$29,MATCH(C70,'For Bill Impact(HideBeforeFile)'!$C$62:$C$71,0),MATCH($O87,'For Bill Impact(HideBeforeFile)'!$D$61:$S$61,0)) -> 0 | J87: =INDEX('For Bill Impact(HideBeforeFile)'!$D$34:$S$43,MATCH(C70,'For Bill Impact(HideBeforeFile)'!$C$62:$C$71,0),MATCH($O87,'For Bill Impact(HideBeforeFile)'!$D$61:$S$61,0)) -> 6327.575 | O87: =O27 -> SICDA
C88: =INDEX('For Bill Impact(HideBeforeFile)'!$D$48:$S$57,MATCH(C70,'For Bill Impact(HideBeforeFile)'!$C$62:$C$71,0),MATCH($O88,'For Bill Impact(HideBeforeFile)'!$D$61:$S$61,0)) -> FCCVA | D88: =INDEX('For Bill Impact(HideBeforeFile)'!$D$62:$S$71,MATCH(C70,'For Bill Impact(HideBeforeFile)'!$C$62:$C$71,0),MATCH($O88,'For Bill Impact(HideBeforeFile)'!$D$61:$S$61,0)) -> $ / month | F88: =INDEX('For Bill Impact(HideBeforeFile)'!$D$6:$S$15,MATCH(C70,'For Bill Impact(HideBeforeFile)'!$C$62:$C$71,0),MATCH($O88,'For Bill Impact(HideBeforeFile)'!$D$61:$S$61,0)) -> 0 | H88: =INDEX('For Bill Impact(HideBeforeFile)'!$D$20:$S$29,MATCH(C70,'For Bill Impact(HideBeforeFile)'!$C$62:$C$71,0),MATCH($O88,'For Bill Impact(HideBeforeFile)'!$D$61:$S$61,0)) -> 0 | J88: =INDEX('For Bill Impact(HideBeforeFile)'!$D$34:$S$43,MATCH(C70,'For Bill Impact(HideBeforeFile)'!$C$62:$C$71,0),MATCH($O88,'For Bill Impact(HideBeforeFile)'!$D$61:$S$61,0)) -> 5 | O88: FCCVA
C89: =INDEX('For Bill Impact(HideBeforeFile)'!$D$48:$S$57,MATCH(C70,'For Bill Impact(HideBeforeFile)'!$C$62:$C$71,0),MATCH($O89,'For Bill Impact(HideBeforeFile)'!$D$61:$S$61,0)) -> GGEADA | D89: =INDEX('For Bill Impact(HideBeforeFile)'!$D$62:$S$71,MATCH(C70,'For Bill Impact(HideBeforeFile)'!$C$62:$C$71,0),MATCH($O89,'For Bill Impact(HideBeforeFile)'!$D$61:$S$61,0)) -> $ / month | F89: =INDEX('For Bill Impact(HideBeforeFile)'!$D$6:$S$15,MATCH(C70,'For Bill Impact(HideBeforeFile)'!$C$62:$C$71,0),MATCH($O89,'For Bill Impact(HideBeforeFile)'!$D$61:$S$61,0)) -> 0 | H89: =INDEX('For Bill Impact(HideBeforeFile)'!$D$20:$S$29,MATCH(C70,'For Bill Impact(HideBeforeFile)'!$C$62:$C$71,0),MATCH($O89,'For Bill Impact(HideBeforeFile)'!$D$61:$S$61,0)) -> 0 | J89: =INDEX('For Bill Impact(HideBeforeFile)'!$D$34:$S$43,MATCH(C70,'For Bill Impact(HideBeforeFile)'!$C$62:$C$71,0),MATCH($O89,'For Bill Impact(HideBeforeFile)'!$D$61:$S$61,0)) -> 5 | O89: GGEADA
C91: =INDEX('For Bill Impact(HideBeforeFile)'!$D$48:$S$57,MATCH(C70,'For Bill Impact(HideBeforeFile)'!$C$62:$C$71,0),MATCH($O91,'For Bill Impact(HideBeforeFile)'!$D$61:$S$61,0)) -> Federal Carbon | D91: =INDEX('For Bill Impact(HideBeforeFile)'!$D$62:$S$71,MATCH(C70,'For Bill Impact(HideBeforeFile)'!$C$62:$C$71,0),MATCH($O91,'For Bill Impact(HideBeforeFile)'!$D$61:$S$61,0)) -> cents / m3 | F91: =INDEX('For Bill Impact(HideBeforeFile)'!$D$6:$S$15,MATCH(C70,'For Bill Impact(HideBeforeFile)'!$C$62:$C$71,0),MATCH($O91,'For Bill Impact(HideBeforeFile)'!$D$61:$S$61,0)) -> 12.39 | H91: =INDEX('For Bill Impact(HideBeforeFile)'!$D$20:$S$29,MATCH(C70,'For Bill Impact(HideBeforeFile)'!$C$62:$C$71,0),MATCH($O91,'For Bill Impact(HideBeforeFile)'!$D$61:$S$61,0)) -> 12.39 | J91: =INDEX('For Bill Impact(HideBeforeFile)'!$D$34:$S$43,MATCH(C70,'For Bill Impact(HideBeforeFile)'!$C$62:$C$71,0),MATCH($O91,'For Bill Impact(HideBeforeFile)'!$D$61:$S$61,0)) -> 6327.575 | O91: ='For Bill Impact(HideBeforeFile)'!$M$5 -> Federal Carbon
C92: =INDEX('For Bill Impact(HideBeforeFile)'!$D$48:$S$57,MATCH(C70,'For Bill Impact(HideBeforeFile)'!$C$62:$C$71,0),MATCH($O92,'For Bill Impact(HideBeforeFile)'!$D$61:$S$61,0)) -> Facility Carbon | D92: =INDEX('For Bill Impact(HideBeforeFile)'!$D$62:$S$71,MATCH(C70,'For Bill Impact(HideBeforeFile)'!$C$62:$C$71,0),MATCH($O92,'For Bill Impact(HideBeforeFile)'!$D$61:$S$61,0)) -> cents / m3 | F92: =INDEX('For Bill Impact(HideBeforeFile)'!$D$6:$S$15,MATCH(C70,'For Bill Impact(HideBeforeFile)'!$C$62:$C$71,0),MATCH($O92,'For Bill Impact(HideBeforeFile)'!$D$61:$S$61,0)) -> 0.0037 | H92: =INDEX('For Bill Impact(HideBeforeFile)'!$D$20:$S$29,MATCH(C70,'For Bill Impact(HideBeforeFile)'!$C$62:$C$71,0),MATCH($O92,'For Bill Impact(HideBeforeFile)'!$D$61:$S$61,0)) -> 0.0037 | J92: =INDEX('For Bill Impact(HideBeforeFile)'!$D$34:$S$43,MATCH(C70,'For Bill Impact(HideBeforeFile)'!$C$62:$C$71,0),MATCH($O92,'For Bill Impact(HideBeforeFile)'!$D$61:$S$61,0)) -> 6327.575 | O92: ='For Bill Impact(HideBeforeFile)'!$N$5 -> Facility Carbon
C95: Commodity | F95: Current | H95: Proposed | J95: Change $ | L95: Change %
F96: =F74*$J74/100 -> 1471.850893 | H96: =H74*$J74/100 -> 1471.850893 | J96: =H96-F96 -> 0 | L96: =IFERROR(J96/F96,"") -> 0
C98: Delivery | F98: Current Rate | H98: Proposed Rate | J98: Change $ | L98: Change %
C99: =IF(C76<>"",C76,"") -> Customer (excl. Bill 32) | F99: =F76*$J76 -> 108.2090226 | H99: =H76*$J76 -> 112.9702196 | J99: =IFERROR(H99-F99,"") -> 4.761196994 | L99: =IFERROR(J99/F99,"") -> 0.044
C100: Bill 32 | F100: =J76 -> 5 | H100: =J76 -> 5 | J100: =IFERROR(H100-F100,"") -> 0 | L100: =IFERROR(J100/F100,"") -> 0
C101: =IF(C77<>"",C77,"") -> Block 1 (First 1,000 m3 per month) | F101: =IFERROR(F77*$J77/100,"") -> 294.4716106 | H101: =IFERROR(H77*$J77/100,"") -> 307.4283614 | J101: =IFERROR(H101-F101,"") -> 12.95675087 | L101: =IFERROR(J101/F101,"") -> 0.044
C102: =IF(C78<>"",C78,"") -> Block 2 (Next 24,000 m3 per month) | F102: =IFERROR(F78*$J78/100,"") -> 741.8630761 | H102: =IFERROR(H78*$J78/100,"") -> 774.5050515 | J102: 32.64197535 | L102: 0.044
C103: =IF(C79<>"",C79,"") -> Block 3 (Over 25,000 m3 per month) | F103: =IFERROR(F79*$J79/100,"") -> 33.00228665 | H103: =IFERROR(H79*$J79/100,"") -> 34.45438726 | J103: 1.452100613 | L103: 0.044
C104: =IF(C80<>"",C80,"") ->  | F104: =IFERROR(F80*$J80/100,"") ->  | H104: =IFERROR(H80*$J80/100,"") -> 
C105: =IF(C81<>"",C81,"") -> System Gas Charge | F105: =IFERROR(F81*$J81/100,"") -> 2.752495125 | H105: =IFERROR(H81*$J81/100,"") -> 2.752495125 | J105: 0 | L105: 0
C106: Total Delivery | F106: =SUM(F99:F105) -> 1185.298491 | H106: =SUM(H99:H105) -> 1237.110515 | J106: =H106-F106 -> 51.81202382 | L106: =IF(ISERROR(J106/F106),0,J106/F106) -> 0.04371221613
C108: Rate Riders
C110: Rate Riders | F110: Current Rate | H110: Proposed Rate | J110: Change $ | L110: Change %
C111: =C83 -> REDA | F111: =F83*$J83 -> 0.1 | H111: =H83*$J83 -> 0.1 | J111: =IFERROR(H111-F111,"") -> 0 | L111: =IFERROR(J111/F111,"") -> 0
C112: PGTVA | F112: =IFERROR(F84*$J84/100,"") -> 27.55658913 | H112: =IFERROR(H84*$J84/100,"") -> 49.93105117 | J112: =IFERROR(H112-F112,"") -> 22.37446205 | L112: =IFERROR(J112/F112,"") -> 0.8119459903
C113: ADVADA | F113: =IFERROR(F85*$J85/100,"") -> 0 | H113: =IFERROR(H85*$J85/100,"") -> -1.832298869 | J113: -1.832298869
C114: LDMDA | F114: =F86*$J86 -> 0 | H114: =H86*$J86 -> 0 | J114: 0
C115: SICDA | F115: =IFERROR(F87*$J87/100,"") -> 0 | H115: =IFERROR(H87*$J87/100,"") -> 0 | J115: 0
C116: FCCVA | F116: =F88*$J88 -> 0 | H116: =H88*$J88 -> 0 | J116: 0 | O116: ='For Bill Impact(HideBeforeFile)'!$I$5 -> LDMDA
C117: GGEADA | F117: 0 | H117: 0 | J117: 0 | O117: ='For Bill Impact(HideBeforeFile)'!$J$5 -> SICDA
C118: Total Rate Riders | F118: =SUM(F111:F117) -> 27.65658913 | H118: =SUM(H111:H117) -> 48.1987523 | J118: =SUM(J111:J117) -> 20.54216318 | L118: =IF(ISERROR(J118/F118),0,J118/F118) -> 0.7427583743
C120: Carbon Tax
C121: Federal Carbon | F121: =F91*$J91/100 -> 783.9865425 | H121: =H91*$J91/100 -> 783.9865425 | J121: =IFERROR(H121-F121,"") -> 0 | L121: =IFERROR(J121/F121,"") -> 0
C122: Facility Carbon | F122: =F92*$J92/100 -> 0.234120275 | H122: =H92*$J92/100 -> 0.234120275 | J122: =IFERROR(H122-F122,"") -> 0 | L122: 0
C123: Total Carbon Tax | F123: =SUM(F121:F122) -> 784.2206628 | H123: =SUM(H121:H122) -> 784.2206628 | J123: =SUM(J121:J122) -> 0 | L123: =IF(ISERROR(J123/F123),0,J123/F123) -> 0
C125: Total Bill Impact | F125: =SUM(F96,F106,F118,F123) -> 3469.026636 | H125: =SUM(H96,H106,H118,H123) -> 3541.380823 | J125: =SUM(J96,J106,J118,J123) -> 72.354187 | L125: =IFERROR(J125/F125,"") -> 0.02085720134
C128: =MID(CELL("filename",A61),FIND("]",CELL("filename",A61))+1,255) -> G1.2 Rate 2 Bill Impact
C130: RATE 2 - Seasonal Service - Annual
C132: Commodity | F132: Current | H132: Proposed | J132: Change $ | L132: Change %
F133: =F36+F96 -> 3700.964859 | H133: =H36+H96 -> 3700.964859 | J133: =H133-F133 -> 0 | L133: =IFERROR(J133/F133,"") -> 0
C135: Delivery | F135: Current Rate | H135: Proposed Rate | J135: Change $ | L135: Change %
C136: =C39 -> Customer (excl. Bill 32) | F136: =IFERROR(F39+F99,"") -> 259.7016542 | H136: =IFERROR(H39+H99,"") -> 271.128527 | J136: =IFERROR(H136-F136,"") -> 11.42687279 | L136: =IFERROR(J136/F136,"") -> 0.044
C137: Bill 32 | F137: 12 | H137: 12 | J137: =IFERROR(H137-F137,"") -> 0 | L137: =IFERROR(J137/F137,"") -> 0
C138: =C41 -> Block 1 (First 1,000 m3 per month) | F138: 522.7320096 | H138: 545.732218 | J138: 23.00020842 | L138: =IFERROR(J138/F138,"") -> 0.044
C139: =C42 -> Block 2 (Next 24,000 m3 per month) | F139: 1381.89309 | H139: 1442.696386 | J139: 60.80329597 | L139: 0.044
C140: =C43 -> Block 3 (Over 25,000 m3 per month) | F140: 137.2140649 | H140: 143.2514837 | J140: 6.037418855 | L140: 0.044
C141: =C44 -> 
C142: =C45 -> System Gas Charge | F142: 6.921141115 | H142: 6.921141115 | J142: 0 | L142: 0
C143: Total Delivery | F143: =SUM(F136:F142) -> 2320.46196 | H143: =SUM(H136:H142) -> 2421.729756 | J143: =H143-F143 -> 101.267796 | L143: =IF(ISERROR(J143/F143),0,J143/F143) -> 0.04364122221
C145: Rate Riders
C147: Rate Riders | F147: Current Rate | H147: Proposed Rate | J147: Change $ | L147: Change %
C148: =C111 -> REDA | F148: =IFERROR(F51+F111,"") -> 0.24 | H148: =IFERROR(H51+H111,"") -> 0.24 | J148: =IFERROR(H148-F148,"") -> 0 | L148: =IFERROR(J148/F148,"") -> 0
C149: PGTVA | F149: 69.2909645 | H149: 125.5514853 | J149: =IFERROR(H149-F149,"") -> 56.26052079 | L149: =IFERROR(J149/F149,"") -> 0.8119459903
C150: ADVADA | F150: 0 | H150: -4.607310263 | J150: -4.607310263
C151: LDMDA | F151: 0 | H151: 0 | J151: 0
C152: SICDA | F152: 0 | H152: 0 | J152: 0
C153: FCCVA | F153: 0 | H153: 0 | J153: 0 | L153: =IFERROR(J153/F153,"") -> 
C154: GGEADA | F154: 0 | H154: 0 | J154: 0
C155: Total Rate Riders | F155: =SUM(F148:F154) -> 69.5309645 | H155: =SUM(H148:H154) -> 121.184175 | J155: =SUM(J148:J154) -> 51.65321052 | L155: =IF(ISERROR(J155/F155),0,J155/F155) -> 0.7428806848
C157: Carbon Tax
C158: Federal Carbon | F158: =IFERROR(F61+F121,"") -> 1971.331918 | H158: =IFERROR(H61+H121,"") -> 1971.331918 | J158: =IFERROR(H158-F158,"") -> 0 | L158: =IFERROR(J158/F158,"") -> 0
C159: Facility Carbon | F159: =IFERROR(F62+F122,"") -> 0.5886947615 | H159: =IFERROR(H62+H122,"") -> 0.5886947615 | J159: =IFERROR(H159-F159,"") -> 0 | L159: 0
C160: Total Carbon Tax | F160: =SUM(F158:F159) -> 1971.920612 | H160: =SUM(H158:H159) -> 1971.920612 | J160: =SUM(J158:J159) -> 0 | L160: =IF(ISERROR(J160/F160),0,J160/F160) -> 0
C162: Total Bill Impact | F162: =SUM(F133,F143,F155,F160) -> 8062.878396 | H162: =SUM(H133,H143,H155,H160) -> 8215.799403 | J162: =SUM(J133,J143,J155,J160) -> 152.9210066 | L162: =IFERROR(J162/F162,"") -> 0.01896605642
C165: =MID(CELL("filename",A121),FIND("]",CELL("filename",A121))+1,255) -> G1.2 Rate 2 Bill Impact

Sheet G1.3 Rate 3 Bill Impact
C2: ='A1.1 Distributor Information'!C3 -> Name of LDC: EPCOR Natural Gas Limited Partnership
C3: ='A1.1 Distributor Information'!C4 -> OEB Application Number: EB-2023-0160 Exhibit A - 2024 IRM Application
C7: Rate 3 Delivery Bill Impact
C10: ='For Bill Impact(HideBeforeFile)'!C11 -> RATE 3 - Special Large Volume Contract Rate | F10: Current | H10: Proposed | J10: Bill Determinant | O10: Look-up
C14: =INDEX('For Bill Impact(HideBeforeFile)'!$D$48:$S$57,MATCH(C10,'For Bill Impact(HideBeforeFile)'!$C$62:$C$71,0),MATCH($O14,'For Bill Impact(HideBeforeFile)'!$D$61:$S$61,0)) -> Commodity | D14: =INDEX('For Bill Impact(HideBeforeFile)'!$D$62:$S$71,MATCH(C10,'For Bill Impact(HideBeforeFile)'!$C$62:$C$71,0),MATCH($O14,'For Bill Impact(HideBeforeFile)'!$D$61:$S$61,0)) -> cents / m3 | F14: =INDEX('For Bill Impact(HideBeforeFile)'!$D$6:$S$15,MATCH(C10,'For Bill Impact(HideBeforeFile)'!$C$62:$C$71,0),MATCH($O14,'For Bill Impact(HideBeforeFile)'!$D$61:$S$61,0)) -> 23.2609 | H14: =INDEX('For Bill Impact(HideBeforeFile)'!$D$20:$S$29,MATCH(C10,'For Bill Impact(HideBeforeFile)'!$C$62:$C$71,0),MATCH($O14,'For Bill Impact(HideBeforeFile)'!$D$61:$S$61,0)) -> 23.2609 | J14: =INDEX('For Bill Impact(HideBeforeFile)'!$D$34:$S$43,MATCH(C10,'For Bill Impact(HideBeforeFile)'!$C$62:$C$71,0),MATCH($O14,'For Bill Impact(HideBeforeFile)'!$D$61:$S$61,0)) -> 311963.02 | O14: ='For Bill Impact(HideBeforeFile)'!$D$5 -> Commodity
C16: =INDEX('For Bill Impact(HideBeforeFile)'!$D$48:$S$57,MATCH(C10,'For Bill Impact(HideBeforeFile)'!$C$62:$C$71,0),MATCH($O16,'For Bill Impact(HideBeforeFile)'!$D$61:$S$61,0)) -> Customer (excl. Bill 32) | D16: =INDEX('For Bill Impact(HideBeforeFile)'!$D$62:$S$71,MATCH(C10,'For Bill Impact(HideBeforeFile)'!$C$62:$C$71,0),MATCH($O16,'For Bill Impact(HideBeforeFile)'!$D$61:$S$61,0)) -> $ / month | F16: =INDEX('For Bill Impact(HideBeforeFile)'!$D$6:$S$15,MATCH(C10,'For Bill Impact(HideBeforeFile)'!$C$62:$C$71,0),MATCH($O16,'For Bill Impact(HideBeforeFile)'!$D$61:$S$61,0)) -> 216.4180452 | H16: =INDEX('For Bill Impact(HideBeforeFile)'!$D$20:$S$29,MATCH(C10,'For Bill Impact(HideBeforeFile)'!$C$62:$C$71,0),MATCH($O16,'For Bill Impact(HideBeforeFile)'!$D$61:$S$61,0)) -> 225.9404392 | J16: =INDEX('For Bill Impact(HideBeforeFile)'!$D$34:$S$43,MATCH(C10,'For Bill Impact(HideBeforeFile)'!$C$62:$C$71,0),MATCH($O16,'For Bill Impact(HideBeforeFile)'!$D$61:$S$61,0)) -> 12 | O16: ='For Bill Impact(HideBeforeFile)'!$O$5 -> Dist. Customer Rate
C17: =INDEX('For Bill Impact(HideBeforeFile)'!$D$48:$S$57,MATCH(C10,'For Bill Impact(HideBeforeFile)'!$C$62:$C$71,0),MATCH($O17,'For Bill Impact(HideBeforeFile)'!$D$61:$S$61,0)) -> Delivery - Firm | D17: =INDEX('For Bill Impact(HideBeforeFile)'!$D$62:$S$71,MATCH(C10,'For Bill Impact(HideBeforeFile)'!$C$62:$C$71,0),MATCH($O17,'For Bill Impact(HideBeforeFile)'!$D$61:$S$61,0)) -> cents / m3 | F17: =INDEX('For Bill Impact(HideBeforeFile)'!$D$6:$S$15,MATCH(C10,'For Bill Impact(HideBeforeFile)'!$C$62:$C$71,0),MATCH($O17,'For Bill Impact(HideBeforeFile)'!$D$61:$S$61,0)) -> 3.896715113 | H17: =INDEX('For Bill Impact(HideBeforeFile)'!$D$20:$S$29,MATCH(C10,'For Bill Impact(HideBeforeFile)'!$C$62:$C$71,0),MATCH($O17,'For Bill Impact(HideBeforeFile)'!$D$61:$S$61,0)) -> 4.068170578 | J17: =INDEX('For Bill Impact(HideBeforeFile)'!$D$34:$S$43,MATCH(C10,'For Bill Impact(HideBeforeFile)'!$C$62:$C$71,0),MATCH($O17,'For Bill Impact(HideBeforeFile)'!$D$61:$S$61,0)) -> 311963.02 | O17: ='For Bill Impact(HideBeforeFile)'!$P$5 -> Dist. Vol. Rate Tier 1
C18: =INDEX('For Bill Impact(HideBeforeFile)'!$D$48:$S$57,MATCH(C10,'For Bill Impact(HideBeforeFile)'!$C$62:$C$71,0),MATCH($O18,'For Bill Impact(HideBeforeFile)'!$D$61:$S$61,0)) ->  | D18: =INDEX('For Bill Impact(HideBeforeFile)'!$D$62:$S$71,MATCH(C10,'For Bill Impact(HideBeforeFile)'!$C$62:$C$71,0),MATCH($O18,'For Bill Impact(HideBeforeFile)'!$D$61:$S$61,0)) ->  | F18: =INDEX('For Bill Impact(HideBeforeFile)'!$D$6:$S$15,MATCH(C10,'For Bill Impact(HideBeforeFile)'!$C$62:$C$71,0),MATCH($O18,'For Bill Impact(HideBeforeFile)'!$D$61:$S$61,0)) ->  | H18: =INDEX('For Bill Impact(HideBeforeFile)'!$D$20:$S$29,MATCH(C10,'For Bill Impact(HideBeforeFile)'!$C$62:$C$71,0),MATCH($O18,'For Bill Impact(HideBeforeFile)'!$D$61:$S$61,0)) ->  | J18: =INDEX('For Bill Impact(HideBeforeFile)'!$D$34:$S$43,MATCH(C10,'For Bill Impact(HideBeforeFile)'!$C$62:$C$71,0),MATCH($O18,'For Bill Impact(HideBeforeFile)'!$D$61:$S$61,0)) ->  | O18: ='For Bill Impact(HideBeforeFile)'!$Q$5 -> Dist. Vol. Rate Tier 2
C19: =INDEX('For Bill Impact(HideBeforeFile)'!$D$48:$S$57,MATCH(C10,'For Bill Impact(HideBeforeFile)'!$C$62:$C$71,0),MATCH($O19,'For Bill Impact(HideBeforeFile)'!$D$61:$S$61,0)) ->  | D19: =INDEX('For Bill Impact(HideBeforeFile)'!$D$62:$S$71,MATCH(C10,'For Bill Impact(HideBeforeFile)'!$C$62:$C$71,0),MATCH($O19,'For Bill Impact(HideBeforeFile)'!$D$61:$S$61,0)) ->  | F19: =INDEX('For Bill Impact(HideBeforeFile)'!$D$6:$S$15,MATCH(C10,'For Bill Impact(HideBeforeFile)'!$C$62:$C$71,0),MATCH($O19,'For Bill Impact(HideBeforeFile)'!$D$61:$S$61,0)) ->  | H19: =INDEX('For Bill Impact(HideBeforeFile)'!$D$20:$S$29,MATCH(C10,'For Bill Impact(HideBeforeFile)'!$C$62:$C$71,0),MATCH($O19,'For Bill Impact(HideBeforeFile)'!$D$61:$S$61,0)) ->  | J19: =INDEX('For Bill Impact(HideBeforeFile)'!$D$34:$S$43,MATCH(C10,'For Bill Impact(HideBeforeFile)'!$C$62:$C$71,0),MATCH($O19,'For Bill Impact(HideBeforeFile)'!$D$61:$S$61,0)) ->  | O19: ='For Bill Impact(HideBeforeFile)'!$R$5 -> Dist. Vol. Rate Tier 3
C20: =INDEX('For Bill Impact(HideBeforeFile)'!$D$48:$S$57,MATCH(C10,'For Bill Impact(HideBeforeFile)'!$C$62:$C$71,0),MATCH($O20,'For Bill Impact(HideBeforeFile)'!$D$61:$S$61,0)) -> Demand - Firm | D20: =INDEX('For Bill Impact(HideBeforeFile)'!$D$62:$S$71,MATCH(C10,'For Bill Impact(HideBeforeFile)'!$C$62:$C$71,0),MATCH($O20,'For Bill Impact(HideBeforeFile)'!$D$61:$S$61,0)) -> cents / m3 | F20: =INDEX('For Bill Impact(HideBeforeFile)'!$D$6:$S$15,MATCH(C10,'For Bill Impact(HideBeforeFile)'!$C$62:$C$71,0),MATCH($O20,'For Bill Impact(HideBeforeFile)'!$D$61:$S$61,0)) -> 31.48601214 | H20: =INDEX('For Bill Impact(HideBeforeFile)'!$D$20:$S$29,MATCH(C10,'For Bill Impact(HideBeforeFile)'!$C$62:$C$71,0),MATCH($O20,'For Bill Impact(HideBeforeFile)'!$D$61:$S$61,0)) -> 32.87139668 | J20: =INDEX('For Bill Impact(HideBeforeFile)'!$D$34:$S$43,MATCH(C10,'For Bill Impact(HideBeforeFile)'!$C$62:$C$71,0),MATCH($O20,'For Bill Impact(HideBeforeFile)'!$D$61:$S$61,0)) -> 42813.44 | O20: ='For Bill Impact(HideBeforeFile)'!$S$5 -> Dist. Capacity Rate
C21: =INDEX('For Bill Impact(HideBeforeFile)'!$D$48:$S$57,MATCH(C10,'For Bill Impact(HideBeforeFile)'!$C$62:$C$71,0),MATCH($O21,'For Bill Impact(HideBeforeFile)'!$D$61:$S$61,0)) -> System Gas Charge | D21: =INDEX('For Bill Impact(HideBeforeFile)'!$D$62:$S$71,MATCH(C10,'For Bill Impact(HideBeforeFile)'!$C$62:$C$71,0),MATCH($O21,'For Bill Impact(HideBeforeFile)'!$D$61:$S$61,0)) -> cents / m3 | F21: =INDEX('For Bill Impact(HideBeforeFile)'!$D$6:$S$15,MATCH(C10,'For Bill Impact(HideBeforeFile)'!$C$62:$C$71,0),MATCH($O21,'For Bill Impact(HideBeforeFile)'!$D$61:$S$61,0)) -> 0.0435 | H21: =INDEX('For Bill Impact(HideBeforeFile)'!$D$20:$S$29,MATCH(C10,'For Bill Impact(HideBeforeFile)'!$C$62:$C$71,0),MATCH($O21,'For Bill Impact(HideBeforeFile)'!$D$61:$S$61,0)) -> 0.0435 | J21: =INDEX('For Bill Impact(HideBeforeFile)'!$D$34:$S$43,MATCH(C10,'For Bill Impact(HideBeforeFile)'!$C$62:$C$71,0),MATCH($O21,'For Bill Impact(HideBeforeFile)'!$D$61:$S$61,0)) -> 311963.02 | O21: ='For Bill Impact(HideBeforeFile)'!$E$5 -> System Gas
C23: =INDEX('For Bill Impact(HideBeforeFile)'!$D$48:$S$57,MATCH(C10,'For Bill Impact(HideBeforeFile)'!$C$62:$C$71,0),MATCH($O23,'For Bill Impact(HideBeforeFile)'!$D$61:$S$61,0)) -> REDA | D23: =INDEX('For Bill Impact(HideBeforeFile)'!$D$62:$S$71,MATCH(C10,'For Bill Impact(HideBeforeFile)'!$C$62:$C$71,0),MATCH($O23,'For Bill Impact(HideBeforeFile)'!$D$61:$S$61,0)) -> $ / month | F23: =INDEX('For Bill Impact(HideBeforeFile)'!$D$6:$S$15,MATCH(C10,'For Bill Impact(HideBeforeFile)'!$C$62:$C$71,0),MATCH($O23,'For Bill Impact(HideBeforeFile)'!$D$61:$S$61,0)) -> 0.02 | H23: =INDEX('For Bill Impact(HideBeforeFile)'!$D$20:$S$29,MATCH(C10,'For Bill Impact(HideBeforeFile)'!$C$62:$C$71,0),MATCH($O23,'For Bill Impact(HideBeforeFile)'!$D$61:$S$61,0)) -> 0.02 | J23: =INDEX('For Bill Impact(HideBeforeFile)'!$D$34:$S$43,MATCH(C10,'For Bill Impact(HideBeforeFile)'!$C$62:$C$71,0),MATCH($O23,'For Bill Impact(HideBeforeFile)'!$D$61:$S$61,0)) -> 12 | O23: ='For Bill Impact(HideBeforeFile)'!$F$5 -> REDA
C24: =INDEX('For Bill Impact(HideBeforeFile)'!$D$48:$S$57,MATCH(C10,'For Bill Impact(HideBeforeFile)'!$C$62:$C$71,0),MATCH($O24,'For Bill Impact(HideBeforeFile)'!$D$61:$S$61,0)) -> PGTVA | D24: =INDEX('For Bill Impact(HideBeforeFile)'!$D$62:$S$71,MATCH(C10,'For Bill Impact(HideBeforeFile)'!$C$62:$C$71,0),MATCH($O24,'For Bill Impact(HideBeforeFile)'!$D$61:$S$61,0)) -> cents / m3 | F24: =INDEX('For Bill Impact(HideBeforeFile)'!$D$6:$S$15,MATCH(C10,'For Bill Impact(HideBeforeFile)'!$C$62:$C$71,0),MATCH($O24,'For Bill Impact(HideBeforeFile)'!$D$61:$S$61,0)) -> 0.4355 | H24: =INDEX('For Bill Impact(HideBeforeFile)'!$D$20:$S$29,MATCH(C10,'For Bill Impact(HideBeforeFile)'!$C$62:$C$71,0),MATCH($O24,'For Bill Impact(HideBeforeFile)'!$D$61:$S$61,0)) -> 0.7891024788 | J24: =INDEX('For Bill Impact(HideBeforeFile)'!$D$34:$S$43,MATCH(C10,'For Bill Impact(HideBeforeFile)'!$C$62:$C$71,0),MATCH($O24,'For Bill Impact(HideBeforeFile)'!$D$61:$S$61,0)) -> 311963.02 | O24: ='For Bill Impact(HideBeforeFile)'!$G$5 -> PGTVA
C25: =INDEX('For Bill Impact(HideBeforeFile)'!$D$48:$S$57,MATCH(C10,'For Bill Impact(HideBeforeFile)'!$C$62:$C$71,0),MATCH($O25,'For Bill Impact(HideBeforeFile)'!$D$61:$S$61,0)) -> ADVADA | D25: =INDEX('For Bill Impact(HideBeforeFile)'!$D$62:$S$71,MATCH(C10,'For Bill Impact(HideBeforeFile)'!$C$62:$C$71,0),MATCH($O25,'For Bill Impact(HideBeforeFile)'!$D$61:$S$61,0)) -> cents / m3 | F25: =INDEX('For Bill Impact(HideBeforeFile)'!$D$6:$S$15,MATCH(C10,'For Bill Impact(HideBeforeFile)'!$C$62:$C$71,0),MATCH($O25,'For Bill Impact(HideBeforeFile)'!$D$61:$S$61,0)) -> 0 | H25: =INDEX('For Bill Impact(HideBeforeFile)'!$D$20:$S$29,MATCH(C10,'For Bill Impact(HideBeforeFile)'!$C$62:$C$71,0),MATCH($O25,'For Bill Impact(HideBeforeFile)'!$D$61:$S$61,0)) -> -0.02895736312 | J25: =INDEX('For Bill Impact(HideBeforeFile)'!$D$34:$S$43,MATCH(C10,'For Bill Impact(HideBeforeFile)'!$C$62:$C$71,0),MATCH($O25,'For Bill Impact(HideBeforeFile)'!$D$61:$S$61,0)) -> 311963.02 | O25: ='For Bill Impact(HideBeforeFile)'!$H$5 -> ADVADA
C26: =INDEX('For Bill Impact(HideBeforeFile)'!$D$48:$S$57,MATCH(C10,'For Bill Impact(HideBeforeFile)'!$C$62:$C$71,0),MATCH($O26,'For Bill Impact(HideBeforeFile)'!$D$61:$S$61,0)) -> LDMDA | D26: =INDEX('For Bill Impact(HideBeforeFile)'!$D$62:$S$71,MATCH(C10,'For Bill Impact(HideBeforeFile)'!$C$62:$C$71,0),MATCH($O26,'For Bill Impact(HideBeforeFile)'!$D$61:$S$61,0)) -> $ / month | F26: =INDEX('For Bill Impact(HideBeforeFile)'!$D$6:$S$15,MATCH(C10,'For Bill Impact(HideBeforeFile)'!$C$62:$C$71,0),MATCH($O26,'For Bill Impact(HideBeforeFile)'!$D$61:$S$61,0)) -> 0 | H26: =INDEX('For Bill Impact(HideBeforeFile)'!$D$20:$S$29,MATCH(C10,'For Bill Impact(HideBeforeFile)'!$C$62:$C$71,0),MATCH($O26,'For Bill Impact(HideBeforeFile)'!$D$61:$S$61,0)) -> 0 | J26: =INDEX('For Bill Impact(HideBeforeFile)'!$D$34:$S$43,MATCH(C10,'For Bill Impact(HideBeforeFile)'!$C$62:$C$71,0),MATCH($O26,'For Bill Impact(HideBeforeFile)'!$D$61:$S$61,0)) -> 12 | O26: LDMDA
C27: =INDEX('For Bill Impact(HideBeforeFile)'!$D$48:$S$57,MATCH(C10,'For Bill Impact(HideBeforeFile)'!$C$62:$C$71,0),MATCH($O27,'For Bill Impact(HideBeforeFile)'!$D$61:$S$61,0)) -> SICDA | D27: =INDEX('For Bill Impact(HideBeforeFile)'!$D$62:$S$71,MATCH(C10,'For Bill Impact(HideBeforeFile)'!$C$62:$C$71,0),MATCH($O27,'For Bill Impact(HideBeforeFile)'!$D$61:$S$61,0)) -> cents / m3 | F27: =INDEX('For Bill Impact(HideBeforeFile)'!$D$6:$S$15,MATCH(C10,'For Bill Impact(HideBeforeFile)'!$C$62:$C$71,0),MATCH($O27,'For Bill Impact(HideBeforeFile)'!$D$61:$S$61,0)) -> 0 | H27: =INDEX('For Bill Impact(HideBeforeFile)'!$D$20:$S$29,MATCH(C10,'For Bill Impact(HideBeforeFile)'!$C$62:$C$71,0),MATCH($O27,'For Bill Impact(HideBeforeFile)'!$D$61:$S$61,0)) -> 0 | J27: =INDEX('For Bill Impact(HideBeforeFile)'!$D$34:$S$43,MATCH(C10,'For Bill Impact(HideBeforeFile)'!$C$62:$C$71,0),MATCH($O27,'For Bill Impact(HideBeforeFile)'!$D$61:$S$61,0)) -> 311963.02 | O27: SICDA
C28: =INDEX('For Bill Impact(HideBeforeFile)'!$D$48:$S$57,MATCH(C10,'For Bill Impact(HideBeforeFile)'!$C$62:$C$71,0),MATCH($O28,'For Bill Impact(HideBeforeFile)'!$D$61:$S$61,0)) -> FCCVA | D28: =INDEX('For Bill Impact(HideBeforeFile)'!$D$62:$S$71,MATCH(C10,'For Bill Impact(HideBeforeFile)'!$C$62:$C$71,0),MATCH($O28,'For Bill Impact(HideBeforeFile)'!$D$61:$S$61,0)) -> $ / month | F28: =INDEX('For Bill Impact(HideBeforeFile)'!$D$6:$S$15,MATCH(C10,'For Bill Impact(HideBeforeFile)'!$C$62:$C$71,0),MATCH($O28,'For Bill Impact(HideBeforeFile)'!$D$61:$S$61,0)) -> 0 | H28: =INDEX('For Bill Impact(HideBeforeFile)'!$D$20:$S$29,MATCH(C10,'For Bill Impact(HideBeforeFile)'!$C$62:$C$71,0),MATCH($O28,'For Bill Impact(HideBeforeFile)'!$D$61:$S$61,0)) -> 0 | J28: =INDEX('For Bill Impact(HideBeforeFile)'!$D$34:$S$43,MATCH(C10,'For Bill Impact(HideBeforeFile)'!$C$62:$C$71,0),MATCH($O28,'For Bill Impact(HideBeforeFile)'!$D$61:$S$61,0)) -> 12 | O28: FCCVA
C29: =INDEX('For Bill Impact(HideBeforeFile)'!$D$48:$S$57,MATCH(C10,'For Bill Impact(HideBeforeFile)'!$C$62:$C$71,0),MATCH($O29,'For Bill Impact(HideBeforeFile)'!$D$61:$S$61,0)) -> GGEADA | D29: =INDEX('For Bill Impact(HideBeforeFile)'!$D$62:$S$71,MATCH(C10,'For Bill Impact(HideBeforeFile)'!$C$62:$C$71,0),MATCH($O29,'For Bill Impact(HideBeforeFile)'!$D$61:$S$61,0)) -> $ / month | F29: =INDEX('For Bill Impact(HideBeforeFile)'!$D$6:$S$15,MATCH(C10,'For Bill Impact(HideBeforeFile)'!$C$62:$C$71,0),MATCH($O29,'For Bill Impact(HideBeforeFile)'!$D$61:$S$61,0)) -> 0 | H29: =INDEX('For Bill Impact(HideBeforeFile)'!$D$20:$S$29,MATCH(C10,'For Bill Impact(HideBeforeFile)'!$C$62:$C$71,0),MATCH($O29,'For Bill Impact(HideBeforeFile)'!$D$61:$S$61,0)) -> 0 | J29: =INDEX('For Bill Impact(HideBeforeFile)'!$D$34:$S$43,MATCH(C10,'For Bill Impact(HideBeforeFile)'!$C$62:$C$71,0),MATCH($O29,'For Bill Impact(HideBeforeFile)'!$D$61:$S$61,0)) -> 12 | O29: GGEADA
C31: =INDEX('For Bill Impact(HideBeforeFile)'!$D$48:$S$57,MATCH(C10,'For Bill Impact(HideBeforeFile)'!$C$62:$C$71,0),MATCH($O31,'For Bill Impact(HideBeforeFile)'!$D$61:$S$61,0)) -> Federal Carbon | D31: =INDEX('For Bill Impact(HideBeforeFile)'!$D$62:$S$71,MATCH(C10,'For Bill Impact(HideBeforeFile)'!$C$62:$C$71,0),MATCH($O31,'For Bill Impact(HideBeforeFile)'!$D$61:$S$61,0)) -> cents / m3 | F31: =INDEX('For Bill Impact(HideBeforeFile)'!$D$6:$S$15,MATCH(C10,'For Bill Impact(HideBeforeFile)'!$C$62:$C$71,0),MATCH($O31,'For Bill Impact(HideBeforeFile)'!$D$61:$S$61,0)) -> 12.39 | H31: =INDEX('For Bill Impact(HideBeforeFile)'!$D$20:$S$29,MATCH(C10,'For Bill Impact(HideBeforeFile)'!$C$62:$C$71,0),MATCH($O31,'For Bill Impact(HideBeforeFile)'!$D$61:$S$61,0)) -> 12.39 | J31: =INDEX('For Bill Impact(HideBeforeFile)'!$D$34:$S$43,MATCH(C10,'For Bill Impact(HideBeforeFile)'!$C$62:$C$71,0),MATCH($O31,'For Bill Impact(HideBeforeFile)'!$D$61:$S$61,0)) -> 311963.02 | O31: ='For Bill Impact(HideBeforeFile)'!$M$5 -> Federal Carbon
C32: =INDEX('For Bill Impact(HideBeforeFile)'!$D$48:$S$57,MATCH(C10,'For Bill Impact(HideBeforeFile)'!$C$62:$C$71,0),MATCH($O32,'For Bill Impact(HideBeforeFile)'!$D$61:$S$61,0)) -> Facility Carbon | D32: =INDEX('For Bill Impact(HideBeforeFile)'!$D$62:$S$71,MATCH(C10,'For Bill Impact(HideBeforeFile)'!$C$62:$C$71,0),MATCH($O32,'For Bill Impact(HideBeforeFile)'!$D$61:$S$61,0)) -> cents / m3 | F32: =INDEX('For Bill Impact(HideBeforeFile)'!$D$6:$S$15,MATCH(C10,'For Bill Impact(HideBeforeFile)'!$C$62:$C$71,0),MATCH($O32,'For Bill Impact(HideBeforeFile)'!$D$61:$S$61,0)) -> 0.0037 | H32: =INDEX('For Bill Impact(HideBeforeFile)'!$D$20:$S$29,MATCH(C10,'For Bill Impact(HideBeforeFile)'!$C$62:$C$71,0),MATCH($O32,'For Bill Impact(HideBeforeFile)'!$D$61:$S$61,0)) -> 0.0037 | J32: =INDEX('For Bill Impact(HideBeforeFile)'!$D$34:$S$43,MATCH(C10,'For Bill Impact(HideBeforeFile)'!$C$62:$C$71,0),MATCH($O32,'For Bill Impact(HideBeforeFile)'!$D$61:$S$61,0)) -> 311963.02 | O32: ='For Bill Impact(HideBeforeFile)'!$N$5 -> Facility Carbon
C35: Commodity | F35: Current | H35: Proposed | J35: Change $ | L35: Change %
F36: =F14*$J14/100 -> 72565.40612 | H36: =H14*$J14/100 -> 72565.40612 | J36: =H36-F36 -> 0 | L36: =IFERROR(J36/F36,"") -> 0 | O36: ='For Bill Impact(HideBeforeFile)'!$D$5 -> Commodity
C38: Delivery | F38: Current Rate | H38: Proposed Rate | J38: Change $ | L38: Change %
C39: =IF(C16<>"",C16,"") -> Customer (excl. Bill 32) | F39: =F16*$J16 -> 2597.016542 | H39: =H16*$J16 -> 2711.28527 | J39: =IFERROR(H39-F39,"") -> 114.2687279 | L39: =IFERROR(J39/F39,"") -> 0.044 | O39: ='For Bill Impact(HideBeforeFile)'!$O$5 -> Dist. Customer Rate
C40: Bill 32 | F40: =J16 -> 12 | H40: =J16 -> 12 | J40: =IFERROR(H40-F40,"") -> 0 | L40: =IFERROR(J40/F40,"") -> 0
C41: =IF(C17<>"",C17,"") -> Delivery - Firm | F41: =IFERROR(F17*$J17/100,"") -> 12156.31015 | H41: =IFERROR(H17*$J17/100,"") -> 12691.18779 | J41: =IFERROR(H41-F41,"") -> 534.8776465 | L41: =IFERROR(J41/F41,"") -> 0.044 | O41: ='For Bill Impact(HideBeforeFile)'!$P$5 -> Dist. Vol. Rate Tier 1
C42: =IF(C18<>"",C18,"") ->  | F42: =IFERROR(F18*$J18/100,"") ->  | H42: =IFERROR(H18*$J18/100,"") ->  | O42: ='For Bill Impact(HideBeforeFile)'!$Q$5 -> Dist. Vol. Rate Tier 2
C43: =IF(C19<>"",C19,"") ->  | F43: =IFERROR(F19*$J19/100,"") ->  | H43: =IFERROR(H19*$J19/100,"") ->  | O43: ='For Bill Impact(HideBeforeFile)'!$R$5 -> Dist. Vol. Rate Tier 3
C44: =IF(C20<>"",C20,"") -> Demand - Firm | F44: =IFERROR(F20*$J20/100,"") -> 13480.24492 | H44: =IFERROR(H20*$J20/100,"") -> 14073.37569 | J44: 593.1307763 | L44: 0.044 | O44: ='For Bill Impact(HideBeforeFile)'!$S$5 -> Dist. Capacity Rate
C45: =IF(C21<>"",C21,"") -> System Gas Charge | F45: =IFERROR(F21*$J21/100,"") -> 135.7039137 | H45: =IFERROR(H21*$J21/100,"") -> 135.7039137 | J45: 0 | L45: 0 | O45: ='For Bill Impact(HideBeforeFile)'!$E$5 -> System Gas
C46: Total Delivery | F46: =SUM(F39:F45) -> 28381.27552 | H46: =SUM(H39:H45) -> 29623.55267 | J46: =H46-F46 -> 1242.277151 | L46: =IF(ISERROR(J46/F46),0,J46/F46) -> 0.04377101198
C48: Rate Riders
C50: Rate Riders | F50: Current Rate | H50: Proposed Rate | J50: Change $ | L50: Change %
C51: =C23 -> REDA | F51: =F23*$J23 -> 0.24 | H51: =H23*$J23 -> 0.24 | J51: =IFERROR(H51-F51,"") -> 0 | L51: =IFERROR(J51/F51,"") -> 0 | O51: ='For Bill Impact(HideBeforeFile)'!$F$5 -> REDA
C52: PGTVA | F52: =IFERROR(F24*$J24/100,"") -> 1358.598952 | H52: =IFERROR(H24*$J24/100,"") -> 2461.707924 | J52: =IFERROR(H52-F52,"") -> 1103.108972 | L52: =IFERROR(J52/F52,"") -> 0.8119459903 | O52: ='For Bill Impact(HideBeforeFile)'!$G$5 -> PGTVA
C53: ADVADA | F53: =IFERROR(F25*$J25/100,"") -> 0 | H53: =IFERROR(H25*$J25/100,"") -> -90.33626449 | J53: -90.33626449 | O53: ='For Bill Impact(HideBeforeFile)'!$H$5 -> ADVADA
C54: LDMDA | F54: =F26*$J26 -> 0 | H54: =H26*$J26 -> 0 | J54: 0 | O54: ='For Bill Impact(HideBeforeFile)'!$I$5 -> LDMDA
C55: SICDA | F55: =IFERROR(F27*$J27/100,"") -> 0 | H55: =IFERROR(H27*$J27/100,"") -> 0 | J55: 0 | O55: ='For Bill Impact(HideBeforeFile)'!$J$5 -> SICDA
C56: FCCVA | F56: =F28*$J28 -> 0 | H56: =H28*$J28 -> 0 | J56: 0 | O56: ='For Bill Impact(HideBeforeFile)'!$K$5 -> FCCVA
C57: GGEADA | F57: 0 | H57: 0 | J57: 0 | O57: ='For Bill Impact(HideBeforeFile)'!$L$5 -> GGEADA
C58: Total Rate Riders | F58: =SUM(F51:F57) -> 1358.838952 | H58: =SUM(H51:H57) -> 2371.611659 | J58: =SUM(J51:J57) -> 1012.772707 | L58: =IF(ISERROR(J58/F58),0,J58/F58) -> 0.7453221042
C60: Carbon Tax
C61: Federal Carbon | F61: =F31*$J31/100 -> 38652.21818 | H61: =H31*$J31/100 -> 38652.21818 | J61: =IFERROR(H61-F61,"") -> 0 | L61: =IFERROR(J61/F61,"") -> 0
C62: Facility Carbon | F62: =F32*$J32/100 -> 11.54263174 | H62: =H32*$J32/100 -> 11.54263174 | J62: =IFERROR(H62-F62,"") -> 0 | L62: 0
C63: Total Carbon Tax | F63: =SUM(F61:F62) -> 38663.76081 | H63: =SUM(H61:H62) -> 38663.76081 | J63: =SUM(J61:J62) -> 0 | L63: =IF(ISERROR(J63/F63),0,J63/F63) -> 0
C65: Total Bill Impact | F65: =SUM(F36,F46,F58,F63) -> 140969.2814 | H65: =SUM(H36,H46,H58,H63) -> 143224.3313 | J65: =SUM(J36,J46,J58,J63) -> 2255.049858 | L65: =IFERROR(J65/F65,"") -> 0.01599674649
C68: =MID(CELL("filename",A1),FIND("]",CELL("filename",A1))+1,255) -> G1.3 Rate 3 Bill Impact

Sheet G1.4 Rate 4 Bill Impact
C2: ='A1.1 Distributor Information'!C3 -> Name of LDC: EPCOR Natural Gas Limited Partnership
C3: ='A1.1 Distributor Information'!C4 -> OEB Application Number: EB-2023-0160 Exhibit A - 2024 IRM Application
C7: Rate 4 Delivery Bill Impact
C10: ='For Bill Impact(HideBeforeFile)'!C12 -> RATE 4 - General Service Peaking - Apr to Dec | F10: Current | H10: Proposed | J10: Bill Determinant | O10: Look-up
C14: =INDEX('For Bill Impact(HideBeforeFile)'!$D$48:$S$57,MATCH(C10,'For Bill Impact(HideBeforeFile)'!$C$62:$C$71,0),MATCH($O14,'For Bill Impact(HideBeforeFile)'!$D$61:$S$61,0)) -> Commodity | D14: =INDEX('For Bill Impact(HideBeforeFile)'!$D$62:$S$71,MATCH(C10,'For Bill Impact(HideBeforeFile)'!$C$62:$C$71,0),MATCH($O14,'For Bill Impact(HideBeforeFile)'!$D$61:$S$61,0)) -> cents / m3 | F14: =INDEX('For Bill Impact(HideBeforeFile)'!$D$6:$S$15,MATCH(C10,'For Bill Impact(HideBeforeFile)'!$C$62:$C$71,0),MATCH($O14,'For Bill Impact(HideBeforeFile)'!$D$61:$S$61,0)) -> 23.2609 | H14: =INDEX('For Bill Impact(HideBeforeFile)'!$D$20:$S$29,MATCH(C10,'For Bill Impact(HideBeforeFile)'!$C$62:$C$71,0),MATCH($O14,'For Bill Impact(HideBeforeFile)'!$D$61:$S$61,0)) -> 23.2609 | J14: =INDEX('For Bill Impact(HideBeforeFile)'!$D$34:$S$43,MATCH(C10,'For Bill Impact(HideBeforeFile)'!$C$62:$C$71,0),MATCH($O14,'For Bill Impact(HideBeforeFile)'!$D$61:$S$61,0)) -> 37006.00732 | O14: ='For Bill Impact(HideBeforeFile)'!$D$5 -> Commodity
C16: =INDEX('For Bill Impact(HideBeforeFile)'!$D$48:$S$57,MATCH(C10,'For Bill Impact(HideBeforeFile)'!$C$62:$C$71,0),MATCH($O16,'For Bill Impact(HideBeforeFile)'!$D$61:$S$61,0)) -> Customer (excl. Bill 32) | D16: =INDEX('For Bill Impact(HideBeforeFile)'!$D$62:$S$71,MATCH(C10,'For Bill Impact(HideBeforeFile)'!$C$62:$C$71,0),MATCH($O16,'For Bill Impact(HideBeforeFile)'!$D$61:$S$61,0)) -> $ / month | F16: =INDEX('For Bill Impact(HideBeforeFile)'!$D$6:$S$15,MATCH(C10,'For Bill Impact(HideBeforeFile)'!$C$62:$C$71,0),MATCH($O16,'For Bill Impact(HideBeforeFile)'!$D$61:$S$61,0)) -> 21.64180452 | H16: =INDEX('For Bill Impact(HideBeforeFile)'!$D$20:$S$29,MATCH(C10,'For Bill Impact(HideBeforeFile)'!$C$62:$C$71,0),MATCH($O16,'For Bill Impact(HideBeforeFile)'!$D$61:$S$61,0)) -> 22.59404392 | J16: =INDEX('For Bill Impact(HideBeforeFile)'!$D$34:$S$43,MATCH(C10,'For Bill Impact(HideBeforeFile)'!$C$62:$C$71,0),MATCH($O16,'For Bill Impact(HideBeforeFile)'!$D$61:$S$61,0)) -> 9 | O16: ='For Bill Impact(HideBeforeFile)'!$O$5 -> Dist. Customer Rate
C17: =INDEX('For Bill Impact(HideBeforeFile)'!$D$48:$S$57,MATCH(C10,'For Bill Impact(HideBeforeFile)'!$C$62:$C$71,0),MATCH($O17,'For Bill Impact(HideBeforeFile)'!$D$61:$S$61,0)) -> Block 1 (First 1,000 m3 per month) | D17: =INDEX('For Bill Impact(HideBeforeFile)'!$D$62:$S$71,MATCH(C10,'For Bill Impact(HideBeforeFile)'!$C$62:$C$71,0),MATCH($O17,'For Bill Impact(HideBeforeFile)'!$D$61:$S$61,0)) -> cents / m3 | F17: =INDEX('For Bill Impact(HideBeforeFile)'!$D$6:$S$15,MATCH(C10,'For Bill Impact(HideBeforeFile)'!$C$62:$C$71,0),MATCH($O17,'For Bill Impact(HideBeforeFile)'!$D$61:$S$61,0)) -> 19.76264663 | H17: =INDEX('For Bill Impact(HideBeforeFile)'!$D$20:$S$29,MATCH(C10,'For Bill Impact(HideBeforeFile)'!$C$62:$C$71,0),MATCH($O17,'For Bill Impact(HideBeforeFile)'!$D$61:$S$61,0)) -> 20.63220309 | J17: =INDEX('For Bill Impact(HideBeforeFile)'!$D$34:$S$43,MATCH(C10,'For Bill Impact(HideBeforeFile)'!$C$62:$C$71,0),MATCH($O17,'For Bill Impact(HideBeforeFile)'!$D$61:$S$61,0)) -> 2542.878049 | O17: ='For Bill Impact(HideBeforeFile)'!$P$5 -> Dist. Vol. Rate Tier 1
C18: =INDEX('For Bill Impact(HideBeforeFile)'!$D$48:$S$57,MATCH(C10,'For Bill Impact(HideBeforeFile)'!$C$62:$C$71,0),MATCH($O18,'For Bill Impact(HideBeforeFile)'!$D$61:$S$61,0)) -> Block 2 (Over 1,000 m3 per month) | D18: =INDEX('For Bill Impact(HideBeforeFile)'!$D$62:$S$71,MATCH(C10,'For Bill Impact(HideBeforeFile)'!$C$62:$C$71,0),MATCH($O18,'For Bill Impact(HideBeforeFile)'!$D$61:$S$61,0)) -> cents / m3 | F18: =INDEX('For Bill Impact(HideBeforeFile)'!$D$6:$S$15,MATCH(C10,'For Bill Impact(HideBeforeFile)'!$C$62:$C$71,0),MATCH($O18,'For Bill Impact(HideBeforeFile)'!$D$61:$S$61,0)) -> 12.12557845 | H18: =INDEX('For Bill Impact(HideBeforeFile)'!$D$20:$S$29,MATCH(C10,'For Bill Impact(HideBeforeFile)'!$C$62:$C$71,0),MATCH($O18,'For Bill Impact(HideBeforeFile)'!$D$61:$S$61,0)) -> 12.6591039 | J18: =INDEX('For Bill Impact(HideBeforeFile)'!$D$34:$S$43,MATCH(C10,'For Bill Impact(HideBeforeFile)'!$C$62:$C$71,0),MATCH($O18,'For Bill Impact(HideBeforeFile)'!$D$61:$S$61,0)) -> 34463.12927 | O18: ='For Bill Impact(HideBeforeFile)'!$Q$5 -> Dist. Vol. Rate Tier 2
C19: =INDEX('For Bill Impact(HideBeforeFile)'!$D$48:$S$57,MATCH(C10,'For Bill Impact(HideBeforeFile)'!$C$62:$C$71,0),MATCH($O19,'For Bill Impact(HideBeforeFile)'!$D$61:$S$61,0)) ->  | D19: =INDEX('For Bill Impact(HideBeforeFile)'!$D$62:$S$71,MATCH(C10,'For Bill Impact(HideBeforeFile)'!$C$62:$C$71,0),MATCH($O19,'For Bill Impact(HideBeforeFile)'!$D$61:$S$61,0)) ->  | F19: =INDEX('For Bill Impact(HideBeforeFile)'!$D$6:$S$15,MATCH(C10,'For Bill Impact(HideBeforeFile)'!$C$62:$C$71,0),MATCH($O19,'For Bill Impact(HideBeforeFile)'!$D$61:$S$61,0)) ->  | H19: =INDEX('For Bill Impact(HideBeforeFile)'!$D$20:$S$29,MATCH(C10,'For Bill Impact(HideBeforeFile)'!$C$62:$C$71,0),MATCH($O19,'For Bill Impact(HideBeforeFile)'!$D$61:$S$61,0)) ->  | J19: =INDEX('For Bill Impact(HideBeforeFile)'!$D$34:$S$43,MATCH(C10,'For Bill Impact(HideBeforeFile)'!$C$62:$C$71,0),MATCH($O19,'For Bill Impact(HideBeforeFile)'!$D$61:$S$61,0)) ->  | O19: ='For Bill Impact(HideBeforeFile)'!$R$5 -> Dist. Vol. Rate Tier 3
C20: =INDEX('For Bill Impact(HideBeforeFile)'!$D$48:$S$57,MATCH(C10,'For Bill Impact(HideBeforeFile)'!$C$62:$C$71,0),MATCH($O20,'For Bill Impact(HideBeforeFile)'!$D$61:$S$61,0)) ->  | D20: =INDEX('For Bill Impact(HideBeforeFile)'!$D$62:$S$71,MATCH(C10,'For Bill Impact(HideBeforeFile)'!$C$62:$C$71,0),MATCH($O20,'For Bill Impact(HideBeforeFile)'!$D$61:$S$61,0)) ->  | F20: =INDEX('For Bill Impact(HideBeforeFile)'!$D$6:$S$15,MATCH(C10,'For Bill Impact(HideBeforeFile)'!$C$62:$C$71,0),MATCH($O20,'For Bill Impact(HideBeforeFile)'!$D$61:$S$61,0)) ->  | H20: =INDEX('For Bill Impact(HideBeforeFile)'!$D$20:$S$29,MATCH(C10,'For Bill Impact(HideBeforeFile)'!$C$62:$C$71,0),MATCH($O20,'For Bill Impact(HideBeforeFile)'!$D$61:$S$61,0)) ->  | J20: =INDEX('For Bill Impact(HideBeforeFile)'!$D$34:$S$43,MATCH(C10,'For Bill Impact(HideBeforeFile)'!$C$62:$C$71,0),MATCH($O20,'For Bill Impact(HideBeforeFile)'!$D$61:$S$61,0)) ->  | O20: ='For Bill Impact(HideBeforeFile)'!$S$5 -> Dist. Capacity Rate
C21: =INDEX('For Bill Impact(HideBeforeFile)'!$D$48:$S$57,MATCH(C10,'For Bill Impact(HideBeforeFile)'!$C$62:$C$71,0),MATCH($O21,'For Bill Impact(HideBeforeFile)'!$D$61:$S$61,0)) -> System Gas Charge | D21: =INDEX('For Bill Impact(HideBeforeFile)'!$D$62:$S$71,MATCH(C10,'For Bill Impact(HideBeforeFile)'!$C$62:$C$71,0),MATCH($O21,'For Bill Impact(HideBeforeFile)'!$D$61:$S$61,0)) -> cents / m3 | F21: =INDEX('For Bill Impact(HideBeforeFile)'!$D$6:$S$15,MATCH(C10,'For Bill Impact(HideBeforeFile)'!$C$62:$C$71,0),MATCH($O21,'For Bill Impact(HideBeforeFile)'!$D$61:$S$61,0)) -> 0.0435 | H21: =INDEX('For Bill Impact(HideBeforeFile)'!$D$20:$S$29,MATCH(C10,'For Bill Impact(HideBeforeFile)'!$C$62:$C$71,0),MATCH($O21,'For Bill Impact(HideBeforeFile)'!$D$61:$S$61,0)) -> 0.0435 | J21: =INDEX('For Bill Impact(HideBeforeFile)'!$D$34:$S$43,MATCH(C10,'For Bill Impact(HideBeforeFile)'!$C$62:$C$71,0),MATCH($O21,'For Bill Impact(HideBeforeFile)'!$D$61:$S$61,0)) -> 37006.00732 | O21: ='For Bill Impact(HideBeforeFile)'!$E$5 -> System Gas
C23: =INDEX('For Bill Impact(HideBeforeFile)'!$D$48:$S$57,MATCH(C10,'For Bill Impact(HideBeforeFile)'!$C$62:$C$71,0),MATCH($O23,'For Bill Impact(HideBeforeFile)'!$D$61:$S$61,0)) -> REDA | D23: =INDEX('For Bill Impact(HideBeforeFile)'!$D$62:$S$71,MATCH(C10,'For Bill Impact(HideBeforeFile)'!$C$62:$C$71,0),MATCH($O23,'For Bill Impact(HideBeforeFile)'!$D$61:$S$61,0)) -> $ / month | F23: =INDEX('For Bill Impact(HideBeforeFile)'!$D$6:$S$15,MATCH(C10,'For Bill Impact(HideBeforeFile)'!$C$62:$C$71,0),MATCH($O23,'For Bill Impact(HideBeforeFile)'!$D$61:$S$61,0)) -> 0.02 | H23: =INDEX('For Bill Impact(HideBeforeFile)'!$D$20:$S$29,MATCH(C10,'For Bill Impact(HideBeforeFile)'!$C$62:$C$71,0),MATCH($O23,'For Bill Impact(HideBeforeFile)'!$D$61:$S$61,0)) -> 0.02 | J23: =INDEX('For Bill Impact(HideBeforeFile)'!$D$34:$S$43,MATCH(C10,'For Bill Impact(HideBeforeFile)'!$C$62:$C$71,0),MATCH($O23,'For Bill Impact(HideBeforeFile)'!$D$61:$S$61,0)) -> 9 | O23: ='For Bill Impact(HideBeforeFile)'!$F$5 -> REDA
C24: =INDEX('For Bill Impact(HideBeforeFile)'!$D$48:$S$57,MATCH(C10,'For Bill Impact(HideBeforeFile)'!$C$62:$C$71,0),MATCH($O24,'For Bill Impact(HideBeforeFile)'!$D$61:$S$61,0)) -> PGTVA | D24: =INDEX('For Bill Impact(HideBeforeFile)'!$D$62:$S$71,MATCH(C10,'For Bill Impact(HideBeforeFile)'!$C$62:$C$71,0),MATCH($O24,'For Bill Impact(HideBeforeFile)'!$D$61:$S$61,0)) -> cents / m3 | F24: =INDEX('For Bill Impact(HideBeforeFile)'!$D$6:$S$15,MATCH(C10,'For Bill Impact(HideBeforeFile)'!$C$62:$C$71,0),MATCH($O24,'For Bill Impact(HideBeforeFile)'!$D$61:$S$61,0)) -> 0.4355 | H24: =INDEX('For Bill Impact(HideBeforeFile)'!$D$20:$S$29,MATCH(C10,'For Bill Impact(HideBeforeFile)'!$C$62:$C$71,0),MATCH($O24,'For Bill Impact(HideBeforeFile)'!$D$61:$S$61,0)) -> 0.7891024788 | J24: =INDEX('For Bill Impact(HideBeforeFile)'!$D$34:$S$43,MATCH(C10,'For Bill Impact(HideBeforeFile)'!$C$62:$C$71,0),MATCH($O24,'For Bill Impact(HideBeforeFile)'!$D$61:$S$61,0)) -> 37006.00732 | O24: ='For Bill Impact(HideBeforeFile)'!$G$5 -> PGTVA
C25: =INDEX('For Bill Impact(HideBeforeFile)'!$D$48:$S$57,MATCH(C10,'For Bill Impact(HideBeforeFile)'!$C$62:$C$71,0),MATCH($O25,'For Bill Impact(HideBeforeFile)'!$D$61:$S$61,0)) -> ADVADA | D25: =INDEX('For Bill Impact(HideBeforeFile)'!$D$62:$S$71,MATCH(C10,'For Bill Impact(HideBeforeFile)'!$C$62:$C$71,0),MATCH($O25,'For Bill Impact(HideBeforeFile)'!$D$61:$S$61,0)) -> cents / m3 | F25: =INDEX('For Bill Impact(HideBeforeFile)'!$D$6:$S$15,MATCH(C10,'For Bill Impact(HideBeforeFile)'!$C$62:$C$71,0),MATCH($O25,'For Bill Impact(HideBeforeFile)'!$D$61:$S$61,0)) -> 0 | H25: =INDEX('For Bill Impact(HideBeforeFile)'!$D$20:$S$29,MATCH(C10,'For Bill Impact(HideBeforeFile)'!$C$62:$C$71,0),MATCH($O25,'For Bill Impact(HideBeforeFile)'!$D$61:$S$61,0)) -> -0.02895736312 | J25: =INDEX('For Bill Impact(HideBeforeFile)'!$D$34:$S$43,MATCH(C10,'For Bill Impact(HideBeforeFile)'!$C$62:$C$71,0),MATCH($O25,'For Bill Impact(HideBeforeFile)'!$D$61:$S$61,0)) -> 37006.00732 | O25: ='For Bill Impact(HideBeforeFile)'!$H$5 -> ADVADA
C26: =INDEX('For Bill Impact(HideBeforeFile)'!$D$48:$S$57,MATCH(C10,'For Bill Impact(HideBeforeFile)'!$C$62:$C$71,0),MATCH($O26,'For Bill Impact(HideBeforeFile)'!$D$61:$S$61,0)) -> LDMDA | D26: =INDEX('For Bill Impact(HideBeforeFile)'!$D$62:$S$71,MATCH(C10,'For Bill Impact(HideBeforeFile)'!$C$62:$C$71,0),MATCH($O26,'For Bill Impact(HideBeforeFile)'!$D$61:$S$61,0)) -> $ / month | F26: =INDEX('For Bill Impact(HideBeforeFile)'!$D$6:$S$15,MATCH(C10,'For Bill Impact(HideBeforeFile)'!$C$62:$C$71,0),MATCH($O26,'For Bill Impact(HideBeforeFile)'!$D$61:$S$61,0)) -> 0 | H26: =INDEX('For Bill Impact(HideBeforeFile)'!$D$20:$S$29,MATCH(C10,'For Bill Impact(HideBeforeFile)'!$C$62:$C$71,0),MATCH($O26,'For Bill Impact(HideBeforeFile)'!$D$61:$S$61,0)) -> 0 | J26: =INDEX('For Bill Impact(HideBeforeFile)'!$D$34:$S$43,MATCH(C10,'For Bill Impact(HideBeforeFile)'!$C$62:$C$71,0),MATCH($O26,'For Bill Impact(HideBeforeFile)'!$D$61:$S$61,0)) -> 9 | O26: LDMDA
C27: =INDEX('For Bill Impact(HideBeforeFile)'!$D$48:$S$57,MATCH(C10,'For Bill Impact(HideBeforeFile)'!$C$62:$C$71,0),MATCH($O27,'For Bill Impact(HideBeforeFile)'!$D$61:$S$61,0)) -> SICDA | D27: =INDEX('For Bill Impact(HideBeforeFile)'!$D$62:$S$71,MATCH(C10,'For Bill Impact(HideBeforeFile)'!$C$62:$C$71,0),MATCH($O27,'For Bill Impact(HideBeforeFile)'!$D$61:$S$61,0)) -> cents / m3 | F27: =INDEX('For Bill Impact(HideBeforeFile)'!$D$6:$S$15,MATCH(C10,'For Bill Impact(HideBeforeFile)'!$C$62:$C$71,0),MATCH($O27,'For Bill Impact(HideBeforeFile)'!$D$61:$S$61,0)) -> 0 | H27: =INDEX('For Bill Impact(HideBeforeFile)'!$D$20:$S$29,MATCH(C10,'For Bill Impact(HideBeforeFile)'!$C$62:$C$71,0),MATCH($O27,'For Bill Impact(HideBeforeFile)'!$D$61:$S$61,0)) -> 0 | J27: =INDEX('For Bill Impact(HideBeforeFile)'!$D$34:$S$43,MATCH(C10,'For Bill Impact(HideBeforeFile)'!$C$62:$C$71,0),MATCH($O27,'For Bill Impact(HideBeforeFile)'!$D$61:$S$61,0)) -> 37006.00732 | O27: SICDA
C28: =INDEX('For Bill Impact(HideBeforeFile)'!$D$48:$S$57,MATCH(C10,'For Bill Impact(HideBeforeFile)'!$C$62:$C$71,0),MATCH($O28,'For Bill Impact(HideBeforeFile)'!$D$61:$S$61,0)) -> FCCVA | D28: =INDEX('For Bill Impact(HideBeforeFile)'!$D$62:$S$71,MATCH(C10,'For Bill Impact(HideBeforeFile)'!$C$62:$C$71,0),MATCH($O28,'For Bill Impact(HideBeforeFile)'!$D$61:$S$61,0)) -> $ / month | F28: =INDEX('For Bill Impact(HideBeforeFile)'!$D$6:$S$15,MATCH(C10,'For Bill Impact(HideBeforeFile)'!$C$62:$C$71,0),MATCH($O28,'For Bill Impact(HideBeforeFile)'!$D$61:$S$61,0)) -> 0 | H28: =INDEX('For Bill Impact(HideBeforeFile)'!$D$20:$S$29,MATCH(C10,'For Bill Impact(HideBeforeFile)'!$C$62:$C$71,0),MATCH($O28,'For Bill Impact(HideBeforeFile)'!$D$61:$S$61,0)) -> 0 | J28: =INDEX('For Bill Impact(HideBeforeFile)'!$D$34:$S$43,MATCH(C10,'For Bill Impact(HideBeforeFile)'!$C$62:$C$71,0),MATCH($O28,'For Bill Impact(HideBeforeFile)'!$D$61:$S$61,0)) -> 9 | O28: FCCVA
C29: =INDEX('For Bill Impact(HideBeforeFile)'!$D$48:$S$57,MATCH(C10,'For Bill Impact(HideBeforeFile)'!$C$62:$C$71,0),MATCH($O29,'For Bill Impact(HideBeforeFile)'!$D$61:$S$61,0)) -> GGEADA | D29: =INDEX('For Bill Impact(HideBeforeFile)'!$D$62:$S$71,MATCH(C10,'For Bill Impact(HideBeforeFile)'!$C$62:$C$71,0),MATCH($O29,'For Bill Impact(HideBeforeFile)'!$D$61:$S$61,0)) -> $ / month | F29: =INDEX('For Bill Impact(HideBeforeFile)'!$D$6:$S$15,MATCH(C10,'For Bill Impact(HideBeforeFile)'!$C$62:$C$71,0),MATCH($O29,'For Bill Impact(HideBeforeFile)'!$D$61:$S$61,0)) -> 0 | H29: =INDEX('For Bill Impact(HideBeforeFile)'!$D$20:$S$29,MATCH(C10,'For Bill Impact(HideBeforeFile)'!$C$62:$C$71,0),MATCH($O29,'For Bill Impact(HideBeforeFile)'!$D$61:$S$61,0)) -> 0 | J29: =INDEX('For Bill Impact(HideBeforeFile)'!$D$34:$S$43,MATCH(C10,'For Bill Impact(HideBeforeFile)'!$C$62:$C$71,0),MATCH($O29,'For Bill Impact(HideBeforeFile)'!$D$61:$S$61,0)) -> 9 | O29: GGEADA
C31: =INDEX('For Bill Impact(HideBeforeFile)'!$D$48:$S$57,MATCH(C10,'For Bill Impact(HideBeforeFile)'!$C$62:$C$71,0),MATCH($O31,'For Bill Impact(HideBeforeFile)'!$D$61:$S$61,0)) -> Federal Carbon | D31: =INDEX('For Bill Impact(HideBeforeFile)'!$D$62:$S$71,MATCH(C10,'For Bill Impact(HideBeforeFile)'!$C$62:$C$71,0),MATCH($O31,'For Bill Impact(HideBeforeFile)'!$D$61:$S$61,0)) -> cents / m3 | F31: =INDEX('For Bill Impact(HideBeforeFile)'!$D$6:$S$15,MATCH(C10,'For Bill Impact(HideBeforeFile)'!$C$62:$C$71,0),MATCH($O31,'For Bill Impact(HideBeforeFile)'!$D$61:$S$61,0)) -> 12.39 | H31: =INDEX('For Bill Impact(HideBeforeFile)'!$D$20:$S$29,MATCH(C10,'For Bill Impact(HideBeforeFile)'!$C$62:$C$71,0),MATCH($O31,'For Bill Impact(HideBeforeFile)'!$D$61:$S$61,0)) -> 12.39 | J31: =INDEX('For Bill Impact(HideBeforeFile)'!$D$34:$S$43,MATCH(C10,'For Bill Impact(HideBeforeFile)'!$C$62:$C$71,0),MATCH($O31,'For Bill Impact(HideBeforeFile)'!$D$61:$S$61,0)) -> 37006.00732 | O31: ='For Bill Impact(HideBeforeFile)'!$M$5 -> Federal Carbon
C32: =INDEX('For Bill Impact(HideBeforeFile)'!$D$48:$S$57,MATCH(C10,'For Bill Impact(HideBeforeFile)'!$C$62:$C$71,0),MATCH($O32,'For Bill Impact(HideBeforeFile)'!$D$61:$S$61,0)) -> Facility Carbon | D32: =INDEX('For Bill Impact(HideBeforeFile)'!$D$62:$S$71,MATCH(C10,'For Bill Impact(HideBeforeFile)'!$C$62:$C$71,0),MATCH($O32,'For Bill Impact(HideBeforeFile)'!$D$61:$S$61,0)) -> cents / m3 | F32: =INDEX('For Bill Impact(HideBeforeFile)'!$D$6:$S$15,MATCH(C10,'For Bill Impact(HideBeforeFile)'!$C$62:$C$71,0),MATCH($O32,'For Bill Impact(HideBeforeFile)'!$D$61:$S$61,0)) -> 0.0037 | H32: =INDEX('For Bill Impact(HideBeforeFile)'!$D$20:$S$29,MATCH(C10,'For Bill Impact(HideBeforeFile)'!$C$62:$C$71,0),MATCH($O32,'For Bill Impact(HideBeforeFile)'!$D$61:$S$61,0)) -> 0.0037 | J32: =INDEX('For Bill Impact(HideBeforeFile)'!$D$34:$S$43,MATCH(C10,'For Bill Impact(HideBeforeFile)'!$C$62:$C$71,0),MATCH($O32,'For Bill Impact(HideBeforeFile)'!$D$61:$S$61,0)) -> 37006.00732 | O32: ='For Bill Impact(HideBeforeFile)'!$N$5 -> Facility Carbon
C35: Commodity | F35: Current | H35: Proposed | J35: Change $ | L35: Change %
F36: =F14*$J14/100 -> 8607.930356 | H36: =H14*$J14/100 -> 8607.930356 | J36: =H36-F36 -> 0 | L36: =IFERROR(J36/F36,"") -> 0 | O36: ='For Bill Impact(HideBeforeFile)'!$D$5 -> Commodity
C38: Delivery | F38: Current Rate | H38: Proposed Rate | J38: Change $ | L38: Change %
C39: =IF(C16<>"",C16,"") -> Customer (excl. Bill 32) | F39: =F16*$J16 -> 194.7762407 | H39: =H16*$J16 -> 203.3463953 | J39: =IFERROR(H39-F39,"") -> 8.57015459 | L39: =IFERROR(J39/F39,"") -> 0.044 | O39: ='For Bill Impact(HideBeforeFile)'!$O$5 -> Dist. Customer Rate
C40: Bill 32 | F40: =J16 -> 9 | H40: =J16 -> 9 | J40: =IFERROR(H40-F40,"") -> 0 | L40: =IFERROR(J40/F40,"") -> 0
C41: =IF(C17<>"",C17,"") -> Block 1 (First 1,000 m3 per month) | F41: =IFERROR(F17*$J17/100,"") -> 502.5400031 | H41: =IFERROR(H17*$J17/100,"") -> 524.6517632 | J41: =IFERROR(H41-F41,"") -> 22.11176014 | L41: =IFERROR(J41/F41,"") -> 0.044 | O41: ='For Bill Impact(HideBeforeFile)'!$P$5 -> Dist. Vol. Rate Tier 1
C42: =IF(C18<>"",C18,"") -> Block 2 (Over 1,000 m3 per month) | F42: =IFERROR(F18*$J18/100,"") -> 4178.853774 | H42: =IFERROR(H18*$J18/100,"") -> 4362.72334 | J42: 183.8695661 | L42: 0.044 | O42: ='For Bill Impact(HideBeforeFile)'!$Q$5 -> Dist. Vol. Rate Tier 2
C43: =IF(C19<>"",C19,"") ->  | F43: =IFERROR(F19*$J19/100,"") ->  | H43: =IFERROR(H19*$J19/100,"") ->  | O43: ='For Bill Impact(HideBeforeFile)'!$R$5 -> Dist. Vol. Rate Tier 3
C44: =IF(C20<>"",C20,"") ->  | F44: =IFERROR(F20*$J20/100,"") ->  | H44: =IFERROR(H20*$J20/100,"") ->  | O44: ='For Bill Impact(HideBeforeFile)'!$S$5 -> Dist. Capacity Rate
C45: =IF(C21<>"",C21,"") -> System Gas Charge | F45: =IFERROR(F21*$J21/100,"") -> 16.09761318 | H45: =IFERROR(H21*$J21/100,"") -> 16.09761318 | J45: 0 | L45: 0 | O45: ='For Bill Impact(HideBeforeFile)'!$E$5 -> System Gas
C46: Total Delivery | F46: =SUM(F39:F45) -> 4901.267631 | H46: =SUM(H39:H45) -> 5115.819112 | J46: =H46-F46 -> 214.5514808 | L46: =IF(ISERROR(J46/F46),0,J46/F46) -> 0.04377469196
C48: Rate Riders
C50: Rate Riders | F50: Current Rate | H50: Proposed Rate | J50: Change $ | L50: Change %
C51: =C23 -> REDA | F51: =F23*$J23 -> 0.18 | H51: =H23*$J23 -> 0.18 | J51: =IFERROR(H51-F51,"") -> 0 | L51: =IFERROR(J51/F51,"") -> 0 | O51: ='For Bill Impact(HideBeforeFile)'!$F$5 -> REDA
C52: PGTVA | F52: =IFERROR(F24*$J24/100,"") -> 161.1611619 | H52: =IFERROR(H24*$J24/100,"") -> 292.015321 | J52: =IFERROR(H52-F52,"") -> 130.8541592 | L52: =IFERROR(J52/F52,"") -> 0.8119459903 | O52: ='For Bill Impact(HideBeforeFile)'!$G$5 -> PGTVA
C53: ADVADA | F53: =IFERROR(F25*$J25/100,"") -> 0 | H53: =IFERROR(H25*$J25/100,"") -> -10.71596391 | J53: -10.71596391 | O53: ='For Bill Impact(HideBeforeFile)'!$H$5 -> ADVADA
C54: LDMDA | F54: =F26*$J26 -> 0 | H54: =H26*$J26 -> 0 | J54: 0 | O54: ='For Bill Impact(HideBeforeFile)'!$I$5 -> LDMDA
C55: SICDA | F55: =IFERROR(F27*$J27/100,"") -> 0 | H55: =IFERROR(H27*$J27/100,"") -> 0 | J55: 0 | O55: ='For Bill Impact(HideBeforeFile)'!$J$5 -> SICDA
C56: FCCVA | F56: =F28*$J28 -> 0 | H56: =H28*$J28 -> 0 | J56: 0 | O56: ='For Bill Impact(HideBeforeFile)'!$I$5 -> LDMDA
C57: GGEADA | F57: 0 | H57: 0 | J57: 0 | O57: ='For Bill Impact(HideBeforeFile)'!$J$5 -> SICDA
C58: Total Rate Riders | F58: =SUM(F51:F57) -> 161.3411619 | H58: =SUM(H51:H57) -> 281.4793571 | J58: =SUM(J51:J57) -> 120.1381952 | L58: =IF(ISERROR(J58/F58),0,J58/F58) -> 0.744622103
C60: Carbon Tax
C61: Federal Carbon | F61: =F31*$J31/100 -> 4585.044307 | H61: =H31*$J31/100 -> 4585.044307 | J61: =IFERROR(H61-F61,"") -> 0 | L61: =IFERROR(J61/F61,"") -> 0
C62: Facility Carbon | F62: =F32*$J32/100 -> 1.369222271 | H62: =H32*$J32/100 -> 1.369222271 | J62: =IFERROR(H62-F62,"") -> 0 | L62: 0
C63: Total Carbon Tax | F63: =SUM(F61:F62) -> 4586.413529 | H63: =SUM(H61:H62) -> 4586.413529 | J63: =SUM(J61:J62) -> 0 | L63: =IF(ISERROR(J63/F63),0,J63/F63) -> 0
C65: Total Bill Impact | F65: =SUM(F36,F46,F58,F63) -> 18256.95268 | H65: =SUM(H36,H46,H58,H63) -> 18591.64235 | J65: =SUM(J36,J46,J58,J63) -> 334.689676 | L65: =IFERROR(J65/F65,"") -> 0.01833217635
C68: =MID(CELL("filename",A1),FIND("]",CELL("filename",A1))+1,255) -> G1.4 Rate 4 Bill Impact
C70: ='For Bill Impact(HideBeforeFile)'!C13 -> RATE 4 - General Service Peaking - Jan to Mar | F70: Current | H70: Proposed | J70: Bill Determinant | O70: Look-up
C74: =INDEX('For Bill Impact(HideBeforeFile)'!$D$48:$S$57,MATCH(C70,'For Bill Impact(HideBeforeFile)'!$C$62:$C$71,0),MATCH($O74,'For Bill Impact(HideBeforeFile)'!$D$61:$S$61,0)) -> Commodity | D74: =INDEX('For Bill Impact(HideBeforeFile)'!$D$62:$S$71,MATCH(C70,'For Bill Impact(HideBeforeFile)'!$C$62:$C$71,0),MATCH($O74,'For Bill Impact(HideBeforeFile)'!$D$61:$S$61,0)) -> cents / m3 | F74: =INDEX('For Bill Impact(HideBeforeFile)'!$D$6:$S$15,MATCH(C70,'For Bill Impact(HideBeforeFile)'!$C$62:$C$71,0),MATCH($O74,'For Bill Impact(HideBeforeFile)'!$D$61:$S$61,0)) -> 23.2609 | H74: =INDEX('For Bill Impact(HideBeforeFile)'!$D$20:$S$29,MATCH(C70,'For Bill Impact(HideBeforeFile)'!$C$62:$C$71,0),MATCH($O74,'For Bill Impact(HideBeforeFile)'!$D$61:$S$61,0)) -> 23.2609 | J74: =INDEX('For Bill Impact(HideBeforeFile)'!$D$34:$S$43,MATCH(C70,'For Bill Impact(HideBeforeFile)'!$C$62:$C$71,0),MATCH($O74,'For Bill Impact(HideBeforeFile)'!$D$61:$S$61,0)) -> 2949.9 | O74: ='For Bill Impact(HideBeforeFile)'!$D$5 -> Commodity
C76: =INDEX('For Bill Impact(HideBeforeFile)'!$D$48:$S$57,MATCH(C70,'For Bill Impact(HideBeforeFile)'!$C$62:$C$71,0),MATCH($O76,'For Bill Impact(HideBeforeFile)'!$D$61:$S$61,0)) -> Customer (excl. Bill 32) | D76: =INDEX('For Bill Impact(HideBeforeFile)'!$D$62:$S$71,MATCH(C70,'For Bill Impact(HideBeforeFile)'!$C$62:$C$71,0),MATCH($O76,'For Bill Impact(HideBeforeFile)'!$D$61:$S$61,0)) -> $ / month | F76: =INDEX('For Bill Impact(HideBeforeFile)'!$D$6:$S$15,MATCH(C70,'For Bill Impact(HideBeforeFile)'!$C$62:$C$71,0),MATCH($O76,'For Bill Impact(HideBeforeFile)'!$D$61:$S$61,0)) -> 21.64180452 | H76: =INDEX('For Bill Impact(HideBeforeFile)'!$D$20:$S$29,MATCH(C70,'For Bill Impact(HideBeforeFile)'!$C$62:$C$71,0),MATCH($O76,'For Bill Impact(HideBeforeFile)'!$D$61:$S$61,0)) -> 22.59404392 | J76: =INDEX('For Bill Impact(HideBeforeFile)'!$D$34:$S$43,MATCH(C70,'For Bill Impact(HideBeforeFile)'!$C$62:$C$71,0),MATCH($O76,'For Bill Impact(HideBeforeFile)'!$D$61:$S$61,0)) -> 3 | O76: ='For Bill Impact(HideBeforeFile)'!$O$5 -> Dist. Customer Rate
C77: =INDEX('For Bill Impact(HideBeforeFile)'!$D$48:$S$57,MATCH(C70,'For Bill Impact(HideBeforeFile)'!$C$62:$C$71,0),MATCH($O77,'For Bill Impact(HideBeforeFile)'!$D$61:$S$61,0)) -> Block 1 (First 1,000 m3 per month) | D77: =INDEX('For Bill Impact(HideBeforeFile)'!$D$62:$S$71,MATCH(C70,'For Bill Impact(HideBeforeFile)'!$C$62:$C$71,0),MATCH($O77,'For Bill Impact(HideBeforeFile)'!$D$61:$S$61,0)) -> cents / m3 | F77: =INDEX('For Bill Impact(HideBeforeFile)'!$D$6:$S$15,MATCH(C70,'For Bill Impact(HideBeforeFile)'!$C$62:$C$71,0),MATCH($O77,'For Bill Impact(HideBeforeFile)'!$D$61:$S$61,0)) -> 25.21162018 | H77: =INDEX('For Bill Impact(HideBeforeFile)'!$D$20:$S$29,MATCH(C70,'For Bill Impact(HideBeforeFile)'!$C$62:$C$71,0),MATCH($O77,'For Bill Impact(HideBeforeFile)'!$D$61:$S$61,0)) -> 26.32093146 | J77: =INDEX('For Bill Impact(HideBeforeFile)'!$D$34:$S$43,MATCH(C70,'For Bill Impact(HideBeforeFile)'!$C$62:$C$71,0),MATCH($O77,'For Bill Impact(HideBeforeFile)'!$D$61:$S$61,0)) -> 657.4097561 | O77: ='For Bill Impact(HideBeforeFile)'!$P$5 -> Dist. Vol. Rate Tier 1
C78: =INDEX('For Bill Impact(HideBeforeFile)'!$D$48:$S$57,MATCH(C70,'For Bill Impact(HideBeforeFile)'!$C$62:$C$71,0),MATCH($O78,'For Bill Impact(HideBeforeFile)'!$D$61:$S$61,0)) -> Block 2 (Over 1,000 m3 per month) | D78: =INDEX('For Bill Impact(HideBeforeFile)'!$D$62:$S$71,MATCH(C70,'For Bill Impact(HideBeforeFile)'!$C$62:$C$71,0),MATCH($O78,'For Bill Impact(HideBeforeFile)'!$D$61:$S$61,0)) -> cents / m3 | F78: =INDEX('For Bill Impact(HideBeforeFile)'!$D$6:$S$15,MATCH(C70,'For Bill Impact(HideBeforeFile)'!$C$62:$C$71,0),MATCH($O78,'For Bill Impact(HideBeforeFile)'!$D$61:$S$61,0)) -> 19.48195243 | H78: =INDEX('For Bill Impact(HideBeforeFile)'!$D$20:$S$29,MATCH(C70,'For Bill Impact(HideBeforeFile)'!$C$62:$C$71,0),MATCH($O78,'For Bill Impact(HideBeforeFile)'!$D$61:$S$61,0)) -> 20.33915834 | J78: =INDEX('For Bill Impact(HideBeforeFile)'!$D$34:$S$43,MATCH(C70,'For Bill Impact(HideBeforeFile)'!$C$62:$C$71,0),MATCH($O78,'For Bill Impact(HideBeforeFile)'!$D$61:$S$61,0)) -> 2292.490244 | O78: ='For Bill Impact(HideBeforeFile)'!$Q$5 -> Dist. Vol. Rate Tier 2
C79: =INDEX('For Bill Impact(HideBeforeFile)'!$D$48:$S$57,MATCH(C70,'For Bill Impact(HideBeforeFile)'!$C$62:$C$71,0),MATCH($O79,'For Bill Impact(HideBeforeFile)'!$D$61:$S$61,0)) ->  | D79: =INDEX('For Bill Impact(HideBeforeFile)'!$D$62:$S$71,MATCH(C70,'For Bill Impact(HideBeforeFile)'!$C$62:$C$71,0),MATCH($O79,'For Bill Impact(HideBeforeFile)'!$D$61:$S$61,0)) ->  | F79: =INDEX('For Bill Impact(HideBeforeFile)'!$D$6:$S$15,MATCH(C70,'For Bill Impact(HideBeforeFile)'!$C$62:$C$71,0),MATCH($O79,'For Bill Impact(HideBeforeFile)'!$D$61:$S$61,0)) ->  | H79: =INDEX('For Bill Impact(HideBeforeFile)'!$D$20:$S$29,MATCH(C70,'For Bill Impact(HideBeforeFile)'!$C$62:$C$71,0),MATCH($O79,'For Bill Impact(HideBeforeFile)'!$D$61:$S$61,0)) ->  | J79: =INDEX('For Bill Impact(HideBeforeFile)'!$D$34:$S$43,MATCH(C70,'For Bill Impact(HideBeforeFile)'!$C$62:$C$71,0),MATCH($O79,'For Bill Impact(HideBeforeFile)'!$D$61:$S$61,0)) ->  | O79: ='For Bill Impact(HideBeforeFile)'!$R$5 -> Dist. Vol. Rate Tier 3
C80: =INDEX('For Bill Impact(HideBeforeFile)'!$D$48:$S$57,MATCH(C70,'For Bill Impact(HideBeforeFile)'!$C$62:$C$71,0),MATCH($O80,'For Bill Impact(HideBeforeFile)'!$D$61:$S$61,0)) ->  | D80: =INDEX('For Bill Impact(HideBeforeFile)'!$D$62:$S$71,MATCH(C70,'For Bill Impact(HideBeforeFile)'!$C$62:$C$71,0),MATCH($O80,'For Bill Impact(HideBeforeFile)'!$D$61:$S$61,0)) ->  | F80: =INDEX('For Bill Impact(HideBeforeFile)'!$D$6:$S$15,MATCH(C70,'For Bill Impact(HideBeforeFile)'!$C$62:$C$71,0),MATCH($O80,'For Bill Impact(HideBeforeFile)'!$D$61:$S$61,0)) ->  | H80: =INDEX('For Bill Impact(HideBeforeFile)'!$D$20:$S$29,MATCH(C70,'For Bill Impact(HideBeforeFile)'!$C$62:$C$71,0),MATCH($O80,'For Bill Impact(HideBeforeFile)'!$D$61:$S$61,0)) ->  | J80: =INDEX('For Bill Impact(HideBeforeFile)'!$D$34:$S$43,MATCH(C70,'For Bill Impact(HideBeforeFile)'!$C$62:$C$71,0),MATCH($O80,'For Bill Impact(HideBeforeFile)'!$D$61:$S$61,0)) ->  | O80: ='For Bill Impact(HideBeforeFile)'!$S$5 -> Dist. Capacity Rate
C81: =INDEX('For Bill Impact(HideBeforeFile)'!$D$48:$S$57,MATCH(C70,'For Bill Impact(HideBeforeFile)'!$C$62:$C$71,0),MATCH($O81,'For Bill Impact(HideBeforeFile)'!$D$61:$S$61,0)) -> System Gas Charge | D81: =INDEX('For Bill Impact(HideBeforeFile)'!$D$62:$S$71,MATCH(C70,'For Bill Impact(HideBeforeFile)'!$C$62:$C$71,0),MATCH($O81,'For Bill Impact(HideBeforeFile)'!$D$61:$S$61,0)) -> cents / m3 | F81: =INDEX('For Bill Impact(HideBeforeFile)'!$D$6:$S$15,MATCH(C70,'For Bill Impact(HideBeforeFile)'!$C$62:$C$71,0),MATCH($O81,'For Bill Impact(HideBeforeFile)'!$D$61:$S$61,0)) -> 0.0435 | H81: =INDEX('For Bill Impact(HideBeforeFile)'!$D$20:$S$29,MATCH(C70,'For Bill Impact(HideBeforeFile)'!$C$62:$C$71,0),MATCH($O81,'For Bill Impact(HideBeforeFile)'!$D$61:$S$61,0)) -> 0.0435 | J81: =INDEX('For Bill Impact(HideBeforeFile)'!$D$34:$S$43,MATCH(C70,'For Bill Impact(HideBeforeFile)'!$C$62:$C$71,0),MATCH($O81,'For Bill Impact(HideBeforeFile)'!$D$61:$S$61,0)) -> 2949.9 | O81: ='For Bill Impact(HideBeforeFile)'!$E$5 -> System Gas
C83: =INDEX('For Bill Impact(HideBeforeFile)'!$D$48:$S$57,MATCH(C70,'For Bill Impact(HideBeforeFile)'!$C$62:$C$71,0),MATCH($O83,'For Bill Impact(HideBeforeFile)'!$D$61:$S$61,0)) -> REDA | D83: =INDEX('For Bill Impact(HideBeforeFile)'!$D$62:$S$71,MATCH(C70,'For Bill Impact(HideBeforeFile)'!$C$62:$C$71,0),MATCH($O83,'For Bill Impact(HideBeforeFile)'!$D$61:$S$61,0)) -> $ / month | F83: =INDEX('For Bill Impact(HideBeforeFile)'!$D$6:$S$15,MATCH(C70,'For Bill Impact(HideBeforeFile)'!$C$62:$C$71,0),MATCH($O83,'For Bill Impact(HideBeforeFile)'!$D$61:$S$61,0)) -> 0.02 | H83: =INDEX('For Bill Impact(HideBeforeFile)'!$D$20:$S$29,MATCH(C70,'For Bill Impact(HideBeforeFile)'!$C$62:$C$71,0),MATCH($O83,'For Bill Impact(HideBeforeFile)'!$D$61:$S$61,0)) -> 0.02 | J83: =INDEX('For Bill Impact(HideBeforeFile)'!$D$34:$S$43,MATCH(C70,'For Bill Impact(HideBeforeFile)'!$C$62:$C$71,0),MATCH($O83,'For Bill Impact(HideBeforeFile)'!$D$61:$S$61,0)) -> 3 | O83: =O23 -> REDA
C84: =INDEX('For Bill Impact(HideBeforeFile)'!$D$48:$S$57,MATCH(C70,'For Bill Impact(HideBeforeFile)'!$C$62:$C$71,0),MATCH($O84,'For Bill Impact(HideBeforeFile)'!$D$61:$S$61,0)) -> PGTVA | D84: =INDEX('For Bill Impact(HideBeforeFile)'!$D$62:$S$71,MATCH(C70,'For Bill Impact(HideBeforeFile)'!$C$62:$C$71,0),MATCH($O84,'For Bill Impact(HideBeforeFile)'!$D$61:$S$61,0)) -> cents / m3 | F84: =INDEX('For Bill Impact(HideBeforeFile)'!$D$6:$S$15,MATCH(C70,'For Bill Impact(HideBeforeFile)'!$C$62:$C$71,0),MATCH($O84,'For Bill Impact(HideBeforeFile)'!$D$61:$S$61,0)) -> 0.4355 | H84: =INDEX('For Bill Impact(HideBeforeFile)'!$D$20:$S$29,MATCH(C70,'For Bill Impact(HideBeforeFile)'!$C$62:$C$71,0),MATCH($O84,'For Bill Impact(HideBeforeFile)'!$D$61:$S$61,0)) -> 0.7891024788 | J84: =INDEX('For Bill Impact(HideBeforeFile)'!$D$34:$S$43,MATCH(C70,'For Bill Impact(HideBeforeFile)'!$C$62:$C$71,0),MATCH($O84,'For Bill Impact(HideBeforeFile)'!$D$61:$S$61,0)) -> 2949.9 | O84: =O24 -> PGTVA
C85: =INDEX('For Bill Impact(HideBeforeFile)'!$D$48:$S$57,MATCH(C70,'For Bill Impact(HideBeforeFile)'!$C$62:$C$71,0),MATCH($O85,'For Bill Impact(HideBeforeFile)'!$D$61:$S$61,0)) -> ADVADA | D85: =INDEX('For Bill Impact(HideBeforeFile)'!$D$62:$S$71,MATCH(C70,'For Bill Impact(HideBeforeFile)'!$C$62:$C$71,0),MATCH($O85,'For Bill Impact(HideBeforeFile)'!$D$61:$S$61,0)) -> cents / m3 | F85: =INDEX('For Bill Impact(HideBeforeFile)'!$D$6:$S$15,MATCH(C70,'For Bill Impact(HideBeforeFile)'!$C$62:$C$71,0),MATCH($O85,'For Bill Impact(HideBeforeFile)'!$D$61:$S$61,0)) -> 0 | H85: =INDEX('For Bill Impact(HideBeforeFile)'!$D$20:$S$29,MATCH(C70,'For Bill Impact(HideBeforeFile)'!$C$62:$C$71,0),MATCH($O85,'For Bill Impact(HideBeforeFile)'!$D$61:$S$61,0)) -> -0.02895736312 | J85: =INDEX('For Bill Impact(HideBeforeFile)'!$D$34:$S$43,MATCH(C70,'For Bill Impact(HideBeforeFile)'!$C$62:$C$71,0),MATCH($O85,'For Bill Impact(HideBeforeFile)'!$D$61:$S$61,0)) -> 2949.9 | O85: =O25 -> ADVADA
C86: =INDEX('For Bill Impact(HideBeforeFile)'!$D$48:$S$57,MATCH(C70,'For Bill Impact(HideBeforeFile)'!$C$62:$C$71,0),MATCH($O86,'For Bill Impact(HideBeforeFile)'!$D$61:$S$61,0)) -> LDMDA | D86: =INDEX('For Bill Impact(HideBeforeFile)'!$D$62:$S$71,MATCH(C70,'For Bill Impact(HideBeforeFile)'!$C$62:$C$71,0),MATCH($O86,'For Bill Impact(HideBeforeFile)'!$D$61:$S$61,0)) -> $ / month | F86: =INDEX('For Bill Impact(HideBeforeFile)'!$D$6:$S$15,MATCH(C70,'For Bill Impact(HideBeforeFile)'!$C$62:$C$71,0),MATCH($O86,'For Bill Impact(HideBeforeFile)'!$D$61:$S$61,0)) -> 0 | H86: =INDEX('For Bill Impact(HideBeforeFile)'!$D$20:$S$29,MATCH(C70,'For Bill Impact(HideBeforeFile)'!$C$62:$C$71,0),MATCH($O86,'For Bill Impact(HideBeforeFile)'!$D$61:$S$61,0)) -> 0 | J86: =INDEX('For Bill Impact(HideBeforeFile)'!$D$34:$S$43,MATCH(C70,'For Bill Impact(HideBeforeFile)'!$C$62:$C$71,0),MATCH($O86,'For Bill Impact(HideBeforeFile)'!$D$61:$S$61,0)) -> 3 | O86: =O26 -> LDMDA
C87: =INDEX('For Bill Impact(HideBeforeFile)'!$D$48:$S$57,MATCH(C70,'For Bill Impact(HideBeforeFile)'!$C$62:$C$71,0),MATCH($O87,'For Bill Impact(HideBeforeFile)'!$D$61:$S$61,0)) -> SICDA | D87: =INDEX('For Bill Impact(HideBeforeFile)'!$D$62:$S$71,MATCH(C70,'For Bill Impact(HideBeforeFile)'!$C$62:$C$71,0),MATCH($O87,'For Bill Impact(HideBeforeFile)'!$D$61:$S$61,0)) -> cents / m3 | F87: =INDEX('For Bill Impact(HideBeforeFile)'!$D$6:$S$15,MATCH(C70,'For Bill Impact(HideBeforeFile)'!$C$62:$C$71,0),MATCH($O87,'For Bill Impact(HideBeforeFile)'!$D$61:$S$61,0)) -> 0 | H87: =INDEX('For Bill Impact(HideBeforeFile)'!$D$20:$S$29,MATCH(C70,'For Bill Impact(HideBeforeFile)'!$C$62:$C$71,0),MATCH($O87,'For Bill Impact(HideBeforeFile)'!$D$61:$S$61,0)) -> 0 | J87: =INDEX('For Bill Impact(HideBeforeFile)'!$D$34:$S$43,MATCH(C70,'For Bill Impact(HideBeforeFile)'!$C$62:$C$71,0),MATCH($O87,'For Bill Impact(HideBeforeFile)'!$D$61:$S$61,0)) -> 2949.9 | O87: =O27 -> SICDA
C88: =INDEX('For Bill Impact(HideBeforeFile)'!$D$48:$S$57,MATCH(C70,'For Bill Impact(HideBeforeFile)'!$C$62:$C$71,0),MATCH($O88,'For Bill Impact(HideBeforeFile)'!$D$61:$S$61,0)) -> FCCVA | D88: =INDEX('For Bill Impact(HideBeforeFile)'!$D$62:$S$71,MATCH(C70,'For Bill Impact(HideBeforeFile)'!$C$62:$C$71,0),MATCH($O88,'For Bill Impact(HideBeforeFile)'!$D$61:$S$61,0)) -> $ / month | F88: =INDEX('For Bill Impact(HideBeforeFile)'!$D$6:$S$15,MATCH(C70,'For Bill Impact(HideBeforeFile)'!$C$62:$C$71,0),MATCH($O88,'For Bill Impact(HideBeforeFile)'!$D$61:$S$61,0)) -> 0 | H88: =INDEX('For Bill Impact(HideBeforeFile)'!$D$20:$S$29,MATCH(C70,'For Bill Impact(HideBeforeFile)'!$C$62:$C$71,0),MATCH($O88,'For Bill Impact(HideBeforeFile)'!$D$61:$S$61,0)) -> 0 | J88: =INDEX('For Bill Impact(HideBeforeFile)'!$D$34:$S$43,MATCH(C70,'For Bill Impact(HideBeforeFile)'!$C$62:$C$71,0),MATCH($O88,'For Bill Impact(HideBeforeFile)'!$D$61:$S$61,0)) -> 3 | O88: FCCVA
C89: =INDEX('For Bill Impact(HideBeforeFile)'!$D$48:$S$57,MATCH(C70,'For Bill Impact(HideBeforeFile)'!$C$62:$C$71,0),MATCH($O89,'For Bill Impact(HideBeforeFile)'!$D$61:$S$61,0)) -> GGEADA | D89: =INDEX('For Bill Impact(HideBeforeFile)'!$D$62:$S$71,MATCH(C70,'For Bill Impact(HideBeforeFile)'!$C$62:$C$71,0),MATCH($O89,'For Bill Impact(HideBeforeFile)'!$D$61:$S$61,0)) -> $ / month | F89: =INDEX('For Bill Impact(HideBeforeFile)'!$D$6:$S$15,MATCH(C70,'For Bill Impact(HideBeforeFile)'!$C$62:$C$71,0),MATCH($O89,'For Bill Impact(HideBeforeFile)'!$D$61:$S$61,0)) -> 0 | H89: =INDEX('For Bill Impact(HideBeforeFile)'!$D$20:$S$29,MATCH(C70,'For Bill Impact(HideBeforeFile)'!$C$62:$C$71,0),MATCH($O89,'For Bill Impact(HideBeforeFile)'!$D$61:$S$61,0)) -> 0 | J89: =INDEX('For Bill Impact(HideBeforeFile)'!$D$34:$S$43,MATCH(C70,'For Bill Impact(HideBeforeFile)'!$C$62:$C$71,0),MATCH($O89,'For Bill Impact(HideBeforeFile)'!$D$61:$S$61,0)) -> 3 | O89: GGEADA
C91: =INDEX('For Bill Impact(HideBeforeFile)'!$D$48:$S$57,MATCH(C70,'For Bill Impact(HideBeforeFile)'!$C$62:$C$71,0),MATCH($O91,'For Bill Impact(HideBeforeFile)'!$D$61:$S$61,0)) -> Federal Carbon | D91: =INDEX('For Bill Impact(HideBeforeFile)'!$D$62:$S$71,MATCH(C70,'For Bill Impact(HideBeforeFile)'!$C$62:$C$71,0),MATCH($O91,'For Bill Impact(HideBeforeFile)'!$D$61:$S$61,0)) -> cents / m3 | F91: =INDEX('For Bill Impact(HideBeforeFile)'!$D$6:$S$15,MATCH(C70,'For Bill Impact(HideBeforeFile)'!$C$62:$C$71,0),MATCH($O91,'For Bill Impact(HideBeforeFile)'!$D$61:$S$61,0)) -> 12.39 | H91: =INDEX('For Bill Impact(HideBeforeFile)'!$D$20:$S$29,MATCH(C70,'For Bill Impact(HideBeforeFile)'!$C$62:$C$71,0),MATCH($O91,'For Bill Impact(HideBeforeFile)'!$D$61:$S$61,0)) -> 12.39 | J91: =INDEX('For Bill Impact(HideBeforeFile)'!$D$34:$S$43,MATCH(C70,'For Bill Impact(HideBeforeFile)'!$C$62:$C$71,0),MATCH($O91,'For Bill Impact(HideBeforeFile)'!$D$61:$S$61,0)) -> 2949.9 | O91: ='For Bill Impact(HideBeforeFile)'!$M$5 -> Federal Carbon
C92: =INDEX('For Bill Impact(HideBeforeFile)'!$D$48:$S$57,MATCH(C70,'For Bill Impact(HideBeforeFile)'!$C$62:$C$71,0),MATCH($O92,'For Bill Impact(HideBeforeFile)'!$D$61:$S$61,0)) -> Facility Carbon | D92: =INDEX('For Bill Impact(HideBeforeFile)'!$D$62:$S$71,MATCH(C70,'For Bill Impact(HideBeforeFile)'!$C$62:$C$71,0),MATCH($O92,'For Bill Impact(HideBeforeFile)'!$D$61:$S$61,0)) -> cents / m3 | F92: =INDEX('For Bill Impact(HideBeforeFile)'!$D$6:$S$15,MATCH(C70,'For Bill Impact(HideBeforeFile)'!$C$62:$C$71,0),MATCH($O92,'For Bill Impact(HideBeforeFile)'!$D$61:$S$61,0)) -> 0.0037 | H92: =INDEX('For Bill Impact(HideBeforeFile)'!$D$20:$S$29,MATCH(C70,'For Bill Impact(HideBeforeFile)'!$C$62:$C$71,0),MATCH($O92,'For Bill Impact(HideBeforeFile)'!$D$61:$S$61,0)) -> 0.0037 | J92: =INDEX('For Bill Impact(HideBeforeFile)'!$D$34:$S$43,MATCH(C70,'For Bill Impact(HideBeforeFile)'!$C$62:$C$71,0),MATCH($O92,'For Bill Impact(HideBeforeFile)'!$D$61:$S$61,0)) -> 2949.9 | O92: ='For Bill Impact(HideBeforeFile)'!$N$5 -> Facility Carbon
C95: Commodity | F95: Current | H95: Proposed | J95: Change $ | L95: Change %
F96: =F74*$J74/100 -> 686.1732891 | H96: =H74*$J74/100 -> 686.1732891 | J96: =H96-F96 -> 0 | L96: =IFERROR(J96/F96,"") -> 0
C98: Delivery | F98: Current Rate | H98: Proposed Rate | J98: Change $ | L98: Change %
C99: =IF(C76<>"",C76,"") -> Customer (excl. Bill 32) | F99: =F76*$J76 -> 64.92541356 | H99: =H76*$J76 -> 67.78213176 | J99: =IFERROR(H99-F99,"") -> 2.856718197 | L99: =IFERROR(J99/F99,"") -> 0.044
C100: Bill 32 | F100: =J76 -> 3 | H100: =J76 -> 3 | J100: =IFERROR(H100-F100,"") -> 0 | L100: =IFERROR(J100/F100,"") -> 0
C101: =IF(C77<>"",C77,"") -> Block 1 (First 1,000 m3 per month) | F101: =IFERROR(F77*$J77/100,"") -> 165.7436507 | H101: =IFERROR(H77*$J77/100,"") -> 173.0363713 | J101: =IFERROR(H101-F101,"") -> 7.292720631 | L101: =IFERROR(J101/F101,"") -> 0.044
C102: =IF(C78<>"",C78,"") -> Block 2 (Over 1,000 m3 per month) | F102: =IFERROR(F78*$J78/100,"") -> 446.6218588 | H102: =IFERROR(H78*$J78/100,"") -> 466.2732205 | J102: 19.65136179 | L102: 0.044
C103: =IF(C79<>"",C79,"") ->  | F103: =IFERROR(F79*$J79/100,"") ->  | H103: =IFERROR(H79*$J79/100,"") -> 
C104: =IF(C80<>"",C80,"") ->  | F104: =IFERROR(F80*$J80/100,"") ->  | H104: =IFERROR(H80*$J80/100,"") -> 
C105: =IF(C81<>"",C81,"") -> System Gas Charge | F105: =IFERROR(F81*$J81/100,"") -> 1.2832065 | H105: =IFERROR(H81*$J81/100,"") -> 1.2832065 | J105: 0 | L105: 0
C106: Total Delivery | F106: =SUM(F99:F105) -> 681.5741295 | H106: =SUM(H99:H105) -> 711.3749301 | J106: =H106-F106 -> 29.80080061 | L106: =IF(ISERROR(J106/F106),0,J106/F106) -> 0.04372349143
C108: Rate Riders
C110: Rate Riders | F110: Current Rate | H110: Proposed Rate | J110: Change $ | L110: Change %
C111: =C83 -> REDA | F111: =F83*$J83 -> 0.06 | H111: =H83*$J83 -> 0.06 | J111: =IFERROR(H111-F111,"") -> 0 | L111: =IFERROR(J111/F111,"") -> 0
C112: PGTVA | F112: =IFERROR(F84*$J84/100,"") -> 12.8468145 | H112: =IFERROR(H84*$J84/100,"") -> 23.27773402 | J112: =IFERROR(H112-F112,"") -> 10.43091952 | L112: =IFERROR(J112/F112,"") -> 0.8119459903
C113: ADVADA | F113: =IFERROR(F85*$J85/100,"") -> 0 | H113: =IFERROR(H85*$J85/100,"") -> -0.8542132546 | J113: -0.8542132546
C114: LDMDA | F114: =F86*$J86 -> 0 | H114: =H86*$J86 -> 0 | J114: 0
C115: SICDA | F115: =IFERROR(F87*$J87/100,"") -> 0 | H115: =IFERROR(H87*$J87/100,"") -> 0 | J115: 0
C116: FCCVA | F116: =F88*$J88 -> 0 | H116: =H88*$J88 -> 0 | J116: 0
C117: GGEADA | F117: 0 | H117: 0 | J117: 0
C118: Total Rate Riders | F118: =SUM(F111:F117) -> 12.9068145 | H118: =SUM(H111:H117) -> 22.48352077 | J118: =SUM(J111:J117) -> 9.576706266 | L118: =IF(ISERROR(J118/F118),0,J118/F118) -> 0.7419883711
C120: Carbon Tax
C121: Federal Carbon | F121: =F91*$J91/100 -> 365.49261 | H121: =H91*$J91/100 -> 365.49261 | J121: =IFERROR(H121-F121,"") -> 0 | L121: =IFERROR(J121/F121,"") -> 0
C122: Facility Carbon | F122: =F92*$J92/100 -> 0.1091463 | H122: =H92*$J92/100 -> 0.1091463 | J122: =IFERROR(H122-F122,"") -> 0 | L122: 0
C123: Total Carbon Tax | F123: =SUM(F121:F122) -> 365.6017563 | H123: =SUM(H121:H122) -> 365.6017563 | J123: =SUM(J121:J122) -> 0 | L123: =IF(ISERROR(J123/F123),0,J123/F123) -> 0
C125: Total Bill Impact | F125: =SUM(F96,F106,F118,F123) -> 1746.255989 | H125: =SUM(H96,H106,H118,H123) -> 1785.633496 | J125: =SUM(J96,J106,J118,J123) -> 39.37750688 | L125: =IFERROR(J125/F125,"") -> 0.02254967606
C128: =MID(CELL("filename",A61),FIND("]",CELL("filename",A61))+1,255) -> G1.4 Rate 4 Bill Impact
C130: RATE 4 - General Service Peaking - Annual
C132: Commodity | F132: Current | H132: Proposed | J132: Change $ | L132: Change %
F133: =F36+F96 -> 9294.103645 | H133: =H36+H96 -> 9294.103645 | J133: =H133-F133 -> 0 | L133: =IFERROR(J133/F133,"") -> 0
C135: Delivery | F135: Current Rate | H135: Proposed Rate | J135: Change $ | L135: Change %
C136: =C39 -> Customer (excl. Bill 32) | F136: =IFERROR(F39+F99,"") -> 259.7016542 | H136: =IFERROR(H39+H99,"") -> 271.128527 | J136: =IFERROR(H136-F136,"") -> 11.42687279 | L136: =IFERROR(J136/F136,"") -> 0.044
C137: Bill 32 | F137: 12 | H137: 12 | J137: =IFERROR(H137-F137,"") -> 0 | L137: =IFERROR(J137/F137,"") -> 0
C138: =C41 -> Block 1 (First 1,000 m3 per month) | F138: 668.2836538 | H138: 697.6881346 | J138: =IFERROR(H138-F138,"") -> 29.40448077 | L138: =IFERROR(J138/F138,"") -> 0.044
C139: =C42 -> Block 2 (Over 1,000 m3 per month) | F139: 4625.475633 | H139: 4828.996561 | J139: 203.5209278 | L139: 0.044
C140: =C43 -> 
C141: =C44 -> 
C142: =C45 -> System Gas Charge | F142: 17.38081968 | H142: 17.38081968 | J142: 0 | L142: 0
C143: Total Delivery | F143: =SUM(F136:F142) -> 5582.841761 | H143: =SUM(H136:H142) -> 5827.194042 | J143: =H143-F143 -> 244.3522814 | L143: =IF(ISERROR(J143/F143),0,J143/F143) -> 0.04376844121
C145: Rate Riders
C147: Rate Riders | F147: Current Rate | H147: Proposed Rate | J147: Change $ | L147: Change %
C148: =C111 -> REDA | F148: =IFERROR(F51+F111,"") -> 0.24 | H148: =IFERROR(H51+H111,"") -> 0.24 | J148: =IFERROR(H148-F148,"") -> 0 | L148: =IFERROR(J148/F148,"") -> 0
C149: PGTVA | F149: 174.0079764 | H149: 315.293055 | J149: =IFERROR(H149-F149,"") -> 141.2850787 | L149: =IFERROR(J149/F149,"") -> 0.8119459903
C150: ADVADA | F150: 0 | H150: -11.57017717 | J150: -11.57017717
C151: LDMDA | F151: 0 | H151: 0 | J151: 0
C152: SICDA | F152: 0 | H152: 0 | J152: 0
C153: FCCVA | F153: 0 | H153: 0 | J153: 0 | L153: =IFERROR(J153/F153,"") -> 
C154: GGEADA | F154: 0 | H154: 0 | J154: 0
C155: Total Rate Riders | F155: =SUM(F148:F154) -> 174.2479764 | H155: =SUM(H148:H154) -> 303.9628779 | J155: =SUM(J148:J154) -> 129.7149015 | L155: =IF(ISERROR(J155/F155),0,J155/F155) -> 0.7444270184
C157: Carbon Tax
C158: Federal Carbon | F158: =IFERROR(F61+F121,"") -> 4950.536917 | H158: =IFERROR(H61+H121,"") -> 4950.536917 | J158: =IFERROR(H158-F158,"") -> 0 | L158: =IFERROR(J158/F158,"") -> 0
C159: Facility Carbon | F159: =IFERROR(F62+F122,"") -> 1.478368571 | H159: =IFERROR(H62+H122,"") -> 1.478368571 | J159: =IFERROR(H159-F159,"") -> 0 | L159: 0
C160: Total Carbon Tax | F160: =SUM(F158:F159) -> 4952.015285 | H160: =SUM(H158:H159) -> 4952.015285 | J160: =SUM(J158:J159) -> 0 | L160: =IF(ISERROR(J160/F160),0,J160/F160) -> 0
C162: Total Bill Impact | F162: =SUM(F133,F143,F155,F160) -> 20003.20867 | H162: =SUM(H133,H143,H155,H160) -> 20377.27585 | J162: =SUM(J133,J143,J155,J160) -> 374.0671829 | L162: =IFERROR(J162/F162,"") -> 0.01870035898
C165: =MID(CELL("filename",A121),FIND("]",CELL("filename",A121))+1,255) -> G1.4 Rate 4 Bill Impact

Sheet G1.5 Rate 5 Bill Impact
C2: ='A1.1 Distributor Information'!C3 -> Name of LDC: EPCOR Natural Gas Limited Partnership
C3: ='A1.1 Distributor Information'!C4 -> OEB Application Number: EB-2023-0160 Exhibit A - 2024 IRM Application
C7: Rate 5 Delivery Bill Impact
C10: ='For Bill Impact(HideBeforeFile)'!C14 -> RATE 5 - Interruptible Peaking Contract Rate | F10: Current | H10: Proposed | J10: Bill Determinant | O10: Look-up
C14: =INDEX('For Bill Impact(HideBeforeFile)'!$D$48:$S$57,MATCH(C10,'For Bill Impact(HideBeforeFile)'!$C$62:$C$71,0),MATCH($O14,'For Bill Impact(HideBeforeFile)'!$D$61:$S$61,0)) -> Commodity | D14: =INDEX('For Bill Impact(HideBeforeFile)'!$D$62:$S$71,MATCH(C10,'For Bill Impact(HideBeforeFile)'!$C$62:$C$71,0),MATCH($O14,'For Bill Impact(HideBeforeFile)'!$D$61:$S$61,0)) -> cents / m3 | F14: =INDEX('For Bill Impact(HideBeforeFile)'!$D$6:$S$15,MATCH(C10,'For Bill Impact(HideBeforeFile)'!$C$62:$C$71,0),MATCH($O14,'For Bill Impact(HideBeforeFile)'!$D$61:$S$61,0)) -> 23.2609 | H14: =INDEX('For Bill Impact(HideBeforeFile)'!$D$20:$S$29,MATCH(C10,'For Bill Impact(HideBeforeFile)'!$C$62:$C$71,0),MATCH($O14,'For Bill Impact(HideBeforeFile)'!$D$61:$S$61,0)) -> 23.2609 | J14: =INDEX('For Bill Impact(HideBeforeFile)'!$D$34:$S$43,MATCH(C10,'For Bill Impact(HideBeforeFile)'!$C$62:$C$71,0),MATCH($O14,'For Bill Impact(HideBeforeFile)'!$D$61:$S$61,0)) -> 149462.35 | O14: ='For Bill Impact(HideBeforeFile)'!$D$5 -> Commodity
C16: =INDEX('For Bill Impact(HideBeforeFile)'!$D$48:$S$57,MATCH(C10,'For Bill Impact(HideBeforeFile)'!$C$62:$C$71,0),MATCH($O16,'For Bill Impact(HideBeforeFile)'!$D$61:$S$61,0)) -> Customer (excl. Bill 32) | D16: =INDEX('For Bill Impact(HideBeforeFile)'!$D$62:$S$71,MATCH(C10,'For Bill Impact(HideBeforeFile)'!$C$62:$C$71,0),MATCH($O16,'For Bill Impact(HideBeforeFile)'!$D$61:$S$61,0)) -> $ / month | F16: =INDEX('For Bill Impact(HideBeforeFile)'!$D$6:$S$15,MATCH(C10,'For Bill Impact(HideBeforeFile)'!$C$62:$C$71,0),MATCH($O16,'For Bill Impact(HideBeforeFile)'!$D$61:$S$61,0)) -> 205.5971429 | H16: =INDEX('For Bill Impact(HideBeforeFile)'!$D$20:$S$29,MATCH(C10,'For Bill Impact(HideBeforeFile)'!$C$62:$C$71,0),MATCH($O16,'For Bill Impact(HideBeforeFile)'!$D$61:$S$61,0)) -> 214.6434172 | J16: =INDEX('For Bill Impact(HideBeforeFile)'!$D$34:$S$43,MATCH(C10,'For Bill Impact(HideBeforeFile)'!$C$62:$C$71,0),MATCH($O16,'For Bill Impact(HideBeforeFile)'!$D$61:$S$61,0)) -> 12 | O16: ='For Bill Impact(HideBeforeFile)'!$O$5 -> Dist. Customer Rate
C17: =INDEX('For Bill Impact(HideBeforeFile)'!$D$48:$S$57,MATCH(C10,'For Bill Impact(HideBeforeFile)'!$C$62:$C$71,0),MATCH($O17,'For Bill Impact(HideBeforeFile)'!$D$61:$S$61,0)) -> Delivery - Firm | D17: =INDEX('For Bill Impact(HideBeforeFile)'!$D$62:$S$71,MATCH(C10,'For Bill Impact(HideBeforeFile)'!$C$62:$C$71,0),MATCH($O17,'For Bill Impact(HideBeforeFile)'!$D$61:$S$61,0)) -> cents / m3 | F17: =INDEX('For Bill Impact(HideBeforeFile)'!$D$6:$S$15,MATCH(C10,'For Bill Impact(HideBeforeFile)'!$C$62:$C$71,0),MATCH($O17,'For Bill Impact(HideBeforeFile)'!$D$61:$S$61,0)) -> 8.2482 | H17: =INDEX('For Bill Impact(HideBeforeFile)'!$D$20:$S$29,MATCH(C10,'For Bill Impact(HideBeforeFile)'!$C$62:$C$71,0),MATCH($O17,'For Bill Impact(HideBeforeFile)'!$D$61:$S$61,0)) -> 8.6111208 | J17: =INDEX('For Bill Impact(HideBeforeFile)'!$D$34:$S$43,MATCH(C10,'For Bill Impact(HideBeforeFile)'!$C$62:$C$71,0),MATCH($O17,'For Bill Impact(HideBeforeFile)'!$D$61:$S$61,0)) -> 149462.35 | O17: ='For Bill Impact(HideBeforeFile)'!$P$5 -> Dist. Vol. Rate Tier 1
C18: =INDEX('For Bill Impact(HideBeforeFile)'!$D$48:$S$57,MATCH(C10,'For Bill Impact(HideBeforeFile)'!$C$62:$C$71,0),MATCH($O18,'For Bill Impact(HideBeforeFile)'!$D$61:$S$61,0)) ->  | D18: =INDEX('For Bill Impact(HideBeforeFile)'!$D$62:$S$71,MATCH(C10,'For Bill Impact(HideBeforeFile)'!$C$62:$C$71,0),MATCH($O18,'For Bill Impact(HideBeforeFile)'!$D$61:$S$61,0)) ->  | F18: =INDEX('For Bill Impact(HideBeforeFile)'!$D$6:$S$15,MATCH(C10,'For Bill Impact(HideBeforeFile)'!$C$62:$C$71,0),MATCH($O18,'For Bill Impact(HideBeforeFile)'!$D$61:$S$61,0)) ->  | H18: =INDEX('For Bill Impact(HideBeforeFile)'!$D$20:$S$29,MATCH(C10,'For Bill Impact(HideBeforeFile)'!$C$62:$C$71,0),MATCH($O18,'For Bill Impact(HideBeforeFile)'!$D$61:$S$61,0)) ->  | J18: =INDEX('For Bill Impact(HideBeforeFile)'!$D$34:$S$43,MATCH(C10,'For Bill Impact(HideBeforeFile)'!$C$62:$C$71,0),MATCH($O18,'For Bill Impact(HideBeforeFile)'!$D$61:$S$61,0)) ->  | O18: ='For Bill Impact(HideBeforeFile)'!$Q$5 -> Dist. Vol. Rate Tier 2
C19: =INDEX('For Bill Impact(HideBeforeFile)'!$D$48:$S$57,MATCH(C10,'For Bill Impact(HideBeforeFile)'!$C$62:$C$71,0),MATCH($O19,'For Bill Impact(HideBeforeFile)'!$D$61:$S$61,0)) ->  | D19: =INDEX('For Bill Impact(HideBeforeFile)'!$D$62:$S$71,MATCH(C10,'For Bill Impact(HideBeforeFile)'!$C$62:$C$71,0),MATCH($O19,'For Bill Impact(HideBeforeFile)'!$D$61:$S$61,0)) ->  | F19: =INDEX('For Bill Impact(HideBeforeFile)'!$D$6:$S$15,MATCH(C10,'For Bill Impact(HideBeforeFile)'!$C$62:$C$71,0),MATCH($O19,'For Bill Impact(HideBeforeFile)'!$D$61:$S$61,0)) ->  | H19: =INDEX('For Bill Impact(HideBeforeFile)'!$D$20:$S$29,MATCH(C10,'For Bill Impact(HideBeforeFile)'!$C$62:$C$71,0),MATCH($O19,'For Bill Impact(HideBeforeFile)'!$D$61:$S$61,0)) ->  | J19: =INDEX('For Bill Impact(HideBeforeFile)'!$D$34:$S$43,MATCH(C10,'For Bill Impact(HideBeforeFile)'!$C$62:$C$71,0),MATCH($O19,'For Bill Impact(HideBeforeFile)'!$D$61:$S$61,0)) ->  | O19: ='For Bill Impact(HideBeforeFile)'!$R$5 -> Dist. Vol. Rate Tier 3
C20: =INDEX('For Bill Impact(HideBeforeFile)'!$D$48:$S$57,MATCH(C10,'For Bill Impact(HideBeforeFile)'!$C$62:$C$71,0),MATCH($O20,'For Bill Impact(HideBeforeFile)'!$D$61:$S$61,0)) ->  | D20: =INDEX('For Bill Impact(HideBeforeFile)'!$D$62:$S$71,MATCH(C10,'For Bill Impact(HideBeforeFile)'!$C$62:$C$71,0),MATCH($O20,'For Bill Impact(HideBeforeFile)'!$D$61:$S$61,0)) ->  | F20: =INDEX('For Bill Impact(HideBeforeFile)'!$D$6:$S$15,MATCH(C10,'For Bill Impact(HideBeforeFile)'!$C$62:$C$71,0),MATCH($O20,'For Bill Impact(HideBeforeFile)'!$D$61:$S$61,0)) ->  | H20: =INDEX('For Bill Impact(HideBeforeFile)'!$D$20:$S$29,MATCH(C10,'For Bill Impact(HideBeforeFile)'!$C$62:$C$71,0),MATCH($O20,'For Bill Impact(HideBeforeFile)'!$D$61:$S$61,0)) ->  | J20: =INDEX('For Bill Impact(HideBeforeFile)'!$D$34:$S$43,MATCH(C10,'For Bill Impact(HideBeforeFile)'!$C$62:$C$71,0),MATCH($O20,'For Bill Impact(HideBeforeFile)'!$D$61:$S$61,0)) ->  | O20: ='For Bill Impact(HideBeforeFile)'!$S$5 -> Dist. Capacity Rate
C21: =INDEX('For Bill Impact(HideBeforeFile)'!$D$48:$S$57,MATCH(C10,'For Bill Impact(HideBeforeFile)'!$C$62:$C$71,0),MATCH($O21,'For Bill Impact(HideBeforeFile)'!$D$61:$S$61,0)) -> System Gas Charge | D21: =INDEX('For Bill Impact(HideBeforeFile)'!$D$62:$S$71,MATCH(C10,'For Bill Impact(HideBeforeFile)'!$C$62:$C$71,0),MATCH($O21,'For Bill Impact(HideBeforeFile)'!$D$61:$S$61,0)) -> cents / m3 | F21: =INDEX('For Bill Impact(HideBeforeFile)'!$D$6:$S$15,MATCH(C10,'For Bill Impact(HideBeforeFile)'!$C$62:$C$71,0),MATCH($O21,'For Bill Impact(HideBeforeFile)'!$D$61:$S$61,0)) -> 0.0435 | H21: =INDEX('For Bill Impact(HideBeforeFile)'!$D$20:$S$29,MATCH(C10,'For Bill Impact(HideBeforeFile)'!$C$62:$C$71,0),MATCH($O21,'For Bill Impact(HideBeforeFile)'!$D$61:$S$61,0)) -> 0.0435 | J21: =INDEX('For Bill Impact(HideBeforeFile)'!$D$34:$S$43,MATCH(C10,'For Bill Impact(HideBeforeFile)'!$C$62:$C$71,0),MATCH($O21,'For Bill Impact(HideBeforeFile)'!$D$61:$S$61,0)) -> 149462.35 | O21: ='For Bill Impact(HideBeforeFile)'!$E$5 -> System Gas
C23: =INDEX('For Bill Impact(HideBeforeFile)'!$D$48:$S$57,MATCH(C10,'For Bill Impact(HideBeforeFile)'!$C$62:$C$71,0),MATCH($O23,'For Bill Impact(HideBeforeFile)'!$D$61:$S$61,0)) -> REDA | D23: =INDEX('For Bill Impact(HideBeforeFile)'!$D$62:$S$71,MATCH(C10,'For Bill Impact(HideBeforeFile)'!$C$62:$C$71,0),MATCH($O23,'For Bill Impact(HideBeforeFile)'!$D$61:$S$61,0)) -> $ / month | F23: =INDEX('For Bill Impact(HideBeforeFile)'!$D$6:$S$15,MATCH(C10,'For Bill Impact(HideBeforeFile)'!$C$62:$C$71,0),MATCH($O23,'For Bill Impact(HideBeforeFile)'!$D$61:$S$61,0)) -> 0.02 | H23: =INDEX('For Bill Impact(HideBeforeFile)'!$D$20:$S$29,MATCH(C10,'For Bill Impact(HideBeforeFile)'!$C$62:$C$71,0),MATCH($O23,'For Bill Impact(HideBeforeFile)'!$D$61:$S$61,0)) -> 0.02 | J23: =INDEX('For Bill Impact(HideBeforeFile)'!$D$34:$S$43,MATCH(C10,'For Bill Impact(HideBeforeFile)'!$C$62:$C$71,0),MATCH($O23,'For Bill Impact(HideBeforeFile)'!$D$61:$S$61,0)) -> 12 | O23: ='For Bill Impact(HideBeforeFile)'!$F$5 -> REDA
C24: =INDEX('For Bill Impact(HideBeforeFile)'!$D$48:$S$57,MATCH(C10,'For Bill Impact(HideBeforeFile)'!$C$62:$C$71,0),MATCH($O24,'For Bill Impact(HideBeforeFile)'!$D$61:$S$61,0)) -> PGTVA | D24: =INDEX('For Bill Impact(HideBeforeFile)'!$D$62:$S$71,MATCH(C10,'For Bill Impact(HideBeforeFile)'!$C$62:$C$71,0),MATCH($O24,'For Bill Impact(HideBeforeFile)'!$D$61:$S$61,0)) -> cents / m3 | F24: =INDEX('For Bill Impact(HideBeforeFile)'!$D$6:$S$15,MATCH(C10,'For Bill Impact(HideBeforeFile)'!$C$62:$C$71,0),MATCH($O24,'For Bill Impact(HideBeforeFile)'!$D$61:$S$61,0)) -> 0.4355 | H24: =INDEX('For Bill Impact(HideBeforeFile)'!$D$20:$S$29,MATCH(C10,'For Bill Impact(HideBeforeFile)'!$C$62:$C$71,0),MATCH($O24,'For Bill Impact(HideBeforeFile)'!$D$61:$S$61,0)) -> 0.7891024788 | J24: =INDEX('For Bill Impact(HideBeforeFile)'!$D$34:$S$43,MATCH(C10,'For Bill Impact(HideBeforeFile)'!$C$62:$C$71,0),MATCH($O24,'For Bill Impact(HideBeforeFile)'!$D$61:$S$61,0)) -> 149462.35 | O24: ='For Bill Impact(HideBeforeFile)'!$G$5 -> PGTVA
C25: =INDEX('For Bill Impact(HideBeforeFile)'!$D$48:$S$57,MATCH(C10,'For Bill Impact(HideBeforeFile)'!$C$62:$C$71,0),MATCH($O25,'For Bill Impact(HideBeforeFile)'!$D$61:$S$61,0)) -> ADVADA | D25: =INDEX('For Bill Impact(HideBeforeFile)'!$D$62:$S$71,MATCH(C10,'For Bill Impact(HideBeforeFile)'!$C$62:$C$71,0),MATCH($O25,'For Bill Impact(HideBeforeFile)'!$D$61:$S$61,0)) -> cents / m3 | F25: =INDEX('For Bill Impact(HideBeforeFile)'!$D$6:$S$15,MATCH(C10,'For Bill Impact(HideBeforeFile)'!$C$62:$C$71,0),MATCH($O25,'For Bill Impact(HideBeforeFile)'!$D$61:$S$61,0)) -> 0 | H25: =INDEX('For Bill Impact(HideBeforeFile)'!$D$20:$S$29,MATCH(C10,'For Bill Impact(HideBeforeFile)'!$C$62:$C$71,0),MATCH($O25,'For Bill Impact(HideBeforeFile)'!$D$61:$S$61,0)) -> -0.02895736312 | J25: =INDEX('For Bill Impact(HideBeforeFile)'!$D$34:$S$43,MATCH(C10,'For Bill Impact(HideBeforeFile)'!$C$62:$C$71,0),MATCH($O25,'For Bill Impact(HideBeforeFile)'!$D$61:$S$61,0)) -> 149462.35 | O25: ='For Bill Impact(HideBeforeFile)'!$H$5 -> ADVADA
C26: =INDEX('For Bill Impact(HideBeforeFile)'!$D$48:$S$57,MATCH(C10,'For Bill Impact(HideBeforeFile)'!$C$62:$C$71,0),MATCH($O26,'For Bill Impact(HideBeforeFile)'!$D$61:$S$61,0)) -> LDMDA | D26: =INDEX('For Bill Impact(HideBeforeFile)'!$D$62:$S$71,MATCH(C10,'For Bill Impact(HideBeforeFile)'!$C$62:$C$71,0),MATCH($O26,'For Bill Impact(HideBeforeFile)'!$D$61:$S$61,0)) -> $ / month | F26: =INDEX('For Bill Impact(HideBeforeFile)'!$D$6:$S$15,MATCH(C10,'For Bill Impact(HideBeforeFile)'!$C$62:$C$71,0),MATCH($O26,'For Bill Impact(HideBeforeFile)'!$D$61:$S$61,0)) -> 0 | H26: =INDEX('For Bill Impact(HideBeforeFile)'!$D$20:$S$29,MATCH(C10,'For Bill Impact(HideBeforeFile)'!$C$62:$C$71,0),MATCH($O26,'For Bill Impact(HideBeforeFile)'!$D$61:$S$61,0)) -> 0 | J26: =INDEX('For Bill Impact(HideBeforeFile)'!$D$34:$S$43,MATCH(C10,'For Bill Impact(HideBeforeFile)'!$C$62:$C$71,0),MATCH($O26,'For Bill Impact(HideBeforeFile)'!$D$61:$S$61,0)) -> 12 | O26: LDMDA
C27: =INDEX('For Bill Impact(HideBeforeFile)'!$D$48:$S$57,MATCH(C10,'For Bill Impact(HideBeforeFile)'!$C$62:$C$71,0),MATCH($O27,'For Bill Impact(HideBeforeFile)'!$D$61:$S$61,0)) -> SICDA | D27: =INDEX('For Bill Impact(HideBeforeFile)'!$D$62:$S$71,MATCH(C10,'For Bill Impact(HideBeforeFile)'!$C$62:$C$71,0),MATCH($O27,'For Bill Impact(HideBeforeFile)'!$D$61:$S$61,0)) -> cents / m3 | F27: =INDEX('For Bill Impact(HideBeforeFile)'!$D$6:$S$15,MATCH(C10,'For Bill Impact(HideBeforeFile)'!$C$62:$C$71,0),MATCH($O27,'For Bill Impact(HideBeforeFile)'!$D$61:$S$61,0)) -> 0 | H27: =INDEX('For Bill Impact(HideBeforeFile)'!$D$20:$S$29,MATCH(C10,'For Bill Impact(HideBeforeFile)'!$C$62:$C$71,0),MATCH($O27,'For Bill Impact(HideBeforeFile)'!$D$61:$S$61,0)) -> 0 | J27: =INDEX('For Bill Impact(HideBeforeFile)'!$D$34:$S$43,MATCH(C10,'For Bill Impact(HideBeforeFile)'!$C$62:$C$71,0),MATCH($O27,'For Bill Impact(HideBeforeFile)'!$D$61:$S$61,0)) -> 149462.35 | O27: SICDA
C28: =INDEX('For Bill Impact(HideBeforeFile)'!$D$48:$S$57,MATCH(C10,'For Bill Impact(HideBeforeFile)'!$C$62:$C$71,0),MATCH($O28,'For Bill Impact(HideBeforeFile)'!$D$61:$S$61,0)) -> FCCVA | D28: =INDEX('For Bill Impact(HideBeforeFile)'!$D$62:$S$71,MATCH(C10,'For Bill Impact(HideBeforeFile)'!$C$62:$C$71,0),MATCH($O28,'For Bill Impact(HideBeforeFile)'!$D$61:$S$61,0)) -> $ / month | F28: =INDEX('For Bill Impact(HideBeforeFile)'!$D$6:$S$15,MATCH(C10,'For Bill Impact(HideBeforeFile)'!$C$62:$C$71,0),MATCH($O28,'For Bill Impact(HideBeforeFile)'!$D$61:$S$61,0)) -> 0 | H28: =INDEX('For Bill Impact(HideBeforeFile)'!$D$20:$S$29,MATCH(C10,'For Bill Impact(HideBeforeFile)'!$C$62:$C$71,0),MATCH($O28,'For Bill Impact(HideBeforeFile)'!$D$61:$S$61,0)) -> 0 | J28: =INDEX('For Bill Impact(HideBeforeFile)'!$D$34:$S$43,MATCH(C10,'For Bill Impact(HideBeforeFile)'!$C$62:$C$71,0),MATCH($O28,'For Bill Impact(HideBeforeFile)'!$D$61:$S$61,0)) -> 12 | O28: FCCVA
C29: =INDEX('For Bill Impact(HideBeforeFile)'!$D$48:$S$57,MATCH(C10,'For Bill Impact(HideBeforeFile)'!$C$62:$C$71,0),MATCH($O29,'For Bill Impact(HideBeforeFile)'!$D$61:$S$61,0)) -> GGEADA | D29: =INDEX('For Bill Impact(HideBeforeFile)'!$D$62:$S$71,MATCH(C10,'For Bill Impact(HideBeforeFile)'!$C$62:$C$71,0),MATCH($O29,'For Bill Impact(HideBeforeFile)'!$D$61:$S$61,0)) -> $ / month | F29: =INDEX('For Bill Impact(HideBeforeFile)'!$D$6:$S$15,MATCH(C10,'For Bill Impact(HideBeforeFile)'!$C$62:$C$71,0),MATCH($O29,'For Bill Impact(HideBeforeFile)'!$D$61:$S$61,0)) -> 0 | H29: =INDEX('For Bill Impact(HideBeforeFile)'!$D$20:$S$29,MATCH(C10,'For Bill Impact(HideBeforeFile)'!$C$62:$C$71,0),MATCH($O29,'For Bill Impact(HideBeforeFile)'!$D$61:$S$61,0)) -> 0 | J29: =INDEX('For Bill Impact(HideBeforeFile)'!$D$34:$S$43,MATCH(C10,'For Bill Impact(HideBeforeFile)'!$C$62:$C$71,0),MATCH($O29,'For Bill Impact(HideBeforeFile)'!$D$61:$S$61,0)) -> 12 | O29: GGEADA
C31: =INDEX('For Bill Impact(HideBeforeFile)'!$D$48:$S$57,MATCH(C10,'For Bill Impact(HideBeforeFile)'!$C$62:$C$71,0),MATCH($O31,'For Bill Impact(HideBeforeFile)'!$D$61:$S$61,0)) -> Federal Carbon | D31: =INDEX('For Bill Impact(HideBeforeFile)'!$D$62:$S$71,MATCH(C10,'For Bill Impact(HideBeforeFile)'!$C$62:$C$71,0),MATCH($O31,'For Bill Impact(HideBeforeFile)'!$D$61:$S$61,0)) -> cents / m3 | F31: =INDEX('For Bill Impact(HideBeforeFile)'!$D$6:$S$15,MATCH(C10,'For Bill Impact(HideBeforeFile)'!$C$62:$C$71,0),MATCH($O31,'For Bill Impact(HideBeforeFile)'!$D$61:$S$61,0)) -> 12.39 | H31: =INDEX('For Bill Impact(HideBeforeFile)'!$D$20:$S$29,MATCH(C10,'For Bill Impact(HideBeforeFile)'!$C$62:$C$71,0),MATCH($O31,'For Bill Impact(HideBeforeFile)'!$D$61:$S$61,0)) -> 12.39 | J31: =INDEX('For Bill Impact(HideBeforeFile)'!$D$34:$S$43,MATCH(C10,'For Bill Impact(HideBeforeFile)'!$C$62:$C$71,0),MATCH($O31,'For Bill Impact(HideBeforeFile)'!$D$61:$S$61,0)) -> 149462.35 | O31: ='For Bill Impact(HideBeforeFile)'!$M$5 -> Federal Carbon
C32: =INDEX('For Bill Impact(HideBeforeFile)'!$D$48:$S$57,MATCH(C10,'For Bill Impact(HideBeforeFile)'!$C$62:$C$71,0),MATCH($O32,'For Bill Impact(HideBeforeFile)'!$D$61:$S$61,0)) -> Facility Carbon | D32: =INDEX('For Bill Impact(HideBeforeFile)'!$D$62:$S$71,MATCH(C10,'For Bill Impact(HideBeforeFile)'!$C$62:$C$71,0),MATCH($O32,'For Bill Impact(HideBeforeFile)'!$D$61:$S$61,0)) -> cents / m3 | F32: =INDEX('For Bill Impact(HideBeforeFile)'!$D$6:$S$15,MATCH(C10,'For Bill Impact(HideBeforeFile)'!$C$62:$C$71,0),MATCH($O32,'For Bill Impact(HideBeforeFile)'!$D$61:$S$61,0)) -> 0.0037 | H32: =INDEX('For Bill Impact(HideBeforeFile)'!$D$20:$S$29,MATCH(C10,'For Bill Impact(HideBeforeFile)'!$C$62:$C$71,0),MATCH($O32,'For Bill Impact(HideBeforeFile)'!$D$61:$S$61,0)) -> 0.0037 | J32: =INDEX('For Bill Impact(HideBeforeFile)'!$D$34:$S$43,MATCH(C10,'For Bill Impact(HideBeforeFile)'!$C$62:$C$71,0),MATCH($O32,'For Bill Impact(HideBeforeFile)'!$D$61:$S$61,0)) -> 149462.35 | O32: ='For Bill Impact(HideBeforeFile)'!$N$5 -> Facility Carbon
C35: Commodity | F35: Current | H35: Proposed | J35: Change $ | L35: Change %
F36: =F14*$J14/100 -> 34766.28777 | H36: =H14*$J14/100 -> 34766.28777 | J36: =H36-F36 -> 0 | L36: =IFERROR(J36/F36,"") -> 0 | O36: ='For Bill Impact(HideBeforeFile)'!$D$5 -> Commodity
C38: Delivery | F38: Current Rate | H38: Proposed Rate | J38: Change $ | L38: Change %
C39: =IF(C16<>"",C16,"") -> Customer (excl. Bill 32) | F39: =F16*$J16 -> 2467.165715 | H39: =H16*$J16 -> 2575.721007 | J39: =IFERROR(H39-F39,"") -> 108.5552915 | L39: =IFERROR(J39/F39,"") -> 0.044 | O39: ='For Bill Impact(HideBeforeFile)'!$O$5 -> Dist. Customer Rate
C40: Bill 32 | F40: 12 | H40: 12 | J40: =IFERROR(H40-F40,"") -> 0 | L40: =IFERROR(J40/F40,"") -> 0
C41: =IF(C17<>"",C17,"") -> Delivery - Firm | F41: =IFERROR(F17*$J17/100,"") -> 12327.95355 | H41: =IFERROR(H17*$J17/100,"") -> 12870.38351 | J41: =IFERROR(H41-F41,"") -> 542.4299563 | L41: =IFERROR(J41/F41,"") -> 0.044 | O41: ='For Bill Impact(HideBeforeFile)'!$P$5 -> Dist. Vol. Rate Tier 1
C42: =IF(C18<>"",C18,"") ->  | F42: =IFERROR(F18*$J18/100,"") ->  | H42: =IFERROR(H18*$J18/100,"") ->  | O42: ='For Bill Impact(HideBeforeFile)'!$Q$5 -> Dist. Vol. Rate Tier 2
C43: =IF(C19<>"",C19,"") ->  | F43: =IFERROR(F19*$J19/100,"") ->  | H43: =IFERROR(H19*$J19/100,"") ->  | O43: ='For Bill Impact(HideBeforeFile)'!$R$5 -> Dist. Vol. Rate Tier 3
C44: =IF(C20<>"",C20,"") ->  | F44: =IFERROR(F20*$J20/100,"") ->  | H44: =IFERROR(H20*$J20/100,"") ->  | O44: ='For Bill Impact(HideBeforeFile)'!$S$5 -> Dist. Capacity Rate
C45: =IF(C21<>"",C21,"") -> System Gas Charge | F45: =IFERROR(F21*$J21/100,"") -> 65.01612225 | H45: =IFERROR(H21*$J21/100,"") -> 65.01612225 | J45: 0 | L45: 0 | O45: ='For Bill Impact(HideBeforeFile)'!$E$5 -> System Gas
C46: Total Delivery | F46: =SUM(F39:F45) -> 14872.13539 | H46: =SUM(H39:H45) -> 15523.12064 | J46: =H46-F46 -> 650.9852478 | L46: =IF(ISERROR(J46/F46),0,J46/F46) -> 0.04377214372
C48: Rate Riders
C50: Rate Riders | F50: Current Rate | H50: Proposed Rate | J50: Change $ | L50: Change %
C51: =C23 -> REDA | F51: =F23*$J23 -> 0.24 | H51: =H23*$J23 -> 0.24 | J51: =IFERROR(H51-F51,"") -> 0 | L51: =IFERROR(J51/F51,"") -> 0 | O51: ='For Bill Impact(HideBeforeFile)'!$F$5 -> REDA
C52: PGTVA | F52: =IFERROR(F24*$J24/100,"") -> 650.9085343 | H52: =IFERROR(H24*$J24/100,"") -> 1179.411109 | J52: =IFERROR(H52-F52,"") -> 528.5025744 | L52: =IFERROR(J52/F52,"") -> 0.8119459903 | O52: ='For Bill Impact(HideBeforeFile)'!$G$5 -> PGTVA
C53: ADVADA | F53: =IFERROR(F25*$J25/100,"") -> 0 | H53: =IFERROR(H25*$J25/100,"") -> -43.28035541 | J53: -43.28035541 | O53: ='For Bill Impact(HideBeforeFile)'!$H$5 -> ADVADA
C54: LDMDA | F54: =F26*$J26 -> 0 | H54: =H26*$J26 -> 0 | J54: 0 | O54: ='For Bill Impact(HideBeforeFile)'!$I$5 -> LDMDA
C55: SICDA | F55: =IFERROR(F27*$J27/100,"") -> 0 | H55: =IFERROR(H27*$J27/100,"") -> 0 | J55: 0 | O55: ='For Bill Impact(HideBeforeFile)'!$J$5 -> SICDA
C56: FCCVA | F56: =F28*$J28 -> 0 | H56: =H28*$J28 -> 0 | J56: 0 | O56: ='For Bill Impact(HideBeforeFile)'!$I$5 -> LDMDA
C57: GGEADA | F57: 0 | H57: 0 | J57: 0 | O57: ='For Bill Impact(HideBeforeFile)'!$J$5 -> SICDA
C58: Total Rate Riders | F58: =SUM(F51:F57) -> 651.1485343 | H58: =SUM(H51:H57) -> 1136.370753 | J58: =SUM(J51:J57) -> 485.222219 | L58: =IF(ISERROR(J58/F58),0,J58/F58) -> 0.7451790083
C60: Carbon Tax
C61: Federal Carbon | F61: =F31*$J31/100 -> 18518.38516 | H61: =H31*$J31/100 -> 18518.38516 | J61: =IFERROR(H61-F61,"") -> 0 | L61: =IFERROR(J61/F61,"") -> 0
C62: Facility Carbon | F62: =F32*$J32/100 -> 5.53010695 | H62: =H32*$J32/100 -> 5.53010695 | J62: =IFERROR(H62-F62,"") -> 0 | L62: 0
C63: Total Carbon Tax | F63: =SUM(F61:F62) -> 18523.91527 | H63: =SUM(H61:H62) -> 18523.91527 | J63: =SUM(J61:J62) -> 0 | L63: =IF(ISERROR(J63/F63),0,J63/F63) -> 0
C65: Total Bill Impact | F65: =SUM(F36,F46,F58,F63) -> 68813.48697 | H65: =SUM(H36,H46,H58,H63) -> 69949.69443 | J65: =SUM(J36,J46,J58,J63) -> 1136.207467 | L65: =IFERROR(J65/F65,"") -> 0.01651140666
C68: =MID(CELL("filename",A1),FIND("]",CELL("filename",A1))+1,255) -> G1.5 Rate 5 Bill Impact

Sheet G1.6 Rate 6 Bill Impact
C2: ='A1.1 Distributor Information'!C3 -> Name of LDC: EPCOR Natural Gas Limited Partnership
C3: ='A1.1 Distributor Information'!C4 -> OEB Application Number: EB-2023-0160 Exhibit A - 2024 IRM Application
C7: Rate 6 Delivery Bill Impact
C10: ='For Bill Impact(HideBeforeFile)'!C15 -> RATE 6 - Integrated Grain Processors Co-Operative Aylmer Ethanol Production Facility | F10: Current | H10: Proposed | J10: Bill Determinant | O10: Look-up
C14: =INDEX('For Bill Impact(HideBeforeFile)'!$D$48:$S$57,MATCH(C10,'For Bill Impact(HideBeforeFile)'!$C$62:$C$71,0),MATCH($O14,'For Bill Impact(HideBeforeFile)'!$D$61:$S$61,0)) ->  | D14: =INDEX('For Bill Impact(HideBeforeFile)'!$D$62:$S$71,MATCH(C10,'For Bill Impact(HideBeforeFile)'!$C$62:$C$71,0),MATCH($O14,'For Bill Impact(HideBeforeFile)'!$D$61:$S$61,0)) ->  | F14: =INDEX('For Bill Impact(HideBeforeFile)'!$D$6:$S$15,MATCH(C10,'For Bill Impact(HideBeforeFile)'!$C$62:$C$71,0),MATCH($O14,'For Bill Impact(HideBeforeFile)'!$D$61:$S$61,0)) ->  | H14: =INDEX('For Bill Impact(HideBeforeFile)'!$D$20:$S$29,MATCH(C10,'For Bill Impact(HideBeforeFile)'!$C$62:$C$71,0),MATCH($O14,'For Bill Impact(HideBeforeFile)'!$D$61:$S$61,0)) ->  | J14: =INDEX('For Bill Impact(HideBeforeFile)'!$D$34:$S$43,MATCH(C10,'For Bill Impact(HideBeforeFile)'!$C$62:$C$71,0),MATCH($O14,'For Bill Impact(HideBeforeFile)'!$D$61:$S$61,0)) ->  | O14: ='For Bill Impact(HideBeforeFile)'!$D$5 -> Commodity
C16: =INDEX('For Bill Impact(HideBeforeFile)'!$D$48:$S$57,MATCH(C10,'For Bill Impact(HideBeforeFile)'!$C$62:$C$71,0),MATCH($O16,'For Bill Impact(HideBeforeFile)'!$D$61:$S$61,0)) -> Customer (excl. Bill 32) | D16: =INDEX('For Bill Impact(HideBeforeFile)'!$D$62:$S$71,MATCH(C10,'For Bill Impact(HideBeforeFile)'!$C$62:$C$71,0),MATCH($O16,'For Bill Impact(HideBeforeFile)'!$D$61:$S$61,0)) -> $ / month | F16: =INDEX('For Bill Impact(HideBeforeFile)'!$D$6:$S$15,MATCH(C10,'For Bill Impact(HideBeforeFile)'!$C$62:$C$71,0),MATCH($O16,'For Bill Impact(HideBeforeFile)'!$D$61:$S$61,0)) -> 66255.3 | H16: =INDEX('For Bill Impact(HideBeforeFile)'!$D$20:$S$29,MATCH(C10,'For Bill Impact(HideBeforeFile)'!$C$62:$C$71,0),MATCH($O16,'For Bill Impact(HideBeforeFile)'!$D$61:$S$61,0)) -> 69170.5332 | J16: =INDEX('For Bill Impact(HideBeforeFile)'!$D$34:$S$43,MATCH(C10,'For Bill Impact(HideBeforeFile)'!$C$62:$C$71,0),MATCH($O16,'For Bill Impact(HideBeforeFile)'!$D$61:$S$61,0)) -> 12 | O16: ='For Bill Impact(HideBeforeFile)'!$O$5 -> Dist. Customer Rate
C17: =INDEX('For Bill Impact(HideBeforeFile)'!$D$48:$S$57,MATCH(C10,'For Bill Impact(HideBeforeFile)'!$C$62:$C$71,0),MATCH($O17,'For Bill Impact(HideBeforeFile)'!$D$61:$S$61,0)) ->  | D17: =INDEX('For Bill Impact(HideBeforeFile)'!$D$62:$S$71,MATCH(C10,'For Bill Impact(HideBeforeFile)'!$C$62:$C$71,0),MATCH($O17,'For Bill Impact(HideBeforeFile)'!$D$61:$S$61,0)) ->  | F17: =INDEX('For Bill Impact(HideBeforeFile)'!$D$6:$S$15,MATCH(C10,'For Bill Impact(HideBeforeFile)'!$C$62:$C$71,0),MATCH($O17,'For Bill Impact(HideBeforeFile)'!$D$61:$S$61,0)) ->  | H17: =INDEX('For Bill Impact(HideBeforeFile)'!$D$20:$S$29,MATCH(C10,'For Bill Impact(HideBeforeFile)'!$C$62:$C$71,0),MATCH($O17,'For Bill Impact(HideBeforeFile)'!$D$61:$S$61,0)) ->  | J17: =INDEX('For Bill Impact(HideBeforeFile)'!$D$34:$S$43,MATCH(C10,'For Bill Impact(HideBeforeFile)'!$C$62:$C$71,0),MATCH($O17,'For Bill Impact(HideBeforeFile)'!$D$61:$S$61,0)) ->  | O17: ='For Bill Impact(HideBeforeFile)'!$P$5 -> Dist. Vol. Rate Tier 1
C18: =INDEX('For Bill Impact(HideBeforeFile)'!$D$48:$S$57,MATCH(C10,'For Bill Impact(HideBeforeFile)'!$C$62:$C$71,0),MATCH($O18,'For Bill Impact(HideBeforeFile)'!$D$61:$S$61,0)) ->  | D18: =INDEX('For Bill Impact(HideBeforeFile)'!$D$62:$S$71,MATCH(C10,'For Bill Impact(HideBeforeFile)'!$C$62:$C$71,0),MATCH($O18,'For Bill Impact(HideBeforeFile)'!$D$61:$S$61,0)) ->  | F18: =INDEX('For Bill Impact(HideBeforeFile)'!$D$6:$S$15,MATCH(C10,'For Bill Impact(HideBeforeFile)'!$C$62:$C$71,0),MATCH($O18,'For Bill Impact(HideBeforeFile)'!$D$61:$S$61,0)) ->  | H18: =INDEX('For Bill Impact(HideBeforeFile)'!$D$20:$S$29,MATCH(C10,'For Bill Impact(HideBeforeFile)'!$C$62:$C$71,0),MATCH($O18,'For Bill Impact(HideBeforeFile)'!$D$61:$S$61,0)) ->  | J18: =INDEX('For Bill Impact(HideBeforeFile)'!$D$34:$S$43,MATCH(C10,'For Bill Impact(HideBeforeFile)'!$C$62:$C$71,0),MATCH($O18,'For Bill Impact(HideBeforeFile)'!$D$61:$S$61,0)) ->  | O18: ='For Bill Impact(HideBeforeFile)'!$Q$5 -> Dist. Vol. Rate Tier 2
C19: =INDEX('For Bill Impact(HideBeforeFile)'!$D$48:$S$57,MATCH(C10,'For Bill Impact(HideBeforeFile)'!$C$62:$C$71,0),MATCH($O19,'For Bill Impact(HideBeforeFile)'!$D$61:$S$61,0)) ->  | D19: =INDEX('For Bill Impact(HideBeforeFile)'!$D$62:$S$71,MATCH(C10,'For Bill Impact(HideBeforeFile)'!$C$62:$C$71,0),MATCH($O19,'For Bill Impact(HideBeforeFile)'!$D$61:$S$61,0)) ->  | F19: =INDEX('For Bill Impact(HideBeforeFile)'!$D$6:$S$15,MATCH(C10,'For Bill Impact(HideBeforeFile)'!$C$62:$C$71,0),MATCH($O19,'For Bill Impact(HideBeforeFile)'!$D$61:$S$61,0)) ->  | H19: =INDEX('For Bill Impact(HideBeforeFile)'!$D$20:$S$29,MATCH(C10,'For Bill Impact(HideBeforeFile)'!$C$62:$C$71,0),MATCH($O19,'For Bill Impact(HideBeforeFile)'!$D$61:$S$61,0)) ->  | J19: =INDEX('For Bill Impact(HideBeforeFile)'!$D$34:$S$43,MATCH(C10,'For Bill Impact(HideBeforeFile)'!$C$62:$C$71,0),MATCH($O19,'For Bill Impact(HideBeforeFile)'!$D$61:$S$61,0)) ->  | O19: ='For Bill Impact(HideBeforeFile)'!$R$5 -> Dist. Vol. Rate Tier 3
C20: =INDEX('For Bill Impact(HideBeforeFile)'!$D$48:$S$57,MATCH(C10,'For Bill Impact(HideBeforeFile)'!$C$62:$C$71,0),MATCH($O20,'For Bill Impact(HideBeforeFile)'!$D$61:$S$61,0)) ->  | D20: =INDEX('For Bill Impact(HideBeforeFile)'!$D$62:$S$71,MATCH(C10,'For Bill Impact(HideBeforeFile)'!$C$62:$C$71,0),MATCH($O20,'For Bill Impact(HideBeforeFile)'!$D$61:$S$61,0)) ->  | F20: =INDEX('For Bill Impact(HideBeforeFile)'!$D$6:$S$15,MATCH(C10,'For Bill Impact(HideBeforeFile)'!$C$62:$C$71,0),MATCH($O20,'For Bill Impact(HideBeforeFile)'!$D$61:$S$61,0)) ->  | H20: =INDEX('For Bill Impact(HideBeforeFile)'!$D$20:$S$29,MATCH(C10,'For Bill Impact(HideBeforeFile)'!$C$62:$C$71,0),MATCH($O20,'For Bill Impact(HideBeforeFile)'!$D$61:$S$61,0)) ->  | J20: =INDEX('For Bill Impact(HideBeforeFile)'!$D$34:$S$43,MATCH(C10,'For Bill Impact(HideBeforeFile)'!$C$62:$C$71,0),MATCH($O20,'For Bill Impact(HideBeforeFile)'!$D$61:$S$61,0)) ->  | O20: ='For Bill Impact(HideBeforeFile)'!$S$5 -> Dist. Capacity Rate
C21: =INDEX('For Bill Impact(HideBeforeFile)'!$D$48:$S$57,MATCH(C10,'For Bill Impact(HideBeforeFile)'!$C$62:$C$71,0),MATCH($O21,'For Bill Impact(HideBeforeFile)'!$D$61:$S$61,0)) ->  | D21: =INDEX('For Bill Impact(HideBeforeFile)'!$D$62:$S$71,MATCH(C10,'For Bill Impact(HideBeforeFile)'!$C$62:$C$71,0),MATCH($O21,'For Bill Impact(HideBeforeFile)'!$D$61:$S$61,0)) ->  | F21: =INDEX('For Bill Impact(HideBeforeFile)'!$D$6:$S$15,MATCH(C10,'For Bill Impact(HideBeforeFile)'!$C$62:$C$71,0),MATCH($O21,'For Bill Impact(HideBeforeFile)'!$D$61:$S$61,0)) ->  | H21: =INDEX('For Bill Impact(HideBeforeFile)'!$D$20:$S$29,MATCH(C10,'For Bill Impact(HideBeforeFile)'!$C$62:$C$71,0),MATCH($O21,'For Bill Impact(HideBeforeFile)'!$D$61:$S$61,0)) ->  | J21: =INDEX('For Bill Impact(HideBeforeFile)'!$D$34:$S$43,MATCH(C10,'For Bill Impact(HideBeforeFile)'!$C$62:$C$71,0),MATCH($O21,'For Bill Impact(HideBeforeFile)'!$D$61:$S$61,0)) ->  | O21: ='For Bill Impact(HideBeforeFile)'!$E$5 -> System Gas
C23: =INDEX('For Bill Impact(HideBeforeFile)'!$D$48:$S$57,MATCH(C10,'For Bill Impact(HideBeforeFile)'!$C$62:$C$71,0),MATCH($O23,'For Bill Impact(HideBeforeFile)'!$D$61:$S$61,0)) -> REDA | D23: =INDEX('For Bill Impact(HideBeforeFile)'!$D$62:$S$71,MATCH(C10,'For Bill Impact(HideBeforeFile)'!$C$62:$C$71,0),MATCH($O23,'For Bill Impact(HideBeforeFile)'!$D$61:$S$61,0)) -> $ / month | F23: =INDEX('For Bill Impact(HideBeforeFile)'!$D$6:$S$15,MATCH(C10,'For Bill Impact(HideBeforeFile)'!$C$62:$C$71,0),MATCH($O23,'For Bill Impact(HideBeforeFile)'!$D$61:$S$61,0)) -> 0 | H23: =INDEX('For Bill Impact(HideBeforeFile)'!$D$20:$S$29,MATCH(C10,'For Bill Impact(HideBeforeFile)'!$C$62:$C$71,0),MATCH($O23,'For Bill Impact(HideBeforeFile)'!$D$61:$S$61,0)) -> 0 | J23: =INDEX('For Bill Impact(HideBeforeFile)'!$D$34:$S$43,MATCH(C10,'For Bill Impact(HideBeforeFile)'!$C$62:$C$71,0),MATCH($O23,'For Bill Impact(HideBeforeFile)'!$D$61:$S$61,0)) -> 12 | O23: ='For Bill Impact(HideBeforeFile)'!$F$5 -> REDA
C24: =INDEX('For Bill Impact(HideBeforeFile)'!$D$48:$S$57,MATCH(C10,'For Bill Impact(HideBeforeFile)'!$C$62:$C$71,0),MATCH($O24,'For Bill Impact(HideBeforeFile)'!$D$61:$S$61,0)) -> PGTVA | D24: =INDEX('For Bill Impact(HideBeforeFile)'!$D$62:$S$71,MATCH(C10,'For Bill Impact(HideBeforeFile)'!$C$62:$C$71,0),MATCH($O24,'For Bill Impact(HideBeforeFile)'!$D$61:$S$61,0)) -> $ / month | F24: =INDEX('For Bill Impact(HideBeforeFile)'!$D$6:$S$15,MATCH(C10,'For Bill Impact(HideBeforeFile)'!$C$62:$C$71,0),MATCH($O24,'For Bill Impact(HideBeforeFile)'!$D$61:$S$61,0)) -> 0 | H24: 0 | J24: =INDEX('For Bill Impact(HideBeforeFile)'!$D$34:$S$43,MATCH(C10,'For Bill Impact(HideBeforeFile)'!$C$62:$C$71,0),MATCH($O24,'For Bill Impact(HideBeforeFile)'!$D$61:$S$61,0)) -> 12 | O24: ='For Bill Impact(HideBeforeFile)'!$G$5 -> PGTVA
C25: =INDEX('For Bill Impact(HideBeforeFile)'!$D$48:$S$57,MATCH(C10,'For Bill Impact(HideBeforeFile)'!$C$62:$C$71,0),MATCH($O25,'For Bill Impact(HideBeforeFile)'!$D$61:$S$61,0)) -> ADVADA | D25: =INDEX('For Bill Impact(HideBeforeFile)'!$D$62:$S$71,MATCH(C10,'For Bill Impact(HideBeforeFile)'!$C$62:$C$71,0),MATCH($O25,'For Bill Impact(HideBeforeFile)'!$D$61:$S$61,0)) -> $ / month | F25: =INDEX('For Bill Impact(HideBeforeFile)'!$D$6:$S$15,MATCH(C10,'For Bill Impact(HideBeforeFile)'!$C$62:$C$71,0),MATCH($O25,'For Bill Impact(HideBeforeFile)'!$D$61:$S$61,0)) -> 0 | H25: 0 | J25: =INDEX('For Bill Impact(HideBeforeFile)'!$D$34:$S$43,MATCH(C10,'For Bill Impact(HideBeforeFile)'!$C$62:$C$71,0),MATCH($O25,'For Bill Impact(HideBeforeFile)'!$D$61:$S$61,0)) -> 12 | O25: ='For Bill Impact(HideBeforeFile)'!$H$5 -> ADVADA
C26: =INDEX('For Bill Impact(HideBeforeFile)'!$D$48:$S$57,MATCH(C10,'For Bill Impact(HideBeforeFile)'!$C$62:$C$71,0),MATCH($O26,'For Bill Impact(HideBeforeFile)'!$D$61:$S$61,0)) -> LDMDA | D26: =INDEX('For Bill Impact(HideBeforeFile)'!$D$62:$S$71,MATCH(C10,'For Bill Impact(HideBeforeFile)'!$C$62:$C$71,0),MATCH($O26,'For Bill Impact(HideBeforeFile)'!$D$61:$S$61,0)) -> $ / month | F26: =INDEX('For Bill Impact(HideBeforeFile)'!$D$6:$S$15,MATCH(C10,'For Bill Impact(HideBeforeFile)'!$C$62:$C$71,0),MATCH($O26,'For Bill Impact(HideBeforeFile)'!$D$61:$S$61,0)) -> 0 | H26: 0 | J26: =INDEX('For Bill Impact(HideBeforeFile)'!$D$34:$S$43,MATCH(C10,'For Bill Impact(HideBeforeFile)'!$C$62:$C$71,0),MATCH($O26,'For Bill Impact(HideBeforeFile)'!$D$61:$S$61,0)) -> 12 | O26: LDMDA
C27: =INDEX('For Bill Impact(HideBeforeFile)'!$D$48:$S$57,MATCH(C10,'For Bill Impact(HideBeforeFile)'!$C$62:$C$71,0),MATCH($O27,'For Bill Impact(HideBeforeFile)'!$D$61:$S$61,0)) -> SICDA | D27: =INDEX('For Bill Impact(HideBeforeFile)'!$D$62:$S$71,MATCH(C10,'For Bill Impact(HideBeforeFile)'!$C$62:$C$71,0),MATCH($O27,'For Bill Impact(HideBeforeFile)'!$D$61:$S$61,0)) -> cents / m3 | F27: =INDEX('For Bill Impact(HideBeforeFile)'!$D$6:$S$15,MATCH(C10,'For Bill Impact(HideBeforeFile)'!$C$62:$C$71,0),MATCH($O27,'For Bill Impact(HideBeforeFile)'!$D$61:$S$61,0)) -> 0 | H27: 0 | J27: =INDEX('For Bill Impact(HideBeforeFile)'!$D$34:$S$43,MATCH(C10,'For Bill Impact(HideBeforeFile)'!$C$62:$C$71,0),MATCH($O27,'For Bill Impact(HideBeforeFile)'!$D$61:$S$61,0)) -> 12 | O27: SICDA
C28: =INDEX('For Bill Impact(HideBeforeFile)'!$D$48:$S$57,MATCH(C10,'For Bill Impact(HideBeforeFile)'!$C$62:$C$71,0),MATCH($O28,'For Bill Impact(HideBeforeFile)'!$D$61:$S$61,0)) -> FCCVA | D28: =INDEX('For Bill Impact(HideBeforeFile)'!$D$62:$S$71,MATCH(C10,'For Bill Impact(HideBeforeFile)'!$C$62:$C$71,0),MATCH($O28,'For Bill Impact(HideBeforeFile)'!$D$61:$S$61,0)) -> $ / month | F28: =INDEX('For Bill Impact(HideBeforeFile)'!$D$6:$S$15,MATCH(C10,'For Bill Impact(HideBeforeFile)'!$C$62:$C$71,0),MATCH($O28,'For Bill Impact(HideBeforeFile)'!$D$61:$S$61,0)) -> 0 | H28: 0 | J28: =INDEX('For Bill Impact(HideBeforeFile)'!$D$34:$S$43,MATCH(C10,'For Bill Impact(HideBeforeFile)'!$C$62:$C$71,0),MATCH($O28,'For Bill Impact(HideBeforeFile)'!$D$61:$S$61,0)) -> 12 | O28: FCCVA
C29: =INDEX('For Bill Impact(HideBeforeFile)'!$D$48:$S$57,MATCH(C10,'For Bill Impact(HideBeforeFile)'!$C$62:$C$71,0),MATCH($O29,'For Bill Impact(HideBeforeFile)'!$D$61:$S$61,0)) -> GGEADA | D29: =INDEX('For Bill Impact(HideBeforeFile)'!$D$62:$S$71,MATCH(C10,'For Bill Impact(HideBeforeFile)'!$C$62:$C$71,0),MATCH($O29,'For Bill Impact(HideBeforeFile)'!$D$61:$S$61,0)) -> $ / month | F29: =INDEX('For Bill Impact(HideBeforeFile)'!$D$6:$S$15,MATCH(C10,'For Bill Impact(HideBeforeFile)'!$C$62:$C$71,0),MATCH($O29,'For Bill Impact(HideBeforeFile)'!$D$61:$S$61,0)) -> 0 | H29: 0 | J29: =INDEX('For Bill Impact(HideBeforeFile)'!$D$34:$S$43,MATCH(C10,'For Bill Impact(HideBeforeFile)'!$C$62:$C$71,0),MATCH($O29,'For Bill Impact(HideBeforeFile)'!$D$61:$S$61,0)) -> 12 | O29: GGEADA
C31: =INDEX('For Bill Impact(HideBeforeFile)'!$D$48:$S$57,MATCH(C10,'For Bill Impact(HideBeforeFile)'!$C$62:$C$71,0),MATCH($O31,'For Bill Impact(HideBeforeFile)'!$D$61:$S$61,0)) ->  | D31: =INDEX('For Bill Impact(HideBeforeFile)'!$D$62:$S$71,MATCH(C10,'For Bill Impact(HideBeforeFile)'!$C$62:$C$71,0),MATCH($O31,'For Bill Impact(HideBeforeFile)'!$D$61:$S$61,0)) ->  | F31: =INDEX('For Bill Impact(HideBeforeFile)'!$D$6:$S$15,MATCH(C10,'For Bill Impact(HideBeforeFile)'!$C$62:$C$71,0),MATCH($O31,'For Bill Impact(HideBeforeFile)'!$D$61:$S$61,0)) ->  | H31: =INDEX('For Bill Impact(HideBeforeFile)'!$D$20:$S$29,MATCH(C10,'For Bill Impact(HideBeforeFile)'!$C$62:$C$71,0),MATCH($O31,'For Bill Impact(HideBeforeFile)'!$D$61:$S$61,0)) ->  | J31: =INDEX('For Bill Impact(HideBeforeFile)'!$D$34:$S$43,MATCH(C10,'For Bill Impact(HideBeforeFile)'!$C$62:$C$71,0),MATCH($O31,'For Bill Impact(HideBeforeFile)'!$D$61:$S$61,0)) ->  | O31: ='For Bill Impact(HideBeforeFile)'!$M$5 -> Federal Carbon
C32: =INDEX('For Bill Impact(HideBeforeFile)'!$D$48:$S$57,MATCH(C10,'For Bill Impact(HideBeforeFile)'!$C$62:$C$71,0),MATCH($O32,'For Bill Impact(HideBeforeFile)'!$D$61:$S$61,0)) -> Facility Carbon | D32: =INDEX('For Bill Impact(HideBeforeFile)'!$D$62:$S$71,MATCH(C10,'For Bill Impact(HideBeforeFile)'!$C$62:$C$71,0),MATCH($O32,'For Bill Impact(HideBeforeFile)'!$D$61:$S$61,0)) -> cents / m3 | F32: =INDEX('For Bill Impact(HideBeforeFile)'!$D$6:$S$15,MATCH(C10,'For Bill Impact(HideBeforeFile)'!$C$62:$C$71,0),MATCH($O32,'For Bill Impact(HideBeforeFile)'!$D$61:$S$61,0)) -> 0.0037 | H32: =INDEX('For Bill Impact(HideBeforeFile)'!$D$20:$S$29,MATCH(C10,'For Bill Impact(HideBeforeFile)'!$C$62:$C$71,0),MATCH($O32,'For Bill Impact(HideBeforeFile)'!$D$61:$S$61,0)) -> 0.0037 | J32: =INDEX('For Bill Impact(HideBeforeFile)'!$D$34:$S$43,MATCH(C10,'For Bill Impact(HideBeforeFile)'!$C$62:$C$71,0),MATCH($O32,'For Bill Impact(HideBeforeFile)'!$D$61:$S$61,0)) -> 61555492 | O32: ='For Bill Impact(HideBeforeFile)'!$N$5 -> Facility Carbon
C35: Commodity | F35: Current | H35: Proposed | J35: Change $ | L35: Change %
F36: =IFERROR(F14*$J14/100,"") ->  | H36: =IFERROR(H14*$J14/100,"") ->  | J36: =IFERROR(H36-F36,"") ->  | L36: =IFERROR(J36/F36,"") ->  | O36: ='For Bill Impact(HideBeforeFile)'!$D$5 -> Commodity
C38: Delivery | F38: Current Rate | H38: Proposed Rate | J38: Change $ | L38: Change %
C39: =IF(C16<>"",C16,"") -> Customer (excl. Bill 32) | F39: =F16*$J16 -> 795063.6 | H39: =H16*$J16 -> 830046.3984 | J39: =IFERROR(H39-F39,"") -> 34982.7984 | L39: =IFERROR(J39/F39,"") -> 0.044 | O39: ='For Bill Impact(HideBeforeFile)'!$O$5 -> Dist. Customer Rate
C40: Bill 32 | F40: 12 | H40: 12 | J40: =IFERROR(H40-F40,"") -> 0 | L40: =IFERROR(J40/F40,"") -> 0
C41: =IF(C17<>"",C17,"") ->  | F41: =IFERROR(F17*$J17/100,"") ->  | H41: =IFERROR(H17*$J17/100,"") ->  | J41: =IFERROR(H41-F41,"") ->  | L41: =IFERROR(J41/F41,"") ->  | O41: ='For Bill Impact(HideBeforeFile)'!$P$5 -> Dist. Vol. Rate Tier 1
C42: =IF(C18<>"",C18,"") ->  | F42: =IFERROR(F18*$J18/100,"") ->  | H42: =IFERROR(H18*$J18/100,"") ->  | O42: ='For Bill Impact(HideBeforeFile)'!$Q$5 -> Dist. Vol. Rate Tier 2
C43: =IF(C19<>"",C19,"") ->  | F43: =IFERROR(F19*$J19/100,"") ->  | H43: =IFERROR(H19*$J19/100,"") ->  | O43: ='For Bill Impact(HideBeforeFile)'!$R$5 -> Dist. Vol. Rate Tier 3
C44: =IF(C20<>"",C20,"") ->  | F44: =IFERROR(F20*$J20/100,"") ->  | H44: =IFERROR(H20*$J20/100,"") ->  | O44: ='For Bill Impact(HideBeforeFile)'!$S$5 -> Dist. Capacity Rate
C45: =IF(C21<>"",C21,"") ->  | F45: =IFERROR(F21*$J21/100,"") ->  | H45: =IFERROR(H21*$J21/100,"") ->  | O45: ='For Bill Impact(HideBeforeFile)'!$E$5 -> System Gas
C46: Total Delivery | F46: =SUM(F39:F45) -> 795075.6 | H46: =SUM(H39:H45) -> 830058.3984 | J46: =H46-F46 -> 34982.7984 | L46: =IF(ISERROR(J46/F46),0,J46/F46) -> 0.04399933591
C48: Rate Riders
C50: Rate Riders | F50: Current Rate | H50: Proposed Rate | J50: Change $ | L50: Change %
C51: =C23 -> REDA | F51: =F23*$J23 -> 0 | H51: =H23*$J23 -> 0 | J51: =IFERROR(H51-F51,"") -> 0 | L51: =IFERROR(J51/F51,"") ->  | O51: ='For Bill Impact(HideBeforeFile)'!$F$5 -> REDA
C52: PGTVA | F52: =IFERROR(F24*$J24/100,"") -> 0 | H52: =IFERROR(H24*$J24/100,"") -> 0 | J52: =IFERROR(H52-F52,"") -> 0 | L52: =IFERROR(J52/F52,"") ->  | O52: ='For Bill Impact(HideBeforeFile)'!$G$5 -> PGTVA
C53: ADVADA | F53: =IFERROR(F25*$J25/100,"") -> 0 | H53: =IFERROR(H25*$J25/100,"") -> 0 | J53: 0 | O53: ='For Bill Impact(HideBeforeFile)'!$H$5 -> ADVADA
C54: LDMDA | F54: =F26*$J26 -> 0 | H54: =H26*$J26 -> 0 | J54: 0 | O54: ='For Bill Impact(HideBeforeFile)'!$I$5 -> LDMDA
C55: SICDA | F55: =IFERROR(F27*$J27/100,"") -> 0 | H55: =IFERROR(H27*$J27/100,"") -> 0 | J55: 0 | O55: ='For Bill Impact(HideBeforeFile)'!$J$5 -> SICDA
C56: FCCVA | F56: =F28*$J28 -> 0 | H56: =H28*$J28 -> 0 | J56: 0 | O56: ='For Bill Impact(HideBeforeFile)'!$I$5 -> LDMDA
C57: GGEADA | F57: 0 | H57: 0 | J57: 0 | O57: ='For Bill Impact(HideBeforeFile)'!$J$5 -> SICDA
C58: Total Rate Riders | F58: =SUM(F51:F57) -> 0 | H58: =SUM(H51:H57) -> 0 | J58: =SUM(J51:J55) -> 0 | L58: =IF(ISERROR(J58/F58),0,J58/F58) -> 0
C60: Carbon Tax
C61: Federal Carbon | F61: =IFERROR(F31*$J31/100,"") ->  | H61: =IFERROR(H31*$J31/100,"") ->  | J61: =IFERROR(H61-F61,"") ->  | L61: =IFERROR(J61/F61,"") -> 
C62: Facility Carbon | F62: =F32*$J32/100 -> 2277.553204 | H62: =H32*$J32/100 -> 2277.553204 | J62: =IFERROR(H62-F62,"") -> 0 | L62: 0
C63: Total Carbon Tax | F63: =SUM(F61:F62) -> 2277.553204 | H63: =SUM(H61:H62) -> 2277.553204 | J63: =SUM(J61:J62) -> 0 | L63: =IF(ISERROR(J63/F63),0,J63/F63) -> 0
C65: Total Bill Impact | F65: =SUM(F36,F46,F58,F63) -> 797353.1532 | H65: =SUM(H36,H46,H58,H63) -> 832335.9516 | J65: =SUM(J36,J46,J58,J63) -> 34982.7984 | L65: =IFERROR(J65/F65,"") -> 0.04387365656
C68: =MID(CELL("filename",A1),FIND("]",CELL("filename",A1))+1,255) -> G1.6 Rate 6 Bill Impact

Sheet G1.7 Summary of Bill Impacts
C2: ='A1.1 Distributor Information'!C3 -> Name of LDC: EPCOR Natural Gas Limited Partnership
C3: ='A1.1 Distributor Information'!C4 -> OEB Application Number: EB-2023-0160 Exhibit A - 2024 IRM Application
C5: Summary of Bill Impacts
C7: Rate Class | D7: Change in Delivery Charge ($ / year / customer) | E7: Change in Delivery Charge (%) | F7: Change in Rate Riders ($ / year / customer) | G7: Change in Rate Riders (%) | H7: Change in Total Bill ($ / year / customer) | I7: Change in Total Bill (%) | L7: CHECK
C9: ='G1.1 Rate 1 Bill Impact'!C10 -> RATE 1 - General Service Rate - Residential | D9: ='G1.1 Rate 1 Bill Impact'!J46 -> 23.37182399 | E9: ='G1.1 Rate 1 Bill Impact'!L46 -> 0.04367972883 | F9: ='G1.1 Rate 1 Bill Impact'!J58 -> 6.711638401 | G9: ='G1.1 Rate 1 Bill Impact'!L58 -> 0.7260985099 | H9: ='G1.1 Rate 1 Bill Impact'!J65 -> 30.08346239 | I9: ='G1.1 Rate 1 Bill Impact'!L65 -> 0.02347645954 | L9: =H9-F9-D9 -> 0
C10: ='G1.1 Rate 1 Bill Impact'!C70 -> RATE 1 - General Service Rate - Commercial | D10: ='G1.1 Rate 1 Bill Impact'!J106 -> 65.10575759 | E10: ='G1.1 Rate 1 Bill Impact'!L106 -> 0.04078139534 | F10: ='G1.1 Rate 1 Bill Impact'!J118 -> 35.1140772 | G10: ='G1.1 Rate 1 Bill Impact'!L118 -> 0.7416748771 | H10: ='G1.1 Rate 1 Bill Impact'!J125 -> 100.2198348 | I10: ='G1.1 Rate 1 Bill Impact'!L125 -> 0.01822094716 | L10: =H10-F10-D10 -> 0
C11: ='G1.1 Rate 1 Bill Impact'!C130 -> RATE 1 - General Service Rate - Industrial | D11: ='G1.1 Rate 1 Bill Impact'!J166 -> 153.4588089 | E11: ='G1.1 Rate 1 Bill Impact'!L166 -> 0.03992267325 | F11: ='G1.1 Rate 1 Bill Impact'!J178 -> 98.47793792 | G11: ='G1.1 Rate 1 Bill Impact'!L178 -> 0.7441019268 | H11: ='G1.1 Rate 1 Bill Impact'!J185 -> 251.9367468 | I11: ='G1.1 Rate 1 Bill Impact'!L185 -> 0.01703227984 | L11: 0
C13: ='G1.2 Rate 2 Bill Impact'!C10 -> RATE 2 - Seasonal Service - Apr to Oct | D13: ='G1.2 Rate 2 Bill Impact'!J46 -> 49.45577221 | E13: ='G1.2 Rate 2 Bill Impact'!L46 -> 0.04356709281 | F13: ='G1.2 Rate 2 Bill Impact'!J58 -> 31.11104735 | G13: ='G1.2 Rate 2 Bill Impact'!L58 -> 0.7429614667 | H13: ='G1.2 Rate 2 Bill Impact'!J65 -> 80.56681956 | I13: ='G1.2 Rate 2 Bill Impact'!L65 -> 0.01753796678 | L13: 0
C14: ='G1.2 Rate 2 Bill Impact'!C70 -> RATE 2 - Seasonal Service - Nov to Mar | D14: ='G1.2 Rate 2 Bill Impact'!J106 -> 51.81202382 | E14: ='G1.2 Rate 2 Bill Impact'!L106 -> 0.04371221613 | F14: ='G1.2 Rate 2 Bill Impact'!J118 -> 20.54216318 | G14: ='G1.2 Rate 2 Bill Impact'!L118 -> 0.7427583743 | H14: ='G1.2 Rate 2 Bill Impact'!J125 -> 72.354187 | I14: ='G1.2 Rate 2 Bill Impact'!L125 -> 0.02085720134 | L14: 0
C15: ='G1.2 Rate 2 Bill Impact'!C130 -> RATE 2 - Seasonal Service - Annual | D15: ='G1.2 Rate 2 Bill Impact'!J143 -> 101.267796 | E15: ='G1.2 Rate 2 Bill Impact'!L143 -> 0.04364122221 | F15: ='G1.2 Rate 2 Bill Impact'!J155 -> 51.65321052 | G15: ='G1.2 Rate 2 Bill Impact'!L155 -> 0.7428806848 | H15: ='G1.2 Rate 2 Bill Impact'!J162 -> 152.9210066 | I15: ='G1.2 Rate 2 Bill Impact'!L162 -> 0.01896605642 | L15: 0
C17: ='G1.3 Rate 3 Bill Impact'!C10 -> RATE 3 - Special Large Volume Contract Rate | D17: ='G1.3 Rate 3 Bill Impact'!J46 -> 1242.277151 | E17: ='G1.3 Rate 3 Bill Impact'!L46 -> 0.04377101198 | F17: ='G1.3 Rate 3 Bill Impact'!J58 -> 1012.772707 | G17: ='G1.3 Rate 3 Bill Impact'!L58 -> 0.7453221042 | H17: ='G1.3 Rate 3 Bill Impact'!J65 -> 2255.049858 | I17: ='G1.3 Rate 3 Bill Impact'!L65 -> 0.01599674649 | L17: 0
C19: ='G1.4 Rate 4 Bill Impact'!C10 -> RATE 4 - General Service Peaking - Apr to Dec | D19: ='G1.4 Rate 4 Bill Impact'!J46 -> 214.5514808 | E19: ='G1.4 Rate 4 Bill Impact'!L46 -> 0.04377469196 | F19: ='G1.4 Rate 4 Bill Impact'!J58 -> 120.1381952 | G19: ='G1.4 Rate 4 Bill Impact'!L58 -> 0.744622103 | H19: ='G1.4 Rate 4 Bill Impact'!J65 -> 334.689676 | I19: ='G1.4 Rate 4 Bill Impact'!L65 -> 0.01833217635 | L19: 0
C20: ='G1.4 Rate 4 Bill Impact'!C70 -> RATE 4 - General Service Peaking - Jan to Mar | D20: ='G1.4 Rate 4 Bill Impact'!J106 -> 29.80080061 | E20: ='G1.4 Rate 4 Bill Impact'!L106 -> 0.04372349143 | F20: ='G1.4 Rate 4 Bill Impact'!J118 -> 9.576706266 | G20: ='G1.4 Rate 4 Bill Impact'!L118 -> 0.7419883711 | H20: ='G1.4 Rate 4 Bill Impact'!J125 -> 39.37750688 | I20: ='G1.4 Rate 4 Bill Impact'!L125 -> 0.02254967606 | L20: 0
C21: ='G1.4 Rate 4 Bill Impact'!C130 -> RATE 4 - General Service Peaking - Annual | D21: ='G1.4 Rate 4 Bill Impact'!J143 -> 244.3522814 | E21: ='G1.4 Rate 4 Bill Impact'!L143 -> 0.04376844121 | F21: ='G1.4 Rate 4 Bill Impact'!J155 -> 129.7149015 | G21: ='G1.4 Rate 4 Bill Impact'!L155 -> 0.7444270184 | H21: ='G1.4 Rate 4 Bill Impact'!J162 -> 374.0671829 | I21: ='G1.4 Rate 4 Bill Impact'!L162 -> 0.01870035898 | L21: 0
C23: ='G1.5 Rate 5 Bill Impact'!C10 -> RATE 5 - Interruptible Peaking Contract Rate | D23: ='G1.5 Rate 5 Bill Impact'!J46 -> 650.9852478 | E23: ='G1.5 Rate 5 Bill Impact'!L46 -> 0.04377214372 | F23: ='G1.5 Rate 5 Bill Impact'!J58 -> 485.222219 | G23: ='G1.5 Rate 5 Bill Impact'!L58 -> 0.7451790083 | H23: ='G1.5 Rate 5 Bill Impact'!J65 -> 1136.207467 | I23: ='G1.5 Rate 5 Bill Impact'!L65 -> 0.01651140666 | L23: 0
C25: ='G1.6 Rate 6 Bill Impact'!C10 -> RATE 6 - Integrated Grain Processors Co-Operative Aylmer Ethanol Production Facility | D25: ='G1.6 Rate 6 Bill Impact'!J46 -> 34982.7984 | E25: ='G1.6 Rate 6 Bill Impact'!L46 -> 0.04399933591 | F25: ='G1.6 Rate 6 Bill Impact'!J58 -> 0 | G25: ='G1.6 Rate 6 Bill Impact'!L58 -> 0 | H25: ='G1.6 Rate 6 Bill Impact'!J65 -> 34982.7984 | I25: ='G1.6 Rate 6 Bill Impact'!L65 -> 0.04387365656 | L25: 0
C30: =MID(CELL("filename",A1),FIND("]",CELL("filename",A1))+1,255) -> G1.7 Summary of Bill Impacts
A49: REDA | C49: $='G1.1 Rate 1 Bill Impact'!J47 | D49: $='G1.1 Rate 1 Bill Impact'!J99 | E49: $='G1.1 Rate 1 Bill Impact'!J151 | G49: $='G1.2 Rate 2 Bill Impact'!J47 | I49: $='G1.4 Rate 4 Bill Impact'!J47 | J49: $='G1.4 Rate 4 Bill Impact'!J99 | K49: $='G1.4 Rate 4 Bill Impact'!J132 | M49: $='G1.5 Rate 5 Bill Impact'!J47 | O49: $='G1.6 Rate 6 Bill Impact'!J47
A50: PGTVA | C50: $='G1.1 Rate 1 Bill Impact'!J48 | D50: $='G1.1 Rate 1 Bill Impact'!J100 | E50: $='G1.1 Rate 1 Bill Impact'!J152 | G50: $='G1.2 Rate 2 Bill Impact'!J48 | I50: $='G1.4 Rate 4 Bill Impact'!J48 | J50: $='G1.4 Rate 4 Bill Impact'!J100 | K50: $='G1.4 Rate 4 Bill Impact'!J133 | M50: $='G1.5 Rate 5 Bill Impact'!J48 | O50: $='G1.6 Rate 6 Bill Impact'!J48
A51: AVDADA | C51: $='G1.1 Rate 1 Bill Impact'!J49 | D51: $='G1.1 Rate 1 Bill Impact'!J101 | E51: $='G1.1 Rate 1 Bill Impact'!J153 | G51: $='G1.2 Rate 2 Bill Impact'!J49 | I51: $='G1.4 Rate 4 Bill Impact'!J49 | J51: $='G1.4 Rate 4 Bill Impact'!J101 | K51: $='G1.4 Rate 4 Bill Impact'!J134 | M51: $='G1.5 Rate 5 Bill Impact'!J49 | O51: $='G1.6 Rate 6 Bill Impact'!J49
A52: Total | C52: $='G1.1 Rate 1 Bill Impact'!J50 | D52: $='G1.1 Rate 1 Bill Impact'!J102 | E52: $='G1.1 Rate 1 Bill Impact'!J154 | G52: $='G1.2 Rate 2 Bill Impact'!J50 | I52: $='G1.4 Rate 4 Bill Impact'!J50 | J52: $='G1.4 Rate 4 Bill Impact'!J102 | K52: $='G1.4 Rate 4 Bill Impact'!J135 | M52: $='G1.5 Rate 5 Bill Impact'!J50 | O52: $='G1.6 Rate 6 Bill Impact'!J50
A55: REDA | C55: $='G1.1 Rate 1 Bill Impact'!L47 | D55: $='G1.1 Rate 1 Bill Impact'!L99 | E55: $='G1.1 Rate 1 Bill Impact'!L151 | G55: $='G1.2 Rate 2 Bill Impact'!L47 | I55: $='G1.4 Rate 4 Bill Impact'!L47 | J55: $='G1.4 Rate 4 Bill Impact'!L99 | K55: $='G1.4 Rate 4 Bill Impact'!L132 | M55: $='G1.5 Rate 5 Bill Impact'!L47 | O55: $='G1.6 Rate 6 Bill Impact'!L47
A56: PGTVA | C56: $='G1.1 Rate 1 Bill Impact'!L48 | D56: $='G1.1 Rate 1 Bill Impact'!L100 | E56: $='G1.1 Rate 1 Bill Impact'!L152 | G56: $='G1.2 Rate 2 Bill Impact'!L48 | I56: $='G1.4 Rate 4 Bill Impact'!L48 | J56: $='G1.4 Rate 4 Bill Impact'!L100 | K56: $='G1.4 Rate 4 Bill Impact'!L133 | M56: $='G1.5 Rate 5 Bill Impact'!L48 | O56: $='G1.6 Rate 6 Bill Impact'!L48
A57: AVDADA | C57: $='G1.1 Rate 1 Bill Impact'!L49 | D57: $='G1.1 Rate 1 Bill Impact'!L101 | E57: $='G1.1 Rate 1 Bill Impact'!L153 | G57: $='G1.2 Rate 2 Bill Impact'!L49 | I57: $='G1.4 Rate 4 Bill Impact'!L49 | J57: $='G1.4 Rate 4 Bill Impact'!L101 | K57: $='G1.4 Rate 4 Bill Impact'!L134 | M57: $='G1.5 Rate 5 Bill Impact'!L49 | O57: $='G1.6 Rate 6 Bill Impact'!L49
A58: Total | C58: $='G1.1 Rate 1 Bill Impact'!L50 | D58: $='G1.1 Rate 1 Bill Impact'!L102 | E58: $='G1.1 Rate 1 Bill Impact'!L154 | G58: $='G1.2 Rate 2 Bill Impact'!L50 | I58: $='G1.4 Rate 4 Bill Impact'!L50 | J58: $='G1.4 Rate 4 Bill Impact'!L102 | K58: $='G1.4 Rate 4 Bill Impact'!L135 | M58: $='G1.5 Rate 5 Bill Impact'!L50 | O58: $='G1.6 Rate 6 Bill Impact'!L50

Sheet G1.8 Summary of Rate Riders
C2: ='A1.1 Distributor Information'!C3 -> Name of LDC: EPCOR Natural Gas Limited Partnership
C3: ='A1.1 Distributor Information'!C4 -> OEB Application Number: EB-2023-0160 Exhibit A - 2024 IRM Application
C5: Summary of Bill Impacts - Deferral & Variance Accounts
C7: Rate Class | D7: REDA | F7: PGTVA | H7: ADVADA | J7: LDMDA | L7: SICDA | N7: FCCVA | P7: GGEADA | R7: Total
D8: Variance ($) | E8: Variance (%) | F8: Variance ($) | G8: Variance (%) | H8: Variance ($) | I8: Variance (%) | J8: Variance ($) | K8: Variance (%) | L8: Variance ($) | M8: Variance (%) | N8: Variance ($) | O8: Variance (%) | P8: Variance ($) | Q8: Variance (%) | R8: Variance ($) | S8: Variance (%) | V8: CHECK
